Workbook

Sheet Výsledok
A1: Sídlo | B1: IDN2 | C1: Spolu | D1: Krajina | E1: Klíma | F1: Poradie | G1: Priorita
A2: Košice-Sídlisko KVP | B2: 599883 | C2: =D2+E2 -> 0.2181759911 | D2: =VLOOKUP(B2,Krajina!A:E,5,0) -> 0 | E2: =VLOOKUP(B2,Klíma!A:G,2,0) -> 0.2181759911 | F2: =_xlfn.RANK.AVG(C2,$C$2:$C$173) -> 172 | G2: =LOOKUP(F2,{0;43.25;86.5;129.75},{"Nízka";"Stredná";"Vysoká";"Najvyššia"}) -> Najvyššia | I2: Váhy
A3: Košice-Staré Mesto | B3: 598186 | C3: =D3+E3 -> 0.2954025145 | D3: =VLOOKUP(B3,Krajina!A:E,5,0) -> 0.06714359994 | E3: =VLOOKUP(B3,Klíma!A:G,2,0) -> 0.2282589146 | F3: =_xlfn.RANK.AVG(C3,$C$2:$C$173) -> 171 | G3: =LOOKUP(F3,{0;43.25;86.5;129.75},{"Nízka";"Stredná";"Vysoká";"Najvyššia"}) -> Najvyššia | I3: Land use | K3: Klíma
A4: Košice-Západ | B4: 598224 | C4: =D4+E4 -> 0.3396824407 | D4: =VLOOKUP(B4,Krajina!A:E,5,0) -> 0.1215064497 | E4: =VLOOKUP(B4,Klíma!A:G,2,0) -> 0.2181759911 | F4: =_xlfn.RANK.AVG(C4,$C$2:$C$173) -> 170 | G4: =LOOKUP(F4,{0;43.25;86.5;129.75},{"Nízka";"Stredná";"Vysoká";"Najvyššia"}) -> Najvyššia | I4: Imperviousness | J4: 0.25 | K4: Vlny horúčav | L4: 0.5
A5: Sobrance | B5: 523089 | C5: =D5+E5 -> 0.3931585855 | D5: =VLOOKUP(B5,Krajina!A:E,5,0) -> 0.3931585855 | E5: =VLOOKUP(B5,Klíma!A:G,2,0) -> 0 | F5: =_xlfn.RANK.AVG(C5,$C$2:$C$173) -> 169 | G5: =LOOKUP(F5,{0;43.25;86.5;129.75},{"Nízka";"Stredná";"Vysoká";"Najvyššia"}) -> Najvyššia | I5: Tree cover density | J5: 0.25 | K5: Extrémne zrážky | L5: 0
A6: Košice-Nad jazerom | B6: 599816 | C6: =D6+E6 -> 0.4273247909 | D6: =VLOOKUP(B6,Krajina!A:E,5,0) -> 0.1990658763 | E6: =VLOOKUP(B6,Klíma!A:G,2,0) -> 0.2282589146 | F6: =_xlfn.RANK.AVG(C6,$C$2:$C$173) -> 168 | G6: =LOOKUP(F6,{0;43.25;86.5;129.75},{"Nízka";"Stredná";"Vysoká";"Najvyššia"}) -> Najvyššia | I6: Grassland | J6: 0.25 | K6: Sucho | L6: 0.5
A7: Košice-Juh | B7: 599824 | C7: =D7+E7 -> 0.4281352901 | D7: =VLOOKUP(B7,Krajina!A:E,5,0) -> 0.1998763755 | E7: =VLOOKUP(B7,Klíma!A:G,2,0) -> 0.2282589146 | F7: =_xlfn.RANK.AVG(C7,$C$2:$C$173) -> 167 | G7: =LOOKUP(F7,{0;43.25;86.5;129.75},{"Nízka";"Stredná";"Vysoká";"Najvyššia"}) -> Najvyššia | I7: Water & Wetness | J7: 0.25 | K7: Iné prejavy | L7: 0
A8: Košice-Luník IX | B8: 599972 | C8: =D8+E8 -> 0.4492592472 | D8: =VLOOKUP(B8,Krajina!A:E,5,0) -> 0.2310832561 | E8: =VLOOKUP(B8,Klíma!A:G,2,0) -> 0.2181759911 | F8: =_xlfn.RANK.AVG(C8,$C$2:$C$173) -> 166 | G8: =LOOKUP(F8,{0;43.25;86.5;129.75},{"Nízka";"Stredná";"Vysoká";"Najvyššia"}) -> Najvyššia
A9: Košice-Dargovských hrdinov | B9: 598682 | C9: =D9+E9 -> 0.4510551295 | D9: =VLOOKUP(B9,Krajina!A:E,5,0) -> 0.222796215 | E9: =VLOOKUP(B9,Klíma!A:G,2,0) -> 0.2282589146 | F9: =_xlfn.RANK.AVG(C9,$C$2:$C$173) -> 165 | G9: =LOOKUP(F9,{0;43.25;86.5;129.75},{"Nízka";"Stredná";"Vysoká";"Najvyššia"}) -> Najvyššia
A10: Rimavská Sobota | B10: 514462 | C10: =D10+E10 -> 0.4760819454 | D10: =VLOOKUP(B10,Krajina!A:E,5,0) -> 0.4693796997 | E10: =VLOOKUP(B10,Klíma!A:G,2,0) -> 0.006702245755 | F10: =_xlfn.RANK.AVG(C10,$C$2:$C$173) -> 164 | G10: =LOOKUP(F10,{0;43.25;86.5;129.75},{"Nízka";"Stredná";"Vysoká";"Najvyššia"}) -> Najvyššia
A11: Veľké Kapušany | B11: 543853 | C11: =D11+E11 -> 0.4782427856 | D11: =VLOOKUP(B11,Krajina!A:E,5,0) -> 0.3785268933 | E11: =VLOOKUP(B11,Klíma!A:G,2,0) -> 0.09971589226 | F11: =_xlfn.RANK.AVG(C11,$C$2:$C$173) -> 163 | G11: =LOOKUP(F11,{0;43.25;86.5;129.75},{"Nízka";"Stredná";"Vysoká";"Najvyššia"}) -> Najvyššia
A12: Michalovce | B12: 522279 | C12: =D12+E12 -> 0.494134908 | D12: =VLOOKUP(B12,Krajina!A:E,5,0) -> 0.380366024 | E12: =VLOOKUP(B12,Klíma!A:G,2,0) -> 0.113768884 | F12: =_xlfn.RANK.AVG(C12,$C$2:$C$173) -> 162 | G12: =LOOKUP(F12,{0;43.25;86.5;129.75},{"Nízka";"Stredná";"Vysoká";"Najvyššia"}) -> Najvyššia
A13: Košice-Sídlisko Ťahanovce | B13: 599875 | C13: =D13+E13 -> 0.4969613538 | D13: =VLOOKUP(B13,Krajina!A:E,5,0) -> 0.2771984391 | E13: =VLOOKUP(B13,Klíma!A:G,2,0) -> 0.2197629147 | F13: =_xlfn.RANK.AVG(C13,$C$2:$C$173) -> 161 | G13: =LOOKUP(F13,{0;43.25;86.5;129.75},{"Nízka";"Stredná";"Vysoká";"Najvyššia"}) -> Najvyššia
A14: Humenné | B14: 520004 | C14: =D14+E14 -> 0.5136423112 | D14: =VLOOKUP(B14,Krajina!A:E,5,0) -> 0.3617775913 | E14: =VLOOKUP(B14,Klíma!A:G,2,0) -> 0.1518647199 | F14: =_xlfn.RANK.AVG(C14,$C$2:$C$173) -> 160 | G14: =LOOKUP(F14,{0;43.25;86.5;129.75},{"Nízka";"Stredná";"Vysoká";"Najvyššia"}) -> Najvyššia
A15: Tornaľa | B15: 515612 | C15: =D15+E15 -> 0.5421423064 | D15: =VLOOKUP(B15,Krajina!A:E,5,0) -> 0.4432684879 | E15: =VLOOKUP(B15,Klíma!A:G,2,0) -> 0.09887381852 | F15: =_xlfn.RANK.AVG(C15,$C$2:$C$173) -> 159 | G15: =LOOKUP(F15,{0;43.25;86.5;129.75},{"Nízka";"Stredná";"Vysoká";"Najvyššia"}) -> Najvyššia
A16: Sečovce | B16: 528722 | C16: =D16+E16 -> 0.5447483125 | D16: =VLOOKUP(B16,Krajina!A:E,5,0) -> 0.4369300499 | E16: =VLOOKUP(B16,Klíma!A:G,2,0) -> 0.1078182626 | F16: =_xlfn.RANK.AVG(C16,$C$2:$C$173) -> 158 | G16: =LOOKUP(F16,{0;43.25;86.5;129.75},{"Nízka";"Stredná";"Vysoká";"Najvyššia"}) -> Najvyššia
A17: Tvrdošovce | B17: 503614 | C17: =D17+E17 -> 0.5693251284 | D17: =VLOOKUP(B17,Krajina!A:E,5,0) -> 0.420991248 | E17: =VLOOKUP(B17,Klíma!A:G,2,0) -> 0.1483338804 | F17: =_xlfn.RANK.AVG(C17,$C$2:$C$173) -> 157 | G17: =LOOKUP(F17,{0;43.25;86.5;129.75},{"Nízka";"Stredná";"Vysoká";"Najvyššia"}) -> Najvyššia
A18: Poltár | B18: 511765 | C18: =D18+E18 -> 0.570068432 | D18: =VLOOKUP(B18,Krajina!A:E,5,0) -> 0.488224031 | E18: =VLOOKUP(B18,Klíma!A:G,2,0) -> 0.08184440104 | F18: =_xlfn.RANK.AVG(C18,$C$2:$C$173) -> 156 | G18: =LOOKUP(F18,{0;43.25;86.5;129.75},{"Nízka";"Stredná";"Vysoká";"Najvyššia"}) -> Najvyššia
A19: Trebišov | B19: 528099 | C19: =D19+E19 -> 0.5753484742 | D19: =VLOOKUP(B19,Krajina!A:E,5,0) -> 0.4305776878 | E19: =VLOOKUP(B19,Klíma!A:G,2,0) -> 0.1447707864 | F19: =_xlfn.RANK.AVG(C19,$C$2:$C$173) -> 155 | G19: =LOOKUP(F19,{0;43.25;86.5;129.75},{"Nízka";"Stredná";"Vysoká";"Najvyššia"}) -> Najvyššia
A20: Šurany | B20: 503592 | C20: =D20+E20 -> 0.5817849497 | D20: =VLOOKUP(B20,Krajina!A:E,5,0) -> 0.4379285609 | E20: =VLOOKUP(B20,Klíma!A:G,2,0) -> 0.1438563888 | F20: =_xlfn.RANK.AVG(C20,$C$2:$C$173) -> 154 | G20: =LOOKUP(F20,{0;43.25;86.5;129.75},{"Nízka";"Stredná";"Vysoká";"Najvyššia"}) -> Najvyššia
A21: Nové Zámky | B21: 503011 | C21: =D21+E21 -> 0.5832753877 | D21: =VLOOKUP(B21,Krajina!A:E,5,0) -> 0.3919623887 | E21: =VLOOKUP(B21,Klíma!A:G,2,0) -> 0.1913129991 | F21: =_xlfn.RANK.AVG(C21,$C$2:$C$173) -> 153 | G21: =LOOKUP(F21,{0;43.25;86.5;129.75},{"Nízka";"Stredná";"Vysoká";"Najvyššia"}) -> Najvyššia
A22: Košice-Džungľa | B22: 599891 | C22: =D22+E22 -> 0.5865002422 | D22: =VLOOKUP(B22,Krajina!A:E,5,0) -> 0.3582413276 | E22: =VLOOKUP(B22,Klíma!A:G,2,0) -> 0.2282589146 | F22: =_xlfn.RANK.AVG(C22,$C$2:$C$173) -> 152 | G22: =LOOKUP(F22,{0;43.25;86.5;129.75},{"Nízka";"Stredná";"Vysoká";"Najvyššia"}) -> Najvyššia
A23: Vranov nad Topľou | B23: 544051 | C23: =D23+E23 -> 0.5944609941 | D23: =VLOOKUP(B23,Krajina!A:E,5,0) -> 0.4070519839 | E23: =VLOOKUP(B23,Klíma!A:G,2,0) -> 0.1874090101 | F23: =_xlfn.RANK.AVG(C23,$C$2:$C$173) -> 151 | G23: =LOOKUP(F23,{0;43.25;86.5;129.75},{"Nízka";"Stredná";"Vysoká";"Najvyššia"}) -> Najvyššia
A24: Dvory nad Žitavou | B24: 503177 | C24: =D24+E24 -> 0.5987133396 | D24: =VLOOKUP(B24,Krajina!A:E,5,0) -> 0.4042299025 | E24: =VLOOKUP(B24,Klíma!A:G,2,0) -> 0.1944834371 | F24: =_xlfn.RANK.AVG(C24,$C$2:$C$173) -> 150 | G24: =LOOKUP(F24,{0;43.25;86.5;129.75},{"Nízka";"Stredná";"Vysoká";"Najvyššia"}) -> Najvyššia
A25: Košice-Ťahanovce | B25: 598127 | C25: =D25+E25 -> 0.6008592536 | D25: =VLOOKUP(B25,Krajina!A:E,5,0) -> 0.3810963388 | E25: =VLOOKUP(B25,Klíma!A:G,2,0) -> 0.2197629147 | F25: =_xlfn.RANK.AVG(C25,$C$2:$C$173) -> 149 | G25: =LOOKUP(F25,{0;43.25;86.5;129.75},{"Nízka";"Stredná";"Vysoká";"Najvyššia"}) -> Najvyššia
A26: Moldava nad Bodvou | B26: 521698 | C26: =D26+E26 -> 0.6187230164 | D26: =VLOOKUP(B26,Krajina!A:E,5,0) -> 0.4538602225 | E26: =VLOOKUP(B26,Klíma!A:G,2,0) -> 0.1648627939 | F26: =_xlfn.RANK.AVG(C26,$C$2:$C$173) -> 148 | G26: =LOOKUP(F26,{0;43.25;86.5;129.75},{"Nízka";"Stredná";"Vysoká";"Najvyššia"}) -> Najvyššia
A27: Trnava | B27: 506745 | C27: =D27+E27 -> 0.619934332 | D27: =VLOOKUP(B27,Krajina!A:E,5,0) -> 0.3178998416 | E27: =VLOOKUP(B27,Klíma!A:G,2,0) -> 0.3020344905 | F27: =_xlfn.RANK.AVG(C27,$C$2:$C$173) -> 147 | G27: =LOOKUP(F27,{0;43.25;86.5;129.75},{"Nízka";"Stredná";"Vysoká";"Najvyššia"}) -> Najvyššia
A28: Nitra | B28: 500011 | C28: =D28+E28 -> 0.6243942429 | D28: =VLOOKUP(B28,Krajina!A:E,5,0) -> 0.389277439 | E28: =VLOOKUP(B28,Klíma!A:G,2,0) -> 0.2351168039 | F28: =_xlfn.RANK.AVG(C28,$C$2:$C$173) -> 146 | G28: =LOOKUP(F28,{0;43.25;86.5;129.75},{"Nízka";"Stredná";"Vysoká";"Najvyššia"}) -> Najvyššia
A29: Snina | B29: 520802 | C29: =D29+E29 -> 0.6300614195 | D29: =VLOOKUP(B29,Krajina!A:E,5,0) -> 0.4694983128 | E29: =VLOOKUP(B29,Klíma!A:G,2,0) -> 0.1605631067 | F29: =_xlfn.RANK.AVG(C29,$C$2:$C$173) -> 145 | G29: =LOOKUP(F29,{0;43.25;86.5;129.75},{"Nízka";"Stredná";"Vysoká";"Najvyššia"}) -> Najvyššia
A30: Košice-Šebastovce | B30: 599786 | C30: =D30+E30 -> 0.6321511026 | D30: =VLOOKUP(B30,Krajina!A:E,5,0) -> 0.403892188 | E30: =VLOOKUP(B30,Klíma!A:G,2,0) -> 0.2282589146 | F30: =_xlfn.RANK.AVG(C30,$C$2:$C$173) -> 144 | G30: =LOOKUP(F30,{0;43.25;86.5;129.75},{"Nízka";"Stredná";"Vysoká";"Najvyššia"}) -> Najvyššia
A31: Šahy | B31: 502782 | C31: =D31+E31 -> 0.6356724346 | D31: =VLOOKUP(B31,Krajina!A:E,5,0) -> 0.5156451174 | E31: =VLOOKUP(B31,Klíma!A:G,2,0) -> 0.1200273173 | F31: =_xlfn.RANK.AVG(C31,$C$2:$C$173) -> 143 | G31: =LOOKUP(F31,{0;43.25;86.5;129.75},{"Nízka";"Stredná";"Vysoká";"Najvyššia"}) -> Najvyššia
A32: Rožňava | B32: 525529 | C32: =D32+E32 -> 0.6413137267 | D32: =VLOOKUP(B32,Krajina!A:E,5,0) -> 0.4154563862 | E32: =VLOOKUP(B32,Klíma!A:G,2,0) -> 0.2258573406 | F32: =_xlfn.RANK.AVG(C32,$C$2:$C$173) -> 142 | G32: =LOOKUP(F32,{0;43.25;86.5;129.75},{"Nízka";"Stredná";"Vysoká";"Najvyššia"}) -> Najvyššia
A33: Košice-Lorinčík | B33: 598194 | C33: =D33+E33 -> 0.6443532314 | D33: =VLOOKUP(B33,Krajina!A:E,5,0) -> 0.4261772403 | E33: =VLOOKUP(B33,Klíma!A:G,2,0) -> 0.2181759911 | F33: =_xlfn.RANK.AVG(C33,$C$2:$C$173) -> 141 | G33: =LOOKUP(F33,{0;43.25;86.5;129.75},{"Nízka";"Stredná";"Vysoká";"Najvyššia"}) -> Najvyššia
A34: Revúca | B34: 526142 | C34: =D34+E34 -> 0.6526994614 | D34: =VLOOKUP(B34,Krajina!A:E,5,0) -> 0.418584666 | E34: =VLOOKUP(B34,Klíma!A:G,2,0) -> 0.2341147955 | F34: =_xlfn.RANK.AVG(C34,$C$2:$C$173) -> 140 | G34: =LOOKUP(F34,{0;43.25;86.5;129.75},{"Nízka";"Stredná";"Vysoká";"Najvyššia"}) -> Najvyššia
A35: Košice-Pereš | B35: 598208 | C35: =D35+E35 -> 0.6561194653 | D35: =VLOOKUP(B35,Krajina!A:E,5,0) -> 0.4379434742 | E35: =VLOOKUP(B35,Klíma!A:G,2,0) -> 0.2181759911 | F35: =_xlfn.RANK.AVG(C35,$C$2:$C$173) -> 139 | G35: =LOOKUP(F35,{0;43.25;86.5;129.75},{"Nízka";"Stredná";"Vysoká";"Najvyššia"}) -> Najvyššia
A36: Želiezovce | B36: 502987 | C36: =D36+E36 -> 0.6588649825 | D36: =VLOOKUP(B36,Krajina!A:E,5,0) -> 0.4351766347 | E36: =VLOOKUP(B36,Klíma!A:G,2,0) -> 0.2236883478 | F36: =_xlfn.RANK.AVG(C36,$C$2:$C$173) -> 138 | G36: =LOOKUP(F36,{0;43.25;86.5;129.75},{"Nízka";"Stredná";"Vysoká";"Najvyššia"}) -> Najvyššia
A37: Šaľa | B37: 504025 | C37: =D37+E37 -> 0.6611780327 | D37: =VLOOKUP(B37,Krajina!A:E,5,0) -> 0.4073409816 | E37: =VLOOKUP(B37,Klíma!A:G,2,0) -> 0.2538370511 | F37: =_xlfn.RANK.AVG(C37,$C$2:$C$173) -> 137 | G37: =LOOKUP(F37,{0;43.25;86.5;129.75},{"Nízka";"Stredná";"Vysoká";"Najvyššia"}) -> Najvyššia
A38: Kráľovský Chlmec | B38: 528447 | C38: =D38+E38 -> 0.6623291214 | D38: =VLOOKUP(B38,Krajina!A:E,5,0) -> 0.5663815 | E38: =VLOOKUP(B38,Klíma!A:G,2,0) -> 0.09594762144 | F38: =_xlfn.RANK.AVG(C38,$C$2:$C$173) -> 136 | G38: =LOOKUP(F38,{0;43.25;86.5;129.75},{"Nízka";"Stredná";"Vysoká";"Najvyššia"}) -> Najvyššia
A39: Košice-Šaca | B39: 599841 | C39: =D39+E39 -> 0.6629795759 | D39: =VLOOKUP(B39,Krajina!A:E,5,0) -> 0.4743788997 | E39: =VLOOKUP(B39,Klíma!A:G,2,0) -> 0.1886006762 | F39: =_xlfn.RANK.AVG(C39,$C$2:$C$173) -> 135 | G39: =LOOKUP(F39,{0;43.25;86.5;129.75},{"Nízka";"Stredná";"Vysoká";"Najvyššia"}) -> Najvyššia
A40: Štúrovo | B40: 503584 | C40: =D40+E40 -> 0.6648042786 | D40: =VLOOKUP(B40,Krajina!A:E,5,0) -> 0.4490884769 | E40: =VLOOKUP(B40,Klíma!A:G,2,0) -> 0.2157158017 | F40: =_xlfn.RANK.AVG(C40,$C$2:$C$173) -> 134 | G40: =LOOKUP(F40,{0;43.25;86.5;129.75},{"Nízka";"Stredná";"Vysoká";"Najvyššia"}) -> Najvyššia
A41: Fiľakovo | B41: 511391 | C41: =D41+E41 -> 0.6654704813 | D41: =VLOOKUP(B41,Krajina!A:E,5,0) -> 0.5470470682 | E41: =VLOOKUP(B41,Klíma!A:G,2,0) -> 0.1184234131 | F41: =_xlfn.RANK.AVG(C41,$C$2:$C$173) -> 133 | G41: =LOOKUP(F41,{0;43.25;86.5;129.75},{"Nízka";"Stredná";"Vysoká";"Najvyššia"}) -> Najvyššia
A42: Lučenec | B42: 511218 | C42: =D42+E42 -> 0.6684019304 | D42: =VLOOKUP(B42,Krajina!A:E,5,0) -> 0.5221022797 | E42: =VLOOKUP(B42,Klíma!A:G,2,0) -> 0.1462996507 | F42: =_xlfn.RANK.AVG(C42,$C$2:$C$173) -> 132 | G42: =LOOKUP(F42,{0;43.25;86.5;129.75},{"Nízka";"Stredná";"Vysoká";"Najvyššia"}) -> Najvyššia
A43: Bratislava-Staré Mesto | B43: 528595 | C43: =D43+E43 -> 0.6858887925 | D43: =VLOOKUP(B43,Krajina!A:E,5,0) -> 0.1667458873 | E43: =VLOOKUP(B43,Klíma!A:G,2,0) -> 0.5191429051 | F43: =_xlfn.RANK.AVG(C43,$C$2:$C$173) -> 131 | G43: =LOOKUP(F43,{0;43.25;86.5;129.75},{"Nízka";"Stredná";"Vysoká";"Najvyššia"}) -> Najvyššia
A44: Vráble | B44: 500933 | C44: =D44+E44 -> 0.6894115069 | D44: =VLOOKUP(B44,Krajina!A:E,5,0) -> 0.4722748366 | E44: =VLOOKUP(B44,Klíma!A:G,2,0) -> 0.2171366704 | F44: =_xlfn.RANK.AVG(C44,$C$2:$C$173) -> 130 | G44: =LOOKUP(F44,{0;43.25;86.5;129.75},{"Nízka";"Stredná";"Vysoká";"Najvyššia"}) -> Najvyššia
A45: Veľký Krtíš | B45: 515850 | C45: =D45+E45 -> 0.7044916721 | D45: =VLOOKUP(B45,Krajina!A:E,5,0) -> 0.5750332347 | E45: =VLOOKUP(B45,Klíma!A:G,2,0) -> 0.1294584374 | F45: =_xlfn.RANK.AVG(C45,$C$2:$C$173) -> 129 | G45: =LOOKUP(F45,{0;43.25;86.5;129.75},{"Nízka";"Stredná";"Vysoká";"Najvyššia"}) -> Vysoká
A46: Košice-Barca | B46: 599093 | C46: =D46+E46 -> 0.7126251485 | D46: =VLOOKUP(B46,Krajina!A:E,5,0) -> 0.4843662339 | E46: =VLOOKUP(B46,Klíma!A:G,2,0) -> 0.2282589146 | F46: =_xlfn.RANK.AVG(C46,$C$2:$C$173) -> 128 | G46: =LOOKUP(F46,{0;43.25;86.5;129.75},{"Nízka";"Stredná";"Vysoká";"Najvyššia"}) -> Vysoká
A47: Prešov | B47: 524140 | C47: =D47+E47 -> 0.7215286379 | D47: =VLOOKUP(B47,Krajina!A:E,5,0) -> 0.4019463747 | E47: =VLOOKUP(B47,Klíma!A:G,2,0) -> 0.3195822632 | F47: =_xlfn.RANK.AVG(C47,$C$2:$C$173) -> 127 | G47: =LOOKUP(F47,{0;43.25;86.5;129.75},{"Nízka";"Stredná";"Vysoká";"Najvyššia"}) -> Vysoká
A48: Košice-Poľov | B48: 599859 | C48: =D48+E48 -> 0.7220923657 | D48: =VLOOKUP(B48,Krajina!A:E,5,0) -> 0.5039163746 | E48: =VLOOKUP(B48,Klíma!A:G,2,0) -> 0.2181759911 | F48: =_xlfn.RANK.AVG(C48,$C$2:$C$173) -> 126 | G48: =LOOKUP(F48,{0;43.25;86.5;129.75},{"Nízka";"Stredná";"Vysoká";"Najvyššia"}) -> Vysoká
A49: Zlaté Moravce | B49: 500968 | C49: =D49+E49 -> 0.7268110521 | D49: =VLOOKUP(B49,Krajina!A:E,5,0) -> 0.4163458503 | E49: =VLOOKUP(B49,Klíma!A:G,2,0) -> 0.3104652018 | F49: =_xlfn.RANK.AVG(C49,$C$2:$C$173) -> 125 | G49: =LOOKUP(F49,{0;43.25;86.5;129.75},{"Nízka";"Stredná";"Vysoká";"Najvyššia"}) -> Vysoká
A50: Košice-Krásna | B50: 599794 | C50: =D50+E50 -> 0.7383564482 | D50: =VLOOKUP(B50,Krajina!A:E,5,0) -> 0.5100975337 | E50: =VLOOKUP(B50,Klíma!A:G,2,0) -> 0.2282589146 | F50: =_xlfn.RANK.AVG(C50,$C$2:$C$173) -> 124 | G50: =LOOKUP(F50,{0;43.25;86.5;129.75},{"Nízka";"Stredná";"Vysoká";"Najvyššia"}) -> Vysoká
A51: Čaňa | B51: 521299 | C51: =D51+E51 -> 0.7416153089 | D51: =VLOOKUP(B51,Krajina!A:E,5,0) -> 0.5383549306 | E51: =VLOOKUP(B51,Klíma!A:G,2,0) -> 0.2032603783 | F51: =_xlfn.RANK.AVG(C51,$C$2:$C$173) -> 123 | G51: =LOOKUP(F51,{0;43.25;86.5;129.75},{"Nízka";"Stredná";"Vysoká";"Najvyššia"}) -> Vysoká
A52: Levice | B52: 502031 | C52: =D52+E52 -> 0.7525625047 | D52: =VLOOKUP(B52,Krajina!A:E,5,0) -> 0.4445387968 | E52: =VLOOKUP(B52,Klíma!A:G,2,0) -> 0.308023708 | F52: =_xlfn.RANK.AVG(C52,$C$2:$C$173) -> 122 | G52: =LOOKUP(F52,{0;43.25;86.5;129.75},{"Nízka";"Stredná";"Vysoká";"Najvyššia"}) -> Vysoká
A53: Sereď | B53: 504009 | C53: =D53+E53 -> 0.7594809474 | D53: =VLOOKUP(B53,Krajina!A:E,5,0) -> 0.3652210365 | E53: =VLOOKUP(B53,Klíma!A:G,2,0) -> 0.3942599109 | F53: =_xlfn.RANK.AVG(C53,$C$2:$C$173) -> 121 | G53: =LOOKUP(F53,{0;43.25;86.5;129.75},{"Nízka";"Stredná";"Vysoká";"Najvyššia"}) -> Vysoká
A54: Hurbanovo | B54: 501140 | C54: =D54+E54 -> 0.7595830359 | D54: =VLOOKUP(B54,Krajina!A:E,5,0) -> 0.4995694879 | E54: =VLOOKUP(B54,Klíma!A:G,2,0) -> 0.2600135481 | F54: =_xlfn.RANK.AVG(C54,$C$2:$C$173) -> 120 | G54: =LOOKUP(F54,{0;43.25;86.5;129.75},{"Nízka";"Stredná";"Vysoká";"Najvyššia"}) -> Vysoká
A55: Stropkov | B55: 527840 | C55: =D55+E55 -> 0.7630775463 | D55: =VLOOKUP(B55,Krajina!A:E,5,0) -> 0.4087936342 | E55: =VLOOKUP(B55,Klíma!A:G,2,0) -> 0.3542839121 | F55: =_xlfn.RANK.AVG(C55,$C$2:$C$173) -> 119 | G55: =LOOKUP(F55,{0;43.25;86.5;129.75},{"Nízka";"Stredná";"Vysoká";"Najvyššia"}) -> Vysoká
A56: Holíč | B56: 504378 | C56: =D56+E56 -> 0.7642250499 | D56: =VLOOKUP(B56,Krajina!A:E,5,0) -> 0.349530001 | E56: =VLOOKUP(B56,Klíma!A:G,2,0) -> 0.4146950489 | F56: =_xlfn.RANK.AVG(C56,$C$2:$C$173) -> 118 | G56: =LOOKUP(F56,{0;43.25;86.5;129.75},{"Nízka";"Stredná";"Vysoká";"Najvyššia"}) -> Vysoká
A57: Dunajská Streda | B57: 501433 | C57: =D57+E57 -> 0.766151218 | D57: =VLOOKUP(B57,Krajina!A:E,5,0) -> 0.3405054132 | E57: =VLOOKUP(B57,Klíma!A:G,2,0) -> 0.4256458048 | F57: =_xlfn.RANK.AVG(C57,$C$2:$C$173) -> 117 | G57: =LOOKUP(F57,{0;43.25;86.5;129.75},{"Nízka";"Stredná";"Vysoká";"Najvyššia"}) -> Vysoká
A58: Bratislava-Ružinov | B58: 529320 | C58: =D58+E58 -> 0.7695364063 | D58: =VLOOKUP(B58,Krajina!A:E,5,0) -> 0.3060570604 | E58: =VLOOKUP(B58,Klíma!A:G,2,0) -> 0.463479346 | F58: =_xlfn.RANK.AVG(C58,$C$2:$C$173) -> 116 | G58: =LOOKUP(F58,{0;43.25;86.5;129.75},{"Nízka";"Stredná";"Vysoká";"Najvyššia"}) -> Vysoká
A59: Spišská Nová Ves | B59: 526355 | C59: =D59+E59 -> 0.7712798094 | D59: =VLOOKUP(B59,Krajina!A:E,5,0) -> 0.4944671277 | E59: =VLOOKUP(B59,Klíma!A:G,2,0) -> 0.2768126817 | F59: =_xlfn.RANK.AVG(C59,$C$2:$C$173) -> 115 | G59: =LOOKUP(F59,{0;43.25;86.5;129.75},{"Nízka";"Stredná";"Vysoká";"Najvyššia"}) -> Vysoká
A60: Sabinov | B60: 525146 | C60: =D60+E60 -> 0.7739449664 | D60: =VLOOKUP(B60,Krajina!A:E,5,0) -> 0.4332799996 | E60: =VLOOKUP(B60,Klíma!A:G,2,0) -> 0.3406649668 | F60: =_xlfn.RANK.AVG(C60,$C$2:$C$173) -> 114 | G60: =LOOKUP(F60,{0;43.25;86.5;129.75},{"Nízka";"Stredná";"Vysoká";"Najvyššia"}) -> Vysoká
A61: Veľký Meder | B61: 501522 | C61: =D61+E61 -> 0.7740246113 | D61: =VLOOKUP(B61,Krajina!A:E,5,0) -> 0.4803247573 | E61: =VLOOKUP(B61,Klíma!A:G,2,0) -> 0.293699854 | F61: =_xlfn.RANK.AVG(C61,$C$2:$C$173) -> 113 | G61: =LOOKUP(F61,{0;43.25;86.5;129.75},{"Nízka";"Stredná";"Vysoká";"Najvyššia"}) -> Vysoká
A62: Kežmarok | B62: 523585 | C62: =D62+E62 -> 0.7771052847 | D62: =VLOOKUP(B62,Krajina!A:E,5,0) -> 0.4217087209 | E62: =VLOOKUP(B62,Klíma!A:G,2,0) -> 0.3553965638 | F62: =_xlfn.RANK.AVG(C62,$C$2:$C$173) -> 112 | G62: =LOOKUP(F62,{0;43.25;86.5;129.75},{"Nízka";"Stredná";"Vysoká";"Najvyššia"}) -> Vysoká
A63: Šenkvice | B63: 508250 | C63: =D63+E63 -> 0.7789881054 | D63: =VLOOKUP(B63,Krajina!A:E,5,0) -> 0.3982467542 | E63: =VLOOKUP(B63,Klíma!A:G,2,0) -> 0.3807413513 | F63: =_xlfn.RANK.AVG(C63,$C$2:$C$173) -> 111 | G63: =LOOKUP(F63,{0;43.25;86.5;129.75},{"Nízka";"Stredná";"Vysoká";"Najvyššia"}) -> Vysoká
A64: Galanta | B64: 503665 | C64: =D64+E64 -> 0.7796816983 | D64: =VLOOKUP(B64,Krajina!A:E,5,0) -> 0.4048250937 | E64: =VLOOKUP(B64,Klíma!A:G,2,0) -> 0.3748566046 | F64: =_xlfn.RANK.AVG(C64,$C$2:$C$173) -> 110 | G64: =LOOKUP(F64,{0;43.25;86.5;129.75},{"Nízka";"Stredná";"Vysoká";"Najvyššia"}) -> Vysoká
A65: Veľký Šariš | B65: 525405 | C65: =D65+E65 -> 0.7896499348 | D65: =VLOOKUP(B65,Krajina!A:E,5,0) -> 0.4700676716 | E65: =VLOOKUP(B65,Klíma!A:G,2,0) -> 0.3195822632 | F65: =_xlfn.RANK.AVG(C65,$C$2:$C$173) -> 109 | G65: =LOOKUP(F65,{0;43.25;86.5;129.75},{"Nízka";"Stredná";"Vysoká";"Najvyššia"}) -> Vysoká
A66: Bardejov | B66: 519006 | C66: =D66+E66 -> 0.7923427842 | D66: =VLOOKUP(B66,Krajina!A:E,5,0) -> 0.4905461573 | E66: =VLOOKUP(B66,Klíma!A:G,2,0) -> 0.3017966269 | F66: =_xlfn.RANK.AVG(C66,$C$2:$C$173) -> 108 | G66: =LOOKUP(F66,{0;43.25;86.5;129.75},{"Nízka";"Stredná";"Vysoká";"Najvyššia"}) -> Vysoká
A67: Svidník | B67: 527106 | C67: =D67+E67 -> 0.802089999 | D67: =VLOOKUP(B67,Krajina!A:E,5,0) -> 0.3908089042 | E67: =VLOOKUP(B67,Klíma!A:G,2,0) -> 0.4112810948 | F67: =_xlfn.RANK.AVG(C67,$C$2:$C$173) -> 107 | G67: =LOOKUP(F67,{0;43.25;86.5;129.75},{"Nízka";"Stredná";"Vysoká";"Najvyššia"}) -> Vysoká
A68: Komárno | B68: 501026 | C68: =D68+E68 -> 0.8024917051 | D68: =VLOOKUP(B68,Krajina!A:E,5,0) -> 0.5137334635 | E68: =VLOOKUP(B68,Klíma!A:G,2,0) -> 0.2887582416 | F68: =_xlfn.RANK.AVG(C68,$C$2:$C$173) -> 106 | G68: =LOOKUP(F68,{0;43.25;86.5;129.75},{"Nízka";"Stredná";"Vysoká";"Najvyššia"}) -> Vysoká
A69: Košice-Myslava | B69: 598216 | C69: =D69+E69 -> 0.8087319265 | D69: =VLOOKUP(B69,Krajina!A:E,5,0) -> 0.5905559354 | E69: =VLOOKUP(B69,Klíma!A:G,2,0) -> 0.2181759911 | F69: =_xlfn.RANK.AVG(C69,$C$2:$C$173) -> 105 | G69: =LOOKUP(F69,{0;43.25;86.5;129.75},{"Nízka";"Stredná";"Vysoká";"Najvyššia"}) -> Vysoká
A70: Krompachy | B70: 543268 | C70: =D70+E70 -> 0.8108445348 | D70: =VLOOKUP(B70,Krajina!A:E,5,0) -> 0.4848660812 | E70: =VLOOKUP(B70,Klíma!A:G,2,0) -> 0.3259784536 | F70: =_xlfn.RANK.AVG(C70,$C$2:$C$173) -> 104 | G70: =LOOKUP(F70,{0;43.25;86.5;129.75},{"Nízka";"Stredná";"Vysoká";"Najvyššia"}) -> Vysoká
A71: Vrbové | B71: 507750 | C71: =D71+E71 -> 0.813298093 | D71: =VLOOKUP(B71,Krajina!A:E,5,0) -> 0.4137208643 | E71: =VLOOKUP(B71,Klíma!A:G,2,0) -> 0.3995772287 | F71: =_xlfn.RANK.AVG(C71,$C$2:$C$173) -> 103 | G71: =LOOKUP(F71,{0;43.25;86.5;129.75},{"Nízka";"Stredná";"Vysoká";"Najvyššia"}) -> Vysoká
A72: Poprad | B72: 523381 | C72: =D72+E72 -> 0.8142322653 | D72: =VLOOKUP(B72,Krajina!A:E,5,0) -> 0.3870970094 | E72: =VLOOKUP(B72,Klíma!A:G,2,0) -> 0.4271352558 | F72: =_xlfn.RANK.AVG(C72,$C$2:$C$173) -> 102 | G72: =LOOKUP(F72,{0;43.25;86.5;129.75},{"Nízka";"Stredná";"Vysoká";"Najvyššia"}) -> Vysoká
A73: Kolárovo | B73: 501204 | C73: =D73+E73 -> 0.8168375759 | D73: =VLOOKUP(B73,Krajina!A:E,5,0) -> 0.5862200962 | E73: =VLOOKUP(B73,Klíma!A:G,2,0) -> 0.2306174796 | F73: =_xlfn.RANK.AVG(C73,$C$2:$C$173) -> 101 | G73: =LOOKUP(F73,{0;43.25;86.5;129.75},{"Nízka";"Stredná";"Vysoká";"Najvyššia"}) -> Vysoká
A74: Hlohovec | B74: 507032 | C74: =D74+E74 -> 0.8169448412 | D74: =VLOOKUP(B74,Krajina!A:E,5,0) -> 0.4595396758 | E74: =VLOOKUP(B74,Klíma!A:G,2,0) -> 0.3574051654 | F74: =_xlfn.RANK.AVG(C74,$C$2:$C$173) -> 100 | G74: =LOOKUP(F74,{0;43.25;86.5;129.75},{"Nízka";"Stredná";"Vysoká";"Najvyššia"}) -> Vysoká
A75: Smižany | B75: 560154 | C75: =D75+E75 -> 0.8202607677 | D75: =VLOOKUP(B75,Krajina!A:E,5,0) -> 0.5196238413 | E75: =VLOOKUP(B75,Klíma!A:G,2,0) -> 0.3006369264 | F75: =_xlfn.RANK.AVG(C75,$C$2:$C$173) -> 99 | G75: =LOOKUP(F75,{0;43.25;86.5;129.75},{"Nízka";"Stredná";"Vysoká";"Najvyššia"}) -> Vysoká
A76: Sládkovičovo | B76: 504017 | C76: =D76+E76 -> 0.8296730253 | D76: =VLOOKUP(B76,Krajina!A:E,5,0) -> 0.4008674527 | E76: =VLOOKUP(B76,Klíma!A:G,2,0) -> 0.4288055726 | F76: =_xlfn.RANK.AVG(C76,$C$2:$C$173) -> 98 | G76: =LOOKUP(F76,{0;43.25;86.5;129.75},{"Nízka";"Stredná";"Vysoká";"Najvyššia"}) -> Vysoká
A77: Žiar nad Hronom | B77: 516589 | C77: =D77+E77 -> 0.8297800829 | D77: =VLOOKUP(B77,Krajina!A:E,5,0) -> 0.4076991774 | E77: =VLOOKUP(B77,Klíma!A:G,2,0) -> 0.4220809055 | F77: =_xlfn.RANK.AVG(C77,$C$2:$C$173) -> 97 | G77: =LOOKUP(F77,{0;43.25;86.5;129.75},{"Nízka";"Stredná";"Vysoká";"Najvyššia"}) -> Vysoká
A78: Hnúšťa | B78: 514829 | C78: =D78+E78 -> 0.8305003959 | D78: =VLOOKUP(B78,Krajina!A:E,5,0) -> 0.5745575968 | E78: =VLOOKUP(B78,Klíma!A:G,2,0) -> 0.2559427991 | F78: =_xlfn.RANK.AVG(C78,$C$2:$C$173) -> 96 | G78: =LOOKUP(F78,{0;43.25;86.5;129.75},{"Nízka";"Stredná";"Vysoká";"Najvyššia"}) -> Vysoká
A79: Malacky | B79: 508063 | C79: =D79+E79 -> 0.8362790518 | D79: =VLOOKUP(B79,Krajina!A:E,5,0) -> 0.3630693512 | E79: =VLOOKUP(B79,Klíma!A:G,2,0) -> 0.4732097007 | F79: =_xlfn.RANK.AVG(C79,$C$2:$C$173) -> 95 | G79: =LOOKUP(F79,{0;43.25;86.5;129.75},{"Nízka";"Stredná";"Vysoká";"Najvyššia"}) -> Vysoká
A80: Stará Ľubovňa | B80: 526665 | C80: =D80+E80 -> 0.8419499756 | D80: =VLOOKUP(B80,Krajina!A:E,5,0) -> 0.3936248261 | E80: =VLOOKUP(B80,Klíma!A:G,2,0) -> 0.4483251496 | F80: =_xlfn.RANK.AVG(C80,$C$2:$C$173) -> 94 | G80: =LOOKUP(F80,{0;43.25;86.5;129.75},{"Nízka";"Stredná";"Vysoká";"Najvyššia"}) -> Vysoká
A81: Spišská Belá | B81: 523828 | C81: =D81+E81 -> 0.8456063364 | D81: =VLOOKUP(B81,Krajina!A:E,5,0) -> 0.4293407425 | E81: =VLOOKUP(B81,Klíma!A:G,2,0) -> 0.4162655939 | F81: =_xlfn.RANK.AVG(C81,$C$2:$C$173) -> 93 | G81: =LOOKUP(F81,{0;43.25;86.5;129.75},{"Nízka";"Stredná";"Vysoká";"Najvyššia"}) -> Vysoká
A82: Senica | B82: 504203 | C82: =D82+E82 -> 0.8460953543 | D82: =VLOOKUP(B82,Krajina!A:E,5,0) -> 0.3824802077 | E82: =VLOOKUP(B82,Klíma!A:G,2,0) -> 0.4636151466 | F82: =_xlfn.RANK.AVG(C82,$C$2:$C$173) -> 92 | G82: =LOOKUP(F82,{0;43.25;86.5;129.75},{"Nízka";"Stredná";"Vysoká";"Najvyššia"}) -> Vysoká
A83: Bratislava-Vrakuňa | B83: 529338 | C83: =D83+E83 -> 0.8513681997 | D83: =VLOOKUP(B83,Krajina!A:E,5,0) -> 0.2760123553 | E83: =VLOOKUP(B83,Klíma!A:G,2,0) -> 0.5753558444 | F83: =_xlfn.RANK.AVG(C83,$C$2:$C$173) -> 91 | G83: =LOOKUP(F83,{0;43.25;86.5;129.75},{"Nízka";"Stredná";"Vysoká";"Najvyššia"}) -> Vysoká
A84: Nová Dubnica | B84: 513440 | C84: =D84+E84 -> 0.8578552211 | D84: =VLOOKUP(B84,Krajina!A:E,5,0) -> 0.3915352147 | E84: =VLOOKUP(B84,Klíma!A:G,2,0) -> 0.4663200064 | F84: =_xlfn.RANK.AVG(C84,$C$2:$C$173) -> 90 | G84: =LOOKUP(F84,{0;43.25;86.5;129.75},{"Nízka";"Stredná";"Vysoká";"Najvyššia"}) -> Vysoká
A85: Trenčín | B85: 505820 | C85: =D85+E85 -> 0.8589669167 | D85: =VLOOKUP(B85,Krajina!A:E,5,0) -> 0.3926469103 | E85: =VLOOKUP(B85,Klíma!A:G,2,0) -> 0.4663200064 | F85: =_xlfn.RANK.AVG(C85,$C$2:$C$173) -> 89 | G85: =LOOKUP(F85,{0;43.25;86.5;129.75},{"Nízka";"Stredná";"Vysoká";"Najvyššia"}) -> Vysoká
A86: Nové Mesto nad Váhom | B86: 506338 | C86: =D86+E86 -> 0.865438884 | D86: =VLOOKUP(B86,Krajina!A:E,5,0) -> 0.3991449688 | E86: =VLOOKUP(B86,Klíma!A:G,2,0) -> 0.4662939152 | F86: =_xlfn.RANK.AVG(C86,$C$2:$C$173) -> 88 | G86: =LOOKUP(F86,{0;43.25;86.5;129.75},{"Nízka";"Stredná";"Vysoká";"Najvyššia"}) -> Vysoká
A87: Bratislava-Nové Mesto | B87: 529346 | C87: =D87+E87 -> 0.8707868142 | D87: =VLOOKUP(B87,Krajina!A:E,5,0) -> 0.4073074683 | E87: =VLOOKUP(B87,Klíma!A:G,2,0) -> 0.463479346 | F87: =_xlfn.RANK.AVG(C87,$C$2:$C$173) -> 87 | G87: =LOOKUP(F87,{0;43.25;86.5;129.75},{"Nízka";"Stredná";"Vysoká";"Najvyššia"}) -> Vysoká
A88: Partizánske | B88: 505315 | C88: =D88+E88 -> 0.8770379793 | D88: =VLOOKUP(B88,Krajina!A:E,5,0) -> 0.4084420347 | E88: =VLOOKUP(B88,Klíma!A:G,2,0) -> 0.4685959446 | F88: =_xlfn.RANK.AVG(C88,$C$2:$C$173) -> 86 | G88: =LOOKUP(F88,{0;43.25;86.5;129.75},{"Nízka";"Stredná";"Vysoká";"Najvyššia"}) -> Stredná
A89: Bratislava-Rača | B89: 529354 | C89: =D89+E89 -> 0.8800876587 | D89: =VLOOKUP(B89,Krajina!A:E,5,0) -> 0.3988677743 | E89: =VLOOKUP(B89,Klíma!A:G,2,0) -> 0.4812198844 | F89: =_xlfn.RANK.AVG(C89,$C$2:$C$173) -> 85 | G89: =LOOKUP(F89,{0;43.25;86.5;129.75},{"Nízka";"Stredná";"Vysoká";"Najvyššia"}) -> Stredná
A90: Košice-Košická Nová Ves | B90: 599018 | C90: =D90+E90 -> 0.8804186628 | D90: =VLOOKUP(B90,Krajina!A:E,5,0) -> 0.6521597483 | E90: =VLOOKUP(B90,Klíma!A:G,2,0) -> 0.2282589146 | F90: =_xlfn.RANK.AVG(C90,$C$2:$C$173) -> 84 | G90: =LOOKUP(F90,{0;43.25;86.5;129.75},{"Nízka";"Stredná";"Vysoká";"Najvyššia"}) -> Stredná
A91: Bratislava-Petržalka | B91: 529460 | C91: =D91+E91 -> 0.8808238759 | D91: =VLOOKUP(B91,Krajina!A:E,5,0) -> 0.3616809707 | E91: =VLOOKUP(B91,Klíma!A:G,2,0) -> 0.5191429051 | F91: =_xlfn.RANK.AVG(C91,$C$2:$C$173) -> 83 | G91: =LOOKUP(F91,{0;43.25;86.5;129.75},{"Nízka";"Stredná";"Vysoká";"Najvyššia"}) -> Stredná
A92: Topoľčany | B92: 504998 | C92: =D92+E92 -> 0.8844223558 | D92: =VLOOKUP(B92,Krajina!A:E,5,0) -> 0.3636932628 | E92: =VLOOKUP(B92,Klíma!A:G,2,0) -> 0.520729093 | F92: =_xlfn.RANK.AVG(C92,$C$2:$C$173) -> 82 | G92: =LOOKUP(F92,{0;43.25;86.5;129.75},{"Nízka";"Stredná";"Vysoká";"Najvyššia"}) -> Stredná
A93: Modra | B93: 508101 | C93: =D93+E93 -> 0.8871695305 | D93: =VLOOKUP(B93,Krajina!A:E,5,0) -> 0.5064281792 | E93: =VLOOKUP(B93,Klíma!A:G,2,0) -> 0.3807413513 | F93: =_xlfn.RANK.AVG(C93,$C$2:$C$173) -> 81 | G93: =LOOKUP(F93,{0;43.25;86.5;129.75},{"Nízka";"Stredná";"Vysoká";"Najvyššia"}) -> Stredná
A94: Bratislava-Karlova Ves | B94: 529397 | C94: =D94+E94 -> 0.888773738 | D94: =VLOOKUP(B94,Krajina!A:E,5,0) -> 0.425294392 | E94: =VLOOKUP(B94,Klíma!A:G,2,0) -> 0.463479346 | F94: =_xlfn.RANK.AVG(C94,$C$2:$C$173) -> 80 | G94: =LOOKUP(F94,{0;43.25;86.5;129.75},{"Nízka";"Stredná";"Vysoká";"Najvyššia"}) -> Stredná
A95: Košice-Vyšné Opátske | B95: 599913 | C95: =D95+E95 -> 0.8897023326 | D95: =VLOOKUP(B95,Krajina!A:E,5,0) -> 0.661443418 | E95: =VLOOKUP(B95,Klíma!A:G,2,0) -> 0.2282589146 | F95: =_xlfn.RANK.AVG(C95,$C$2:$C$173) -> 79 | G95: =LOOKUP(F95,{0;43.25;86.5;129.75},{"Nízka";"Stredná";"Vysoká";"Najvyššia"}) -> Stredná
A96: Chorvátsky Grob | B96: 507911 | C96: =D96+E96 -> 0.8933390648 | D96: =VLOOKUP(B96,Krajina!A:E,5,0) -> 0.4061221808 | E96: =VLOOKUP(B96,Klíma!A:G,2,0) -> 0.487216884 | F96: =_xlfn.RANK.AVG(C96,$C$2:$C$173) -> 78 | G96: =LOOKUP(F96,{0;43.25;86.5;129.75},{"Nízka";"Stredná";"Vysoká";"Najvyššia"}) -> Stredná
A97: Bratislava-Lamač | B97: 529419 | C97: =D97+E97 -> 0.8974243974 | D97: =VLOOKUP(B97,Krajina!A:E,5,0) -> 0.4032617523 | E97: =VLOOKUP(B97,Klíma!A:G,2,0) -> 0.4941626451 | F97: =_xlfn.RANK.AVG(C97,$C$2:$C$173) -> 77 | G97: =LOOKUP(F97,{0;43.25;86.5;129.75},{"Nízka";"Stredná";"Vysoká";"Najvyššia"}) -> Stredná
A98: Bratislava-Devínska Nová Ves | B98: 529371 | C98: =D98+E98 -> 0.8979724686 | D98: =VLOOKUP(B98,Krajina!A:E,5,0) -> 0.4038098235 | E98: =VLOOKUP(B98,Klíma!A:G,2,0) -> 0.4941626451 | F98: =_xlfn.RANK.AVG(C98,$C$2:$C$173) -> 76 | G98: =LOOKUP(F98,{0;43.25;86.5;129.75},{"Nízka";"Stredná";"Vysoká";"Najvyššia"}) -> Stredná
A99: Bánovce nad Bebravou | B99: 542652 | C99: =D99+E99 -> 0.9004294998 | D99: =VLOOKUP(B99,Krajina!A:E,5,0) -> 0.4046021075 | E99: =VLOOKUP(B99,Klíma!A:G,2,0) -> 0.4958273923 | F99: =_xlfn.RANK.AVG(C99,$C$2:$C$173) -> 75 | G99: =LOOKUP(F99,{0;43.25;86.5;129.75},{"Nízka";"Stredná";"Vysoká";"Najvyššia"}) -> Stredná
A100: Košice-Sever | B100: 598151 | C100: =D100+E100 -> 0.9031807056 | D100: =VLOOKUP(B100,Krajina!A:E,5,0) -> 0.6850047145 | E100: =VLOOKUP(B100,Klíma!A:G,2,0) -> 0.2181759911 | F100: =_xlfn.RANK.AVG(C100,$C$2:$C$173) -> 74 | G100: =LOOKUP(F100,{0;43.25;86.5;129.75},{"Nízka";"Stredná";"Vysoká";"Najvyššia"}) -> Stredná
A101: Košice-Kavečany | B101: 598119 | C101: =D101+E101 -> 0.9248118447 | D101: =VLOOKUP(B101,Krajina!A:E,5,0) -> 0.6394395475 | E101: =VLOOKUP(B101,Klíma!A:G,2,0) -> 0.2853722972 | F101: =_xlfn.RANK.AVG(C101,$C$2:$C$173) -> 73 | G101: =LOOKUP(F101,{0;43.25;86.5;129.75},{"Nízka";"Stredná";"Vysoká";"Najvyššia"}) -> Stredná
A102: Stupava | B102: 508233 | C102: =D102+E102 -> 0.9283987419 | D102: =VLOOKUP(B102,Krajina!A:E,5,0) -> 0.4411547808 | E102: =VLOOKUP(B102,Klíma!A:G,2,0) -> 0.4872439611 | F102: =_xlfn.RANK.AVG(C102,$C$2:$C$173) -> 72 | G102: =LOOKUP(F102,{0;43.25;86.5;129.75},{"Nízka";"Stredná";"Vysoká";"Najvyššia"}) -> Stredná
A103: Banská Bystrica | B103: 508438 | C103: =D103+E103 -> 0.9289968779 | D103: =VLOOKUP(B103,Krajina!A:E,5,0) -> 0.4588256719 | E103: =VLOOKUP(B103,Klíma!A:G,2,0) -> 0.470171206 | F103: =_xlfn.RANK.AVG(C103,$C$2:$C$173) -> 71 | G103: =LOOKUP(F103,{0;43.25;86.5;129.75},{"Nízka";"Stredná";"Vysoká";"Najvyššia"}) -> Stredná
A104: Pezinok | B104: 508179 | C104: =D104+E104 -> 0.9291526388 | D104: =VLOOKUP(B104,Krajina!A:E,5,0) -> 0.5484112875 | E104: =VLOOKUP(B104,Klíma!A:G,2,0) -> 0.3807413513 | F104: =_xlfn.RANK.AVG(C104,$C$2:$C$173) -> 70 | G104: =LOOKUP(F104,{0;43.25;86.5;129.75},{"Nízka";"Stredná";"Vysoká";"Najvyššia"}) -> Stredná
A105: Levoča | B105: 543292 | C105: =D105+E105 -> 0.9306515755 | D105: =VLOOKUP(B105,Krajina!A:E,5,0) -> 0.6159735843 | E105: =VLOOKUP(B105,Klíma!A:G,2,0) -> 0.3146779912 | F105: =_xlfn.RANK.AVG(C105,$C$2:$C$173) -> 69 | G105: =LOOKUP(F105,{0;43.25;86.5;129.75},{"Nízka";"Stredná";"Vysoká";"Najvyššia"}) -> Stredná
A106: Ivanka pri Dunaji | B106: 507938 | C106: =D106+E106 -> 0.9310887364 | D106: =VLOOKUP(B106,Krajina!A:E,5,0) -> 0.4438718525 | E106: =VLOOKUP(B106,Klíma!A:G,2,0) -> 0.487216884 | F106: =_xlfn.RANK.AVG(C106,$C$2:$C$173) -> 68 | G106: =LOOKUP(F106,{0;43.25;86.5;129.75},{"Nízka";"Stredná";"Vysoká";"Najvyššia"}) -> Stredná
A107: Bratislava-Rusovce | B107: 529494 | C107: =D107+E107 -> 0.9342833326 | D107: =VLOOKUP(B107,Krajina!A:E,5,0) -> 0.4151404274 | E107: =VLOOKUP(B107,Klíma!A:G,2,0) -> 0.5191429051 | F107: =_xlfn.RANK.AVG(C107,$C$2:$C$173) -> 67 | G107: =LOOKUP(F107,{0;43.25;86.5;129.75},{"Nízka";"Stredná";"Vysoká";"Najvyššia"}) -> Stredná
A108: Žarnovica | B108: 517381 | C108: =D108+E108 -> 0.9345661129 | D108: =VLOOKUP(B108,Krajina!A:E,5,0) -> 0.698569909 | E108: =VLOOKUP(B108,Klíma!A:G,2,0) -> 0.2359962039 | F108: =_xlfn.RANK.AVG(C108,$C$2:$C$173) -> 66 | G108: =LOOKUP(F108,{0;43.25;86.5;129.75},{"Nízka";"Stredná";"Vysoká";"Najvyššia"}) -> Stredná
A109: Bratislava-Dúbravka | B109: 529389 | C109: =D109+E109 -> 0.935339981 | D109: =VLOOKUP(B109,Krajina!A:E,5,0) -> 0.4411773358 | E109: =VLOOKUP(B109,Klíma!A:G,2,0) -> 0.4941626451 | F109: =_xlfn.RANK.AVG(C109,$C$2:$C$173) -> 65 | G109: =LOOKUP(F109,{0;43.25;86.5;129.75},{"Nízka";"Stredná";"Vysoká";"Najvyššia"}) -> Stredná
A110: Lendak | B110: 523623 | C110: =D110+E110 -> 0.9372568807 | D110: =VLOOKUP(B110,Krajina!A:E,5,0) -> 0.4721290979 | E110: =VLOOKUP(B110,Klíma!A:G,2,0) -> 0.4651277828 | F110: =_xlfn.RANK.AVG(C110,$C$2:$C$173) -> 64 | G110: =LOOKUP(F110,{0;43.25;86.5;129.75},{"Nízka";"Stredná";"Vysoká";"Najvyššia"}) -> Stredná
A111: Skalica | B111: 504815 | C111: =D111+E111 -> 0.9407034861 | D111: =VLOOKUP(B111,Krajina!A:E,5,0) -> 0.5260084373 | E111: =VLOOKUP(B111,Klíma!A:G,2,0) -> 0.4146950489 | F111: =_xlfn.RANK.AVG(C111,$C$2:$C$173) -> 63 | G111: =LOOKUP(F111,{0;43.25;86.5;129.75},{"Nízka";"Stredná";"Vysoká";"Najvyššia"}) -> Stredná
A112: Bratislava-Čunovo | B112: 529435 | C112: =D112+E112 -> 0.9417000027 | D112: =VLOOKUP(B112,Krajina!A:E,5,0) -> 0.4380015144 | E112: =VLOOKUP(B112,Klíma!A:G,2,0) -> 0.5036984883 | F112: =_xlfn.RANK.AVG(C112,$C$2:$C$173) -> 62 | G112: =LOOKUP(F112,{0;43.25;86.5;129.75},{"Nízka";"Stredná";"Vysoká";"Najvyššia"}) -> Stredná
A113: Piešťany | B113: 507440 | C113: =D113+E113 -> 0.9524802388 | D113: =VLOOKUP(B113,Krajina!A:E,5,0) -> 0.5116210705 | E113: =VLOOKUP(B113,Klíma!A:G,2,0) -> 0.4408591683 | F113: =_xlfn.RANK.AVG(C113,$C$2:$C$173) -> 61 | G113: =LOOKUP(F113,{0;43.25;86.5;129.75},{"Nízka";"Stredná";"Vysoká";"Najvyššia"}) -> Stredná
A114: Dubnica nad Váhom | B114: 513016 | C114: =D114+E114 -> 0.9633198802 | D114: =VLOOKUP(B114,Krajina!A:E,5,0) -> 0.3945494712 | E114: =VLOOKUP(B114,Klíma!A:G,2,0) -> 0.568770409 | F114: =_xlfn.RANK.AVG(C114,$C$2:$C$173) -> 60 | G114: =LOOKUP(F114,{0;43.25;86.5;129.75},{"Nízka";"Stredná";"Vysoká";"Najvyššia"}) -> Stredná
A115: Bernolákovo | B115: 507814 | C115: =D115+E115 -> 0.9644377484 | D115: =VLOOKUP(B115,Krajina!A:E,5,0) -> 0.4772208645 | E115: =VLOOKUP(B115,Klíma!A:G,2,0) -> 0.487216884 | F115: =_xlfn.RANK.AVG(C115,$C$2:$C$173) -> 59 | G115: =LOOKUP(F115,{0;43.25;86.5;129.75},{"Nízka";"Stredná";"Vysoká";"Najvyššia"}) -> Stredná
A116: Čierny Balog | B116: 508527 | C116: =D116+E116 -> 0.9662291176 | D116: =VLOOKUP(B116,Krajina!A:E,5,0) -> 0.6388164437 | E116: =VLOOKUP(B116,Klíma!A:G,2,0) -> 0.3274126739 | F116: =_xlfn.RANK.AVG(C116,$C$2:$C$173) -> 58 | G116: =LOOKUP(F116,{0;43.25;86.5;129.75},{"Nízka";"Stredná";"Vysoká";"Najvyššia"}) -> Stredná
A117: Gabčíkovo | B117: 501573 | C117: =D117+E117 -> 0.966694082 | D117: =VLOOKUP(B117,Krajina!A:E,5,0) -> 0.5913677247 | E117: =VLOOKUP(B117,Klíma!A:G,2,0) -> 0.3753263573 | F117: =_xlfn.RANK.AVG(C117,$C$2:$C$173) -> 57 | G117: =LOOKUP(F117,{0;43.25;86.5;129.75},{"Nízka";"Stredná";"Vysoká";"Najvyššia"}) -> Stredná
A118: Dunajská Lužná | B118: 545333 | C118: =D118+E118 -> 0.9687790966 | D118: =VLOOKUP(B118,Krajina!A:E,5,0) -> 0.435685784 | E118: =VLOOKUP(B118,Klíma!A:G,2,0) -> 0.5330933126 | F118: =_xlfn.RANK.AVG(C118,$C$2:$C$173) -> 56 | G118: =LOOKUP(F118,{0;43.25;86.5;129.75},{"Nízka";"Stredná";"Vysoká";"Najvyššia"}) -> Stredná
A119: Šamorín | B119: 501905 | C119: =D119+E119 -> 0.9748015958 | D119: =VLOOKUP(B119,Krajina!A:E,5,0) -> 0.4949234039 | E119: =VLOOKUP(B119,Klíma!A:G,2,0) -> 0.479878192 | F119: =_xlfn.RANK.AVG(C119,$C$2:$C$173) -> 55 | G119: =LOOKUP(F119,{0;43.25;86.5;129.75},{"Nízka";"Stredná";"Vysoká";"Najvyššia"}) -> Stredná
A120: Nesvady | B120: 501280 | C120: =D120+E120 -> 0.9788733244 | D120: =VLOOKUP(B120,Krajina!A:E,5,0) -> 0.7295829689 | E120: =VLOOKUP(B120,Klíma!A:G,2,0) -> 0.2492903556 | F120: =_xlfn.RANK.AVG(C120,$C$2:$C$173) -> 54 | G120: =LOOKUP(F120,{0;43.25;86.5;129.75},{"Nízka";"Stredná";"Vysoká";"Najvyššia"}) -> Stredná
A121: Prievidza | B121: 513881 | C121: =D121+E121 -> 0.9804586045 | D121: =VLOOKUP(B121,Krajina!A:E,5,0) -> 0.3963556846 | E121: =VLOOKUP(B121,Klíma!A:G,2,0) -> 0.5841029199 | F121: =_xlfn.RANK.AVG(C121,$C$2:$C$173) -> 53 | G121: =LOOKUP(F121,{0;43.25;86.5;129.75},{"Nízka";"Stredná";"Vysoká";"Najvyššia"}) -> Stredná
A122: Jarovnice | B122: 524603 | C122: =D122+E122 -> 0.9811716133 | D122: =VLOOKUP(B122,Krajina!A:E,5,0) -> 0.6405066464 | E122: =VLOOKUP(B122,Klíma!A:G,2,0) -> 0.3406649668 | F122: =_xlfn.RANK.AVG(C122,$C$2:$C$173) -> 52 | G122: =LOOKUP(F122,{0;43.25;86.5;129.75},{"Nízka";"Stredná";"Vysoká";"Najvyššia"}) -> Stredná
A123: Gbely | B123: 504351 | C123: =D123+E123 -> 0.992027402 | D123: =VLOOKUP(B123,Krajina!A:E,5,0) -> 0.5050761457 | E123: =VLOOKUP(B123,Klíma!A:G,2,0) -> 0.4869512563 | F123: =_xlfn.RANK.AVG(C123,$C$2:$C$173) -> 51 | G123: =LOOKUP(F123,{0;43.25;86.5;129.75},{"Nízka";"Stredná";"Vysoká";"Najvyššia"}) -> Stredná
A124: Zvolen | B124: 518158 | C124: =D124+E124 -> 0.9946290539 | D124: =VLOOKUP(B124,Krajina!A:E,5,0) -> 0.6521543098 | E124: =VLOOKUP(B124,Klíma!A:G,2,0) -> 0.342474744 | F124: =_xlfn.RANK.AVG(C124,$C$2:$C$173) -> 50 | G124: =LOOKUP(F124,{0;43.25;86.5;129.75},{"Nízka";"Stredná";"Vysoká";"Najvyššia"}) -> Stredná
A125: Dobšiná | B125: 525634 | C125: =D125+E125 -> 0.9957600889 | D125: =VLOOKUP(B125,Krajina!A:E,5,0) -> 0.8514935083 | E125: =VLOOKUP(B125,Klíma!A:G,2,0) -> 0.1442665806 | F125: =_xlfn.RANK.AVG(C125,$C$2:$C$173) -> 49 | G125: =LOOKUP(F125,{0;43.25;86.5;129.75},{"Nízka";"Stredná";"Vysoká";"Najvyššia"}) -> Stredná
A126: Svit | B126: 523925 | C126: =D126+E126 -> 0.9980558314 | D126: =VLOOKUP(B126,Krajina!A:E,5,0) -> 0.439512913 | E126: =VLOOKUP(B126,Klíma!A:G,2,0) -> 0.5585429184 | F126: =_xlfn.RANK.AVG(C126,$C$2:$C$173) -> 48 | G126: =LOOKUP(F126,{0;43.25;86.5;129.75},{"Nízka";"Stredná";"Vysoká";"Najvyššia"}) -> Stredná
A127: Nová Baňa | B127: 517097 | C127: =D127+E127 -> 0.9991254982 | D127: =VLOOKUP(B127,Krajina!A:E,5,0) -> 0.7091127428 | E127: =VLOOKUP(B127,Klíma!A:G,2,0) -> 0.2900127554 | F127: =_xlfn.RANK.AVG(C127,$C$2:$C$173) -> 47 | G127: =LOOKUP(F127,{0;43.25;86.5;129.75},{"Nízka";"Stredná";"Vysoká";"Najvyššia"}) -> Stredná
A128: Handlová | B128: 513997 | C128: =D128+E128 -> 1.002044581 | D128: =VLOOKUP(B128,Krajina!A:E,5,0) -> 0.5738430922 | E128: =VLOOKUP(B128,Klíma!A:G,2,0) -> 0.4282014883 | F128: =_xlfn.RANK.AVG(C128,$C$2:$C$173) -> 46 | G128: =LOOKUP(F128,{0;43.25;86.5;129.75},{"Nízka";"Stredná";"Vysoká";"Najvyššia"}) -> Stredná
A129: Bratislava-Podunajské Biskupice | B129: 529311 | C129: =D129+E129 -> 1.002149859 | D129: =VLOOKUP(B129,Krajina!A:E,5,0) -> 0.4267940148 | E129: =VLOOKUP(B129,Klíma!A:G,2,0) -> 0.5753558444 | F129: =_xlfn.RANK.AVG(C129,$C$2:$C$173) -> 45 | G129: =LOOKUP(F129,{0;43.25;86.5;129.75},{"Nízka";"Stredná";"Vysoká";"Najvyššia"}) -> Stredná
A130: Gelnica | B130: 526509 | C130: =D130+E130 -> 1.007258655 | D130: =VLOOKUP(B130,Krajina!A:E,5,0) -> 0.6812802018 | E130: =VLOOKUP(B130,Klíma!A:G,2,0) -> 0.3259784536 | F130: =_xlfn.RANK.AVG(C130,$C$2:$C$173) -> 44 | G130: =LOOKUP(F130,{0;43.25;86.5;129.75},{"Nízka";"Stredná";"Vysoká";"Najvyššia"}) -> Stredná
A131: Brezno | B131: 508497 | C131: =D131+E131 -> 1.00729821 | D131: =VLOOKUP(B131,Krajina!A:E,5,0) -> 0.774543983 | E131: =VLOOKUP(B131,Klíma!A:G,2,0) -> 0.2327542272 | F131: =_xlfn.RANK.AVG(C131,$C$2:$C$173) -> 43 | G131: =LOOKUP(F131,{0;43.25;86.5;129.75},{"Nízka";"Stredná";"Vysoká";"Najvyššia"}) -> Nízka
A132: Myjava | B132: 504581 | C132: =D132+E132 -> 1.014762809 | D132: =VLOOKUP(B132,Krajina!A:E,5,0) -> 0.5890143021 | E132: =VLOOKUP(B132,Klíma!A:G,2,0) -> 0.4257485065 | F132: =_xlfn.RANK.AVG(C132,$C$2:$C$173) -> 42 | G132: =LOOKUP(F132,{0;43.25;86.5;129.75},{"Nízka";"Stredná";"Vysoká";"Najvyššia"}) -> Nízka
A133: Senec | B133: 508217 | C133: =D133+E133 -> 1.020874716 | D133: =VLOOKUP(B133,Krajina!A:E,5,0) -> 0.535467108 | E133: =VLOOKUP(B133,Klíma!A:G,2,0) -> 0.4854076085 | F133: =_xlfn.RANK.AVG(C133,$C$2:$C$173) -> 41 | G133: =LOOKUP(F133,{0;43.25;86.5;129.75},{"Nízka";"Stredná";"Vysoká";"Najvyššia"}) -> Nízka
A134: Banská Štiavnica | B134: 516643 | C134: =D134+E134 -> 1.020984453 | D134: =VLOOKUP(B134,Krajina!A:E,5,0) -> 0.7885992434 | E134: =VLOOKUP(B134,Klíma!A:G,2,0) -> 0.2323852095 | F134: =_xlfn.RANK.AVG(C134,$C$2:$C$173) -> 40 | G134: =LOOKUP(F134,{0;43.25;86.5;129.75},{"Nízka";"Stredná";"Vysoká";"Najvyššia"}) -> Nízka
A135: Bratislava-Záhorská Bystrica | B135: 529427 | C135: =D135+E135 -> 1.022277718 | D135: =VLOOKUP(B135,Krajina!A:E,5,0) -> 0.5281150729 | E135: =VLOOKUP(B135,Klíma!A:G,2,0) -> 0.4941626451 | F135: =_xlfn.RANK.AVG(C135,$C$2:$C$173) -> 39 | G135: =LOOKUP(F135,{0;43.25;86.5;129.75},{"Nízka";"Stredná";"Vysoká";"Najvyššia"}) -> Nízka
A136: Bratislava-Vajnory | B136: 529362 | C136: =D136+E136 -> 1.030619613 | D136: =VLOOKUP(B136,Krajina!A:E,5,0) -> 0.5493997289 | E136: =VLOOKUP(B136,Klíma!A:G,2,0) -> 0.4812198844 | F136: =_xlfn.RANK.AVG(C136,$C$2:$C$173) -> 38 | G136: =LOOKUP(F136,{0;43.25;86.5;129.75},{"Nízka";"Stredná";"Vysoká";"Najvyššia"}) -> Nízka
A137: Ilava | B137: 513156 | C137: =D137+E137 -> 1.030979837 | D137: =VLOOKUP(B137,Krajina!A:E,5,0) -> 0.4622094284 | E137: =VLOOKUP(B137,Klíma!A:G,2,0) -> 0.568770409 | F137: =_xlfn.RANK.AVG(C137,$C$2:$C$173) -> 37 | G137: =LOOKUP(F137,{0;43.25;86.5;129.75},{"Nízka";"Stredná";"Vysoká";"Najvyššia"}) -> Nízka
A138: Detva | B138: 518263 | C138: =D138+E138 -> 1.048309062 | D138: =VLOOKUP(B138,Krajina!A:E,5,0) -> 0.7153827124 | E138: =VLOOKUP(B138,Klíma!A:G,2,0) -> 0.3329263498 | F138: =_xlfn.RANK.AVG(C138,$C$2:$C$173) -> 36 | G138: =LOOKUP(F138,{0;43.25;86.5;129.75},{"Nízka";"Stredná";"Vysoká";"Najvyššia"}) -> Nízka
A139: Lipany | B139: 524778 | C139: =D139+E139 -> 1.066855551 | D139: =VLOOKUP(B139,Krajina!A:E,5,0) -> 0.6810860007 | E139: =VLOOKUP(B139,Klíma!A:G,2,0) -> 0.38576955 | F139: =_xlfn.RANK.AVG(C139,$C$2:$C$173) -> 35 | G139: =LOOKUP(F139,{0;43.25;86.5;129.75},{"Nízka";"Stredná";"Vysoká";"Najvyššia"}) -> Nízka
A140: Bratislava-Jarovce | B140: 529443 | C140: =D140+E140 -> 1.079998015 | D140: =VLOOKUP(B140,Krajina!A:E,5,0) -> 0.5608551098 | E140: =VLOOKUP(B140,Klíma!A:G,2,0) -> 0.5191429051 | F140: =_xlfn.RANK.AVG(C140,$C$2:$C$173) -> 34 | G140: =LOOKUP(F140,{0;43.25;86.5;129.75},{"Nízka";"Stredná";"Vysoká";"Najvyššia"}) -> Nízka
A141: Nemšová | B141: 506281 | C141: =D141+E141 -> 1.091256673 | D141: =VLOOKUP(B141,Krajina!A:E,5,0) -> 0.5462885668 | E141: =VLOOKUP(B141,Klíma!A:G,2,0) -> 0.5449681059 | F141: =_xlfn.RANK.AVG(C141,$C$2:$C$173) -> 33 | G141: =LOOKUP(F141,{0;43.25;86.5;129.75},{"Nízka";"Stredná";"Vysoká";"Najvyššia"}) -> Nízka
A142: Kremnica | B142: 516970 | C142: =D142+E142 -> 1.098418064 | D142: =VLOOKUP(B142,Krajina!A:E,5,0) -> 0.6514552291 | E142: =VLOOKUP(B142,Klíma!A:G,2,0) -> 0.4469628348 | F142: =_xlfn.RANK.AVG(C142,$C$2:$C$173) -> 32 | G142: =LOOKUP(F142,{0;43.25;86.5;129.75},{"Nízka";"Stredná";"Vysoká";"Najvyššia"}) -> Nízka
A143: Stará Turá | B143: 506524 | C143: =D143+E143 -> 1.113216093 | D143: =VLOOKUP(B143,Krajina!A:E,5,0) -> 0.7343694254 | E143: =VLOOKUP(B143,Klíma!A:G,2,0) -> 0.3788466671 | F143: =_xlfn.RANK.AVG(C143,$C$2:$C$173) -> 31 | G143: =LOOKUP(F143,{0;43.25;86.5;129.75},{"Nízka";"Stredná";"Vysoká";"Najvyššia"}) -> Nízka
A144: Turčianske Teplice | B144: 512729 | C144: =D144+E144 -> 1.142621618 | D144: =VLOOKUP(B144,Krajina!A:E,5,0) -> 0.3993042133 | E144: =VLOOKUP(B144,Klíma!A:G,2,0) -> 0.7433174048 | F144: =_xlfn.RANK.AVG(C144,$C$2:$C$173) -> 30 | G144: =LOOKUP(F144,{0;43.25;86.5;129.75},{"Nízka";"Stredná";"Vysoká";"Najvyššia"}) -> Nízka
A145: Medzilaborce | B145: 520471 | C145: =D145+E145 -> 1.145023971 | D145: =VLOOKUP(B145,Krajina!A:E,5,0) -> 0.5039764776 | E145: =VLOOKUP(B145,Klíma!A:G,2,0) -> 0.6410474938 | F145: =_xlfn.RANK.AVG(C145,$C$2:$C$173) -> 29 | G145: =LOOKUP(F145,{0;43.25;86.5;129.75},{"Nízka";"Stredná";"Vysoká";"Najvyššia"}) -> Nízka
A146: Hriňová | B146: 518468 | C146: =D146+E146 -> 1.172253053 | D146: =VLOOKUP(B146,Krajina!A:E,5,0) -> 0.8567624654 | E146: =VLOOKUP(B146,Klíma!A:G,2,0) -> 0.315490588 | F146: =_xlfn.RANK.AVG(C146,$C$2:$C$173) -> 28 | G146: =LOOKUP(F146,{0;43.25;86.5;129.75},{"Nízka";"Stredná";"Vysoká";"Najvyššia"}) -> Nízka
A147: Svätý Jur | B147: 507989 | C147: =D147+E147 -> 1.174339804 | D147: =VLOOKUP(B147,Krajina!A:E,5,0) -> 0.7999274704 | E147: =VLOOKUP(B147,Klíma!A:G,2,0) -> 0.3744123332 | F147: =_xlfn.RANK.AVG(C147,$C$2:$C$173) -> 27 | G147: =LOOKUP(F147,{0;43.25;86.5;129.75},{"Nízka";"Stredná";"Vysoká";"Najvyššia"}) -> Nízka
A148: Rajec | B148: 517917 | C148: =D148+E148 -> 1.175075909 | D148: =VLOOKUP(B148,Krajina!A:E,5,0) -> 0.3953017354 | E148: =VLOOKUP(B148,Klíma!A:G,2,0) -> 0.7797741739 | F148: =_xlfn.RANK.AVG(C148,$C$2:$C$173) -> 26 | G148: =LOOKUP(F148,{0;43.25;86.5;129.75},{"Nízka";"Stredná";"Vysoká";"Najvyššia"}) -> Nízka
A149: Bratislava-Devín | B149: 529401 | C149: =D149+E149 -> 1.194474331 | D149: =VLOOKUP(B149,Krajina!A:E,5,0) -> 0.7003116856 | E149: =VLOOKUP(B149,Klíma!A:G,2,0) -> 0.4941626451 | F149: =_xlfn.RANK.AVG(C149,$C$2:$C$173) -> 25 | G149: =LOOKUP(F149,{0;43.25;86.5;129.75},{"Nízka";"Stredná";"Vysoká";"Najvyššia"}) -> Nízka
A150: Krupina | B150: 518557 | C150: =D150+E150 -> 1.196513514 | D150: =VLOOKUP(B150,Krajina!A:E,5,0) -> 1 | E150: =VLOOKUP(B150,Klíma!A:G,2,0) -> 0.1965135142 | F150: =_xlfn.RANK.AVG(C150,$C$2:$C$173) -> 24 | G150: =LOOKUP(F150,{0;43.25;86.5;129.75},{"Nízka";"Stredná";"Vysoká";"Najvyššia"}) -> Nízka
A151: Liptovský Hrádok | B151: 510726 | C151: =D151+E151 -> 1.211393543 | D151: =VLOOKUP(B151,Krajina!A:E,5,0) -> 0.5092480013 | E151: =VLOOKUP(B151,Klíma!A:G,2,0) -> 0.702145542 | F151: =_xlfn.RANK.AVG(C151,$C$2:$C$173) -> 23 | G151: =LOOKUP(F151,{0;43.25;86.5;129.75},{"Nízka";"Stredná";"Vysoká";"Najvyššia"}) -> Nízka
A152: Tvrdošín | B152: 510114 | C152: =D152+E152 -> 1.237087754 | D152: =VLOOKUP(B152,Krajina!A:E,5,0) -> 0.4118704663 | E152: =VLOOKUP(B152,Klíma!A:G,2,0) -> 0.8252172877 | F152: =_xlfn.RANK.AVG(C152,$C$2:$C$173) -> 22 | G152: =LOOKUP(F152,{0;43.25;86.5;129.75},{"Nízka";"Stredná";"Vysoká";"Najvyššia"}) -> Nízka
A153: Martin | B153: 512036 | C153: =D153+E153 -> 1.28801243 | D153: =VLOOKUP(B153,Krajina!A:E,5,0) -> 0.3933658488 | E153: =VLOOKUP(B153,Klíma!A:G,2,0) -> 0.8946465807 | F153: =_xlfn.RANK.AVG(C153,$C$2:$C$173) -> 21 | G153: =LOOKUP(F153,{0;43.25;86.5;129.75},{"Nízka";"Stredná";"Vysoká";"Najvyššia"}) -> Nízka
A154: Žilina | B154: 517402 | C154: =D154+E154 -> 1.288418506 | D154: =VLOOKUP(B154,Krajina!A:E,5,0) -> 0.4116689628 | E154: =VLOOKUP(B154,Klíma!A:G,2,0) -> 0.8767495435 | F154: =_xlfn.RANK.AVG(C154,$C$2:$C$173) -> 20 | G154: =LOOKUP(F154,{0;43.25;86.5;129.75},{"Nízka";"Stredná";"Vysoká";"Najvyššia"}) -> Nízka
A155: Liptovský Mikuláš | B155: 510262 | C155: =D155+E155 -> 1.298775696 | D155: =VLOOKUP(B155,Krajina!A:E,5,0) -> 0.4613097821 | E155: =VLOOKUP(B155,Klíma!A:G,2,0) -> 0.8374659138 | F155: =_xlfn.RANK.AVG(C155,$C$2:$C$173) -> 19 | G155: =LOOKUP(F155,{0;43.25;86.5;129.75},{"Nízka";"Stredná";"Vysoká";"Najvyššia"}) -> Nízka
A156: Vrútky | B156: 557358 | C156: =D156+E156 -> 1.320173241 | D156: =VLOOKUP(B156,Krajina!A:E,5,0) -> 0.4255266601 | E156: =VLOOKUP(B156,Klíma!A:G,2,0) -> 0.8946465807 | F156: =_xlfn.RANK.AVG(C156,$C$2:$C$173) -> 18 | G156: =LOOKUP(F156,{0;43.25;86.5;129.75},{"Nízka";"Stredná";"Vysoká";"Najvyššia"}) -> Nízka
A157: Púchov | B157: 513610 | C157: =D157+E157 -> 1.326624192 | D157: =VLOOKUP(B157,Krajina!A:E,5,0) -> 0.5450835086 | E157: =VLOOKUP(B157,Klíma!A:G,2,0) -> 0.7815406833 | F157: =_xlfn.RANK.AVG(C157,$C$2:$C$173) -> 17 | G157: =LOOKUP(F157,{0;43.25;86.5;129.75},{"Nízka";"Stredná";"Vysoká";"Najvyššia"}) -> Nízka
A158: Považská Bystrica | B158: 512842 | C158: =D158+E158 -> 1.353831625 | D158: =VLOOKUP(B158,Krajina!A:E,5,0) -> 0.5864993122 | E158: =VLOOKUP(B158,Klíma!A:G,2,0) -> 0.767332313 | F158: =_xlfn.RANK.AVG(C158,$C$2:$C$173) -> 16 | G158: =LOOKUP(F158,{0;43.25;86.5;129.75},{"Nízka";"Stredná";"Vysoká";"Najvyššia"}) -> Nízka
A159: Beluša | B159: 512851 | C159: =D159+E159 -> 1.381127483 | D159: =VLOOKUP(B159,Krajina!A:E,5,0) -> 0.5995867998 | E159: =VLOOKUP(B159,Klíma!A:G,2,0) -> 0.7815406833 | F159: =_xlfn.RANK.AVG(C159,$C$2:$C$173) -> 15 | G159: =LOOKUP(F159,{0;43.25;86.5;129.75},{"Nízka";"Stredná";"Vysoká";"Najvyššia"}) -> Nízka
A160: Bytča | B160: 517461 | C160: =D160+E160 -> 1.384008674 | D160: =VLOOKUP(B160,Krajina!A:E,5,0) -> 0.5419497691 | E160: =VLOOKUP(B160,Klíma!A:G,2,0) -> 0.8420589045 | F160: =_xlfn.RANK.AVG(C160,$C$2:$C$173) -> 14 | G160: =LOOKUP(F160,{0;43.25;86.5;129.75},{"Nízka";"Stredná";"Vysoká";"Najvyššia"}) -> Nízka
A161: Kysucké Nové Mesto | B161: 509256 | C161: =D161+E161 -> 1.416958737 | D161: =VLOOKUP(B161,Krajina!A:E,5,0) -> 0.54012728 | E161: =VLOOKUP(B161,Klíma!A:G,2,0) -> 0.8768314572 | F161: =_xlfn.RANK.AVG(C161,$C$2:$C$173) -> 13 | G161: =LOOKUP(F161,{0;43.25;86.5;129.75},{"Nízka";"Stredná";"Vysoká";"Najvyššia"}) -> Nízka
A162: Ružomberok | B162: 510998 | C162: =D162+E162 -> 1.441749384 | D162: =VLOOKUP(B162,Krajina!A:E,5,0) -> 0.5428713023 | E162: =VLOOKUP(B162,Klíma!A:G,2,0) -> 0.8988780815 | F162: =_xlfn.RANK.AVG(C162,$C$2:$C$173) -> 12 | G162: =LOOKUP(F162,{0;43.25;86.5;129.75},{"Nízka";"Stredná";"Vysoká";"Najvyššia"}) -> Nízka
A163: Zákamenné | B163: 510203 | C163: =D163+E163 -> 1.445757613 | D163: =VLOOKUP(B163,Krajina!A:E,5,0) -> 0.5399304809 | E163: =VLOOKUP(B163,Klíma!A:G,2,0) -> 0.9058271322 | F163: =_xlfn.RANK.AVG(C163,$C$2:$C$173) -> 11 | G163: =LOOKUP(F163,{0;43.25;86.5;129.75},{"Nízka";"Stredná";"Vysoká";"Najvyššia"}) -> Nízka
A164: Turzovka | B164: 509507 | C164: =D164+E164 -> 1.464326856 | D164: =VLOOKUP(B164,Krajina!A:E,5,0) -> 0.5508331655 | E164: =VLOOKUP(B164,Klíma!A:G,2,0) -> 0.9134936901 | F164: =_xlfn.RANK.AVG(C164,$C$2:$C$173) -> 10 | G164: =LOOKUP(F164,{0;43.25;86.5;129.75},{"Nízka";"Stredná";"Vysoká";"Najvyššia"}) -> Nízka
A165: Čadca | B165: 509132 | C165: =D165+E165 -> 1.46580151 | D165: =VLOOKUP(B165,Krajina!A:E,5,0) -> 0.5960817468 | E165: =VLOOKUP(B165,Klíma!A:G,2,0) -> 0.8697197636 | F165: =_xlfn.RANK.AVG(C165,$C$2:$C$173) -> 9 | G165: =LOOKUP(F165,{0;43.25;86.5;129.75},{"Nízka";"Stredná";"Vysoká";"Najvyššia"}) -> Nízka
A166: Dolný Kubín | B166: 509540 | C166: =D166+E166 -> 1.491679783 | D166: =VLOOKUP(B166,Krajina!A:E,5,0) -> 0.5631286987 | E166: =VLOOKUP(B166,Klíma!A:G,2,0) -> 0.9285510842 | F166: =_xlfn.RANK.AVG(C166,$C$2:$C$173) -> 8 | G166: =LOOKUP(F166,{0;43.25;86.5;129.75},{"Nízka";"Stredná";"Vysoká";"Najvyššia"}) -> Nízka
A167: Skalité | B167: 509451 | C167: =D167+E167 -> 1.519272008 | D167: =VLOOKUP(B167,Krajina!A:E,5,0) -> 0.608245761 | E167: =VLOOKUP(B167,Klíma!A:G,2,0) -> 0.911026247 | F167: =_xlfn.RANK.AVG(C167,$C$2:$C$173) -> 7 | G167: =LOOKUP(F167,{0;43.25;86.5;129.75},{"Nízka";"Stredná";"Vysoká";"Najvyššia"}) -> Nízka
A168: Trstená | B168: 510106 | C168: =D168+E168 -> 1.527830412 | D168: =VLOOKUP(B168,Krajina!A:E,5,0) -> 0.5718068685 | E168: =VLOOKUP(B168,Klíma!A:G,2,0) -> 0.9560235432 | F168: =_xlfn.RANK.AVG(C168,$C$2:$C$173) -> 6 | G168: =LOOKUP(F168,{0;43.25;86.5;129.75},{"Nízka";"Stredná";"Vysoká";"Najvyššia"}) -> Nízka
A169: Krásno nad Kysucou | B169: 509248 | C169: =D169+E169 -> 1.550517909 | D169: =VLOOKUP(B169,Krajina!A:E,5,0) -> 0.6807981453 | E169: =VLOOKUP(B169,Klíma!A:G,2,0) -> 0.8697197636 | F169: =_xlfn.RANK.AVG(C169,$C$2:$C$173) -> 5 | G169: =LOOKUP(F169,{0;43.25;86.5;129.75},{"Nízka";"Stredná";"Vysoká";"Najvyššia"}) -> Nízka
A170: Raková | B170: 509400 | C170: =D170+E170 -> 1.559059698 | D170: =VLOOKUP(B170,Krajina!A:E,5,0) -> 0.6704567665 | E170: =VLOOKUP(B170,Klíma!A:G,2,0) -> 0.8886029319 | F170: =_xlfn.RANK.AVG(C170,$C$2:$C$173) -> 4 | G170: =LOOKUP(F170,{0;43.25;86.5;129.75},{"Nízka";"Stredná";"Vysoká";"Najvyššia"}) -> Nízka
A171: Oščadnica | B171: 509345 | C171: =D171+E171 -> 1.592300379 | D171: =VLOOKUP(B171,Krajina!A:E,5,0) -> 0.698709851 | E171: =VLOOKUP(B171,Klíma!A:G,2,0) -> 0.8935905284 | F171: =_xlfn.RANK.AVG(C171,$C$2:$C$173) -> 3 | G171: =LOOKUP(F171,{0;43.25;86.5;129.75},{"Nízka";"Stredná";"Vysoká";"Najvyššia"}) -> Nízka
A172: Rabča | B172: 510025 | C172: =D172+E172 -> 1.604240141 | D172: =VLOOKUP(B172,Krajina!A:E,5,0) -> 0.6042401407 | E172: =VLOOKUP(B172,Klíma!A:G,2,0) -> 1 | F172: =_xlfn.RANK.AVG(C172,$C$2:$C$173) -> 2 | G172: =LOOKUP(F172,{0;43.25;86.5;129.75},{"Nízka";"Stredná";"Vysoká";"Najvyššia"}) -> Nízka
A173: Námestovo | B173: 509868 | C173: =D173+E173 -> 1.787159066 | D173: =VLOOKUP(B173,Krajina!A:E,5,0) -> 0.85941909 | E173: =VLOOKUP(B173,Klíma!A:G,2,0) -> 0.9277399757 | F173: =_xlfn.RANK.AVG(C173,$C$2:$C$173) -> 1 | G173: =LOOKUP(F173,{0;43.25;86.5;129.75},{"Nízka";"Stredná";"Vysoká";"Najvyššia"}) -> Nízka

Sheet Krajina
F1: Index | J1: Počet obyvateľov | N1: Rozloha
A2: IDN2 | B2: Poc_obyv_adr | C2: Poc_grid | D2: Index | E2: Normalizácia | F2: GRA | G2: IMD | H2: WAW | I2: TCD | J2: GRA | K2: IMD | L2: WAW | M2: TCD | N2: GRA | O2: IMD | P2: WAW | Q2: TCD
A3: 599891 | B3: =SUMIF(Obec_Grid!B:B,A3,Obec_Grid!D:D) -> 544 | C3: =SUMIF(Obec_Grid!B:B,A3,Obec_Grid!E:E) -> 2.777777778 | D3: =F3*Pomocný!$C$14+G3*Pomocný!$C$12+H3*Pomocný!$C$15+I3*Pomocný!$C$13 -> 0.2294597676 | E3: =(D3-MIN($D$3:$D$174))/(MAX($D$3:$D$174)-MIN($D$3:$D$174)) -> 0.3582413276 | F3: =(J3-MIN(J$3:J$174))/(MAX(J$3:J$174)-MIN(J$3:J$174)) -> 0.002579907709 | G3: =1-(K3-MIN(K$3:K$174))/(MAX(K$3:K$174)-MIN(K$3:K$174)) -> 0.9122321763 | H3: =(L3-MIN(L$3:L$174))/(MAX(L$3:L$174)-MIN(L$3:L$174)) -> 0.0003987119494 | I3: =(M3-MIN(M$3:M$174))/(MAX(M$3:M$174)-MIN(M$3:M$174)) -> 0.002628274625 | J3: =SUMIF(Obec_Grid!$B:$B,$A3,Obec_Grid!F:F)/$C3*1000 -> 0.3858533765 | K3: =SUMIF(Obec_Grid!$B:$B,$A3,Obec_Grid!G:G)/$C3 -> 112.5906888 | L3: =SUMIF(Obec_Grid!$B:$B,$A3,Obec_Grid!H:H)/$C3 -> 0.2243061295 | M3: =SUMIF(Obec_Grid!$B:$B,$A3,Obec_Grid!I:I)/$C3*1000 -> 0.4633217397 | N3: =SUMIF(Obec_Grid!$B:$B,$A3,Obec_Grid!J:J)/$C3 -> 0.05060853923 | O3: =SUMIF(Obec_Grid!$B:$B,$A3,Obec_Grid!K:K)/$C3 -> 0.5512983259 | P3: =SUMIF(Obec_Grid!$B:$B,$A3,Obec_Grid!L:L)/$C3 -> 0.00981296745 | Q3: =SUMIF(Obec_Grid!$B:$B,$A3,Obec_Grid!M:M)/$C3 -> 0.05465631382
A4: 599972 | B4: =SUMIF(Obec_Grid!B:B,A4,Obec_Grid!D:D) -> 4328 | C4: =SUMIF(Obec_Grid!B:B,A4,Obec_Grid!E:E) -> 1.686346863 | D4: =F4*Pomocný!$C$14+G4*Pomocný!$C$12+H4*Pomocný!$C$15+I4*Pomocný!$C$13 -> 0.1480245054 | E4: =(D4-MIN($D$3:$D$174))/(MAX($D$3:$D$174)-MIN($D$3:$D$174)) -> 0.2310832561 | F4: =(J4-MIN(J$3:J$174))/(MAX(J$3:J$174)-MIN(J$3:J$174)) -> 0.0004253768099 | G4: =1-(K4-MIN(K$3:K$174))/(MAX(K$3:K$174)-MIN(K$3:K$174)) -> 0.5910692196 | H4: =(L4-MIN(L$3:L$174))/(MAX(L$3:L$174)-MIN(L$3:L$174)) -> 0.000192275612 | I4: =(M4-MIN(M$3:M$174))/(MAX(M$3:M$174)-MIN(M$3:M$174)) -> 0.0004111495138 | J4: =SUMIF(Obec_Grid!$B:$B,$A4,Obec_Grid!F:F)/$C4*1000 -> 0.1376789051 | K4: =SUMIF(Obec_Grid!$B:$B,$A4,Obec_Grid!G:G)/$C4 -> 500.0785947 | L4: =SUMIF(Obec_Grid!$B:$B,$A4,Obec_Grid!H:H)/$C4 -> 0.1081698163 | M4: =SUMIF(Obec_Grid!$B:$B,$A4,Obec_Grid!I:I)/$C4*1000 -> 0.1196298228 | N4: =SUMIF(Obec_Grid!$B:$B,$A4,Obec_Grid!J:J)/$C4 -> 0.2270245356 | O4: =SUMIF(Obec_Grid!$B:$B,$A4,Obec_Grid!K:K)/$C4 -> 0.1786401296 | P4: =SUMIF(Obec_Grid!$B:$B,$A4,Obec_Grid!L:L)/$C4 -> 0.0816141374 | Q4: =SUMIF(Obec_Grid!$B:$B,$A4,Obec_Grid!M:M)/$C4 -> 0.2881042742
A5: 598186 | B5: =SUMIF(Obec_Grid!B:B,A5,Obec_Grid!D:D) -> 22096 | C5: =SUMIF(Obec_Grid!B:B,A5,Obec_Grid!E:E) -> 14.12903108 | D5: =F5*Pomocný!$C$14+G5*Pomocný!$C$12+H5*Pomocný!$C$15+I5*Pomocný!$C$13 -> 0.0430333811 | E5: =(D5-MIN($D$3:$D$174))/(MAX($D$3:$D$174)-MIN($D$3:$D$174)) -> 0.06714359994 | F5: 0.0002499881158 | G5: 0.1713642243 | H5: 5.485339959e-05 | I5: 0.0004644586109 | J5: =SUMIF(Obec_Grid!$B:$B,$A5,Obec_Grid!F:F)/$C5*1000 -> 0.1174763652 | K5: =SUMIF(Obec_Grid!$B:$B,$A5,Obec_Grid!G:G)/$C5 -> 1006.458943 | L5: =SUMIF(Obec_Grid!$B:$B,$A5,Obec_Grid!H:H)/$C5 -> 0.03085925509 | M5: =SUMIF(Obec_Grid!$B:$B,$A5,Obec_Grid!I:I)/$C5*1000 -> 0.1278936351 | N5: =SUMIF(Obec_Grid!$B:$B,$A5,Obec_Grid!J:J)/$C5 -> 0.02133178291 | O5: =SUMIF(Obec_Grid!$B:$B,$A5,Obec_Grid!K:K)/$C5 -> 0.6566202379 | P5: =SUMIF(Obec_Grid!$B:$B,$A5,Obec_Grid!L:L)/$C5 -> 0.004440862218 | Q5: =SUMIF(Obec_Grid!$B:$B,$A5,Obec_Grid!M:M)/$C5 -> 0.03600699201
A6: 599786 | B6: =SUMIF(Obec_Grid!B:B,A6,Obec_Grid!D:D) -> 634 | C6: =SUMIF(Obec_Grid!B:B,A6,Obec_Grid!E:E) -> 5 | D6: =F6*Pomocný!$C$14+G6*Pomocný!$C$12+H6*Pomocný!$C$15+I6*Pomocný!$C$13 -> 0.2586957394 | E6: 0.403892188 | F6: 0.02809947859 | G6: 0.9872610253 | H6: 0.008646740657 | I6: 0.01077571289 | J6: =SUMIF(Obec_Grid!$B:$B,$A6,Obec_Grid!F:F)/$C6*1000 -> 3.325382355 | K6: =SUMIF(Obec_Grid!$B:$B,$A6,Obec_Grid!G:G)/$C6 -> 22.06726141 | L6: =SUMIF(Obec_Grid!$B:$B,$A6,Obec_Grid!H:H)/$C6 -> 4.864456489 | M6: =SUMIF(Obec_Grid!$B:$B,$A6,Obec_Grid!I:I)/$C6*1000 -> 1.726312565 | N6: =SUMIF(Obec_Grid!$B:$B,$A6,Obec_Grid!J:J)/$C6 -> 0.1026000403 | O6: =SUMIF(Obec_Grid!$B:$B,$A6,Obec_Grid!K:K)/$C6 -> 0.1383785565 | P6: =SUMIF(Obec_Grid!$B:$B,$A6,Obec_Grid!L:L)/$C6 -> 0.06499038507 | Q6: =SUMIF(Obec_Grid!$B:$B,$A6,Obec_Grid!M:M)/$C6 -> 0.04084986634
A7: 598127 | B7: =SUMIF(Obec_Grid!B:B,A7,Obec_Grid!D:D) -> 2227 | C7: =SUMIF(Obec_Grid!B:B,A7,Obec_Grid!E:E) -> 4.987393093 | D7: =F7*Pomocný!$C$14+G7*Pomocný!$C$12+H7*Pomocný!$C$15+I7*Pomocný!$C$13 -> 0.2440966979 | E7: 0.3810963388 | F7: 0.0427595377 | G7: 0.8968588966 | H7: 0.01588106685 | I7: 0.02088729048 | J7: =SUMIF(Obec_Grid!$B:$B,$A7,Obec_Grid!F:F)/$C7*1000 -> 5.014034126 | K7: =SUMIF(Obec_Grid!$B:$B,$A7,Obec_Grid!G:G)/$C7 -> 131.1387804 | L7: =SUMIF(Obec_Grid!$B:$B,$A7,Obec_Grid!H:H)/$C7 -> 8.93432124 | M7: =SUMIF(Obec_Grid!$B:$B,$A7,Obec_Grid!I:I)/$C7*1000 -> 3.293778229 | N7: =SUMIF(Obec_Grid!$B:$B,$A7,Obec_Grid!J:J)/$C7 -> 0.1829877865 | O7: =SUMIF(Obec_Grid!$B:$B,$A7,Obec_Grid!K:K)/$C7 -> 0.2070151755 | P7: =SUMIF(Obec_Grid!$B:$B,$A7,Obec_Grid!L:L)/$C7 -> 0.1308944461 | Q7: =SUMIF(Obec_Grid!$B:$B,$A7,Obec_Grid!M:M)/$C7 -> 0.1186180936
A8: 599883 | B8: =SUMIF(Obec_Grid!B:B,A8,Obec_Grid!D:D) -> 22987 | C8: =SUMIF(Obec_Grid!B:B,A8,Obec_Grid!E:E) -> 8.367482142 | D8: =F8*Pomocný!$C$14+G8*Pomocný!$C$12+H8*Pomocný!$C$15+I8*Pomocný!$C$13 -> 3.291244896e-05 | E8: 0 | F8: 9.433204383e-05 | G8: 0 | H8: 3.731775201e-05 | I8: 0 | J8: =SUMIF(Obec_Grid!$B:$B,$A8,Obec_Grid!F:F)/$C8*1000 -> 0.09954677163 | K8: =SUMIF(Obec_Grid!$B:$B,$A8,Obec_Grid!G:G)/$C8 -> 1213.21244 | L8: =SUMIF(Obec_Grid!$B:$B,$A8,Obec_Grid!H:H)/$C8 -> 0.02099410496 | M8: =SUMIF(Obec_Grid!$B:$B,$A8,Obec_Grid!I:I)/$C8*1000 -> 0.0558946895 | N8: =SUMIF(Obec_Grid!$B:$B,$A8,Obec_Grid!J:J)/$C8 -> 0.1600605942 | O8: =SUMIF(Obec_Grid!$B:$B,$A8,Obec_Grid!K:K)/$C8 -> 0.3859014844 | P8: =SUMIF(Obec_Grid!$B:$B,$A8,Obec_Grid!L:L)/$C8 -> 0.01059902675 | Q8: =SUMIF(Obec_Grid!$B:$B,$A8,Obec_Grid!M:M)/$C8 -> 0.08845309899
A9: 599824 | B9: =SUMIF(Obec_Grid!B:B,A9,Obec_Grid!D:D) -> 22517 | C9: =SUMIF(Obec_Grid!B:B,A9,Obec_Grid!E:E) -> 20.13180381 | D9: =F9*Pomocný!$C$14+G9*Pomocný!$C$12+H9*Pomocný!$C$15+I9*Pomocný!$C$13 -> 0.1280388256 | E9: 0.1998763755 | F9: 0.04624757972 | G9: 0.4371852697 | H9: 0.009864901896 | I9: 0.01885755086 | J9: =SUMIF(Obec_Grid!$B:$B,$A9,Obec_Grid!F:F)/$C9*1000 -> 5.415812066 | K9: =SUMIF(Obec_Grid!$B:$B,$A9,Obec_Grid!G:G)/$C9 -> 685.7418795 | L9: =SUMIF(Obec_Grid!$B:$B,$A9,Obec_Grid!H:H)/$C9 -> 5.549765854 | M9: =SUMIF(Obec_Grid!$B:$B,$A9,Obec_Grid!I:I)/$C9*1000 -> 2.979134236 | N9: =SUMIF(Obec_Grid!$B:$B,$A9,Obec_Grid!J:J)/$C9 -> 0.02562214123 | O9: =SUMIF(Obec_Grid!$B:$B,$A9,Obec_Grid!K:K)/$C9 -> 0.6059508403 | P9: =SUMIF(Obec_Grid!$B:$B,$A9,Obec_Grid!L:L)/$C9 -> 0.004829138858 | Q9: =SUMIF(Obec_Grid!$B:$B,$A9,Obec_Grid!M:M)/$C9 -> 0.03250781452
A10: 598194 | B10: =SUMIF(Obec_Grid!B:B,A10,Obec_Grid!D:D) -> 567 | C10: =SUMIF(Obec_Grid!B:B,A10,Obec_Grid!E:E) -> 5.457348721 | D10: =F10*Pomocný!$C$14+G10*Pomocný!$C$12+H10*Pomocný!$C$15+I10*Pomocný!$C$13 -> 0.2729676535 | E10: 0.4261772403 | F10: 0.01642098535 | G10: 0.994014393 | H10: 0.003973992553 | I10: 0.07746124319 | J10: =SUMIF(Obec_Grid!$B:$B,$A10,Obec_Grid!F:F)/$C10*1000 -> 1.980168932 | K10: =SUMIF(Obec_Grid!$B:$B,$A10,Obec_Grid!G:G)/$C10 -> 13.91922245 | L10: =SUMIF(Obec_Grid!$B:$B,$A10,Obec_Grid!H:H)/$C10 -> 2.235676382 | M10: =SUMIF(Obec_Grid!$B:$B,$A10,Obec_Grid!I:I)/$C10*1000 -> 12.06369841 | N10: =SUMIF(Obec_Grid!$B:$B,$A10,Obec_Grid!J:J)/$C10 -> 0.1549418921 | O10: =SUMIF(Obec_Grid!$B:$B,$A10,Obec_Grid!K:K)/$C10 -> 0.09940495999 | P10: =SUMIF(Obec_Grid!$B:$B,$A10,Obec_Grid!L:L)/$C10 -> 0.03945762566 | Q10: =SUMIF(Obec_Grid!$B:$B,$A10,Obec_Grid!M:M)/$C10 -> 0.4308815126
A11: 599875 | B11: =SUMIF(Obec_Grid!B:B,A11,Obec_Grid!D:D) -> 21403 | C11: =SUMIF(Obec_Grid!B:B,A11,Obec_Grid!E:E) -> 8.718821596 | D11: =F11*Pomocný!$C$14+G11*Pomocný!$C$12+H11*Pomocný!$C$15+I11*Pomocný!$C$13 -> 0.1775578411 | E11: 0.2771984391 | F11: 0.008230025355 | G11: 0.1373966831 | H11: 0.0002513360485 | I11: 0.56435332 | J11: =SUMIF(Obec_Grid!$B:$B,$A11,Obec_Grid!F:F)/$C11*1000 -> 1.036674843 | K11: =SUMIF(Obec_Grid!$B:$B,$A11,Obec_Grid!G:G)/$C11 -> 1047.441289 | L11: =SUMIF(Obec_Grid!$B:$B,$A11,Obec_Grid!H:H)/$C11 -> 0.1413958531 | M11: =SUMIF(Obec_Grid!$B:$B,$A11,Obec_Grid!I:I)/$C11*1000 -> 87.54021092 | N11: =SUMIF(Obec_Grid!$B:$B,$A11,Obec_Grid!J:J)/$C11 -> 0.05780849958 | O11: =SUMIF(Obec_Grid!$B:$B,$A11,Obec_Grid!K:K)/$C11 -> 0.2865977805 | P11: =SUMIF(Obec_Grid!$B:$B,$A11,Obec_Grid!L:L)/$C11 -> 0.04200048513 | Q11: =SUMIF(Obec_Grid!$B:$B,$A11,Obec_Grid!M:M)/$C11 -> 0.2206174103
A12: 599859 | B12: =SUMIF(Obec_Grid!B:B,A12,Obec_Grid!D:D) -> 1165 | C12: =SUMIF(Obec_Grid!B:B,A12,Obec_Grid!E:E) -> 8 | D12: =F12*Pomocný!$C$14+G12*Pomocný!$C$12+H12*Pomocný!$C$15+I12*Pomocný!$C$13 -> 0.3227537718 | E12: 0.5039163746 | F12: 0.1667315377 | G12: 0.9840159829 | H12: 0.07335485379 | I12: 0.0669127128 | J12: =SUMIF(Obec_Grid!$B:$B,$A12,Obec_Grid!F:F)/$C12*1000 -> 19.29402685 | K12: =SUMIF(Obec_Grid!$B:$B,$A12,Obec_Grid!G:G)/$C12 -> 25.98245361 | L12: =SUMIF(Obec_Grid!$B:$B,$A12,Obec_Grid!H:H)/$C12 -> 41.2677457 | M12: =SUMIF(Obec_Grid!$B:$B,$A12,Obec_Grid!I:I)/$C12*1000 -> 10.42849766 | N12: =SUMIF(Obec_Grid!$B:$B,$A12,Obec_Grid!J:J)/$C12 -> 0.3302076619 | O12: =SUMIF(Obec_Grid!$B:$B,$A12,Obec_Grid!K:K)/$C12 -> 0.1102347217 | P12: =SUMIF(Obec_Grid!$B:$B,$A12,Obec_Grid!L:L)/$C12 -> 0.2229563822 | Q12: =SUMIF(Obec_Grid!$B:$B,$A12,Obec_Grid!M:M)/$C12 -> 0.1221008689
A13: 599816 | B13: =SUMIF(Obec_Grid!B:B,A13,Obec_Grid!D:D) -> 23773 | C13: =SUMIF(Obec_Grid!B:B,A13,Obec_Grid!E:E) -> 14.20487168 | D13: =F13*Pomocný!$C$14+G13*Pomocný!$C$12+H13*Pomocný!$C$15+I13*Pomocný!$C$13 -> 0.1275197613 | E13: 0.1990658763 | F13: 0.007080277785 | G13: 0.4828426406 | H13: 0.01279001733 | I13: 0.007366109311 | J13: =SUMIF(Obec_Grid!$B:$B,$A13,Obec_Grid!F:F)/$C13*1000 -> 0.904238592 | K13: =SUMIF(Obec_Grid!$B:$B,$A13,Obec_Grid!G:G)/$C13 -> 630.6555794 | L13: =SUMIF(Obec_Grid!$B:$B,$A13,Obec_Grid!H:H)/$C13 -> 7.195368204 | M13: =SUMIF(Obec_Grid!$B:$B,$A13,Obec_Grid!I:I)/$C13*1000 -> 1.197766303 | N13: =SUMIF(Obec_Grid!$B:$B,$A13,Obec_Grid!J:J)/$C13 -> 0.05694902743 | O13: =SUMIF(Obec_Grid!$B:$B,$A13,Obec_Grid!K:K)/$C13 -> 0.3568999684 | P13: =SUMIF(Obec_Grid!$B:$B,$A13,Obec_Grid!L:L)/$C13 -> 0.2161078675 | Q13: =SUMIF(Obec_Grid!$B:$B,$A13,Obec_Grid!M:M)/$C13 -> 0.1133685043
A14: 529435 | B14: =SUMIF(Obec_Grid!B:B,A14,Obec_Grid!D:D) -> 1391 | C14: =SUMIF(Obec_Grid!B:B,A14,Obec_Grid!E:E) -> 10 | D14: =F14*Pomocný!$C$14+G14*Pomocný!$C$12+H14*Pomocný!$C$15+I14*Pomocný!$C$13 -> 0.2805402193 | E14: 0.4380015144 | F14: 0.02382212185 | G14: 0.9814602803 | H14: 0.09479732312 | I14: 0.02208115177 | J14: =SUMIF(Obec_Grid!$B:$B,$A14,Obec_Grid!F:F)/$C14*1000 -> 2.832685431 | K14: =SUMIF(Obec_Grid!$B:$B,$A14,Obec_Grid!G:G)/$C14 -> 29.06594692 | L14: =SUMIF(Obec_Grid!$B:$B,$A14,Obec_Grid!H:H)/$C14 -> 53.33078346 | M14: =SUMIF(Obec_Grid!$B:$B,$A14,Obec_Grid!I:I)/$C14*1000 -> 3.478846936 | N14: =SUMIF(Obec_Grid!$B:$B,$A14,Obec_Grid!J:J)/$C14 -> 0.07914418381 | O14: =SUMIF(Obec_Grid!$B:$B,$A14,Obec_Grid!K:K)/$C14 -> 0.1083353847 | P14: =SUMIF(Obec_Grid!$B:$B,$A14,Obec_Grid!L:L)/$C14 -> 0.3157709081 | Q14: =SUMIF(Obec_Grid!$B:$B,$A14,Obec_Grid!M:M)/$C14 -> 0.1674278669
A15: 599018 | B15: =SUMIF(Obec_Grid!B:B,A15,Obec_Grid!D:D) -> 2699 | C15: =SUMIF(Obec_Grid!B:B,A15,Obec_Grid!E:E) -> 9.436601837 | D15: =F15*Pomocný!$C$14+G15*Pomocný!$C$12+H15*Pomocný!$C$15+I15*Pomocný!$C$13 -> 0.4176925976 | E15: 0.6521597483 | F15: 0.3866832399 | G15: 0.9350035529 | H15: 0.02454885 | I15: 0.3245347477 | J15: =SUMIF(Obec_Grid!$B:$B,$A15,Obec_Grid!F:F)/$C15*1000 -> 44.62965673 | K15: =SUMIF(Obec_Grid!$B:$B,$A15,Obec_Grid!G:G)/$C15 -> 85.11668265 | L15: =SUMIF(Obec_Grid!$B:$B,$A15,Obec_Grid!H:H)/$C15 -> 13.81061575 | M15: =SUMIF(Obec_Grid!$B:$B,$A15,Obec_Grid!I:I)/$C15*1000 -> 50.36427331 | N15: =SUMIF(Obec_Grid!$B:$B,$A15,Obec_Grid!J:J)/$C15 -> 0.2851187404 | O15: =SUMIF(Obec_Grid!$B:$B,$A15,Obec_Grid!K:K)/$C15 -> 0.1506889643 | P15: =SUMIF(Obec_Grid!$B:$B,$A15,Obec_Grid!L:L)/$C15 -> 0.06259154409 | Q15: =SUMIF(Obec_Grid!$B:$B,$A15,Obec_Grid!M:M)/$C15 -> 0.1860531601
A16: 598682 | B16: =SUMIF(Obec_Grid!B:B,A16,Obec_Grid!D:D) -> 26245 | C16: =SUMIF(Obec_Grid!B:B,A16,Obec_Grid!E:E) -> 14.06519028 | D16: =F16*Pomocný!$C$14+G16*Pomocný!$C$12+H16*Pomocný!$C$15+I16*Pomocný!$C$13 -> 0.1427172735 | E16: 0.222796215 | F16: 0.007947357846 | G16: 0.4410278615 | H16: 0.007373908548 | I16: 0.1145199662 | J16: =SUMIF(Obec_Grid!$B:$B,$A16,Obec_Grid!F:F)/$C16*1000 -> 1.004115153 | K16: =SUMIF(Obec_Grid!$B:$B,$A16,Obec_Grid!G:G)/$C16 -> 681.1057351 | L16: =SUMIF(Obec_Grid!$B:$B,$A16,Obec_Grid!H:H)/$C16 -> 4.148390557 | M16: =SUMIF(Obec_Grid!$B:$B,$A16,Obec_Grid!I:I)/$C16*1000 -> 17.8084277 | N16: =SUMIF(Obec_Grid!$B:$B,$A16,Obec_Grid!J:J)/$C16 -> 0.08749457784 | O16: =SUMIF(Obec_Grid!$B:$B,$A16,Obec_Grid!K:K)/$C16 -> 0.3089547296 | P16: =SUMIF(Obec_Grid!$B:$B,$A16,Obec_Grid!L:L)/$C16 -> 0.02246248058 | Q16: =SUMIF(Obec_Grid!$B:$B,$A16,Obec_Grid!M:M)/$C16 -> 0.1981052178
A17: 598208 | B17: =SUMIF(Obec_Grid!B:B,A17,Obec_Grid!D:D) -> 1802 | C17: =SUMIF(Obec_Grid!B:B,A17,Obec_Grid!E:E) -> 11.44962802 | D17: =F17*Pomocný!$C$14+G17*Pomocný!$C$12+H17*Pomocný!$C$15+I17*Pomocný!$C$13 -> 0.2805030489 | E17: 0.4379434742 | F17: 0.01411280469 | G17: 0.9758813468 | H17: 0.001132595991 | I17: 0.1308854481 | J17: =SUMIF(Obec_Grid!$B:$B,$A17,Obec_Grid!F:F)/$C17*1000 -> 1.714295968 | K17: =SUMIF(Obec_Grid!$B:$B,$A17,Obec_Grid!G:G)/$C17 -> 35.79701353 | L17: =SUMIF(Obec_Grid!$B:$B,$A17,Obec_Grid!H:H)/$C17 -> 0.637172333 | M17: =SUMIF(Obec_Grid!$B:$B,$A17,Obec_Grid!I:I)/$C17*1000 -> 20.34535436 | N17: =SUMIF(Obec_Grid!$B:$B,$A17,Obec_Grid!J:J)/$C17 -> 0.1318364668 | O17: =SUMIF(Obec_Grid!$B:$B,$A17,Obec_Grid!K:K)/$C17 -> 0.148726871 | P17: =SUMIF(Obec_Grid!$B:$B,$A17,Obec_Grid!L:L)/$C17 -> 0.01783842582 | Q17: =SUMIF(Obec_Grid!$B:$B,$A17,Obec_Grid!M:M)/$C17 -> 0.2148925717
A18: 598119 | B18: =SUMIF(Obec_Grid!B:B,A18,Obec_Grid!D:D) -> 1208 | C18: =SUMIF(Obec_Grid!B:B,A18,Obec_Grid!E:E) -> 9 | D18: =F18*Pomocný!$C$14+G18*Pomocný!$C$12+H18*Pomocný!$C$15+I18*Pomocný!$C$13 -> 0.4095462577 | E18: 0.6394395475 | F18: 0.2870889024 | G18: 0.9830550683 | H18: 0.009490831616 | I18: 0.3585502284 | J18: =SUMIF(Obec_Grid!$B:$B,$A18,Obec_Grid!F:F)/$C18*1000 -> 33.1576597 | K18: =SUMIF(Obec_Grid!$B:$B,$A18,Obec_Grid!G:G)/$C18 -> 27.14181145 | L18: =SUMIF(Obec_Grid!$B:$B,$A18,Obec_Grid!H:H)/$C18 -> 5.339322558 | M18: =SUMIF(Obec_Grid!$B:$B,$A18,Obec_Grid!I:I)/$C18*1000 -> 55.63724851 | N18: =SUMIF(Obec_Grid!$B:$B,$A18,Obec_Grid!J:J)/$C18 -> 0.4692090583 | O18: =SUMIF(Obec_Grid!$B:$B,$A18,Obec_Grid!K:K)/$C18 -> 0.09197042859 | P18: =SUMIF(Obec_Grid!$B:$B,$A18,Obec_Grid!L:L)/$C18 -> 0.06121209002 | Q18: =SUMIF(Obec_Grid!$B:$B,$A18,Obec_Grid!M:M)/$C18 -> 0.1670140797
A19: 598224 | B19: =SUMIF(Obec_Grid!B:B,A19,Obec_Grid!D:D) -> 40358 | C19: =SUMIF(Obec_Grid!B:B,A19,Obec_Grid!E:E) -> 20.26705297 | D19: =F19*Pomocný!$C$14+G19*Pomocný!$C$12+H19*Pomocný!$C$15+I19*Pomocný!$C$13 -> 0.07784873234 | E19: 0.1215064497 | F19: 0.07937588146 | G19: 0.2088812108 | H19: 0.01062565822 | I19: 0.01251217883 | J19: =SUMIF(Obec_Grid!$B:$B,$A19,Obec_Grid!F:F)/$C19*1000 -> 9.231769764 | K19: =SUMIF(Obec_Grid!$B:$B,$A19,Obec_Grid!G:G)/$C19 -> 961.1941377 | L19: =SUMIF(Obec_Grid!$B:$B,$A19,Obec_Grid!H:H)/$C19 -> 5.977749781 | M19: =SUMIF(Obec_Grid!$B:$B,$A19,Obec_Grid!I:I)/$C19*1000 -> 1.995494176 | N19: =SUMIF(Obec_Grid!$B:$B,$A19,Obec_Grid!J:J)/$C19 -> 0.1050460052 | O19: =SUMIF(Obec_Grid!$B:$B,$A19,Obec_Grid!K:K)/$C19 -> 0.4447299222 | P19: =SUMIF(Obec_Grid!$B:$B,$A19,Obec_Grid!L:L)/$C19 -> 0.01378349718 | Q19: =SUMIF(Obec_Grid!$B:$B,$A19,Obec_Grid!M:M)/$C19 -> 0.08628879887
A20: 529338 | B20: =SUMIF(Obec_Grid!B:B,A20,Obec_Grid!D:D) -> 20864 | C20: =SUMIF(Obec_Grid!B:B,A20,Obec_Grid!E:E) -> 18.67497541 | D20: =F20*Pomocný!$C$14+G20*Pomocný!$C$12+H20*Pomocný!$C$15+I20*Pomocný!$C$13 -> 0.1767982429 | E20: 0.2760123553 | F20: 0.05756531701 | G20: 0.5841904313 | H20: 0.03289364603 | I20: 0.03254357721 | J20: =SUMIF(Obec_Grid!$B:$B,$A20,Obec_Grid!F:F)/$C20*1000 -> 6.719471006 | K20: =SUMIF(Obec_Grid!$B:$B,$A20,Obec_Grid!G:G)/$C20 -> 508.3779555 | L20: =SUMIF(Obec_Grid!$B:$B,$A20,Obec_Grid!H:H)/$C20 -> 18.50520517 | M20: =SUMIF(Obec_Grid!$B:$B,$A20,Obec_Grid!I:I)/$C20*1000 -> 5.100699954 | N20: =SUMIF(Obec_Grid!$B:$B,$A20,Obec_Grid!J:J)/$C20 -> 0.05112292918 | O20: =SUMIF(Obec_Grid!$B:$B,$A20,Obec_Grid!K:K)/$C20 -> 0.3169669114 | P20: =SUMIF(Obec_Grid!$B:$B,$A20,Obec_Grid!L:L)/$C20 -> 0.05729018484 | Q20: =SUMIF(Obec_Grid!$B:$B,$A20,Obec_Grid!M:M)/$C20 -> 0.07412283094
A21: 529419 | B21: =SUMIF(Obec_Grid!B:B,A21,Obec_Grid!D:D) -> 7757 | C21: =SUMIF(Obec_Grid!B:B,A21,Obec_Grid!E:E) -> 12.77548692 | D21: =F21*Pomocný!$C$14+G21*Pomocný!$C$12+H21*Pomocný!$C$15+I21*Pomocný!$C$13 -> 0.2582919923 | E21: 0.4032617523 | F21: 0.01526576327 | G21: 0.8611601082 | H21: 0 | I21: 0.1567420977 | J21: =SUMIF(Obec_Grid!$B:$B,$A21,Obec_Grid!F:F)/$C21*1000 -> 1.847102087 | K21: =SUMIF(Obec_Grid!$B:$B,$A21,Obec_Grid!G:G)/$C21 -> 174.2099021 | L21: =SUMIF(Obec_Grid!$B:$B,$A21,Obec_Grid!H:H)/$C21 -> 0 | M21: =SUMIF(Obec_Grid!$B:$B,$A21,Obec_Grid!I:I)/$C21*1000 -> 24.35357268 | N21: =SUMIF(Obec_Grid!$B:$B,$A21,Obec_Grid!J:J)/$C21 -> 0.06558950077 | O21: =SUMIF(Obec_Grid!$B:$B,$A21,Obec_Grid!K:K)/$C21 -> 0.196307735 | P21: =SUMIF(Obec_Grid!$B:$B,$A21,Obec_Grid!L:L)/$C21 -> 0 | Q21: =SUMIF(Obec_Grid!$B:$B,$A21,Obec_Grid!M:M)/$C21 -> 0.3138355543
A22: 599093 | B22: =SUMIF(Obec_Grid!B:B,A22,Obec_Grid!D:D) -> 3058 | C22: =SUMIF(Obec_Grid!B:B,A22,Obec_Grid!E:E) -> 17.71508662 | D22: =F22*Pomocný!$C$14+G22*Pomocný!$C$12+H22*Pomocný!$C$15+I22*Pomocný!$C$13 -> 0.3102333646 | E22: 0.4843662339 | F22: 0.1567701958 | G22: 0.9529325611 | H22: 0.05855988652 | I22: 0.07267081489 | J22: =SUMIF(Obec_Grid!$B:$B,$A22,Obec_Grid!F:F)/$C22*1000 -> 18.14660736 | K22: =SUMIF(Obec_Grid!$B:$B,$A22,Obec_Grid!G:G)/$C22 -> 63.48506644 | L22: =SUMIF(Obec_Grid!$B:$B,$A22,Obec_Grid!H:H)/$C22 -> 32.94443899 | M22: =SUMIF(Obec_Grid!$B:$B,$A22,Obec_Grid!I:I)/$C22*1000 -> 11.32110094 | N22: =SUMIF(Obec_Grid!$B:$B,$A22,Obec_Grid!J:J)/$C22 -> 0.1061789003 | O22: =SUMIF(Obec_Grid!$B:$B,$A22,Obec_Grid!K:K)/$C22 -> 0.2924538537 | P22: =SUMIF(Obec_Grid!$B:$B,$A22,Obec_Grid!L:L)/$C22 -> 0.06741161014 | Q22: =SUMIF(Obec_Grid!$B:$B,$A22,Obec_Grid!M:M)/$C22 -> 0.06588455149
A23: 529443 | B23: =SUMIF(Obec_Grid!B:B,A23,Obec_Grid!D:D) -> 2360 | C23: =SUMIF(Obec_Grid!B:B,A23,Obec_Grid!E:E) -> 15 | D23: =F23*Pomocný!$C$14+G23*Pomocný!$C$12+H23*Pomocný!$C$15+I23*Pomocný!$C$13 -> 0.3592187856 | E23: 0.5608551098 | F23: 0.01191817874 | G23: 0.9699304755 | H23: 0.4448799296 | I23: 0.01014655843 | J23: =SUMIF(Obec_Grid!$B:$B,$A23,Obec_Grid!F:F)/$C23*1000 -> 1.461503058 | K23: =SUMIF(Obec_Grid!$B:$B,$A23,Obec_Grid!G:G)/$C23 -> 42.97682871 | L23: =SUMIF(Obec_Grid!$B:$B,$A23,Obec_Grid!H:H)/$C23 -> 250.2791684 | M23: =SUMIF(Obec_Grid!$B:$B,$A23,Obec_Grid!I:I)/$C23*1000 -> 1.628782976 | N23: =SUMIF(Obec_Grid!$B:$B,$A23,Obec_Grid!J:J)/$C23 -> 0.05838810553 | O23: =SUMIF(Obec_Grid!$B:$B,$A23,Obec_Grid!K:K)/$C23 -> 0.1182578805 | P23: =SUMIF(Obec_Grid!$B:$B,$A23,Obec_Grid!L:L)/$C23 -> 0.2780781285 | Q23: =SUMIF(Obec_Grid!$B:$B,$A23,Obec_Grid!M:M)/$C23 -> 0.01739356693
A24: 599913 | B24: =SUMIF(Obec_Grid!B:B,A24,Obec_Grid!D:D) -> 1768 | C24: =SUMIF(Obec_Grid!B:B,A24,Obec_Grid!E:E) -> 12.90552132 | D24: =F24*Pomocný!$C$14+G24*Pomocný!$C$12+H24*Pomocný!$C$15+I24*Pomocný!$C$13 -> 0.4236380958 | E24: 0.661443418 | F24: 0.2149274916 | G24: 0.9750047544 | H24: 0.01343871616 | I24: 0.4911814211 | J24: =SUMIF(Obec_Grid!$B:$B,$A24,Obec_Grid!F:F)/$C24*1000 -> 24.84558584 | K24: =SUMIF(Obec_Grid!$B:$B,$A24,Obec_Grid!G:G)/$C24 -> 36.85463543 | L24: =SUMIF(Obec_Grid!$B:$B,$A24,Obec_Grid!H:H)/$C24 -> 7.560311179 | M24: =SUMIF(Obec_Grid!$B:$B,$A24,Obec_Grid!I:I)/$C24*1000 -> 76.19732816 | N24: =SUMIF(Obec_Grid!$B:$B,$A24,Obec_Grid!J:J)/$C24 -> 0.1581446092 | O24: =SUMIF(Obec_Grid!$B:$B,$A24,Obec_Grid!K:K)/$C24 -> 0.1567139373 | P24: =SUMIF(Obec_Grid!$B:$B,$A24,Obec_Grid!L:L)/$C24 -> 0.06084741755 | Q24: =SUMIF(Obec_Grid!$B:$B,$A24,Obec_Grid!M:M)/$C24 -> 0.2535179931
A25: 517917 | B25: =SUMIF(Obec_Grid!B:B,A25,Obec_Grid!D:D) -> 5763 | C25: =SUMIF(Obec_Grid!B:B,A25,Obec_Grid!E:E) -> 16 | D25: =F25*Pomocný!$C$14+G25*Pomocný!$C$12+H25*Pomocný!$C$15+I25*Pomocný!$C$13 -> 0.2531941951 | E25: 0.3953017354 | F25: 0.08374179623 | G25: 0.915895718 | H25: 0.003852156103 | I25: 0.009287110173 | J25: =SUMIF(Obec_Grid!$B:$B,$A25,Obec_Grid!F:F)/$C25*1000 -> 9.734667444 | K25: =SUMIF(Obec_Grid!$B:$B,$A25,Obec_Grid!G:G)/$C25 -> 108.170571 | L25: =SUMIF(Obec_Grid!$B:$B,$A25,Obec_Grid!H:H)/$C25 -> 2.16713401 | M25: =SUMIF(Obec_Grid!$B:$B,$A25,Obec_Grid!I:I)/$C25*1000 -> 1.49555395 | N25: =SUMIF(Obec_Grid!$B:$B,$A25,Obec_Grid!J:J)/$C25 -> 0.2529743237 | O25: =SUMIF(Obec_Grid!$B:$B,$A25,Obec_Grid!K:K)/$C25 -> 0.187029491 | P25: =SUMIF(Obec_Grid!$B:$B,$A25,Obec_Grid!L:L)/$C25 -> 0.009428726076 | Q25: =SUMIF(Obec_Grid!$B:$B,$A25,Obec_Grid!M:M)/$C25 -> 0.03384119483
A26: 504017 | B26: =SUMIF(Obec_Grid!B:B,A26,Obec_Grid!D:D) -> 5308 | C26: =SUMIF(Obec_Grid!B:B,A26,Obec_Grid!E:E) -> 19 | D26: =F26*Pomocný!$C$14+G26*Pomocný!$C$12+H26*Pomocný!$C$15+I26*Pomocný!$C$13 -> 0.256758622 | E26: 0.4008674527 | F26: 0.04649757617 | G26: 0.9328723101 | H26: 0.009558743976 | I26: 0.03810585761 | J26: =SUMIF(Obec_Grid!$B:$B,$A26,Obec_Grid!F:F)/$C26*1000 -> 5.444608467 | K26: =SUMIF(Obec_Grid!$B:$B,$A26,Obec_Grid!G:G)/$C26 -> 87.68805894 | L26: =SUMIF(Obec_Grid!$B:$B,$A26,Obec_Grid!H:H)/$C26 -> 5.377528483 | M26: =SUMIF(Obec_Grid!$B:$B,$A26,Obec_Grid!I:I)/$C26*1000 -> 5.962947557 | N26: =SUMIF(Obec_Grid!$B:$B,$A26,Obec_Grid!J:J)/$C26 -> 0.1275162029 | O26: =SUMIF(Obec_Grid!$B:$B,$A26,Obec_Grid!K:K)/$C26 -> 0.2308159946 | P26: =SUMIF(Obec_Grid!$B:$B,$A26,Obec_Grid!L:L)/$C26 -> 0.06188314752 | Q26: =SUMIF(Obec_Grid!$B:$B,$A26,Obec_Grid!M:M)/$C26 -> 0.03254829171
A27: 503177 | B27: =SUMIF(Obec_Grid!B:B,A27,Obec_Grid!D:D) -> 4598 | C27: =SUMIF(Obec_Grid!B:B,A27,Obec_Grid!E:E) -> 19 | D27: =F27*Pomocný!$C$14+G27*Pomocný!$C$12+H27*Pomocný!$C$15+I27*Pomocný!$C$13 -> 0.2589120203 | E27: 0.4042299025 | F27: 0.02741282626 | G27: 0.9441165198 | H27: 0.01686743184 | I27: 0.04725130341 | J27: =SUMIF(Obec_Grid!$B:$B,$A27,Obec_Grid!F:F)/$C27*1000 -> 3.246288767 | K27: =SUMIF(Obec_Grid!$B:$B,$A27,Obec_Grid!G:G)/$C27 -> 74.12175191 | L27: =SUMIF(Obec_Grid!$B:$B,$A27,Obec_Grid!H:H)/$C27 -> 9.489227391 | M27: =SUMIF(Obec_Grid!$B:$B,$A27,Obec_Grid!I:I)/$C27*1000 -> 7.380646441 | N27: =SUMIF(Obec_Grid!$B:$B,$A27,Obec_Grid!J:J)/$C27 -> 0.1128968966 | O27: =SUMIF(Obec_Grid!$B:$B,$A27,Obec_Grid!K:K)/$C27 -> 0.222783847 | P27: =SUMIF(Obec_Grid!$B:$B,$A27,Obec_Grid!L:L)/$C27 -> 0.09164167107 | Q27: =SUMIF(Obec_Grid!$B:$B,$A27,Obec_Grid!M:M)/$C27 -> 0.04986424257
A28: 523089 | B28: =SUMIF(Obec_Grid!B:B,A28,Obec_Grid!D:D) -> 5925 | C28: =SUMIF(Obec_Grid!B:B,A28,Obec_Grid!E:E) -> 18 | D28: =F28*Pomocný!$C$14+G28*Pomocný!$C$12+H28*Pomocný!$C$15+I28*Pomocný!$C$13 -> 0.2518216674 | E28: 0.3931585855 | F28: 0.03046359049 | G28: 0.9094417809 | H28: 0.03638641412 | I28: 0.03099488423 | J28: =SUMIF(Obec_Grid!$B:$B,$A28,Obec_Grid!F:F)/$C28*1000 -> 3.597697883 | K28: =SUMIF(Obec_Grid!$B:$B,$A28,Obec_Grid!G:G)/$C28 -> 115.9573425 | L28: =SUMIF(Obec_Grid!$B:$B,$A28,Obec_Grid!H:H)/$C28 -> 20.47015579 | M28: =SUMIF(Obec_Grid!$B:$B,$A28,Obec_Grid!I:I)/$C28*1000 -> 4.86062633 | N28: =SUMIF(Obec_Grid!$B:$B,$A28,Obec_Grid!J:J)/$C28 -> 0.1352983457 | O28: =SUMIF(Obec_Grid!$B:$B,$A28,Obec_Grid!K:K)/$C28 -> 0.2071532265 | P28: =SUMIF(Obec_Grid!$B:$B,$A28,Obec_Grid!L:L)/$C28 -> 0.1433842667 | Q28: =SUMIF(Obec_Grid!$B:$B,$A28,Obec_Grid!M:M)/$C28 -> 0.04812776516
A29: 504378 | B29: =SUMIF(Obec_Grid!B:B,A29,Obec_Grid!D:D) -> 10501 | C29: =SUMIF(Obec_Grid!B:B,A29,Obec_Grid!E:E) -> 23 | D29: =F29*Pomocný!$C$14+G29*Pomocný!$C$12+H29*Pomocný!$C$15+I29*Pomocný!$C$13 -> 0.2238808126 | E29: 0.349530001 | F29: 0.01558558898 | G29: 0.8514970095 | H29: 0.01770811217 | I29: 0.01073253963 | J29: =SUMIF(Obec_Grid!$B:$B,$A29,Obec_Grid!F:F)/$C29*1000 -> 1.883941929 | K29: =SUMIF(Obec_Grid!$B:$B,$A29,Obec_Grid!G:G)/$C29 -> 185.868575 | L29: =SUMIF(Obec_Grid!$B:$B,$A29,Obec_Grid!H:H)/$C29 -> 9.962174716 | M29: =SUMIF(Obec_Grid!$B:$B,$A29,Obec_Grid!I:I)/$C29*1000 -> 1.71961998 | N29: =SUMIF(Obec_Grid!$B:$B,$A29,Obec_Grid!J:J)/$C29 -> 0.09737636446 | O29: =SUMIF(Obec_Grid!$B:$B,$A29,Obec_Grid!K:K)/$C29 -> 0.2613327186 | P29: =SUMIF(Obec_Grid!$B:$B,$A29,Obec_Grid!L:L)/$C29 -> 0.06919722206 | Q29: =SUMIF(Obec_Grid!$B:$B,$A29,Obec_Grid!M:M)/$C29 -> 0.03604634624
A30: 523925 | B30: =SUMIF(Obec_Grid!B:B,A30,Obec_Grid!D:D) -> 7941 | C30: =SUMIF(Obec_Grid!B:B,A30,Obec_Grid!E:E) -> 18 | D30: =F30*Pomocný!$C$14+G30*Pomocný!$C$12+H30*Pomocný!$C$15+I30*Pomocný!$C$13 -> 0.2815081574 | E30: 0.439512913 | F30: 0.0087423854 | G30: 0.9048309875 | H30: 0.0995427789 | I30: 0.1129164778 | J30: =SUMIF(Obec_Grid!$B:$B,$A30,Obec_Grid!F:F)/$C30*1000 -> 1.095692184 | K30: =SUMIF(Obec_Grid!$B:$B,$A30,Obec_Grid!G:G)/$C30 -> 121.5203336 | L30: =SUMIF(Obec_Grid!$B:$B,$A30,Obec_Grid!H:H)/$C30 -> 56.00046723 | M30: =SUMIF(Obec_Grid!$B:$B,$A30,Obec_Grid!I:I)/$C30*1000 -> 17.55985984 | N30: =SUMIF(Obec_Grid!$B:$B,$A30,Obec_Grid!J:J)/$C30 -> 0.05947851612 | O30: =SUMIF(Obec_Grid!$B:$B,$A30,Obec_Grid!K:K)/$C30 -> 0.1505047925 | P30: =SUMIF(Obec_Grid!$B:$B,$A30,Obec_Grid!L:L)/$C30 -> 0.1632488653 | Q30: =SUMIF(Obec_Grid!$B:$B,$A30,Obec_Grid!M:M)/$C30 -> 0.2235367918
A31: 598216 | B31: =SUMIF(Obec_Grid!B:B,A31,Obec_Grid!D:D) -> 2190 | C31: =SUMIF(Obec_Grid!B:B,A31,Obec_Grid!E:E) -> 14.67643231 | D31: =F31*Pomocný!$C$14+G31*Pomocný!$C$12+H31*Pomocný!$C$15+I31*Pomocný!$C$13 -> 0.3782399495 | E31: 0.5905559354 | F31: 0.04295589884 | G31: 0.9718577138 | H31: 0.004447447937 | I31: 0.4936987375 | J31: =SUMIF(Obec_Grid!$B:$B,$A31,Obec_Grid!F:F)/$C31*1000 -> 5.036652425 | K31: =SUMIF(Obec_Grid!$B:$B,$A31,Obec_Grid!G:G)/$C31 -> 40.65158689 | L31: =SUMIF(Obec_Grid!$B:$B,$A31,Obec_Grid!H:H)/$C31 -> 2.50203144 | M31: =SUMIF(Obec_Grid!$B:$B,$A31,Obec_Grid!I:I)/$C31*1000 -> 76.5875548 | N31: =SUMIF(Obec_Grid!$B:$B,$A31,Obec_Grid!J:J)/$C31 -> 0.1257994643 | O31: =SUMIF(Obec_Grid!$B:$B,$A31,Obec_Grid!K:K)/$C31 -> 0.1061388558 | P31: =SUMIF(Obec_Grid!$B:$B,$A31,Obec_Grid!L:L)/$C31 -> 0.01102082503 | Q31: =SUMIF(Obec_Grid!$B:$B,$A31,Obec_Grid!M:M)/$C31 -> 0.4484353441
A32: 523623 | B32: =SUMIF(Obec_Grid!B:B,A32,Obec_Grid!D:D) -> 5321 | C32: =SUMIF(Obec_Grid!B:B,A32,Obec_Grid!E:E) -> 16 | D32: =F32*Pomocný!$C$14+G32*Pomocný!$C$12+H32*Pomocný!$C$15+I32*Pomocný!$C$13 -> 0.3023963915 | E32: 0.4721290979 | F32: 0.2055121527 | G32: 0.9392620993 | H32: 0 | I32: 0.06481131411 | J32: =SUMIF(Obec_Grid!$B:$B,$A32,Obec_Grid!F:F)/$C32*1000 -> 23.76105892 | K32: =SUMIF(Obec_Grid!$B:$B,$A32,Obec_Grid!G:G)/$C32 -> 79.97868281 | L32: =SUMIF(Obec_Grid!$B:$B,$A32,Obec_Grid!H:H)/$C32 -> 0 | M32: =SUMIF(Obec_Grid!$B:$B,$A32,Obec_Grid!I:I)/$C32*1000 -> 10.1027453 | N32: =SUMIF(Obec_Grid!$B:$B,$A32,Obec_Grid!J:J)/$C32 -> 0.3543880359 | O32: =SUMIF(Obec_Grid!$B:$B,$A32,Obec_Grid!K:K)/$C32 -> 0.1151272374 | P32: =SUMIF(Obec_Grid!$B:$B,$A32,Obec_Grid!L:L)/$C32 -> 0 | Q32: =SUMIF(Obec_Grid!$B:$B,$A32,Obec_Grid!M:M)/$C32 -> 0.1490317909
A33: 508250 | B33: =SUMIF(Obec_Grid!B:B,A33,Obec_Grid!D:D) -> 4941 | C33: =SUMIF(Obec_Grid!B:B,A33,Obec_Grid!E:E) -> 19.98473282 | D33: =F33*Pomocný!$C$14+G33*Pomocný!$C$12+H33*Pomocný!$C$15+I33*Pomocný!$C$13 -> 0.25508026 | E33: 0.3982467542 | F33: 0.01385695646 | G33: 0.953243641 | H33: 0.0004393325975 | I33: 0.05278110993 | J33: =SUMIF(Obec_Grid!$B:$B,$A33,Obec_Grid!F:F)/$C33*1000 -> 1.684825516 | K33: =SUMIF(Obec_Grid!$B:$B,$A33,Obec_Grid!G:G)/$C33 -> 63.10974389 | L33: =SUMIF(Obec_Grid!$B:$B,$A33,Obec_Grid!H:H)/$C33 -> 0.2471583675 | M33: =SUMIF(Obec_Grid!$B:$B,$A33,Obec_Grid!I:I)/$C33*1000 -> 8.237860044 | N33: =SUMIF(Obec_Grid!$B:$B,$A33,Obec_Grid!J:J)/$C33 -> 0.2399968094 | O33: =SUMIF(Obec_Grid!$B:$B,$A33,Obec_Grid!K:K)/$C33 -> 0.1746745002 | P33: =SUMIF(Obec_Grid!$B:$B,$A33,Obec_Grid!L:L)/$C33 -> 0.003263795969 | Q33: =SUMIF(Obec_Grid!$B:$B,$A33,Obec_Grid!M:M)/$C33 -> 0.05883684817
A34: 521299 | B34: =SUMIF(Obec_Grid!B:B,A34,Obec_Grid!D:D) -> 5450 | C34: =SUMIF(Obec_Grid!B:B,A34,Obec_Grid!E:E) -> 20 | D34: =F34*Pomocný!$C$14+G34*Pomocný!$C$12+H34*Pomocný!$C$15+I34*Pomocný!$C$13 -> 0.3448090987 | E34: 0.5383549306 | F34: 0.07693604337 | G34: 0.9226888894 | H34: 0.3701773085 | I34: 0.009434153412 | J34: =SUMIF(Obec_Grid!$B:$B,$A34,Obec_Grid!F:F)/$C34*1000 -> 8.950731545 | K34: =SUMIF(Obec_Grid!$B:$B,$A34,Obec_Grid!G:G)/$C34 -> 99.9745082 | L34: =SUMIF(Obec_Grid!$B:$B,$A34,Obec_Grid!H:H)/$C34 -> 208.2531999 | M34: =SUMIF(Obec_Grid!$B:$B,$A34,Obec_Grid!I:I)/$C34*1000 -> 1.518348141 | N34: =SUMIF(Obec_Grid!$B:$B,$A34,Obec_Grid!J:J)/$C34 -> 0.1057801416 | O34: =SUMIF(Obec_Grid!$B:$B,$A34,Obec_Grid!K:K)/$C34 -> 0.21781301 | P34: =SUMIF(Obec_Grid!$B:$B,$A34,Obec_Grid!L:L)/$C34 -> 0.6476745726 | Q34: =SUMIF(Obec_Grid!$B:$B,$A34,Obec_Grid!M:M)/$C34 -> 0.02074358586
A35: 529494 | B35: =SUMIF(Obec_Grid!B:B,A35,Obec_Grid!D:D) -> 4080 | C35: =SUMIF(Obec_Grid!B:B,A35,Obec_Grid!E:E) -> 20 | D35: =F35*Pomocný!$C$14+G35*Pomocný!$C$12+H35*Pomocný!$C$15+I35*Pomocný!$C$13 -> 0.2658993979 | E35: =(D35-MIN($D$3:$D$174))/(MAX($D$3:$D$174)-MIN($D$3:$D$174)) -> 0.4151404274 | F35: =(J35-MIN(J$3:J$174))/(MAX(J$3:J$174)-MIN(J$3:J$174)) -> 0.01747370458 | G35: 0.9575198993 | H35: =(L35-MIN(L$3:L$174))/(MAX(L$3:L$174)-MIN(L$3:L$174)) -> 0.06515827074 | I35: =(M35-MIN(M$3:M$174))/(MAX(M$3:M$174)-MIN(M$3:M$174)) -> 0.02344571705 | J35: =SUMIF(Obec_Grid!$B:$B,$A35,Obec_Grid!F:F)/$C35*1000 -> 2.101428757 | K35: =SUMIF(Obec_Grid!$B:$B,$A35,Obec_Grid!G:G)/$C35 -> 57.95037436 | L35: =SUMIF(Obec_Grid!$B:$B,$A35,Obec_Grid!H:H)/$C35 -> 36.65653747 | M35: =SUMIF(Obec_Grid!$B:$B,$A35,Obec_Grid!I:I)/$C35*1000 -> 3.69037765 | N35: =SUMIF(Obec_Grid!$B:$B,$A35,Obec_Grid!J:J)/$C35 -> 0.06411718221 | O35: =SUMIF(Obec_Grid!$B:$B,$A35,Obec_Grid!K:K)/$C35 -> 0.1365239789 | P35: =SUMIF(Obec_Grid!$B:$B,$A35,Obec_Grid!L:L)/$C35 -> 0.1453470354 | Q35: =SUMIF(Obec_Grid!$B:$B,$A35,Obec_Grid!M:M)/$C35 -> 0.1620701873
A36: 523828 | B36: =SUMIF(Obec_Grid!B:B,A36,Obec_Grid!D:D) -> 6770 | C36: =SUMIF(Obec_Grid!B:B,A36,Obec_Grid!E:E) -> 21 | D36: =F36*Pomocný!$C$14+G36*Pomocný!$C$12+H36*Pomocný!$C$15+I36*Pomocný!$C$13 -> 0.2749936408 | E36: 0.4293407425 | F36: 0.1115608839 | G36: 0.9081918127 | H36: 0.001534473681 | I36: 0.07868739282 | J36: =SUMIF(Obec_Grid!$B:$B,$A36,Obec_Grid!F:F)/$C36*1000 -> 12.93907141 | K36: =SUMIF(Obec_Grid!$B:$B,$A36,Obec_Grid!G:G)/$C36 -> 117.4654478 | L36: =SUMIF(Obec_Grid!$B:$B,$A36,Obec_Grid!H:H)/$C36 -> 0.8632594354 | M36: =SUMIF(Obec_Grid!$B:$B,$A36,Obec_Grid!I:I)/$C36*1000 -> 12.25377235 | N36: =SUMIF(Obec_Grid!$B:$B,$A36,Obec_Grid!J:J)/$C36 -> 0.2204090565 | O36: =SUMIF(Obec_Grid!$B:$B,$A36,Obec_Grid!K:K)/$C36 -> 0.160081055 | P36: =SUMIF(Obec_Grid!$B:$B,$A36,Obec_Grid!L:L)/$C36 -> 0.01354467907 | Q36: =SUMIF(Obec_Grid!$B:$B,$A36,Obec_Grid!M:M)/$C36 -> 0.03929496816
A37: 510114 | B37: =SUMIF(Obec_Grid!B:B,A37,Obec_Grid!D:D) -> 4240 | C37: =SUMIF(Obec_Grid!B:B,A37,Obec_Grid!E:E) -> 19 | D37: =F37*Pomocný!$C$14+G37*Pomocný!$C$12+H37*Pomocný!$C$15+I37*Pomocný!$C$13 -> 0.2638052316 | E37: 0.4118704663 | F37: 0.04734842747 | G37: 0.9595951101 | H37: 0.03090178193 | I37: 0.01737560703 | J37: =SUMIF(Obec_Grid!$B:$B,$A37,Obec_Grid!F:F)/$C37*1000 -> 5.542615681 | K37: =SUMIF(Obec_Grid!$B:$B,$A37,Obec_Grid!G:G)/$C37 -> 55.44660146 | L37: =SUMIF(Obec_Grid!$B:$B,$A37,Obec_Grid!H:H)/$C37 -> 17.38462845 | M37: =SUMIF(Obec_Grid!$B:$B,$A37,Obec_Grid!I:I)/$C37*1000 -> 2.74940786 | N37: =SUMIF(Obec_Grid!$B:$B,$A37,Obec_Grid!J:J)/$C37 -> 0.2237336782 | O37: =SUMIF(Obec_Grid!$B:$B,$A37,Obec_Grid!K:K)/$C37 -> 0.1675924793 | P37: =SUMIF(Obec_Grid!$B:$B,$A37,Obec_Grid!L:L)/$C37 -> 0.2927669703 | Q37: =SUMIF(Obec_Grid!$B:$B,$A37,Obec_Grid!M:M)/$C37 -> 0.06976349531
A38: 527106 | B38: =SUMIF(Obec_Grid!B:B,A38,Obec_Grid!D:D) -> 10636 | C38: =SUMIF(Obec_Grid!B:B,A38,Obec_Grid!E:E) -> 19 | D38: =F38*Pomocný!$C$14+G38*Pomocný!$C$12+H38*Pomocný!$C$15+I38*Pomocný!$C$13 -> 0.2503168718 | E38: 0.3908089042 | F38: 0.09378395626 | G38: 0.8153178133 | H38: 0.008673541178 | I38: 0.08349217638 | J38: =SUMIF(Obec_Grid!$B:$B,$A38,Obec_Grid!F:F)/$C38*1000 -> 10.89139616 | K38: =SUMIF(Obec_Grid!$B:$B,$A38,Obec_Grid!G:G)/$C38 -> 229.5193158 | L38: =SUMIF(Obec_Grid!$B:$B,$A38,Obec_Grid!H:H)/$C38 -> 4.879533843 | M38: =SUMIF(Obec_Grid!$B:$B,$A38,Obec_Grid!I:I)/$C38*1000 -> 12.99859513 | N38: =SUMIF(Obec_Grid!$B:$B,$A38,Obec_Grid!J:J)/$C38 -> 0.2216621146 | O38: =SUMIF(Obec_Grid!$B:$B,$A38,Obec_Grid!K:K)/$C38 -> 0.2275279037 | P38: =SUMIF(Obec_Grid!$B:$B,$A38,Obec_Grid!L:L)/$C38 -> 0.08132575961 | Q38: =SUMIF(Obec_Grid!$B:$B,$A38,Obec_Grid!M:M)/$C38 -> 0.2073754887
A39: 507750 | B39: =SUMIF(Obec_Grid!B:B,A39,Obec_Grid!D:D) -> 5573 | C39: =SUMIF(Obec_Grid!B:B,A39,Obec_Grid!E:E) -> 22 | D39: =F39*Pomocný!$C$14+G39*Pomocný!$C$12+H39*Pomocný!$C$15+I39*Pomocný!$C$13 -> 0.2649902736 | E39: 0.4137208643 | F39: 0.09368131129 | G39: 0.9269848108 | H39: 0.01880536888 | I39: 0.02048960335 | J39: =SUMIF(Obec_Grid!$B:$B,$A39,Obec_Grid!F:F)/$C39*1000 -> 10.87957277 | K39: =SUMIF(Obec_Grid!$B:$B,$A39,Obec_Grid!G:G)/$C39 -> 94.79141486 | L39: =SUMIF(Obec_Grid!$B:$B,$A39,Obec_Grid!H:H)/$C39 -> 10.57946599 | M39: =SUMIF(Obec_Grid!$B:$B,$A39,Obec_Grid!I:I)/$C39*1000 -> 3.232129993 | N39: =SUMIF(Obec_Grid!$B:$B,$A39,Obec_Grid!J:J)/$C39 -> 0.1967695097 | O39: =SUMIF(Obec_Grid!$B:$B,$A39,Obec_Grid!K:K)/$C39 -> 0.1625662902 | P39: =SUMIF(Obec_Grid!$B:$B,$A39,Obec_Grid!L:L)/$C39 -> 0.04901323438 | Q39: =SUMIF(Obec_Grid!$B:$B,$A39,Obec_Grid!M:M)/$C39 -> 0.02836150557
A40: 543853 | B40: =SUMIF(Obec_Grid!B:B,A40,Obec_Grid!D:D) -> 8854 | C40: =SUMIF(Obec_Grid!B:B,A40,Obec_Grid!E:E) -> 21 | D40: =F40*Pomocný!$C$14+G40*Pomocný!$C$12+H40*Pomocný!$C$15+I40*Pomocný!$C$13 -> 0.2424511597 | E40: 0.3785268933 | F40: 0.01929878415 | G40: 0.893117666 | H40: 0.03559493159 | I40: 0.02179325708 | J40: =SUMIF(Obec_Grid!$B:$B,$A40,Obec_Grid!F:F)/$C40*1000 -> 2.311654638 | K40: =SUMIF(Obec_Grid!$B:$B,$A40,Obec_Grid!G:G)/$C40 -> 135.6526311 | L40: =SUMIF(Obec_Grid!$B:$B,$A40,Obec_Grid!H:H)/$C40 -> 20.024886 | M40: =SUMIF(Obec_Grid!$B:$B,$A40,Obec_Grid!I:I)/$C40*1000 -> 3.434218385 | N40: =SUMIF(Obec_Grid!$B:$B,$A40,Obec_Grid!J:J)/$C40 -> 0.1205326838 | O40: =SUMIF(Obec_Grid!$B:$B,$A40,Obec_Grid!K:K)/$C40 -> 0.1840930984 | P40: =SUMIF(Obec_Grid!$B:$B,$A40,Obec_Grid!L:L)/$C40 -> 0.317964851 | Q40: =SUMIF(Obec_Grid!$B:$B,$A40,Obec_Grid!M:M)/$C40 -> 0.08936944469
A41: 513440 | B41: =SUMIF(Obec_Grid!B:B,A41,Obec_Grid!D:D) -> 11028 | C41: =SUMIF(Obec_Grid!B:B,A41,Obec_Grid!E:E) -> 21 | D41: =F41*Pomocný!$C$14+G41*Pomocný!$C$12+H41*Pomocný!$C$15+I41*Pomocný!$C$13 -> 0.2507820194 | E41: 0.3915352147 | F41: 0.0674344495 | G41: 0.876558851 | H41: 0.04242843371 | I41: 0.01670634359 | J41: =SUMIF(Obec_Grid!$B:$B,$A41,Obec_Grid!F:F)/$C41*1000 -> 7.856269155 | K41: =SUMIF(Obec_Grid!$B:$B,$A41,Obec_Grid!G:G)/$C41 -> 155.6310888 | L41: =SUMIF(Obec_Grid!$B:$B,$A41,Obec_Grid!H:H)/$C41 -> 23.86925639 | M41: =SUMIF(Obec_Grid!$B:$B,$A41,Obec_Grid!I:I)/$C41*1000 -> 2.645660699 | N41: =SUMIF(Obec_Grid!$B:$B,$A41,Obec_Grid!J:J)/$C41 -> 0.1727364205 | O41: =SUMIF(Obec_Grid!$B:$B,$A41,Obec_Grid!K:K)/$C41 -> 0.1637025829 | P41: =SUMIF(Obec_Grid!$B:$B,$A41,Obec_Grid!L:L)/$C41 -> 0.04277237975 | Q41: =SUMIF(Obec_Grid!$B:$B,$A41,Obec_Grid!M:M)/$C41 -> 0.1211548996
A42: 599794 | B42: =SUMIF(Obec_Grid!B:B,A42,Obec_Grid!D:D) -> 4578 | C42: =SUMIF(Obec_Grid!B:B,A42,Obec_Grid!E:E) -> 22.38064643 | D42: =F42*Pomocný!$C$14+G42*Pomocný!$C$12+H42*Pomocný!$C$15+I42*Pomocný!$C$13 -> 0.3267123432 | E42: 0.5100975337 | F42: 0.1412339485 | G42: 0.9469916556 | H42: 0.1965132285 | I42: 0.02211054021 | J42: =SUMIF(Obec_Grid!$B:$B,$A42,Obec_Grid!F:F)/$C42*1000 -> 16.35702988 | K42: =SUMIF(Obec_Grid!$B:$B,$A42,Obec_Grid!G:G)/$C42 -> 70.65285762 | L42: =SUMIF(Obec_Grid!$B:$B,$A42,Obec_Grid!H:H)/$C42 -> 110.5538014 | M42: =SUMIF(Obec_Grid!$B:$B,$A42,Obec_Grid!I:I)/$C42*1000 -> 3.483402641 | N42: =SUMIF(Obec_Grid!$B:$B,$A42,Obec_Grid!J:J)/$C42 -> 0.1486849653 | O42: =SUMIF(Obec_Grid!$B:$B,$A42,Obec_Grid!K:K)/$C42 -> 0.2118991287 | P42: =SUMIF(Obec_Grid!$B:$B,$A42,Obec_Grid!L:L)/$C42 -> 0.3230734238 | Q42: =SUMIF(Obec_Grid!$B:$B,$A42,Obec_Grid!M:M)/$C42 -> 0.04370716305
A43: 523585 | B43: =SUMIF(Obec_Grid!B:B,A43,Obec_Grid!D:D) -> 12315 | C43: =SUMIF(Obec_Grid!B:B,A43,Obec_Grid!E:E) -> 25 | D43: =F43*Pomocný!$C$14+G43*Pomocný!$C$12+H43*Pomocný!$C$15+I43*Pomocný!$C$13 -> 0.2701059001 | E43: 0.4217087209 | F43: 0.169877592 | G43: 0.852866927 | H43: 0.000538931774 | I43: 0.05714014937 | J43: =SUMIF(Obec_Grid!$B:$B,$A43,Obec_Grid!F:F)/$C43*1000 -> 19.65641217 | K43: =SUMIF(Obec_Grid!$B:$B,$A43,Obec_Grid!G:G)/$C43 -> 184.215749 | L43: =SUMIF(Obec_Grid!$B:$B,$A43,Obec_Grid!H:H)/$C43 -> 0.3031905627 | M43: =SUMIF(Obec_Grid!$B:$B,$A43,Obec_Grid!I:I)/$C43*1000 -> 8.913584934 | N43: =SUMIF(Obec_Grid!$B:$B,$A43,Obec_Grid!J:J)/$C43 -> 0.1891345173 | O43: =SUMIF(Obec_Grid!$B:$B,$A43,Obec_Grid!K:K)/$C43 -> 0.2611397248 | P43: =SUMIF(Obec_Grid!$B:$B,$A43,Obec_Grid!L:L)/$C43 -> 0.01805854375 | Q43: =SUMIF(Obec_Grid!$B:$B,$A43,Obec_Grid!M:M)/$C43 -> 0.05694319511
A44: 521698 | B44: =SUMIF(Obec_Grid!B:B,A44,Obec_Grid!D:D) -> 10106 | C44: =SUMIF(Obec_Grid!B:B,A44,Obec_Grid!E:E) -> 21 | D44: =F44*Pomocný!$C$14+G44*Pomocný!$C$12+H44*Pomocný!$C$15+I44*Pomocný!$C$13 -> 0.2906965392 | E44: 0.4538602225 | F44: 0.0946955902 | G44: 0.8829003493 | H44: 0.03407467421 | I44: 0.1511155431 | J44: =SUMIF(Obec_Grid!$B:$B,$A44,Obec_Grid!F:F)/$C44*1000 -> 10.99640476 | K44: =SUMIF(Obec_Grid!$B:$B,$A44,Obec_Grid!G:G)/$C44 -> 147.9799763 | L44: =SUMIF(Obec_Grid!$B:$B,$A44,Obec_Grid!H:H)/$C44 -> 19.16962433 | M44: =SUMIF(Obec_Grid!$B:$B,$A44,Obec_Grid!I:I)/$C44*1000 -> 23.48136149 | N44: =SUMIF(Obec_Grid!$B:$B,$A44,Obec_Grid!J:J)/$C44 -> 0.1923780584 | O44: =SUMIF(Obec_Grid!$B:$B,$A44,Obec_Grid!K:K)/$C44 -> 0.1994957853 | P44: =SUMIF(Obec_Grid!$B:$B,$A44,Obec_Grid!L:L)/$C44 -> 0.1503344083 | Q44: =SUMIF(Obec_Grid!$B:$B,$A44,Obec_Grid!M:M)/$C44 -> 0.1197893934
A45: 509868 | B45: =SUMIF(Obec_Grid!B:B,A45,Obec_Grid!D:D) -> 7878 | C45: =SUMIF(Obec_Grid!B:B,A45,Obec_Grid!E:E) -> 20 | D45: =F45*Pomocný!$C$14+G45*Pomocný!$C$12+H45*Pomocný!$C$15+I45*Pomocný!$C$13 -> 0.55042675 | E45: 0.85941909 | F45: 0.1010474347 | G45: 0.8904969642 | H45: 1 | I45: 0.2101626013 | J45: =SUMIF(Obec_Grid!$B:$B,$A45,Obec_Grid!F:F)/$C45*1000 -> 11.72805621 | K45: =SUMIF(Obec_Grid!$B:$B,$A45,Obec_Grid!G:G)/$C45 -> 138.814547 | L45: =SUMIF(Obec_Grid!$B:$B,$A45,Obec_Grid!H:H)/$C45 -> 562.5768925 | M45: =SUMIF(Obec_Grid!$B:$B,$A45,Obec_Grid!I:I)/$C45*1000 -> 32.63465487 | N45: =SUMIF(Obec_Grid!$B:$B,$A45,Obec_Grid!J:J)/$C45 -> 0.1326409455 | O45: =SUMIF(Obec_Grid!$B:$B,$A45,Obec_Grid!K:K)/$C45 -> 0.202404639 | P45: =SUMIF(Obec_Grid!$B:$B,$A45,Obec_Grid!L:L)/$C45 -> 0.5761975114 | Q45: =SUMIF(Obec_Grid!$B:$B,$A45,Obec_Grid!M:M)/$C45 -> 0.1160158622
A46: 507938 | B46: =SUMIF(Obec_Grid!B:B,A46,Obec_Grid!D:D) -> 7330 | C46: =SUMIF(Obec_Grid!B:B,A46,Obec_Grid!E:E) -> 25 | D46: =F46*Pomocný!$C$14+G46*Pomocný!$C$12+H46*Pomocný!$C$15+I46*Pomocný!$C$13 -> 0.2842997331 | E46: 0.4438718525 | F46: 0.08735992791 | G46: 0.9214339255 | H46: 0.0833290328 | I46: 0.04507604605 | J46: =SUMIF(Obec_Grid!$B:$B,$A46,Obec_Grid!F:F)/$C46*1000 -> 10.15143005 | K46: =SUMIF(Obec_Grid!$B:$B,$A46,Obec_Grid!G:G)/$C46 -> 101.4886409 | L46: =SUMIF(Obec_Grid!$B:$B,$A46,Obec_Grid!H:H)/$C46 -> 46.87898833 | M46: =SUMIF(Obec_Grid!$B:$B,$A46,Obec_Grid!I:I)/$C46*1000 -> 7.043444735 | N46: =SUMIF(Obec_Grid!$B:$B,$A46,Obec_Grid!J:J)/$C46 -> 0.1118152163 | O46: =SUMIF(Obec_Grid!$B:$B,$A46,Obec_Grid!K:K)/$C46 -> 0.2143550438 | P46: =SUMIF(Obec_Grid!$B:$B,$A46,Obec_Grid!L:L)/$C46 -> 0.1255494915 | Q46: =SUMIF(Obec_Grid!$B:$B,$A46,Obec_Grid!M:M)/$C46 -> 0.1221560003
A47: 529362 | B47: =SUMIF(Obec_Grid!B:B,A47,Obec_Grid!D:D) -> 6305 | C47: =SUMIF(Obec_Grid!B:B,A47,Obec_Grid!E:E) -> 26.04878049 | D47: =F47*Pomocný!$C$14+G47*Pomocný!$C$12+H47*Pomocný!$C$15+I47*Pomocný!$C$13 -> 0.3518824684 | E47: 0.5493997289 | F47: 0.1612715968 | G47: 0.9390017585 | H47: 0.1936524681 | I47: 0.1136040501 | J47: =SUMIF(Obec_Grid!$B:$B,$A47,Obec_Grid!F:F)/$C47*1000 -> 18.66511132 | K47: =SUMIF(Obec_Grid!$B:$B,$A47,Obec_Grid!G:G)/$C47 -> 80.29278783 | L47: =SUMIF(Obec_Grid!$B:$B,$A47,Obec_Grid!H:H)/$C47 -> 108.9444037 | M47: =SUMIF(Obec_Grid!$B:$B,$A47,Obec_Grid!I:I)/$C47*1000 -> 17.6664452 | N47: =SUMIF(Obec_Grid!$B:$B,$A47,Obec_Grid!J:J)/$C47 -> 0.1160740302 | O47: =SUMIF(Obec_Grid!$B:$B,$A47,Obec_Grid!K:K)/$C47 -> 0.2493446759 | P47: =SUMIF(Obec_Grid!$B:$B,$A47,Obec_Grid!L:L)/$C47 -> 0.2730124408 | Q47: =SUMIF(Obec_Grid!$B:$B,$A47,Obec_Grid!M:M)/$C47 -> 0.07288587702
A48: 560154 | B48: =SUMIF(Obec_Grid!B:B,A48,Obec_Grid!D:D) -> 9032 | C48: =SUMIF(Obec_Grid!B:B,A48,Obec_Grid!E:E) -> 21.44302431 | D48: =F48*Pomocný!$C$14+G48*Pomocný!$C$12+H48*Pomocný!$C$15+I48*Pomocný!$C$13 -> 0.3328132328 | E48: 0.5196238413 | F48: 0.1415860089 | G48: 0.903279579 | H48: 0.0005599385083 | I48: 0.2858274049 | J48: =SUMIF(Obec_Grid!$B:$B,$A48,Obec_Grid!F:F)/$C48*1000 -> 16.39758275 | K48: =SUMIF(Obec_Grid!$B:$B,$A48,Obec_Grid!G:G)/$C48 -> 123.3921312 | L48: =SUMIF(Obec_Grid!$B:$B,$A48,Obec_Grid!H:H)/$C48 -> 0.315008466 | M48: =SUMIF(Obec_Grid!$B:$B,$A48,Obec_Grid!I:I)/$C48*1000 -> 44.36398005 | N48: =SUMIF(Obec_Grid!$B:$B,$A48,Obec_Grid!J:J)/$C48 -> 0.2280540566 | O48: =SUMIF(Obec_Grid!$B:$B,$A48,Obec_Grid!K:K)/$C48 -> 0.1318199589 | P48: =SUMIF(Obec_Grid!$B:$B,$A48,Obec_Grid!L:L)/$C48 -> 0.0153467539 | Q48: =SUMIF(Obec_Grid!$B:$B,$A48,Obec_Grid!M:M)/$C48 -> 0.1903846784
A49: 557358 | B49: =SUMIF(Obec_Grid!B:B,A49,Obec_Grid!D:D) -> 7186 | C49: =SUMIF(Obec_Grid!B:B,A49,Obec_Grid!E:E) -> 22.03395429 | D49: =F49*Pomocný!$C$14+G49*Pomocný!$C$12+H49*Pomocný!$C$15+I49*Pomocný!$C$13 -> 0.2725510054 | E49: 0.4255266601 | F49: 0.05382759612 | G49: 0.9106541438 | H49: 0.0180716411 | I49: 0.1076506404 | J49: =SUMIF(Obec_Grid!$B:$B,$A49,Obec_Grid!F:F)/$C49*1000 -> 6.288933247 | K49: =SUMIF(Obec_Grid!$B:$B,$A49,Obec_Grid!G:G)/$C49 -> 114.4946085 | L49: =SUMIF(Obec_Grid!$B:$B,$A49,Obec_Grid!H:H)/$C49 -> 10.16668769 | M49: =SUMIF(Obec_Grid!$B:$B,$A49,Obec_Grid!I:I)/$C49*1000 -> 16.74356593 | N49: =SUMIF(Obec_Grid!$B:$B,$A49,Obec_Grid!J:J)/$C49 -> 0.2408807019 | O49: =SUMIF(Obec_Grid!$B:$B,$A49,Obec_Grid!K:K)/$C49 -> 0.17301977 | P49: =SUMIF(Obec_Grid!$B:$B,$A49,Obec_Grid!L:L)/$C49 -> 0.1371595338 | Q49: =SUMIF(Obec_Grid!$B:$B,$A49,Obec_Grid!M:M)/$C49 -> 0.1627655315
A50: 599841 | B50: =SUMIF(Obec_Grid!B:B,A50,Obec_Grid!D:D) -> 6152 | C50: =SUMIF(Obec_Grid!B:B,A50,Obec_Grid!E:E) -> 25 | D50: =F50*Pomocný!$C$14+G50*Pomocný!$C$12+H50*Pomocný!$C$15+I50*Pomocný!$C$13 -> 0.3038372218 | E50: 0.4743788997 | F50: 0.09771341085 | G50: 0.9432686372 | H50: 0.1259817152 | I50: 0.04838512392 | J50: =SUMIF(Obec_Grid!$B:$B,$A50,Obec_Grid!F:F)/$C50*1000 -> 11.34401919 | K50: =SUMIF(Obec_Grid!$B:$B,$A50,Obec_Grid!G:G)/$C50 -> 75.14473494 | L50: =SUMIF(Obec_Grid!$B:$B,$A50,Obec_Grid!H:H)/$C50 -> 70.87440183 | M50: =SUMIF(Obec_Grid!$B:$B,$A50,Obec_Grid!I:I)/$C50*1000 -> 7.556407811 | N50: =SUMIF(Obec_Grid!$B:$B,$A50,Obec_Grid!J:J)/$C50 -> 0.1514831528 | O50: =SUMIF(Obec_Grid!$B:$B,$A50,Obec_Grid!K:K)/$C50 -> 0.1825218457 | P50: =SUMIF(Obec_Grid!$B:$B,$A50,Obec_Grid!L:L)/$C50 -> 0.2387528347 | Q50: =SUMIF(Obec_Grid!$B:$B,$A50,Obec_Grid!M:M)/$C50 -> 0.08533437024
A51: 503614 | B51: =SUMIF(Obec_Grid!B:B,A51,Obec_Grid!D:D) -> 5320 | C51: =SUMIF(Obec_Grid!B:B,A51,Obec_Grid!E:E) -> 26 | D51: =F51*Pomocný!$C$14+G51*Pomocný!$C$12+H51*Pomocný!$C$15+I51*Pomocný!$C$13 -> 0.2696464122 | E51: =(D51-MIN($D$3:$D$174))/(MAX($D$3:$D$174)-MIN($D$3:$D$174)) -> 0.420991248 | F51: =(J51-MIN(J$3:J$174))/(MAX(J$3:J$174)-MIN(J$3:J$174)) -> 0.09488071037 | G51: 0.9612956915 | H51: 0.01943566518 | I51: 0.00297358163 | J51: =SUMIF(Obec_Grid!$B:$B,$A51,Obec_Grid!F:F)/$C51*1000 -> 11.01772824 | K51: =SUMIF(Obec_Grid!$B:$B,$A51,Obec_Grid!G:G)/$C51 -> 53.39482465 | L51: =SUMIF(Obec_Grid!$B:$B,$A51,Obec_Grid!H:H)/$C51 -> 10.93405612 | M51: =SUMIF(Obec_Grid!$B:$B,$A51,Obec_Grid!I:I)/$C51*1000 -> 0.5168501697 | N51: =SUMIF(Obec_Grid!$B:$B,$A51,Obec_Grid!J:J)/$C51 -> 0.2132631131 | O51: =SUMIF(Obec_Grid!$B:$B,$A51,Obec_Grid!K:K)/$C51 -> 0.1562422111 | P51: =SUMIF(Obec_Grid!$B:$B,$A51,Obec_Grid!L:L)/$C51 -> 0.06968683474 | Q51: =SUMIF(Obec_Grid!$B:$B,$A51,Obec_Grid!M:M)/$C51 -> 0.01792140521
A52: 515850 | B52: =SUMIF(Obec_Grid!B:B,A52,Obec_Grid!D:D) -> 11101 | C52: =SUMIF(Obec_Grid!B:B,A52,Obec_Grid!E:E) -> 24 | D52: =F52*Pomocný!$C$14+G52*Pomocný!$C$12+H52*Pomocný!$C$15+I52*Pomocný!$C$13 -> 0.3682988172 | E52: 0.5750332347 | F52: 0.1435129493 | G52: 0.883761215 | H52: 0 | I52: 0.4459211046 | J52: =SUMIF(Obec_Grid!$B:$B,$A52,Obec_Grid!F:F)/$C52*1000 -> 16.6195417 | K52: =SUMIF(Obec_Grid!$B:$B,$A52,Obec_Grid!G:G)/$C52 -> 146.941329 | L52: =SUMIF(Obec_Grid!$B:$B,$A52,Obec_Grid!H:H)/$C52 -> 0 | M52: =SUMIF(Obec_Grid!$B:$B,$A52,Obec_Grid!I:I)/$C52*1000 -> 69.18121307 | N52: =SUMIF(Obec_Grid!$B:$B,$A52,Obec_Grid!J:J)/$C52 -> 0.1478079401 | O52: =SUMIF(Obec_Grid!$B:$B,$A52,Obec_Grid!K:K)/$C52 -> 0.1706749942 | P52: =SUMIF(Obec_Grid!$B:$B,$A52,Obec_Grid!L:L)/$C52 -> 0 | Q52: =SUMIF(Obec_Grid!$B:$B,$A52,Obec_Grid!M:M)/$C52 -> 0.2067492744
A53: 513156 | B53: =SUMIF(Obec_Grid!B:B,A53,Obec_Grid!D:D) -> 5274 | C53: =SUMIF(Obec_Grid!B:B,A53,Obec_Grid!E:E) -> 25 | D53: =F53*Pomocný!$C$14+G53*Pomocný!$C$12+H53*Pomocný!$C$15+I53*Pomocný!$C$13 -> 0.296043583 | E53: 0.4622094284 | F53: 0.07444933254 | G53: 0.9571488651 | H53: 0.02549826232 | I53: 0.127077872 | J53: =SUMIF(Obec_Grid!$B:$B,$A53,Obec_Grid!F:F)/$C53*1000 -> 8.664294183 | K53: =SUMIF(Obec_Grid!$B:$B,$A53,Obec_Grid!G:G)/$C53 -> 58.39803267 | L53: =SUMIF(Obec_Grid!$B:$B,$A53,Obec_Grid!H:H)/$C53 -> 14.34473318 | M53: =SUMIF(Obec_Grid!$B:$B,$A53,Obec_Grid!I:I)/$C53*1000 -> 19.75511563 | N53: =SUMIF(Obec_Grid!$B:$B,$A53,Obec_Grid!J:J)/$C53 -> 0.1624636318 | O53: =SUMIF(Obec_Grid!$B:$B,$A53,Obec_Grid!K:K)/$C53 -> 0.1803390077 | P53: =SUMIF(Obec_Grid!$B:$B,$A53,Obec_Grid!L:L)/$C53 -> 0.07971374492 | Q53: =SUMIF(Obec_Grid!$B:$B,$A53,Obec_Grid!M:M)/$C53 -> 0.1312006202
A54: 503584 | B54: =SUMIF(Obec_Grid!B:B,A54,Obec_Grid!D:D) -> 10259 | C54: =SUMIF(Obec_Grid!B:B,A54,Obec_Grid!E:E) -> 27 | D54: =F54*Pomocný!$C$14+G54*Pomocný!$C$12+H54*Pomocný!$C$15+I54*Pomocný!$C$13 -> 0.287640592 | E54: 0.4490884769 | F54: 0.1321527906 | G54: 0.8984093827 | H54: 0.09402070018 | I54: 0.02597949445 | J54: =SUMIF(Obec_Grid!$B:$B,$A54,Obec_Grid!F:F)/$C54*1000 -> 15.31099635 | K54: =SUMIF(Obec_Grid!$B:$B,$A54,Obec_Grid!G:G)/$C54 -> 129.2680958 | L54: =SUMIF(Obec_Grid!$B:$B,$A54,Obec_Grid!H:H)/$C54 -> 52.89387334 | M54: =SUMIF(Obec_Grid!$B:$B,$A54,Obec_Grid!I:I)/$C54*1000 -> 4.083156029 | N54: =SUMIF(Obec_Grid!$B:$B,$A54,Obec_Grid!J:J)/$C54 -> 0.1371633443 | O54: =SUMIF(Obec_Grid!$B:$B,$A54,Obec_Grid!K:K)/$C54 -> 0.2251485417 | P54: =SUMIF(Obec_Grid!$B:$B,$A54,Obec_Grid!L:L)/$C54 -> 0.3230879716 | Q54: =SUMIF(Obec_Grid!$B:$B,$A54,Obec_Grid!M:M)/$C54 -> 0.04986898599
A55: 510106 | B55: =SUMIF(Obec_Grid!B:B,A55,Obec_Grid!D:D) -> 7260 | C55: =SUMIF(Obec_Grid!B:B,A55,Obec_Grid!E:E) -> 23 | D55: =F55*Pomocný!$C$14+G55*Pomocný!$C$12+H55*Pomocný!$C$15+I55*Pomocný!$C$13 -> 0.3662325703 | E55: 0.5718068685 | F55: 0.1956042442 | G55: 0.9363462341 | H55: 0.242547218 | I55: 0.09043258484 | J55: =SUMIF(Obec_Grid!$B:$B,$A55,Obec_Grid!F:F)/$C55*1000 -> 22.61979427 | K55: =SUMIF(Obec_Grid!$B:$B,$A55,Obec_Grid!G:G)/$C55 -> 83.49671776 | L55: =SUMIF(Obec_Grid!$B:$B,$A55,Obec_Grid!H:H)/$C55 -> 136.4514602 | M55: =SUMIF(Obec_Grid!$B:$B,$A55,Obec_Grid!I:I)/$C55*1000 -> 14.0744759 | N55: =SUMIF(Obec_Grid!$B:$B,$A55,Obec_Grid!J:J)/$C55 -> 0.2449334098 | O55: =SUMIF(Obec_Grid!$B:$B,$A55,Obec_Grid!K:K)/$C55 -> 0.1476369895 | P55: =SUMIF(Obec_Grid!$B:$B,$A55,Obec_Grid!L:L)/$C55 -> 0.1605939864 | Q55: =SUMIF(Obec_Grid!$B:$B,$A55,Obec_Grid!M:M)/$C55 -> 0.1191455984
A56: 526142 | B56: =SUMIF(Obec_Grid!B:B,A56,Obec_Grid!D:D) -> 11462 | C56: =SUMIF(Obec_Grid!B:B,A56,Obec_Grid!E:E) -> 24 | D56: =F56*Pomocný!$C$14+G56*Pomocný!$C$12+H56*Pomocný!$C$15+I56*Pomocný!$C$13 -> 0.2681051758 | E56: 0.418584666 | F56: 0.05686783496 | G56: 0.8775709678 | H56: 0.0001298907453 | I56: 0.1378520099 | J56: =SUMIF(Obec_Grid!$B:$B,$A56,Obec_Grid!F:F)/$C56*1000 -> 6.639129973 | K56: =SUMIF(Obec_Grid!$B:$B,$A56,Obec_Grid!G:G)/$C56 -> 154.4099547 | L56: =SUMIF(Obec_Grid!$B:$B,$A56,Obec_Grid!H:H)/$C56 -> 0.07307353186 | M56: =SUMIF(Obec_Grid!$B:$B,$A56,Obec_Grid!I:I)/$C56*1000 -> 21.42528935 | N56: =SUMIF(Obec_Grid!$B:$B,$A56,Obec_Grid!J:J)/$C56 -> 0.1624158817 | O56: =SUMIF(Obec_Grid!$B:$B,$A56,Obec_Grid!K:K)/$C56 -> 0.1541673995 | P56: =SUMIF(Obec_Grid!$B:$B,$A56,Obec_Grid!L:L)/$C56 -> 0.005997941672 | Q56: =SUMIF(Obec_Grid!$B:$B,$A56,Obec_Grid!M:M)/$C56 -> 0.2163506193
A57: 528447 | B57: =SUMIF(Obec_Grid!B:B,A57,Obec_Grid!D:D) -> 7265 | C57: =SUMIF(Obec_Grid!B:B,A57,Obec_Grid!E:E) -> 24 | D57: =F57*Pomocný!$C$14+G57*Pomocný!$C$12+H57*Pomocný!$C$15+I57*Pomocný!$C$13 -> 0.3627580264 | E57: 0.5663815 | F57: 0.1774271787 | G57: 0.9219400566 | H57: 0.2930937104 | I57: 0.05857115974 | J57: =SUMIF(Obec_Grid!$B:$B,$A57,Obec_Grid!F:F)/$C57*1000 -> 20.52602823 | K57: =SUMIF(Obec_Grid!$B:$B,$A57,Obec_Grid!G:G)/$C57 -> 100.8779861 | L57: =SUMIF(Obec_Grid!$B:$B,$A57,Obec_Grid!H:H)/$C57 -> 164.8877488 | M57: =SUMIF(Obec_Grid!$B:$B,$A57,Obec_Grid!I:I)/$C57*1000 -> 9.135415761 | N57: =SUMIF(Obec_Grid!$B:$B,$A57,Obec_Grid!J:J)/$C57 -> 0.1711134909 | O57: =SUMIF(Obec_Grid!$B:$B,$A57,Obec_Grid!K:K)/$C57 -> 0.1539815627 | P57: =SUMIF(Obec_Grid!$B:$B,$A57,Obec_Grid!L:L)/$C57 -> 0.328137757 | Q57: =SUMIF(Obec_Grid!$B:$B,$A57,Obec_Grid!M:M)/$C57 -> 0.11144725
A58: 528595 | B58: =SUMIF(Obec_Grid!B:B,A58,Obec_Grid!D:D) -> 50461 | C58: =SUMIF(Obec_Grid!B:B,A58,Obec_Grid!E:E) -> 40.20809954 | D58: =F58*Pomocný!$C$14+G58*Pomocný!$C$12+H58*Pomocný!$C$15+I58*Pomocný!$C$13 -> 0.1068212185 | E58: 0.1667458873 | F58: 0 | G58: 0.3977749088 | H58: 0.02654309191 | I58: 0.002966873324 | J58: =SUMIF(Obec_Grid!$B:$B,$A58,Obec_Grid!F:F)/$C58*1000 -> 0.0886809237 | K58: =SUMIF(Obec_Grid!$B:$B,$A58,Obec_Grid!G:G)/$C58 -> 733.2910687 | L58: =SUMIF(Obec_Grid!$B:$B,$A58,Obec_Grid!H:H)/$C58 -> 14.93253017 | M58: =SUMIF(Obec_Grid!$B:$B,$A58,Obec_Grid!I:I)/$C58*1000 -> 0.5158102688 | N58: =SUMIF(Obec_Grid!$B:$B,$A58,Obec_Grid!J:J)/$C58 -> 0.02081640633 | O58: =SUMIF(Obec_Grid!$B:$B,$A58,Obec_Grid!K:K)/$C58 -> 0.4498947788 | P58: =SUMIF(Obec_Grid!$B:$B,$A58,Obec_Grid!L:L)/$C58 -> 0.1857617277 | Q58: =SUMIF(Obec_Grid!$B:$B,$A58,Obec_Grid!M:M)/$C58 -> 0.1404662586
A59: 528722 | B59: =SUMIF(Obec_Grid!B:B,A59,Obec_Grid!D:D) -> 7288 | C59: =SUMIF(Obec_Grid!B:B,A59,Obec_Grid!E:E) -> 27 | D59: =F59*Pomocný!$C$14+G59*Pomocný!$C$12+H59*Pomocný!$C$15+I59*Pomocný!$C$13 -> 0.2798540262 | E59: 0.4369300499 | F59: 0.06790950384 | G59: 0.9248431806 | H59: 0.1036674092 | I59: 0.02299601103 | J59: =SUMIF(Obec_Grid!$B:$B,$A59,Obec_Grid!F:F)/$C59*1000 -> 7.910989354 | K59: =SUMIF(Obec_Grid!$B:$B,$A59,Obec_Grid!G:G)/$C59 -> 97.3753237 | L59: =SUMIF(Obec_Grid!$B:$B,$A59,Obec_Grid!H:H)/$C59 -> 58.32088894 | M59: =SUMIF(Obec_Grid!$B:$B,$A59,Obec_Grid!I:I)/$C59*1000 -> 3.620665604 | N59: =SUMIF(Obec_Grid!$B:$B,$A59,Obec_Grid!J:J)/$C59 -> 0.1978091008 | O59: =SUMIF(Obec_Grid!$B:$B,$A59,Obec_Grid!K:K)/$C59 -> 0.1708945671 | P59: =SUMIF(Obec_Grid!$B:$B,$A59,Obec_Grid!L:L)/$C59 -> 0.1264512625 | Q59: =SUMIF(Obec_Grid!$B:$B,$A59,Obec_Grid!M:M)/$C59 -> 0.04999076906
A60: 524778 | B60: =SUMIF(Obec_Grid!B:B,A60,Obec_Grid!D:D) -> 5263 | C60: =SUMIF(Obec_Grid!B:B,A60,Obec_Grid!E:E) -> 23 | D60: =F60*Pomocný!$C$14+G60*Pomocný!$C$12+H60*Pomocný!$C$15+I60*Pomocný!$C$13 -> 0.4362177052 | E60: 0.6810860007 | F60: 0.6678662605 | G60: 0.9566221819 | H60: 0.02899016124 | I60: 0.09139221715 | J60: =SUMIF(Obec_Grid!$B:$B,$A60,Obec_Grid!F:F)/$C60*1000 -> 77.01835327 | K60: =SUMIF(Obec_Grid!$B:$B,$A60,Obec_Grid!G:G)/$C60 -> 59.03348383 | L60: =SUMIF(Obec_Grid!$B:$B,$A60,Obec_Grid!H:H)/$C60 -> 16.30919483 | M60: =SUMIF(Obec_Grid!$B:$B,$A60,Obec_Grid!I:I)/$C60*1000 -> 14.22323515 | N60: =SUMIF(Obec_Grid!$B:$B,$A60,Obec_Grid!J:J)/$C60 -> 0.3659824435 | O60: =SUMIF(Obec_Grid!$B:$B,$A60,Obec_Grid!K:K)/$C60 -> 0.1467846778 | P60: =SUMIF(Obec_Grid!$B:$B,$A60,Obec_Grid!L:L)/$C60 -> 0.02285378467 | Q60: =SUMIF(Obec_Grid!$B:$B,$A60,Obec_Grid!M:M)/$C60 -> 0.1081733848
A61: 545333 | B61: =SUMIF(Obec_Grid!B:B,A61,Obec_Grid!D:D) -> 6985 | C61: =SUMIF(Obec_Grid!B:B,A61,Obec_Grid!E:E) -> 31 | D61: =F61*Pomocný!$C$14+G61*Pomocný!$C$12+H61*Pomocný!$C$15+I61*Pomocný!$C$13 -> 0.2790571666 | E61: 0.435685784 | F61: 0.04163386465 | G61: 0.9461466496 | H61: 0.1257783664 | I61: 0.00266978591 | J61: =SUMIF(Obec_Grid!$B:$B,$A61,Obec_Grid!F:F)/$C61*1000 -> 4.884370953 | K61: =SUMIF(Obec_Grid!$B:$B,$A61,Obec_Grid!G:G)/$C61 -> 71.67237006 | L61: =SUMIF(Obec_Grid!$B:$B,$A61,Obec_Grid!H:H)/$C61 -> 70.76000253 | M61: =SUMIF(Obec_Grid!$B:$B,$A61,Obec_Grid!I:I)/$C61*1000 -> 0.4697566914 | N61: =SUMIF(Obec_Grid!$B:$B,$A61,Obec_Grid!J:J)/$C61 -> 0.09176142644 | O61: =SUMIF(Obec_Grid!$B:$B,$A61,Obec_Grid!K:K)/$C61 -> 0.1964421624 | P61: =SUMIF(Obec_Grid!$B:$B,$A61,Obec_Grid!L:L)/$C61 -> 0.2853171343 | Q61: =SUMIF(Obec_Grid!$B:$B,$A61,Obec_Grid!M:M)/$C61 -> 0.01899114917
A62: 504009 | B62: =SUMIF(Obec_Grid!B:B,A62,Obec_Grid!D:D) -> 15956 | C62: =SUMIF(Obec_Grid!B:B,A62,Obec_Grid!E:E) -> 34 | D62: =F62*Pomocný!$C$14+G62*Pomocný!$C$12+H62*Pomocný!$C$15+I62*Pomocný!$C$13 -> 0.2339297506 | E62: 0.3652210365 | F62: 0.02606844037 | G62: 0.8358241405 | H62: 0.03681049106 | I62: 0.0370159306 | J62: =SUMIF(Obec_Grid!$B:$B,$A62,Obec_Grid!F:F)/$C62*1000 -> 3.091432665 | K62: =SUMIF(Obec_Grid!$B:$B,$A62,Obec_Grid!G:G)/$C62 -> 204.7781256 | L62: =SUMIF(Obec_Grid!$B:$B,$A62,Obec_Grid!H:H)/$C62 -> 20.70873167 | M62: =SUMIF(Obec_Grid!$B:$B,$A62,Obec_Grid!I:I)/$C62*1000 -> 5.793990424 | N62: =SUMIF(Obec_Grid!$B:$B,$A62,Obec_Grid!J:J)/$C62 -> 0.1363447196 | O62: =SUMIF(Obec_Grid!$B:$B,$A62,Obec_Grid!K:K)/$C62 -> 0.3030933676 | P62: =SUMIF(Obec_Grid!$B:$B,$A62,Obec_Grid!L:L)/$C62 -> 0.1737015706 | Q62: =SUMIF(Obec_Grid!$B:$B,$A62,Obec_Grid!M:M)/$C62 -> 0.05236998094
A63: 516589 | B63: =SUMIF(Obec_Grid!B:B,A63,Obec_Grid!D:D) -> 17019 | C63: =SUMIF(Obec_Grid!B:B,A63,Obec_Grid!E:E) -> 26 | D63: =F63*Pomocný!$C$14+G63*Pomocný!$C$12+H63*Pomocný!$C$15+I63*Pomocný!$C$13 -> 0.2611338322 | E63: 0.4076991774 | F63: 0.1305189969 | G63: 0.8001417508 | H63: 0.02964385997 | I63: 0.08423072094 | J63: =SUMIF(Obec_Grid!$B:$B,$A63,Obec_Grid!F:F)/$C63*1000 -> 15.12280416 | K63: =SUMIF(Obec_Grid!$B:$B,$A63,Obec_Grid!G:G)/$C63 -> 247.829462 | L63: =SUMIF(Obec_Grid!$B:$B,$A63,Obec_Grid!H:H)/$C63 -> 16.67695062 | M63: =SUMIF(Obec_Grid!$B:$B,$A63,Obec_Grid!I:I)/$C63*1000 -> 13.11308203 | N63: =SUMIF(Obec_Grid!$B:$B,$A63,Obec_Grid!J:J)/$C63 -> 0.1976272365 | O63: =SUMIF(Obec_Grid!$B:$B,$A63,Obec_Grid!K:K)/$C63 -> 0.1793640518 | P63: =SUMIF(Obec_Grid!$B:$B,$A63,Obec_Grid!L:L)/$C63 -> 0.07107577219 | Q63: =SUMIF(Obec_Grid!$B:$B,$A63,Obec_Grid!M:M)/$C63 -> 0.1815496503
A64: 511765 | B64: =SUMIF(Obec_Grid!B:B,A64,Obec_Grid!D:D) -> 5419 | C64: =SUMIF(Obec_Grid!B:B,A64,Obec_Grid!E:E) -> 26 | D64: =F64*Pomocný!$C$14+G64*Pomocný!$C$12+H64*Pomocný!$C$15+I64*Pomocný!$C$13 -> 0.3127039959 | E64: 0.488224031 | F64: 0.1688188634 | G64: 0.9568724794 | H64: 0.05537967035 | I64: 0.06974497052 | J64: =SUMIF(Obec_Grid!$B:$B,$A64,Obec_Grid!F:F)/$C64*1000 -> 19.53446014 | K64: =SUMIF(Obec_Grid!$B:$B,$A64,Obec_Grid!G:G)/$C64 -> 58.73149616 | L64: =SUMIF(Obec_Grid!$B:$B,$A64,Obec_Grid!H:H)/$C64 -> 31.15532285 | M64: =SUMIF(Obec_Grid!$B:$B,$A64,Obec_Grid!I:I)/$C64*1000 -> 10.86754555 | N64: =SUMIF(Obec_Grid!$B:$B,$A64,Obec_Grid!J:J)/$C64 -> 0.1680779506 | O64: =SUMIF(Obec_Grid!$B:$B,$A64,Obec_Grid!K:K)/$C64 -> 0.1057284737 | P64: =SUMIF(Obec_Grid!$B:$B,$A64,Obec_Grid!L:L)/$C64 -> 0.05598327176 | Q64: =SUMIF(Obec_Grid!$B:$B,$A64,Obec_Grid!M:M)/$C64 -> 0.1457467984
A65: 502987 | B65: =SUMIF(Obec_Grid!B:B,A65,Obec_Grid!D:D) -> 6439 | C65: =SUMIF(Obec_Grid!B:B,A65,Obec_Grid!E:E) -> 30 | D65: =F65*Pomocný!$C$14+G65*Pomocný!$C$12+H65*Pomocný!$C$15+I65*Pomocný!$C$13 -> 0.2787310945 | E65: 0.4351766347 | F65: 0.06387693428 | G65: 0.9524952118 | H65: 0.06874411833 | I65: 0.02980811359 | J65: =SUMIF(Obec_Grid!$B:$B,$A65,Obec_Grid!F:F)/$C65*1000 -> 7.44648879 | K65: =SUMIF(Obec_Grid!$B:$B,$A65,Obec_Grid!G:G)/$C65 -> 64.01273492 | L65: =SUMIF(Obec_Grid!$B:$B,$A65,Obec_Grid!H:H)/$C65 -> 38.67385247 | M65: =SUMIF(Obec_Grid!$B:$B,$A65,Obec_Grid!I:I)/$C65*1000 -> 4.676656795 | N65: =SUMIF(Obec_Grid!$B:$B,$A65,Obec_Grid!J:J)/$C65 -> 0.1442356295 | O65: =SUMIF(Obec_Grid!$B:$B,$A65,Obec_Grid!K:K)/$C65 -> 0.1672765412 | P65: =SUMIF(Obec_Grid!$B:$B,$A65,Obec_Grid!L:L)/$C65 -> 0.1200111712 | Q65: =SUMIF(Obec_Grid!$B:$B,$A65,Obec_Grid!M:M)/$C65 -> 0.06599055535
A66: 529397 | B66: =SUMIF(Obec_Grid!B:B,A66,Obec_Grid!D:D) -> 38139 | C66: =SUMIF(Obec_Grid!B:B,A66,Obec_Grid!E:E) -> 29.71910961 | D66: =F66*Pomocný!$C$14+G66*Pomocný!$C$12+H66*Pomocný!$C$15+I66*Pomocný!$C$13 -> 0.272402255 | E66: 0.425294392 | F66: 0.00277494699 | G66: 0.6011384713 | H66: 0.4038595267 | I66: 0.08183607507 | J66: =SUMIF(Obec_Grid!$B:$B,$A66,Obec_Grid!F:F)/$C66*1000 -> 0.4083194133 | K66: =SUMIF(Obec_Grid!$B:$B,$A66,Obec_Grid!G:G)/$C66 -> 487.929892 | L66: =SUMIF(Obec_Grid!$B:$B,$A66,Obec_Grid!H:H)/$C66 -> 227.2020375 | M66: =SUMIF(Obec_Grid!$B:$B,$A66,Obec_Grid!I:I)/$C66*1000 -> 12.74187139 | N66: =SUMIF(Obec_Grid!$B:$B,$A66,Obec_Grid!J:J)/$C66 -> 0.04598128445 | O66: =SUMIF(Obec_Grid!$B:$B,$A66,Obec_Grid!K:K)/$C66 -> 0.2571397269 | P66: =SUMIF(Obec_Grid!$B:$B,$A66,Obec_Grid!L:L)/$C66 -> 0.1264617635 | Q66: =SUMIF(Obec_Grid!$B:$B,$A66,Obec_Grid!M:M)/$C66 -> 0.3013036409
A67: 510726 | B67: =SUMIF(Obec_Grid!B:B,A67,Obec_Grid!D:D) -> 7363 | C67: =SUMIF(Obec_Grid!B:B,A67,Obec_Grid!E:E) -> 27 | D67: =F67*Pomocný!$C$14+G67*Pomocný!$C$12+H67*Pomocný!$C$15+I67*Pomocný!$C$13 -> 0.3261682811 | E67: =(D67-MIN($D$3:$D$174))/(MAX($D$3:$D$174)-MIN($D$3:$D$174)) -> 0.5092480013 | F67: =(J67-MIN(J$3:J$174))/(MAX(J$3:J$174)-MIN(J$3:J$174)) -> 0.1331477627 | G67: 0.9548420044 | H67: =(L67-MIN(L$3:L$174))/(MAX(L$3:L$174)-MIN(L$3:L$174)) -> 0.02219397533 | I67: =(M67-MIN(M$3:M$174))/(MAX(M$3:M$174)-MIN(M$3:M$174)) -> 0.1944893818 | J67: =SUMIF(Obec_Grid!$B:$B,$A67,Obec_Grid!F:F)/$C67*1000 -> 15.42560444 | K67: =SUMIF(Obec_Grid!$B:$B,$A67,Obec_Grid!G:G)/$C67 -> 61.18129448 | L67: =SUMIF(Obec_Grid!$B:$B,$A67,Obec_Grid!H:H)/$C67 -> 12.48581768 | M67: =SUMIF(Obec_Grid!$B:$B,$A67,Obec_Grid!I:I)/$C67*1000 -> 30.20504058 | N67: =SUMIF(Obec_Grid!$B:$B,$A67,Obec_Grid!J:J)/$C67 -> 0.1566933105 | O67: =SUMIF(Obec_Grid!$B:$B,$A67,Obec_Grid!K:K)/$C67 -> 0.1453722641 | P67: =SUMIF(Obec_Grid!$B:$B,$A67,Obec_Grid!L:L)/$C67 -> 0.04154946502 | Q67: =SUMIF(Obec_Grid!$B:$B,$A67,Obec_Grid!M:M)/$C67 -> 0.2215386043
A68: 524603 | B68: =SUMIF(Obec_Grid!B:B,A68,Obec_Grid!D:D) -> 5880 | C68: =SUMIF(Obec_Grid!B:B,A68,Obec_Grid!E:E) -> 25 | D68: =F68*Pomocný!$C$14+G68*Pomocný!$C$12+H68*Pomocný!$C$15+I68*Pomocný!$C$13 -> 0.4102296549 | E68: 0.6405066464 | F68: 0.4270739169 | G68: =1-(K68-MIN(K$3:K$174))/(MAX(K$3:K$174)-MIN(K$3:K$174)) -> 0.9723092954 | H68: 0.02341563342 | I68: 0.2181197739 | J68: =SUMIF(Obec_Grid!$B:$B,$A68,Obec_Grid!F:F)/$C68*1000 -> 49.28214741 | K68: =SUMIF(Obec_Grid!$B:$B,$A68,Obec_Grid!G:G)/$C68 -> 40.10674691 | L68: =SUMIF(Obec_Grid!$B:$B,$A68,Obec_Grid!H:H)/$C68 -> 13.17309428 | M68: =SUMIF(Obec_Grid!$B:$B,$A68,Obec_Grid!I:I)/$C68*1000 -> 33.8681513 | N68: =SUMIF(Obec_Grid!$B:$B,$A68,Obec_Grid!J:J)/$C68 -> 0.2572895181 | O68: =SUMIF(Obec_Grid!$B:$B,$A68,Obec_Grid!K:K)/$C68 -> 0.04800851209 | P68: =SUMIF(Obec_Grid!$B:$B,$A68,Obec_Grid!L:L)/$C68 -> 0.01664356452 | Q68: =SUMIF(Obec_Grid!$B:$B,$A68,Obec_Grid!M:M)/$C68 -> 0.1285746716
A69: 504815 | B69: =SUMIF(Obec_Grid!B:B,A69,Obec_Grid!D:D) -> 15192 | C69: =SUMIF(Obec_Grid!B:B,A69,Obec_Grid!E:E) -> 35 | D69: =F69*Pomocný!$C$14+G69*Pomocný!$C$12+H69*Pomocný!$C$15+I69*Pomocný!$C$13 -> 0.3369020904 | E69: 0.5260084373 | F69: 0.3210933147 | G69: 0.8532095945 | H69: 0.1027074276 | I69: 0.07059802501 | J69: =SUMIF(Obec_Grid!$B:$B,$A69,Obec_Grid!F:F)/$C69*1000 -> 37.07453416 | K69: =SUMIF(Obec_Grid!$B:$B,$A69,Obec_Grid!G:G)/$C69 -> 183.8023157 | L69: =SUMIF(Obec_Grid!$B:$B,$A69,Obec_Grid!H:H)/$C69 -> 57.78082545 | M69: =SUMIF(Obec_Grid!$B:$B,$A69,Obec_Grid!I:I)/$C69*1000 -> 10.99978343 | N69: =SUMIF(Obec_Grid!$B:$B,$A69,Obec_Grid!J:J)/$C69 -> 0.161405245 | O69: =SUMIF(Obec_Grid!$B:$B,$A69,Obec_Grid!K:K)/$C69 -> 0.2259354754 | P69: =SUMIF(Obec_Grid!$B:$B,$A69,Obec_Grid!L:L)/$C69 -> 0.03102023027 | Q69: =SUMIF(Obec_Grid!$B:$B,$A69,Obec_Grid!M:M)/$C69 -> 0.03995980781
A70: 529427 | B70: =SUMIF(Obec_Grid!B:B,A70,Obec_Grid!D:D) -> 5344 | C70: =SUMIF(Obec_Grid!B:B,A70,Obec_Grid!E:E) -> 30.07435368 | D70: =F70*Pomocný!$C$14+G70*Pomocný!$C$12+H70*Pomocný!$C$15+I70*Pomocný!$C$13 -> 0.3382512335 | E70: 0.5281150729 | F70: 0.029645508 | G70: 0.9636943265 | H70: 0.02340920873 | I70: 0.3362558906 | J70: =SUMIF(Obec_Grid!$B:$B,$A70,Obec_Grid!F:F)/$C70*1000 -> 3.503465219 | K70: =SUMIF(Obec_Grid!$B:$B,$A70,Obec_Grid!G:G)/$C70 -> 50.50083565 | L70: =SUMIF(Obec_Grid!$B:$B,$A70,Obec_Grid!H:H)/$C70 -> 13.1694799 | M70: =SUMIF(Obec_Grid!$B:$B,$A70,Obec_Grid!I:I)/$C70*1000 -> 52.18124884 | N70: =SUMIF(Obec_Grid!$B:$B,$A70,Obec_Grid!J:J)/$C70 -> 0.0328096584 | O70: =SUMIF(Obec_Grid!$B:$B,$A70,Obec_Grid!K:K)/$C70 -> 0.1605366859 | P70: =SUMIF(Obec_Grid!$B:$B,$A70,Obec_Grid!L:L)/$C70 -> 0.01585366753 | Q70: =SUMIF(Obec_Grid!$B:$B,$A70,Obec_Grid!M:M)/$C70 -> 0.2556296888
A71: 506281 | B71: =SUMIF(Obec_Grid!B:B,A71,Obec_Grid!D:D) -> 6157 | C71: =SUMIF(Obec_Grid!B:B,A71,Obec_Grid!E:E) -> 27 | D71: =F71*Pomocný!$C$14+G71*Pomocný!$C$12+H71*Pomocný!$C$15+I71*Pomocný!$C$13 -> 0.349890001 | E71: 0.5462885668 | F71: 0.08946750469 | G71: 0.9531091751 | H71: 0.01508550749 | I71: 0.3418978168 | J71: =SUMIF(Obec_Grid!$B:$B,$A71,Obec_Grid!F:F)/$C71*1000 -> 10.39419601 | K71: =SUMIF(Obec_Grid!$B:$B,$A71,Obec_Grid!G:G)/$C71 -> 63.27197893 | L71: =SUMIF(Obec_Grid!$B:$B,$A71,Obec_Grid!H:H)/$C71 -> 8.486757925 | M71: =SUMIF(Obec_Grid!$B:$B,$A71,Obec_Grid!I:I)/$C71*1000 -> 53.05584288 | N71: =SUMIF(Obec_Grid!$B:$B,$A71,Obec_Grid!J:J)/$C71 -> 0.2507694214 | O71: =SUMIF(Obec_Grid!$B:$B,$A71,Obec_Grid!K:K)/$C71 -> 0.1484023033 | P71: =SUMIF(Obec_Grid!$B:$B,$A71,Obec_Grid!L:L)/$C71 -> 0.1010916311 | Q71: =SUMIF(Obec_Grid!$B:$B,$A71,Obec_Grid!M:M)/$C71 -> 0.1362247486
A72: 529401 | B72: =SUMIF(Obec_Grid!B:B,A72,Obec_Grid!D:D) -> 1703 | C72: =SUMIF(Obec_Grid!B:B,A72,Obec_Grid!E:E) -> 22 | D72: =F72*Pomocný!$C$14+G72*Pomocný!$C$12+H72*Pomocný!$C$15+I72*Pomocný!$C$13 -> 0.4485303226 | E72: 0.7003116856 | F72: 0.09563957534 | G72: 0.9938640134 | H72: 0.2849436575 | I72: 0.4196740444 | J72: =SUMIF(Obec_Grid!$B:$B,$A72,Obec_Grid!F:F)/$C72*1000 -> 11.1051398 | K72: =SUMIF(Obec_Grid!$B:$B,$A72,Obec_Grid!G:G)/$C72 -> 14.10065761 | L72: =SUMIF(Obec_Grid!$B:$B,$A72,Obec_Grid!H:H)/$C72 -> 160.3027174 | M72: =SUMIF(Obec_Grid!$B:$B,$A72,Obec_Grid!I:I)/$C72*1000 -> 65.11247451 | N72: =SUMIF(Obec_Grid!$B:$B,$A72,Obec_Grid!J:J)/$C72 -> 0.07886984955 | O72: =SUMIF(Obec_Grid!$B:$B,$A72,Obec_Grid!K:K)/$C72 -> 0.06900225098 | P72: =SUMIF(Obec_Grid!$B:$B,$A72,Obec_Grid!L:L)/$C72 -> 0.3719025743 | Q72: =SUMIF(Obec_Grid!$B:$B,$A72,Obec_Grid!M:M)/$C72 -> 0.4037862377
A73: 543268 | B73: =SUMIF(Obec_Grid!B:B,A73,Obec_Grid!D:D) -> 7860 | C73: =SUMIF(Obec_Grid!B:B,A73,Obec_Grid!E:E) -> 26 | D73: =F73*Pomocný!$C$14+G73*Pomocný!$C$12+H73*Pomocný!$C$15+I73*Pomocný!$C$13 -> 0.3105534795 | E73: 0.4848660812 | F73: 0.08350131273 | G73: 0.9455744476 | H73: 0.02116174143 | I73: 0.1919764161 | J73: =SUMIF(Obec_Grid!$B:$B,$A73,Obec_Grid!F:F)/$C73*1000 -> 9.706966813 | K73: =SUMIF(Obec_Grid!$B:$B,$A73,Obec_Grid!G:G)/$C73 -> 72.36274023 | L73: =SUMIF(Obec_Grid!$B:$B,$A73,Obec_Grid!H:H)/$C73 -> 11.90510673 | M73: =SUMIF(Obec_Grid!$B:$B,$A73,Obec_Grid!I:I)/$C73*1000 -> 29.81548838 | N73: =SUMIF(Obec_Grid!$B:$B,$A73,Obec_Grid!J:J)/$C73 -> 0.1745731383 | O73: =SUMIF(Obec_Grid!$B:$B,$A73,Obec_Grid!K:K)/$C73 -> 0.145978571 | P73: =SUMIF(Obec_Grid!$B:$B,$A73,Obec_Grid!L:L)/$C73 -> 0.05336886936 | Q73: =SUMIF(Obec_Grid!$B:$B,$A73,Obec_Grid!M:M)/$C73 -> 0.2776163071
A74: 515612 | B74: =SUMIF(Obec_Grid!B:B,A74,Obec_Grid!D:D) -> 7050 | C74: =SUMIF(Obec_Grid!B:B,A74,Obec_Grid!E:E) -> 31 | D74: =F74*Pomocný!$C$14+G74*Pomocný!$C$12+H74*Pomocný!$C$15+I74*Pomocný!$C$13 -> 0.283913323 | E74: 0.4432684879 | F74: 0.124694425 | G74: 0.9495870569 | H74: 0.05868856976 | I74: 0.002683240398 | J74: =SUMIF(Obec_Grid!$B:$B,$A74,Obec_Grid!F:F)/$C74*1000 -> 14.4518878 | K74: =SUMIF(Obec_Grid!$B:$B,$A74,Obec_Grid!G:G)/$C74 -> 67.52146723 | L74: =SUMIF(Obec_Grid!$B:$B,$A74,Obec_Grid!H:H)/$C74 -> 33.0168332 | M74: =SUMIF(Obec_Grid!$B:$B,$A74,Obec_Grid!I:I)/$C74*1000 -> 0.4718423648 | N74: =SUMIF(Obec_Grid!$B:$B,$A74,Obec_Grid!J:J)/$C74 -> 0.2121929613 | O74: =SUMIF(Obec_Grid!$B:$B,$A74,Obec_Grid!K:K)/$C74 -> 0.1474923174 | P74: =SUMIF(Obec_Grid!$B:$B,$A74,Obec_Grid!L:L)/$C74 -> 0.165104847 | Q74: =SUMIF(Obec_Grid!$B:$B,$A74,Obec_Grid!M:M)/$C74 -> 0.01354637849
A75: 529389 | B75: =SUMIF(Obec_Grid!B:B,A75,Obec_Grid!D:D) -> 38080 | C75: =SUMIF(Obec_Grid!B:B,A75,Obec_Grid!E:E) -> 32.12591697 | D75: =F75*Pomocný!$C$14+G75*Pomocný!$C$12+H75*Pomocný!$C$15+I75*Pomocný!$C$13 -> 0.2825740961 | E75: 0.4411773358 | F75: 0.06849572406 | G75: 0.5953260449 | H75: 0.002977675548 | I75: 0.4634969399 | J75: =SUMIF(Obec_Grid!$B:$B,$A75,Obec_Grid!F:F)/$C75*1000 -> 7.978514445 | K75: =SUMIF(Obec_Grid!$B:$B,$A75,Obec_Grid!G:G)/$C75 -> 494.9426714 | L75: =SUMIF(Obec_Grid!$B:$B,$A75,Obec_Grid!H:H)/$C75 -> 1.675171457 | M75: =SUMIF(Obec_Grid!$B:$B,$A75,Obec_Grid!I:I)/$C75*1000 -> 71.90576501 | N75: =SUMIF(Obec_Grid!$B:$B,$A75,Obec_Grid!J:J)/$C75 -> 0.06270257888 | O75: =SUMIF(Obec_Grid!$B:$B,$A75,Obec_Grid!K:K)/$C75 -> 0.2589209544 | P75: =SUMIF(Obec_Grid!$B:$B,$A75,Obec_Grid!L:L)/$C75 -> 0.002140970725 | Q75: =SUMIF(Obec_Grid!$B:$B,$A75,Obec_Grid!M:M)/$C75 -> 0.2976444869
A76: 507989 | B76: =SUMIF(Obec_Grid!B:B,A76,Obec_Grid!D:D) -> 5948 | C76: =SUMIF(Obec_Grid!B:B,A76,Obec_Grid!E:E) -> 25 | D76: =F76*Pomocný!$C$14+G76*Pomocný!$C$12+H76*Pomocný!$C$15+I76*Pomocný!$C$13 -> 0.5123268042 | E76: 0.7999274704 | F76: 0.4847273097 | G76: 0.9347789339 | H76: 0.09137050838 | I76: 0.5384304646 | J76: =SUMIF(Obec_Grid!$B:$B,$A76,Obec_Grid!F:F)/$C76*1000 -> 55.92308269 | K76: =SUMIF(Obec_Grid!$B:$B,$A76,Obec_Grid!G:G)/$C76 -> 85.38768887 | L76: =SUMIF(Obec_Grid!$B:$B,$A76,Obec_Grid!H:H)/$C76 -> 51.40293668 | M76: =SUMIF(Obec_Grid!$B:$B,$A76,Obec_Grid!I:I)/$C76*1000 -> 83.52172959 | N76: =SUMIF(Obec_Grid!$B:$B,$A76,Obec_Grid!J:J)/$C76 -> 0.2599819394 | O76: =SUMIF(Obec_Grid!$B:$B,$A76,Obec_Grid!K:K)/$C76 -> 0.1408568511 | P76: =SUMIF(Obec_Grid!$B:$B,$A76,Obec_Grid!L:L)/$C76 -> 0.04063948605 | Q76: =SUMIF(Obec_Grid!$B:$B,$A76,Obec_Grid!M:M)/$C76 -> 0.2698091357
A77: 512729 | B77: =SUMIF(Obec_Grid!B:B,A77,Obec_Grid!D:D) -> 6618 | C77: =SUMIF(Obec_Grid!B:B,A77,Obec_Grid!E:E) -> 32 | D77: =F77*Pomocný!$C$14+G77*Pomocný!$C$12+H77*Pomocný!$C$15+I77*Pomocný!$C$13 -> 0.2557574837 | E77: 0.3993042133 | F77: 0.04222030496 | G77: 0.9675465722 | H77: 0 | I77: 0.0132630578 | J77: =SUMIF(Obec_Grid!$B:$B,$A77,Obec_Grid!F:F)/$C77*1000 -> 4.951921395 | K77: =SUMIF(Obec_Grid!$B:$B,$A77,Obec_Grid!G:G)/$C77 -> 45.85304366 | L77: =SUMIF(Obec_Grid!$B:$B,$A77,Obec_Grid!H:H)/$C77 -> 0 | M77: =SUMIF(Obec_Grid!$B:$B,$A77,Obec_Grid!I:I)/$C77*1000 -> 2.111893125 | N77: =SUMIF(Obec_Grid!$B:$B,$A77,Obec_Grid!J:J)/$C77 -> 0.2209622337 | O77: =SUMIF(Obec_Grid!$B:$B,$A77,Obec_Grid!K:K)/$C77 -> 0.1440757171 | P77: =SUMIF(Obec_Grid!$B:$B,$A77,Obec_Grid!L:L)/$C77 -> 0 | Q77: =SUMIF(Obec_Grid!$B:$B,$A77,Obec_Grid!M:M)/$C77 -> 0.04272003585
A78: 501522 | B78: =SUMIF(Obec_Grid!B:B,A78,Obec_Grid!D:D) -> 5148 | C78: =SUMIF(Obec_Grid!B:B,A78,Obec_Grid!E:E) -> 37 | D78: =F78*Pomocný!$C$14+G78*Pomocný!$C$12+H78*Pomocný!$C$15+I78*Pomocný!$C$13 -> 0.3076451002 | E78: 0.4803247573 | F78: 0.04314076503 | G78: 0.9643648962 | H78: 0.1966191516 | I78: 0.02645558793 | J78: =SUMIF(Obec_Grid!$B:$B,$A78,Obec_Grid!F:F)/$C78*1000 -> 5.057946651 | K78: =SUMIF(Obec_Grid!$B:$B,$A78,Obec_Grid!G:G)/$C78 -> 49.69178326 | L78: =SUMIF(Obec_Grid!$B:$B,$A78,Obec_Grid!H:H)/$C78 -> 110.6133913 | M78: =SUMIF(Obec_Grid!$B:$B,$A78,Obec_Grid!I:I)/$C78*1000 -> 4.156958578 | N78: =SUMIF(Obec_Grid!$B:$B,$A78,Obec_Grid!J:J)/$C78 -> 0.09892228307 | O78: =SUMIF(Obec_Grid!$B:$B,$A78,Obec_Grid!K:K)/$C78 -> 0.2120919779 | P78: =SUMIF(Obec_Grid!$B:$B,$A78,Obec_Grid!L:L)/$C78 -> 0.1420763551 | Q78: =SUMIF(Obec_Grid!$B:$B,$A78,Obec_Grid!M:M)/$C78 -> 0.04824211595
A79: 500933 | B79: =SUMIF(Obec_Grid!B:B,A79,Obec_Grid!D:D) -> 8321 | C79: =SUMIF(Obec_Grid!B:B,A79,Obec_Grid!E:E) -> 34 | D79: =F79*Pomocný!$C$14+G79*Pomocný!$C$12+H79*Pomocný!$C$15+I79*Pomocný!$C$13 -> 0.3024897263 | E79: 0.4722748366 | F79: 0.2125673079 | G79: 0.9429023828 | H79: 0.03848542893 | I79: 0.01600378554 | J79: =SUMIF(Obec_Grid!$B:$B,$A79,Obec_Grid!F:F)/$C79*1000 -> 24.57372278 | K79: =SUMIF(Obec_Grid!$B:$B,$A79,Obec_Grid!G:G)/$C79 -> 75.58662638 | L79: =SUMIF(Obec_Grid!$B:$B,$A79,Obec_Grid!H:H)/$C79 -> 21.65101302 | M79: =SUMIF(Obec_Grid!$B:$B,$A79,Obec_Grid!I:I)/$C79*1000 -> 2.536752311 | N79: =SUMIF(Obec_Grid!$B:$B,$A79,Obec_Grid!J:J)/$C79 -> 0.1615555338 | O79: =SUMIF(Obec_Grid!$B:$B,$A79,Obec_Grid!K:K)/$C79 -> 0.1483813759 | P79: =SUMIF(Obec_Grid!$B:$B,$A79,Obec_Grid!L:L)/$C79 -> 0.09846721443 | Q79: =SUMIF(Obec_Grid!$B:$B,$A79,Obec_Grid!M:M)/$C79 -> 0.02431211175
A80: 525146 | B80: =SUMIF(Obec_Grid!B:B,A80,Obec_Grid!D:D) -> 12306 | C80: =SUMIF(Obec_Grid!B:B,A80,Obec_Grid!E:E) -> 29 | D80: =F80*Pomocný!$C$14+G80*Pomocný!$C$12+H80*Pomocný!$C$15+I80*Pomocný!$C$13 -> 0.2775164411 | E80: 0.4332799996 | F80: 0.1598424507 | G80: 0.8827407547 | H80: 0.02050836367 | I80: 0.04697419547 | J80: =SUMIF(Obec_Grid!$B:$B,$A80,Obec_Grid!F:F)/$C80*1000 -> 18.50049192 | K80: =SUMIF(Obec_Grid!$B:$B,$A80,Obec_Grid!G:G)/$C80 -> 148.1725296 | L80: =SUMIF(Obec_Grid!$B:$B,$A80,Obec_Grid!H:H)/$C80 -> 11.53753151 | M80: =SUMIF(Obec_Grid!$B:$B,$A80,Obec_Grid!I:I)/$C80*1000 -> 7.337690021 | N80: =SUMIF(Obec_Grid!$B:$B,$A80,Obec_Grid!J:J)/$C80 -> 0.3816260886 | O80: =SUMIF(Obec_Grid!$B:$B,$A80,Obec_Grid!K:K)/$C80 -> 0.1914042929 | P80: =SUMIF(Obec_Grid!$B:$B,$A80,Obec_Grid!L:L)/$C80 -> 0.04570086635 | Q80: =SUMIF(Obec_Grid!$B:$B,$A80,Obec_Grid!M:M)/$C80 -> 0.06381444783
A81: 513016 | B81: =SUMIF(Obec_Grid!B:B,A81,Obec_Grid!D:D) -> 22643 | C81: =SUMIF(Obec_Grid!B:B,A81,Obec_Grid!E:E) -> 35 | D81: =F81*Pomocný!$C$14+G81*Pomocný!$C$12+H81*Pomocný!$C$15+I81*Pomocný!$C$13 -> 0.252712426 | E81: 0.3945494712 | F81: 0.08984947845 | G81: 0.8476940244 | H81: 0.03120386862 | I81: 0.0421023324 | J81: =SUMIF(Obec_Grid!$B:$B,$A81,Obec_Grid!F:F)/$C81*1000 -> 10.43819451 | K81: =SUMIF(Obec_Grid!$B:$B,$A81,Obec_Grid!G:G)/$C81 -> 190.4569334 | L81: =SUMIF(Obec_Grid!$B:$B,$A81,Obec_Grid!H:H)/$C81 -> 17.55457544 | M81: =SUMIF(Obec_Grid!$B:$B,$A81,Obec_Grid!I:I)/$C81*1000 -> 6.58246879 | N81: =SUMIF(Obec_Grid!$B:$B,$A81,Obec_Grid!J:J)/$C81 -> 0.137821145 | O81: =SUMIF(Obec_Grid!$B:$B,$A81,Obec_Grid!K:K)/$C81 -> 0.1915883011 | P81: =SUMIF(Obec_Grid!$B:$B,$A81,Obec_Grid!L:L)/$C81 -> 0.1063961483 | Q81: =SUMIF(Obec_Grid!$B:$B,$A81,Obec_Grid!M:M)/$C81 -> 0.07493574664
A82: 526665 | B82: =SUMIF(Obec_Grid!B:B,A82,Obec_Grid!D:D) -> 15748 | C82: =SUMIF(Obec_Grid!B:B,A82,Obec_Grid!E:E) -> 31 | D82: =F82*Pomocný!$C$14+G82*Pomocný!$C$12+H82*Pomocný!$C$15+I82*Pomocný!$C$13 -> 0.2521202597 | E82: 0.3936248261 | F82: 0.05973924842 | G82: 0.9028757446 | H82: 0.02402873864 | I82: 0.02183730723 | J82: =SUMIF(Obec_Grid!$B:$B,$A82,Obec_Grid!F:F)/$C82*1000 -> 6.969880169 | K82: =SUMIF(Obec_Grid!$B:$B,$A82,Obec_Grid!G:G)/$C82 -> 123.8793634 | L82: =SUMIF(Obec_Grid!$B:$B,$A82,Obec_Grid!H:H)/$C82 -> 13.51801311 | M82: =SUMIF(Obec_Grid!$B:$B,$A82,Obec_Grid!I:I)/$C82*1000 -> 3.441046904 | N82: =SUMIF(Obec_Grid!$B:$B,$A82,Obec_Grid!J:J)/$C82 -> 0.2309202897 | O82: =SUMIF(Obec_Grid!$B:$B,$A82,Obec_Grid!K:K)/$C82 -> 0.1640391089 | P82: =SUMIF(Obec_Grid!$B:$B,$A82,Obec_Grid!L:L)/$C82 -> 0.1034880662 | Q82: =SUMIF(Obec_Grid!$B:$B,$A82,Obec_Grid!M:M)/$C82 -> 0.08681196815
A83: 525634 | B83: =SUMIF(Obec_Grid!B:B,A83,Obec_Grid!D:D) -> 4018 | C83: =SUMIF(Obec_Grid!B:B,A83,Obec_Grid!E:E) -> 24 | D83: =F83*Pomocný!$C$14+G83*Pomocný!$C$12+H83*Pomocný!$C$15+I83*Pomocný!$C$13 -> 0.545351006 | E83: 0.8514935083 | F83: 0.2089855566 | G83: 0.9722056399 | H83: 0.0002128274416 | I83: 1 | J83: =SUMIF(Obec_Grid!$B:$B,$A83,Obec_Grid!F:F)/$C83*1000 -> 24.16115074 | K83: =SUMIF(Obec_Grid!$B:$B,$A83,Obec_Grid!G:G)/$C83 -> 40.23180889 | L83: =SUMIF(Obec_Grid!$B:$B,$A83,Obec_Grid!H:H)/$C83 -> 0.1197318008 | M83: =SUMIF(Obec_Grid!$B:$B,$A83,Obec_Grid!I:I)/$C83*1000 -> 155.0728196 | N83: =SUMIF(Obec_Grid!$B:$B,$A83,Obec_Grid!J:J)/$C83 -> 0.1532353347 | O83: =SUMIF(Obec_Grid!$B:$B,$A83,Obec_Grid!K:K)/$C83 -> 0.07390854011 | P83: =SUMIF(Obec_Grid!$B:$B,$A83,Obec_Grid!L:L)/$C83 -> 0.0004665351995 | Q83: =SUMIF(Obec_Grid!$B:$B,$A83,Obec_Grid!M:M)/$C83 -> 0.4333318212
A84: 542652 | B84: =SUMIF(Obec_Grid!B:B,A84,Obec_Grid!D:D) -> 17816 | C84: =SUMIF(Obec_Grid!B:B,A84,Obec_Grid!E:E) -> 38 | D84: =F84*Pomocný!$C$14+G84*Pomocný!$C$12+H84*Pomocný!$C$15+I84*Pomocný!$C$13 -> 0.2591503898 | E84: 0.4046021075 | F84: 0.1162271804 | G84: 0.8759696993 | H84: 0.02765754095 | I84: 0.01674713875 | J84: =SUMIF(Obec_Grid!$B:$B,$A84,Obec_Grid!F:F)/$C84*1000 -> 13.47656924 | K84: =SUMIF(Obec_Grid!$B:$B,$A84,Obec_Grid!G:G)/$C84 -> 156.3419091 | L84: =SUMIF(Obec_Grid!$B:$B,$A84,Obec_Grid!H:H)/$C84 -> 15.55949344 | M84: =SUMIF(Obec_Grid!$B:$B,$A84,Obec_Grid!I:I)/$C84*1000 -> 2.65198464 | N84: =SUMIF(Obec_Grid!$B:$B,$A84,Obec_Grid!J:J)/$C84 -> 0.1430249492 | O84: =SUMIF(Obec_Grid!$B:$B,$A84,Obec_Grid!K:K)/$C84 -> 0.2055723136 | P84: =SUMIF(Obec_Grid!$B:$B,$A84,Obec_Grid!L:L)/$C84 -> 0.06060266235 | Q84: =SUMIF(Obec_Grid!$B:$B,$A84,Obec_Grid!M:M)/$C84 -> 0.02971785589
A85: 502782 | B85: =SUMIF(Obec_Grid!B:B,A85,Obec_Grid!D:D) -> 7422 | C85: =SUMIF(Obec_Grid!B:B,A85,Obec_Grid!E:E) -> 31 | D85: =F85*Pomocný!$C$14+G85*Pomocný!$C$12+H85*Pomocný!$C$15+I85*Pomocný!$C$13 -> 0.3302651569 | E85: 0.5156451174 | F85: 0.2131055818 | G85: 0.9518540939 | H85: 0.03168744453 | I85: 0.1244135072 | J85: =SUMIF(Obec_Grid!$B:$B,$A85,Obec_Grid!F:F)/$C85*1000 -> 24.63572507 | K85: =SUMIF(Obec_Grid!$B:$B,$A85,Obec_Grid!G:G)/$C85 -> 64.78625319 | L85: =SUMIF(Obec_Grid!$B:$B,$A85,Obec_Grid!H:H)/$C85 -> 17.82662408 | M85: =SUMIF(Obec_Grid!$B:$B,$A85,Obec_Grid!I:I)/$C85*1000 -> 19.342094 | N85: =SUMIF(Obec_Grid!$B:$B,$A85,Obec_Grid!J:J)/$C85 -> 0.1809164726 | O85: =SUMIF(Obec_Grid!$B:$B,$A85,Obec_Grid!K:K)/$C85 -> 0.1259845612 | P85: =SUMIF(Obec_Grid!$B:$B,$A85,Obec_Grid!L:L)/$C85 -> 0.104974275 | Q85: =SUMIF(Obec_Grid!$B:$B,$A85,Obec_Grid!M:M)/$C85 -> 0.1030342916
A86: 529371 | B86: =SUMIF(Obec_Grid!B:B,A86,Obec_Grid!D:D) -> 17860 | C86: =SUMIF(Obec_Grid!B:B,A86,Obec_Grid!E:E) -> 35 | D86: =F86*Pomocný!$C$14+G86*Pomocný!$C$12+H86*Pomocný!$C$15+I86*Pomocný!$C$13 -> 0.258642991 | E86: 0.4038098235 | F86: 0.04542345714 | G86: 0.8279624149 | H86: 0.0592715845 | I86: 0.1019145076 | J86: =SUMIF(Obec_Grid!$B:$B,$A86,Obec_Grid!F:F)/$C86*1000 -> 5.320883659 | K86: =SUMIF(Obec_Grid!$B:$B,$A86,Obec_Grid!G:G)/$C86 -> 214.2634151 | L86: =SUMIF(Obec_Grid!$B:$B,$A86,Obec_Grid!H:H)/$C86 -> 33.34482382 | M86: =SUMIF(Obec_Grid!$B:$B,$A86,Obec_Grid!I:I)/$C86*1000 -> 15.85436826 | N86: =SUMIF(Obec_Grid!$B:$B,$A86,Obec_Grid!J:J)/$C86 -> 0.09731837433 | O86: =SUMIF(Obec_Grid!$B:$B,$A86,Obec_Grid!K:K)/$C86 -> 0.2175072318 | P86: =SUMIF(Obec_Grid!$B:$B,$A86,Obec_Grid!L:L)/$C86 -> 0.09538434746 | Q86: =SUMIF(Obec_Grid!$B:$B,$A86,Obec_Grid!M:M)/$C86 -> 0.1546077507
A87: 503665 | B87: =SUMIF(Obec_Grid!B:B,A87,Obec_Grid!D:D) -> 15418 | C87: =SUMIF(Obec_Grid!B:B,A87,Obec_Grid!E:E) -> 42 | D87: =F87*Pomocný!$C$14+G87*Pomocný!$C$12+H87*Pomocný!$C$15+I87*Pomocný!$C$13 -> 0.2592931959 | E87: 0.4048250937 | F87: 0.08273715043 | G87: 0.8653165222 | H87: 0.07568024635 | I87: 0.01343886461 | J87: =SUMIF(Obec_Grid!$B:$B,$A87,Obec_Grid!F:F)/$C87*1000 -> 9.618945066 | K87: =SUMIF(Obec_Grid!$B:$B,$A87,Obec_Grid!G:G)/$C87 -> 169.1951265 | L87: =SUMIF(Obec_Grid!$B:$B,$A87,Obec_Grid!H:H)/$C87 -> 42.57595782 | M87: =SUMIF(Obec_Grid!$B:$B,$A87,Obec_Grid!I:I)/$C87*1000 -> 2.139146156 | N87: =SUMIF(Obec_Grid!$B:$B,$A87,Obec_Grid!J:J)/$C87 -> 0.09518054304 | O87: =SUMIF(Obec_Grid!$B:$B,$A87,Obec_Grid!K:K)/$C87 -> 0.2519329488 | P87: =SUMIF(Obec_Grid!$B:$B,$A87,Obec_Grid!L:L)/$C87 -> 0.08519159432 | Q87: =SUMIF(Obec_Grid!$B:$B,$A87,Obec_Grid!M:M)/$C87 -> 0.03177134772
A88: 507911 | B88: =SUMIF(Obec_Grid!B:B,A88,Obec_Grid!D:D) -> 6478 | C88: =SUMIF(Obec_Grid!B:B,A88,Obec_Grid!E:E) -> 32.72727273 | D88: =F88*Pomocný!$C$14+G88*Pomocný!$C$12+H88*Pomocný!$C$15+I88*Pomocný!$C$13 -> 0.2601238835 | E88: 0.4061221808 | F88: 0.0270235146 | G88: 0.9565234141 | H88: 0.04595322197 | I88: 0.01099538314 | J88: =SUMIF(Obec_Grid!$B:$B,$A88,Obec_Grid!F:F)/$C88*1000 -> 3.201445031 | K88: =SUMIF(Obec_Grid!$B:$B,$A88,Obec_Grid!G:G)/$C88 -> 59.15264859 | L88: =SUMIF(Obec_Grid!$B:$B,$A88,Obec_Grid!H:H)/$C88 -> 25.85222082 | M88: =SUMIF(Obec_Grid!$B:$B,$A88,Obec_Grid!I:I)/$C88*1000 -> 1.760365172 | N88: =SUMIF(Obec_Grid!$B:$B,$A88,Obec_Grid!J:J)/$C88 -> 0.156796339 | O88: =SUMIF(Obec_Grid!$B:$B,$A88,Obec_Grid!K:K)/$C88 -> 0.1670463757 | P88: =SUMIF(Obec_Grid!$B:$B,$A88,Obec_Grid!L:L)/$C88 -> 0.2592231131 | Q88: =SUMIF(Obec_Grid!$B:$B,$A88,Obec_Grid!M:M)/$C88 -> 0.07595510118
A89: 504025 | B89: =SUMIF(Obec_Grid!B:B,A89,Obec_Grid!D:D) -> 21374 | C89: =SUMIF(Obec_Grid!B:B,A89,Obec_Grid!E:E) -> 37 | D89: =F89*Pomocný!$C$14+G89*Pomocný!$C$12+H89*Pomocný!$C$15+I89*Pomocný!$C$13 -> 0.2609044345 | E89: 0.4073409816 | F89: 0.1065556129 | G89: 0.8243561211 | H89: 0.08445870983 | I89: 0.02824729409 | J89: =SUMIF(Obec_Grid!$B:$B,$A89,Obec_Grid!F:F)/$C89*1000 -> 12.36252806 | K89: =SUMIF(Obec_Grid!$B:$B,$A89,Obec_Grid!G:G)/$C89 -> 218.6144624 | L89: =SUMIF(Obec_Grid!$B:$B,$A89,Obec_Grid!H:H)/$C89 -> 47.51451853 | M89: =SUMIF(Obec_Grid!$B:$B,$A89,Obec_Grid!I:I)/$C89*1000 -> 4.434703356 | N89: =SUMIF(Obec_Grid!$B:$B,$A89,Obec_Grid!J:J)/$C89 -> 0.1341739179 | O89: =SUMIF(Obec_Grid!$B:$B,$A89,Obec_Grid!K:K)/$C89 -> 0.214525252 | P89: =SUMIF(Obec_Grid!$B:$B,$A89,Obec_Grid!L:L)/$C89 -> 0.1322320139 | Q89: =SUMIF(Obec_Grid!$B:$B,$A89,Obec_Grid!M:M)/$C89 -> 0.06949499606
A90: 501433 | B90: =SUMIF(Obec_Grid!B:B,A90,Obec_Grid!D:D) -> 22748 | C90: =SUMIF(Obec_Grid!B:B,A90,Obec_Grid!E:E) -> 49 | D90: =F90*Pomocný!$C$14+G90*Pomocný!$C$12+H90*Pomocný!$C$15+I90*Pomocný!$C$13 -> 0.2181012371 | E90: 0.3405054132 | F90: 0.01980862915 | G90: 0.83916658 | H90: 0.00873895515 | I90: 0.004690784007 | J90: =SUMIF(Obec_Grid!$B:$B,$A90,Obec_Grid!F:F)/$C90*1000 -> 2.370382277 | K90: =SUMIF(Obec_Grid!$B:$B,$A90,Obec_Grid!G:G)/$C90 -> 200.7454224 | L90: =SUMIF(Obec_Grid!$B:$B,$A90,Obec_Grid!H:H)/$C90 -> 4.916334233 | M90: =SUMIF(Obec_Grid!$B:$B,$A90,Obec_Grid!I:I)/$C90*1000 -> 0.7830456017 | N90: =SUMIF(Obec_Grid!$B:$B,$A90,Obec_Grid!J:J)/$C90 -> 0.1095775191 | O90: =SUMIF(Obec_Grid!$B:$B,$A90,Obec_Grid!K:K)/$C90 -> 0.3265667831 | P90: =SUMIF(Obec_Grid!$B:$B,$A90,Obec_Grid!L:L)/$C90 -> 0.04982611772 | Q90: =SUMIF(Obec_Grid!$B:$B,$A90,Obec_Grid!M:M)/$C90 -> 0.0208854308
A91: 508063 | B91: =SUMIF(Obec_Grid!B:B,A91,Obec_Grid!D:D) -> 18874 | C91: =SUMIF(Obec_Grid!B:B,A91,Obec_Grid!E:E) -> 44 | D91: =F91*Pomocný!$C$14+G91*Pomocný!$C$12+H91*Pomocný!$C$15+I91*Pomocný!$C$13 -> 0.2325517567 | E91: 0.3630693512 | F91: 0.01818922238 | G91: 0.8354755511 | H91: 0.008214875955 | I91: 0.06832737724 | J91: =SUMIF(Obec_Grid!$B:$B,$A91,Obec_Grid!F:F)/$C91*1000 -> 2.183847278 | K91: =SUMIF(Obec_Grid!$B:$B,$A91,Obec_Grid!G:G)/$C91 -> 205.198704 | L91: =SUMIF(Obec_Grid!$B:$B,$A91,Obec_Grid!H:H)/$C91 -> 4.621499388 | M91: =SUMIF(Obec_Grid!$B:$B,$A91,Obec_Grid!I:I)/$C91*1000 -> 10.6477946 | N91: =SUMIF(Obec_Grid!$B:$B,$A91,Obec_Grid!J:J)/$C91 -> 0.05890924022 | O91: =SUMIF(Obec_Grid!$B:$B,$A91,Obec_Grid!K:K)/$C91 -> 0.290760165 | P91: =SUMIF(Obec_Grid!$B:$B,$A91,Obec_Grid!L:L)/$C91 -> 0.03818450438 | Q91: =SUMIF(Obec_Grid!$B:$B,$A91,Obec_Grid!M:M)/$C91 -> 0.1232408649
A92: 511391 | B92: =SUMIF(Obec_Grid!B:B,A92,Obec_Grid!D:D) -> 10069 | C92: =SUMIF(Obec_Grid!B:B,A92,Obec_Grid!E:E) -> 32 | D92: =F92*Pomocný!$C$14+G92*Pomocný!$C$12+H92*Pomocný!$C$15+I92*Pomocný!$C$13 -> 0.3503757646 | E92: 0.5470470682 | F92: 0.2286907521 | G92: 0.915195648 | H92: 0.002723355787 | I92: 0.2548933027 | J92: =SUMIF(Obec_Grid!$B:$B,$A92,Obec_Grid!F:F)/$C92*1000 -> 26.43093785 | K92: =SUMIF(Obec_Grid!$B:$B,$A92,Obec_Grid!G:G)/$C92 -> 109.0152159 | L92: =SUMIF(Obec_Grid!$B:$B,$A92,Obec_Grid!H:H)/$C92 -> 1.532097036 | M92: =SUMIF(Obec_Grid!$B:$B,$A92,Obec_Grid!I:I)/$C92*1000 -> 39.56867066 | N92: =SUMIF(Obec_Grid!$B:$B,$A92,Obec_Grid!J:J)/$C92 -> 0.177848476 | O92: =SUMIF(Obec_Grid!$B:$B,$A92,Obec_Grid!K:K)/$C92 -> 0.1415287302 | P92: =SUMIF(Obec_Grid!$B:$B,$A92,Obec_Grid!L:L)/$C92 -> 0.009296237165 | Q92: =SUMIF(Obec_Grid!$B:$B,$A92,Obec_Grid!M:M)/$C92 -> 0.1809389822
A93: 504351 | B93: =SUMIF(Obec_Grid!B:B,A93,Obec_Grid!D:D) -> 4685 | C93: =SUMIF(Obec_Grid!B:B,A93,Obec_Grid!E:E) -> 34 | D93: =F93*Pomocný!$C$14+G93*Pomocný!$C$12+H93*Pomocný!$C$15+I93*Pomocný!$C$13 -> 0.3234965186 | E93: 0.5050761457 | F93: 0.09102747571 | G93: 0.9700196798 | H93: 0.01564417599 | I93: 0.2172947431 | J93: =SUMIF(Obec_Grid!$B:$B,$A93,Obec_Grid!F:F)/$C93*1000 -> 10.57388477 | K93: =SUMIF(Obec_Grid!$B:$B,$A93,Obec_Grid!G:G)/$C93 -> 42.86920238 | L93: =SUMIF(Obec_Grid!$B:$B,$A93,Obec_Grid!H:H)/$C93 -> 8.801051916 | M93: =SUMIF(Obec_Grid!$B:$B,$A93,Obec_Grid!I:I)/$C93*1000 -> 33.74025756 | N93: =SUMIF(Obec_Grid!$B:$B,$A93,Obec_Grid!J:J)/$C93 -> 0.08669627512 | O93: =SUMIF(Obec_Grid!$B:$B,$A93,Obec_Grid!K:K)/$C93 -> 0.1406371956 | P93: =SUMIF(Obec_Grid!$B:$B,$A93,Obec_Grid!L:L)/$C93 -> 0.01074026863 | Q93: =SUMIF(Obec_Grid!$B:$B,$A93,Obec_Grid!M:M)/$C93 -> 0.2027699231
A94: 527840 | B94: =SUMIF(Obec_Grid!B:B,A94,Obec_Grid!D:D) -> 10307 | C94: =SUMIF(Obec_Grid!B:B,A94,Obec_Grid!E:E) -> 31 | D94: =F94*Pomocný!$C$14+G94*Pomocný!$C$12+H94*Pomocný!$C$15+I94*Pomocný!$C$13 -> 0.2618347502 | E94: 0.4087936342 | F94: 0.08341428356 | G94: 0.9060168024 | H94: 0.03223755999 | I94: 0.02567035472 | J94: =SUMIF(Obec_Grid!$B:$B,$A94,Obec_Grid!F:F)/$C94*1000 -> 9.696942164 | K94: =SUMIF(Obec_Grid!$B:$B,$A94,Obec_Grid!G:G)/$C94 -> 120.0896303 | L94: =SUMIF(Obec_Grid!$B:$B,$A94,Obec_Grid!H:H)/$C94 -> 18.13610632 | M94: =SUMIF(Obec_Grid!$B:$B,$A94,Obec_Grid!I:I)/$C94*1000 -> 4.03523414 | N94: =SUMIF(Obec_Grid!$B:$B,$A94,Obec_Grid!J:J)/$C94 -> 0.3574467068 | O94: =SUMIF(Obec_Grid!$B:$B,$A94,Obec_Grid!K:K)/$C94 -> 0.1566227769 | P94: =SUMIF(Obec_Grid!$B:$B,$A94,Obec_Grid!L:L)/$C94 -> 0.1569672673 | Q94: =SUMIF(Obec_Grid!$B:$B,$A94,Obec_Grid!M:M)/$C94 -> 0.07935576017
A95: 529354 | B95: =SUMIF(Obec_Grid!B:B,A95,Obec_Grid!D:D) -> 24560 | C95: =SUMIF(Obec_Grid!B:B,A95,Obec_Grid!E:E) -> 41.32246661 | D95: =F95*Pomocný!$C$14+G95*Pomocný!$C$12+H95*Pomocný!$C$15+I95*Pomocný!$C$13 -> 0.2554779771 | E95: 0.3988677743 | F95: 0.08175866119 | G95: 0.800629696 | H95: 0.02105179219 | I95: 0.1184717588 | J95: =SUMIF(Obec_Grid!$B:$B,$A95,Obec_Grid!F:F)/$C95*1000 -> 9.506235589 | K95: =SUMIF(Obec_Grid!$B:$B,$A95,Obec_Grid!G:G)/$C95 -> 247.2407487 | L95: =SUMIF(Obec_Grid!$B:$B,$A95,Obec_Grid!H:H)/$C95 -> 11.84325184 | M95: =SUMIF(Obec_Grid!$B:$B,$A95,Obec_Grid!I:I)/$C95*1000 -> 18.42102243 | N95: =SUMIF(Obec_Grid!$B:$B,$A95,Obec_Grid!J:J)/$C95 -> 0.1521836506 | O95: =SUMIF(Obec_Grid!$B:$B,$A95,Obec_Grid!K:K)/$C95 -> 0.2906591461 | P95: =SUMIF(Obec_Grid!$B:$B,$A95,Obec_Grid!L:L)/$C95 -> 0.03516389625 | Q95: =SUMIF(Obec_Grid!$B:$B,$A95,Obec_Grid!M:M)/$C95 -> 0.1471001316
A96: 501905 | B96: =SUMIF(Obec_Grid!B:B,A96,Obec_Grid!D:D) -> 13698 | C96: =SUMIF(Obec_Grid!B:B,A96,Obec_Grid!E:E) -> 40 | D96: =F96*Pomocný!$C$14+G96*Pomocný!$C$12+H96*Pomocný!$C$15+I96*Pomocný!$C$13 -> 0.3169944447 | E96: 0.4949234039 | F96: 0.1163440722 | G96: 0.8935133161 | H96: 0.2200007079 | I96: 0.03811968237 | J96: =SUMIF(Obec_Grid!$B:$B,$A96,Obec_Grid!F:F)/$C96*1000 -> 13.49003369 | K96: =SUMIF(Obec_Grid!$B:$B,$A96,Obec_Grid!G:G)/$C96 -> 135.1752733 | L96: =SUMIF(Obec_Grid!$B:$B,$A96,Obec_Grid!H:H)/$C96 -> 123.7673146 | M96: =SUMIF(Obec_Grid!$B:$B,$A96,Obec_Grid!I:I)/$C96*1000 -> 5.965090629 | N96: =SUMIF(Obec_Grid!$B:$B,$A96,Obec_Grid!J:J)/$C96 -> 0.1034652565 | O96: =SUMIF(Obec_Grid!$B:$B,$A96,Obec_Grid!K:K)/$C96 -> 0.2038214312 | P96: =SUMIF(Obec_Grid!$B:$B,$A96,Obec_Grid!L:L)/$C96 -> 0.372802845 | Q96: =SUMIF(Obec_Grid!$B:$B,$A96,Obec_Grid!M:M)/$C96 -> 0.02888654381
A97: 520471 | B97: =SUMIF(Obec_Grid!B:B,A97,Obec_Grid!D:D) -> 5971 | C97: =SUMIF(Obec_Grid!B:B,A97,Obec_Grid!E:E) -> 28 | D97: =F97*Pomocný!$C$14+G97*Pomocný!$C$12+H97*Pomocný!$C$15+I97*Pomocný!$C$13 -> 0.3227922633 | E97: 0.5039764776 | F97: 0.221678468 | G97: 0.9668286097 | H97: 0.004973682625 | I97: 0.09768829274 | J97: =SUMIF(Obec_Grid!$B:$B,$A97,Obec_Grid!F:F)/$C97*1000 -> 25.62321219 | K97: =SUMIF(Obec_Grid!$B:$B,$A97,Obec_Grid!G:G)/$C97 -> 46.71927618 | L97: =SUMIF(Obec_Grid!$B:$B,$A97,Obec_Grid!H:H)/$C97 -> 2.798078916 | M97: =SUMIF(Obec_Grid!$B:$B,$A97,Obec_Grid!I:I)/$C97*1000 -> 15.19923343 | N97: =SUMIF(Obec_Grid!$B:$B,$A97,Obec_Grid!J:J)/$C97 -> 0.3830725379 | O97: =SUMIF(Obec_Grid!$B:$B,$A97,Obec_Grid!K:K)/$C97 -> 0.1052368882 | P97: =SUMIF(Obec_Grid!$B:$B,$A97,Obec_Grid!L:L)/$C97 -> 0.008734490942 | Q97: =SUMIF(Obec_Grid!$B:$B,$A97,Obec_Grid!M:M)/$C97 -> 0.2101137764
A98: 516970 | B98: =SUMIF(Obec_Grid!B:B,A98,Obec_Grid!D:D) -> 4916 | C98: =SUMIF(Obec_Grid!B:B,A98,Obec_Grid!E:E) -> 28 | D98: =F98*Pomocný!$C$14+G98*Pomocný!$C$12+H98*Pomocný!$C$15+I98*Pomocný!$C$13 -> 0.4172414057 | E98: 0.6514552291 | F98: 0.1984275861 | G98: 0.9791899061 | H98: 0.0007983453374 | I98: 0.4905497852 | J98: =SUMIF(Obec_Grid!$B:$B,$A98,Obec_Grid!F:F)/$C98*1000 -> 22.94500724 | K98: =SUMIF(Obec_Grid!$B:$B,$A98,Obec_Grid!G:G)/$C98 -> 31.80518733 | L98: =SUMIF(Obec_Grid!$B:$B,$A98,Obec_Grid!H:H)/$C98 -> 0.4491306391 | M98: =SUMIF(Obec_Grid!$B:$B,$A98,Obec_Grid!I:I)/$C98*1000 -> 76.0994139 | N98: =SUMIF(Obec_Grid!$B:$B,$A98,Obec_Grid!J:J)/$C98 -> 0.120459976 | O98: =SUMIF(Obec_Grid!$B:$B,$A98,Obec_Grid!K:K)/$C98 -> 0.08496243302 | P98: =SUMIF(Obec_Grid!$B:$B,$A98,Obec_Grid!L:L)/$C98 -> 0.005539227213 | Q98: =SUMIF(Obec_Grid!$B:$B,$A98,Obec_Grid!M:M)/$C98 -> 0.451607557
A99: 506338 | B99: =SUMIF(Obec_Grid!B:B,A99,Obec_Grid!D:D) -> 19635 | C99: =SUMIF(Obec_Grid!B:B,A99,Obec_Grid!E:E) -> 44 | D99: =F99*Pomocný!$C$14+G99*Pomocný!$C$12+H99*Pomocný!$C$15+I99*Pomocný!$C$13 -> 0.2556554995 | E99: =(D99-MIN($D$3:$D$174))/(MAX($D$3:$D$174)-MIN($D$3:$D$174)) -> 0.3991449688 | F99: =(J99-MIN(J$3:J$174))/(MAX(J$3:J$174)-MIN(J$3:J$174)) -> 0.1182037755 | G99: 0.841306627 | H99: =(L99-MIN(L$3:L$174))/(MAX(L$3:L$174)-MIN(L$3:L$174)) -> 0.0505824881 | I99: =(M99-MIN(M$3:M$174))/(MAX(M$3:M$174)-MIN(M$3:M$174)) -> 0.01252910721 | J99: =SUMIF(Obec_Grid!$B:$B,$A99,Obec_Grid!F:F)/$C99*1000 -> 13.70424778 | K99: =SUMIF(Obec_Grid!$B:$B,$A99,Obec_Grid!G:G)/$C99 -> 198.1634237 | L99: =SUMIF(Obec_Grid!$B:$B,$A99,Obec_Grid!H:H)/$C99 -> 28.45653897 | M99: =SUMIF(Obec_Grid!$B:$B,$A99,Obec_Grid!I:I)/$C99*1000 -> 1.99811836 | N99: =SUMIF(Obec_Grid!$B:$B,$A99,Obec_Grid!J:J)/$C99 -> 0.1917364339 | O99: =SUMIF(Obec_Grid!$B:$B,$A99,Obec_Grid!K:K)/$C99 -> 0.3009484306 | P99: =SUMIF(Obec_Grid!$B:$B,$A99,Obec_Grid!L:L)/$C99 -> 0.1613766574 | Q99: =SUMIF(Obec_Grid!$B:$B,$A99,Obec_Grid!M:M)/$C99 -> 0.03641245403
A100: 507814 | B100: =SUMIF(Obec_Grid!B:B,A100,Obec_Grid!D:D) -> 8011 | C100: =SUMIF(Obec_Grid!B:B,A100,Obec_Grid!E:E) -> 38.27272727 | D100: =F100*Pomocný!$C$14+G100*Pomocný!$C$12+H100*Pomocný!$C$15+I100*Pomocný!$C$13 -> 0.3056572883 | E100: 0.4772208645 | F100: 0.1544489927 | G100: 0.9566866177 | H100: 0.0680944654 | I100: 0.04339907739 | J100: =SUMIF(Obec_Grid!$B:$B,$A100,Obec_Grid!F:F)/$C100*1000 -> 17.87923437 | K100: =SUMIF(Obec_Grid!$B:$B,$A100,Obec_Grid!G:G)/$C100 -> 58.95574101 | L100: =SUMIF(Obec_Grid!$B:$B,$A100,Obec_Grid!H:H)/$C100 -> 38.30837274 | M100: =SUMIF(Obec_Grid!$B:$B,$A100,Obec_Grid!I:I)/$C100*1000 -> 6.783486211 | N100: =SUMIF(Obec_Grid!$B:$B,$A100,Obec_Grid!J:J)/$C100 -> 0.1751520583 | O100: =SUMIF(Obec_Grid!$B:$B,$A100,Obec_Grid!K:K)/$C100 -> 0.1710148504 | P100: =SUMIF(Obec_Grid!$B:$B,$A100,Obec_Grid!L:L)/$C100 -> 0.1377324664 | Q100: =SUMIF(Obec_Grid!$B:$B,$A100,Obec_Grid!M:M)/$C100 -> 0.07329182813
A101: 501573 | B101: =SUMIF(Obec_Grid!B:B,A101,Obec_Grid!D:D) -> 5258 | C101: =SUMIF(Obec_Grid!B:B,A101,Obec_Grid!E:E) -> 36 | D101: =F101*Pomocný!$C$14+G101*Pomocný!$C$12+H101*Pomocný!$C$15+I101*Pomocný!$C$13 -> 0.37875984 | E101: 0.5913677247 | F101: 0.1517475097 | G101: 0.9726751259 | H101: 0.1799066196 | I101: 0.2107101046 | J101: =SUMIF(Obec_Grid!$B:$B,$A101,Obec_Grid!F:F)/$C101*1000 -> 17.568058 | K101: =SUMIF(Obec_Grid!$B:$B,$A101,Obec_Grid!G:G)/$C101 -> 39.66536695 | L101: =SUMIF(Obec_Grid!$B:$B,$A101,Obec_Grid!H:H)/$C101 -> 101.211307 | M101: =SUMIF(Obec_Grid!$B:$B,$A101,Obec_Grid!I:I)/$C101*1000 -> 32.71952716 | N101: =SUMIF(Obec_Grid!$B:$B,$A101,Obec_Grid!J:J)/$C101 -> 0.08968808915 | O101: =SUMIF(Obec_Grid!$B:$B,$A101,Obec_Grid!K:K)/$C101 -> 0.1242999147 | P101: =SUMIF(Obec_Grid!$B:$B,$A101,Obec_Grid!L:L)/$C101 -> 0.2129048545 | Q101: =SUMIF(Obec_Grid!$B:$B,$A101,Obec_Grid!M:M)/$C101 -> 0.1686935007
A102: 504203 | B102: =SUMIF(Obec_Grid!B:B,A102,Obec_Grid!D:D) -> 18331 | C102: =SUMIF(Obec_Grid!B:B,A102,Obec_Grid!E:E) -> 49 | D102: =F102*Pomocný!$C$14+G102*Pomocný!$C$12+H102*Pomocný!$C$15+I102*Pomocný!$C$13 -> 0.2449829627 | E102: 0.3824802077 | F102: 0.04777452853 | G102: 0.890481691 | H102: 0.005204038503 | I102: 0.03647159293 | J102: =SUMIF(Obec_Grid!$B:$B,$A102,Obec_Grid!F:F)/$C102*1000 -> 5.591697087 | K102: =SUMIF(Obec_Grid!$B:$B,$A102,Obec_Grid!G:G)/$C102 -> 138.8329743 | L102: =SUMIF(Obec_Grid!$B:$B,$A102,Obec_Grid!H:H)/$C102 -> 2.92767181 | M102: =SUMIF(Obec_Grid!$B:$B,$A102,Obec_Grid!I:I)/$C102*1000 -> 5.709608872 | N102: =SUMIF(Obec_Grid!$B:$B,$A102,Obec_Grid!J:J)/$C102 -> 0.07202725623 | O102: =SUMIF(Obec_Grid!$B:$B,$A102,Obec_Grid!K:K)/$C102 -> 0.2079593693 | P102: =SUMIF(Obec_Grid!$B:$B,$A102,Obec_Grid!L:L)/$C102 -> 0.007075024809 | Q102: =SUMIF(Obec_Grid!$B:$B,$A102,Obec_Grid!M:M)/$C102 -> 0.06173164036
A103: 529311 | B103: =SUMIF(Obec_Grid!B:B,A103,Obec_Grid!D:D) -> 24109 | C103: =SUMIF(Obec_Grid!B:B,A103,Obec_Grid!E:E) -> 44.62418901 | D103: =F103*Pomocný!$C$14+G103*Pomocný!$C$12+H103*Pomocný!$C$15+I103*Pomocný!$C$13 -> 0.2733626516 | E103: 0.4267940148 | F103: 0.06413691369 | G103: 0.8024507367 | H103: 0.1328074691 | I103: 0.09405548683 | J103: =SUMIF(Obec_Grid!$B:$B,$A103,Obec_Grid!F:F)/$C103*1000 -> 7.476435102 | K103: =SUMIF(Obec_Grid!$B:$B,$A103,Obec_Grid!G:G)/$C103 -> 245.0436359 | L103: =SUMIF(Obec_Grid!$B:$B,$A103,Obec_Grid!H:H)/$C103 -> 74.71441327 | M103: =SUMIF(Obec_Grid!$B:$B,$A103,Obec_Grid!I:I)/$C103*1000 -> 14.63608703 | N103: =SUMIF(Obec_Grid!$B:$B,$A103,Obec_Grid!J:J)/$C103 -> 0.09046275961 | O103: =SUMIF(Obec_Grid!$B:$B,$A103,Obec_Grid!K:K)/$C103 -> 0.2277097219 | P103: =SUMIF(Obec_Grid!$B:$B,$A103,Obec_Grid!L:L)/$C103 -> 0.1893256482 | Q103: =SUMIF(Obec_Grid!$B:$B,$A103,Obec_Grid!M:M)/$C103 -> 0.08822638086
A104: 500968 | B104: =SUMIF(Obec_Grid!B:B,A104,Obec_Grid!D:D) -> 12262 | C104: =SUMIF(Obec_Grid!B:B,A104,Obec_Grid!E:E) -> 41 | D104: =F104*Pomocný!$C$14+G104*Pomocný!$C$12+H104*Pomocný!$C$15+I104*Pomocný!$C$13 -> 0.2666713813 | E104: 0.4163458503 | F104: 0.09897918601 | G104: 0.9269832198 | H104: 0.01300977349 | I104: 0.02771334609 | J104: =SUMIF(Obec_Grid!$B:$B,$A104,Obec_Grid!F:F)/$C104*1000 -> 11.48982034 | K104: =SUMIF(Obec_Grid!$B:$B,$A104,Obec_Grid!G:G)/$C104 -> 94.79333445 | L104: =SUMIF(Obec_Grid!$B:$B,$A104,Obec_Grid!H:H)/$C104 -> 7.318997943 | M104: =SUMIF(Obec_Grid!$B:$B,$A104,Obec_Grid!I:I)/$C104*1000 -> 4.351932379 | N104: =SUMIF(Obec_Grid!$B:$B,$A104,Obec_Grid!J:J)/$C104 -> 0.2166386897 | O104: =SUMIF(Obec_Grid!$B:$B,$A104,Obec_Grid!K:K)/$C104 -> 0.1848244649 | P104: =SUMIF(Obec_Grid!$B:$B,$A104,Obec_Grid!L:L)/$C104 -> 0.03953731581 | Q104: =SUMIF(Obec_Grid!$B:$B,$A104,Obec_Grid!M:M)/$C104 -> 0.05623225314
A105: 504998 | B105: =SUMIF(Obec_Grid!B:B,A105,Obec_Grid!D:D) -> 25536 | C105: =SUMIF(Obec_Grid!B:B,A105,Obec_Grid!E:E) -> 51 | D105: =F105*Pomocný!$C$14+G105*Pomocný!$C$12+H105*Pomocný!$C$15+I105*Pomocný!$C$13 -> 0.2329513255 | E105: 0.3636932628 | F105: 0.02132863678 | G105: 0.8383541846 | H105: 0.04997999769 | I105: 0.02214248292 | J105: =SUMIF(Obec_Grid!$B:$B,$A105,Obec_Grid!F:F)/$C105*1000 -> 2.545467763 | K105: =SUMIF(Obec_Grid!$B:$B,$A105,Obec_Grid!G:G)/$C105 -> 201.7255896 | L105: =SUMIF(Obec_Grid!$B:$B,$A105,Obec_Grid!H:H)/$C105 -> 28.11759179 | M105: =SUMIF(Obec_Grid!$B:$B,$A105,Obec_Grid!I:I)/$C105*1000 -> 3.488354302 | N105: =SUMIF(Obec_Grid!$B:$B,$A105,Obec_Grid!J:J)/$C105 -> 0.1199985333 | O105: =SUMIF(Obec_Grid!$B:$B,$A105,Obec_Grid!K:K)/$C105 -> 0.258526785 | P105: =SUMIF(Obec_Grid!$B:$B,$A105,Obec_Grid!L:L)/$C105 -> 0.04273491455 | Q105: =SUMIF(Obec_Grid!$B:$B,$A105,Obec_Grid!M:M)/$C105 -> 0.0367522609
A106: 525529 | B106: =SUMIF(Obec_Grid!B:B,A106,Obec_Grid!D:D) -> 18034 | C106: =SUMIF(Obec_Grid!B:B,A106,Obec_Grid!E:E) -> 40 | D106: =F106*Pomocný!$C$14+G106*Pomocný!$C$12+H106*Pomocný!$C$15+I106*Pomocný!$C$13 -> 0.2661017459 | E106: 0.4154563862 | F106: 0.08564517899 | G106: 0.8778567413 | H106: 0.003624635554 | I106: 0.09728042778 | J106: =SUMIF(Obec_Grid!$B:$B,$A106,Obec_Grid!F:F)/$C106*1000 -> 9.953912854 | K106: =SUMIF(Obec_Grid!$B:$B,$A106,Obec_Grid!G:G)/$C106 -> 154.0651647 | L106: =SUMIF(Obec_Grid!$B:$B,$A106,Obec_Grid!H:H)/$C106 -> 2.039136207 | M106: =SUMIF(Obec_Grid!$B:$B,$A106,Obec_Grid!I:I)/$C106*1000 -> 15.13600746 | N106: =SUMIF(Obec_Grid!$B:$B,$A106,Obec_Grid!J:J)/$C106 -> 0.173600021 | O106: =SUMIF(Obec_Grid!$B:$B,$A106,Obec_Grid!K:K)/$C106 -> 0.2139533562 | P106: =SUMIF(Obec_Grid!$B:$B,$A106,Obec_Grid!L:L)/$C106 -> 0.022041997 | Q106: =SUMIF(Obec_Grid!$B:$B,$A106,Obec_Grid!M:M)/$C106 -> 0.1896331052
A107: 510025 | B107: =SUMIF(Obec_Grid!B:B,A107,Obec_Grid!D:D) -> 4950 | C107: =SUMIF(Obec_Grid!B:B,A107,Obec_Grid!E:E) -> 33 | D107: =F107*Pomocný!$C$14+G107*Pomocný!$C$12+H107*Pomocný!$C$15+I107*Pomocný!$C$13 -> 0.3870036625 | E107: 0.6042401407 | F107: 0.4180903281 | G107: 0.9879180045 | H107: 1.159344972e-05 | I107: 0.141994724 | J107: =SUMIF(Obec_Grid!$B:$B,$A107,Obec_Grid!F:F)/$C107*1000 -> 48.24735259 | K107: =SUMIF(Obec_Grid!$B:$B,$A107,Obec_Grid!G:G)/$C107 -> 21.27460615 | L107: =SUMIF(Obec_Grid!$B:$B,$A107,Obec_Grid!H:H)/$C107 -> 0.006522206918 | M107: =SUMIF(Obec_Grid!$B:$B,$A107,Obec_Grid!I:I)/$C107*1000 -> 22.06748015 | N107: =SUMIF(Obec_Grid!$B:$B,$A107,Obec_Grid!J:J)/$C107 -> 0.3750969081 | O107: =SUMIF(Obec_Grid!$B:$B,$A107,Obec_Grid!K:K)/$C107 -> 0.07409644334 | P107: =SUMIF(Obec_Grid!$B:$B,$A107,Obec_Grid!L:L)/$C107 -> 0.0004119711206 | Q107: =SUMIF(Obec_Grid!$B:$B,$A107,Obec_Grid!M:M)/$C107 -> 0.08792529221
A108: 509256 | B108: =SUMIF(Obec_Grid!B:B,A108,Obec_Grid!D:D) -> 14311 | C108: =SUMIF(Obec_Grid!B:B,A108,Obec_Grid!E:E) -> 34.85390071 | D108: =F108*Pomocný!$C$14+G108*Pomocný!$C$12+H108*Pomocný!$C$15+I108*Pomocný!$C$13 -> 0.3459441563 | E108: 0.54012728 | F108: 0.2686816073 | G108: 0.8918005767 | H108: 0.1178209162 | I108: 0.1054735251 | J108: =SUMIF(Obec_Grid!$B:$B,$A108,Obec_Grid!F:F)/$C108*1000 -> 31.03737416 | K108: =SUMIF(Obec_Grid!$B:$B,$A108,Obec_Grid!G:G)/$C108 -> 137.241719 | L108: =SUMIF(Obec_Grid!$B:$B,$A108,Obec_Grid!H:H)/$C108 -> 66.28332491 | M108: =SUMIF(Obec_Grid!$B:$B,$A108,Obec_Grid!I:I)/$C108*1000 -> 16.40607621 | N108: =SUMIF(Obec_Grid!$B:$B,$A108,Obec_Grid!J:J)/$C108 -> 0.2829676751 | O108: =SUMIF(Obec_Grid!$B:$B,$A108,Obec_Grid!K:K)/$C108 -> 0.1569334483 | P108: =SUMIF(Obec_Grid!$B:$B,$A108,Obec_Grid!L:L)/$C108 -> 0.0870477335 | Q108: =SUMIF(Obec_Grid!$B:$B,$A108,Obec_Grid!M:M)/$C108 -> 0.1698456301
A109: 508233 | B109: =SUMIF(Obec_Grid!B:B,A109,Obec_Grid!D:D) -> 11642 | C109: =SUMIF(Obec_Grid!B:B,A109,Obec_Grid!E:E) -> 42 | D109: =F109*Pomocný!$C$14+G109*Pomocný!$C$12+H109*Pomocný!$C$15+I109*Pomocný!$C$13 -> 0.2825596513 | E109: 0.4411547808 | F109: 0.06529556795 | G109: 0.9220027326 | H109: 0.002438196303 | I109: 0.1405021083 | J109: =SUMIF(Obec_Grid!$B:$B,$A109,Obec_Grid!F:F)/$C109*1000 -> 7.60989729 | K109: =SUMIF(Obec_Grid!$B:$B,$A109,Obec_Grid!G:G)/$C109 -> 100.8023666 | L109: =SUMIF(Obec_Grid!$B:$B,$A109,Obec_Grid!H:H)/$C109 -> 1.3716729 | M109: =SUMIF(Obec_Grid!$B:$B,$A109,Obec_Grid!I:I)/$C109*1000 -> 21.83609947 | N109: =SUMIF(Obec_Grid!$B:$B,$A109,Obec_Grid!J:J)/$C109 -> 0.08414613212 | O109: =SUMIF(Obec_Grid!$B:$B,$A109,Obec_Grid!K:K)/$C109 -> 0.1816392129 | P109: =SUMIF(Obec_Grid!$B:$B,$A109,Obec_Grid!L:L)/$C109 -> 0.005902400944 | Q109: =SUMIF(Obec_Grid!$B:$B,$A109,Obec_Grid!M:M)/$C109 -> 0.2049749168
A110: 520802 | B110: =SUMIF(Obec_Grid!B:B,A110,Obec_Grid!D:D) -> 19166 | C110: =SUMIF(Obec_Grid!B:B,A110,Obec_Grid!E:E) -> 40 | D110: =F110*Pomocný!$C$14+G110*Pomocný!$C$12+H110*Pomocný!$C$15+I110*Pomocný!$C$13 -> 0.3007115699 | E110: 0.4694983128 | F110: 0.1450246773 | G110: 0.8644124372 | H110: 0.0263308563 | I110: 0.1670783086 | J110: =SUMIF(Obec_Grid!$B:$B,$A110,Obec_Grid!F:F)/$C110*1000 -> 16.79367348 | K110: =SUMIF(Obec_Grid!$B:$B,$A110,Obec_Grid!G:G)/$C110 -> 170.2859185 | L110: =SUMIF(Obec_Grid!$B:$B,$A110,Obec_Grid!H:H)/$C110 -> 14.81313132 | M110: =SUMIF(Obec_Grid!$B:$B,$A110,Obec_Grid!I:I)/$C110*1000 -> 25.95586031 | N110: =SUMIF(Obec_Grid!$B:$B,$A110,Obec_Grid!J:J)/$C110 -> 0.1646431087 | O110: =SUMIF(Obec_Grid!$B:$B,$A110,Obec_Grid!K:K)/$C110 -> 0.1836064138 | P110: =SUMIF(Obec_Grid!$B:$B,$A110,Obec_Grid!L:L)/$C110 -> 0.01457618854 | Q110: =SUMIF(Obec_Grid!$B:$B,$A110,Obec_Grid!M:M)/$C110 -> 0.1939152282
A111: 501280 | B111: =SUMIF(Obec_Grid!B:B,A111,Obec_Grid!D:D) -> 4606 | C111: =SUMIF(Obec_Grid!B:B,A111,Obec_Grid!E:E) -> 41 | D111: =F111*Pomocný!$C$14+G111*Pomocný!$C$12+H111*Pomocný!$C$15+I111*Pomocný!$C$13 -> 0.4672763967 | E111: 0.7295829689 | F111: 0.3577730075 | G111: 0.9750339129 | H111: 0.3106977142 | I111: 0.2256009524 | J111: =SUMIF(Obec_Grid!$B:$B,$A111,Obec_Grid!F:F)/$C111*1000 -> 41.2995668 | K111: =SUMIF(Obec_Grid!$B:$B,$A111,Obec_Grid!G:G)/$C111 -> 36.8194552 | L111: =SUMIF(Obec_Grid!$B:$B,$A111,Obec_Grid!H:H)/$C111 -> 174.7913546 | M111: =SUMIF(Obec_Grid!$B:$B,$A111,Obec_Grid!I:I)/$C111*1000 -> 35.02786059 | N111: =SUMIF(Obec_Grid!$B:$B,$A111,Obec_Grid!J:J)/$C111 -> 0.1654038742 | O111: =SUMIF(Obec_Grid!$B:$B,$A111,Obec_Grid!K:K)/$C111 -> 0.1347702823 | P111: =SUMIF(Obec_Grid!$B:$B,$A111,Obec_Grid!L:L)/$C111 -> 0.1678898254 | Q111: =SUMIF(Obec_Grid!$B:$B,$A111,Obec_Grid!M:M)/$C111 -> 0.06922647085
A112: 598151 | B112: =SUMIF(Obec_Grid!B:B,A112,Obec_Grid!D:D) -> 20384 | C112: =SUMIF(Obec_Grid!B:B,A112,Obec_Grid!E:E) -> 41.64296345 | D112: =F112*Pomocný!$C$14+G112*Pomocný!$C$12+H112*Pomocný!$C$15+I112*Pomocný!$C$13 -> 0.4387273492 | E112: 0.6850047145 | F112: 0.4364599537 | G112: 0.8258982536 | H112: 0.02104777197 | I112: 0.4715034174 | J112: =SUMIF(Obec_Grid!$B:$B,$A112,Obec_Grid!F:F)/$C112*1000 -> 50.36329909 | K112: =SUMIF(Obec_Grid!$B:$B,$A112,Obec_Grid!G:G)/$C112 -> 216.7538565 | L112: =SUMIF(Obec_Grid!$B:$B,$A112,Obec_Grid!H:H)/$C112 -> 11.84099015 | M112: =SUMIF(Obec_Grid!$B:$B,$A112,Obec_Grid!I:I)/$C112*1000 -> 73.14690454 | N112: =SUMIF(Obec_Grid!$B:$B,$A112,Obec_Grid!J:J)/$C112 -> 0.1016085939 | O112: =SUMIF(Obec_Grid!$B:$B,$A112,Obec_Grid!K:K)/$C112 -> 0.2183857918 | P112: =SUMIF(Obec_Grid!$B:$B,$A112,Obec_Grid!L:L)/$C112 -> 0.03036730434 | Q112: =SUMIF(Obec_Grid!$B:$B,$A112,Obec_Grid!M:M)/$C112 -> 0.2803161482
A113: 508101 | B113: =SUMIF(Obec_Grid!B:B,A113,Obec_Grid!D:D) -> 9302 | C113: =SUMIF(Obec_Grid!B:B,A113,Obec_Grid!E:E) -> 37.01526718 | D113: =F113*Pomocný!$C$14+G113*Pomocný!$C$12+H113*Pomocný!$C$15+I113*Pomocný!$C$13 -> 0.3243623953 | E113: 0.5064281792 | F113: 0.1182448701 | G113: 0.9233205655 | H113: 0.001341226821 | I113: 0.2545429188 | J113: =SUMIF(Obec_Grid!$B:$B,$A113,Obec_Grid!F:F)/$C113*1000 -> 13.70898136 | K113: =SUMIF(Obec_Grid!$B:$B,$A113,Obec_Grid!G:G)/$C113 -> 99.21238153 | L113: =SUMIF(Obec_Grid!$B:$B,$A113,Obec_Grid!H:H)/$C113 -> 0.7545432169 | M113: =SUMIF(Obec_Grid!$B:$B,$A113,Obec_Grid!I:I)/$C113*1000 -> 39.51435522 | N113: =SUMIF(Obec_Grid!$B:$B,$A113,Obec_Grid!J:J)/$C113 -> 0.2000632218 | O113: =SUMIF(Obec_Grid!$B:$B,$A113,Obec_Grid!K:K)/$C113 -> 0.1389949572 | P113: =SUMIF(Obec_Grid!$B:$B,$A113,Obec_Grid!L:L)/$C113 -> 0.003759452457 | Q113: =SUMIF(Obec_Grid!$B:$B,$A113,Obec_Grid!M:M)/$C113 -> 0.2499347968
A114: 528099 | B114: =SUMIF(Obec_Grid!B:B,A114,Obec_Grid!D:D) -> 21608 | C114: =SUMIF(Obec_Grid!B:B,A114,Obec_Grid!E:E) -> 46 | D114: =F114*Pomocný!$C$14+G114*Pomocný!$C$12+H114*Pomocný!$C$15+I114*Pomocný!$C$13 -> 0.275785812 | E114: 0.4305776878 | F114: 0.05097796745 | G114: 0.8574713292 | H114: 0.1518603134 | I114: 0.04283363781 | J114: =SUMIF(Obec_Grid!$B:$B,$A114,Obec_Grid!F:F)/$C114*1000 -> 5.960692381 | K114: =SUMIF(Obec_Grid!$B:$B,$A114,Obec_Grid!G:G)/$C114 -> 178.660469 | L114: =SUMIF(Obec_Grid!$B:$B,$A114,Obec_Grid!H:H)/$C114 -> 85.43310323 | M114: =SUMIF(Obec_Grid!$B:$B,$A114,Obec_Grid!I:I)/$C114*1000 -> 6.695833506 | N114: =SUMIF(Obec_Grid!$B:$B,$A114,Obec_Grid!J:J)/$C114 -> 0.1125995668 | O114: =SUMIF(Obec_Grid!$B:$B,$A114,Obec_Grid!K:K)/$C114 -> 0.2340926504 | P114: =SUMIF(Obec_Grid!$B:$B,$A114,Obec_Grid!L:L)/$C114 -> 0.3222162361 | Q114: =SUMIF(Obec_Grid!$B:$B,$A114,Obec_Grid!M:M)/$C114 -> 0.08933832707
A115: 520004 | B115: =SUMIF(Obec_Grid!B:B,A115,Obec_Grid!D:D) -> 31164 | C115: =SUMIF(Obec_Grid!B:B,A115,Obec_Grid!E:E) -> 46 | D115: =F115*Pomocný!$C$14+G115*Pomocný!$C$12+H115*Pomocný!$C$15+I115*Pomocný!$C$13 -> 0.2317244808 | E115: 0.3617775913 | F115: 0.07255829975 | G115: 0.814260789 | H115: 0.02050049391 | I115: 0.01957834063 | J115: =SUMIF(Obec_Grid!$B:$B,$A115,Obec_Grid!F:F)/$C115*1000 -> 8.446471332 | K115: =SUMIF(Obec_Grid!$B:$B,$A115,Obec_Grid!G:G)/$C115 -> 230.7946314 | L115: =SUMIF(Obec_Grid!$B:$B,$A115,Obec_Grid!H:H)/$C115 -> 11.53310416 | M115: =SUMIF(Obec_Grid!$B:$B,$A115,Obec_Grid!I:I)/$C115*1000 -> 3.090868849 | N115: =SUMIF(Obec_Grid!$B:$B,$A115,Obec_Grid!J:J)/$C115 -> 0.2256243627 | O115: =SUMIF(Obec_Grid!$B:$B,$A115,Obec_Grid!K:K)/$C115 -> 0.248749449 | P115: =SUMIF(Obec_Grid!$B:$B,$A115,Obec_Grid!L:L)/$C115 -> 0.116115662 | Q115: =SUMIF(Obec_Grid!$B:$B,$A115,Obec_Grid!M:M)/$C115 -> 0.124791155
A116: 503592 | B116: =SUMIF(Obec_Grid!B:B,A116,Obec_Grid!D:D) -> 9347 | C116: =SUMIF(Obec_Grid!B:B,A116,Obec_Grid!E:E) -> 48 | D116: =F116*Pomocný!$C$14+G116*Pomocný!$C$12+H116*Pomocný!$C$15+I116*Pomocný!$C$13 -> 0.280493498 | E116: 0.4379285609 | F116: 0.07297878323 | G116: 0.9571538856 | H116: 0.07910205789 | I116: 0.01273926531 | J116: =SUMIF(Obec_Grid!$B:$B,$A116,Obec_Grid!F:F)/$C116*1000 -> 8.494905665 | K116: =SUMIF(Obec_Grid!$B:$B,$A116,Obec_Grid!G:G)/$C116 -> 58.39197528 | L116: =SUMIF(Obec_Grid!$B:$B,$A116,Obec_Grid!H:H)/$C116 -> 44.50098992 | M116: =SUMIF(Obec_Grid!$B:$B,$A116,Obec_Grid!I:I)/$C116*1000 -> 2.030696423 | N116: =SUMIF(Obec_Grid!$B:$B,$A116,Obec_Grid!J:J)/$C116 -> 0.1391629363 | O116: =SUMIF(Obec_Grid!$B:$B,$A116,Obec_Grid!K:K)/$C116 -> 0.1507564313 | P116: =SUMIF(Obec_Grid!$B:$B,$A116,Obec_Grid!L:L)/$C116 -> 0.2144187745 | Q116: =SUMIF(Obec_Grid!$B:$B,$A116,Obec_Grid!M:M)/$C116 -> 0.03692344103
A117: 505315 | B117: =SUMIF(Obec_Grid!B:B,A117,Obec_Grid!D:D) -> 21651 | C117: =SUMIF(Obec_Grid!B:B,A117,Obec_Grid!E:E) -> 49 | D117: =F117*Pomocný!$C$14+G117*Pomocný!$C$12+H117*Pomocný!$C$15+I117*Pomocný!$C$13 -> 0.2616095769 | E117: 0.4084420347 | F117: 0.07586162738 | G117: 0.9045892317 | H117: 0.01650148355 | I117: 0.04948596483 | J117: =SUMIF(Obec_Grid!$B:$B,$A117,Obec_Grid!F:F)/$C117*1000 -> 8.826972531 | K117: =SUMIF(Obec_Grid!$B:$B,$A117,Obec_Grid!G:G)/$C117 -> 121.8120157 | L117: =SUMIF(Obec_Grid!$B:$B,$A117,Obec_Grid!H:H)/$C117 -> 9.283353339 | M117: =SUMIF(Obec_Grid!$B:$B,$A117,Obec_Grid!I:I)/$C117*1000 -> 7.727056783 | N117: =SUMIF(Obec_Grid!$B:$B,$A117,Obec_Grid!J:J)/$C117 -> 0.185816852 | O117: =SUMIF(Obec_Grid!$B:$B,$A117,Obec_Grid!K:K)/$C117 -> 0.1847948224 | P117: =SUMIF(Obec_Grid!$B:$B,$A117,Obec_Grid!L:L)/$C117 -> 0.04517438957 | Q117: =SUMIF(Obec_Grid!$B:$B,$A117,Obec_Grid!M:M)/$C117 -> 0.06656404844
A118: 507440 | B118: =SUMIF(Obec_Grid!B:B,A118,Obec_Grid!D:D) -> 28678 | C118: =SUMIF(Obec_Grid!B:B,A118,Obec_Grid!E:E) -> 54 | D118: =F118*Pomocný!$C$14+G118*Pomocný!$C$12+H118*Pomocný!$C$15+I118*Pomocný!$C$13 -> 0.3276880549 | E118: 0.5116210705 | F118: 0.06668009413 | G118: 0.8241708602 | H118: 0.3825036629 | I118: 0.03739760241 | J118: =SUMIF(Obec_Grid!$B:$B,$A118,Obec_Grid!F:F)/$C118*1000 -> 7.769377041 | K118: =SUMIF(Obec_Grid!$B:$B,$A118,Obec_Grid!G:G)/$C118 -> 218.8379824 | L118: =SUMIF(Obec_Grid!$B:$B,$A118,Obec_Grid!H:H)/$C118 -> 215.187722 | M118: =SUMIF(Obec_Grid!$B:$B,$A118,Obec_Grid!I:I)/$C118*1000 -> 5.853156015 | N118: =SUMIF(Obec_Grid!$B:$B,$A118,Obec_Grid!J:J)/$C118 -> 0.1407047737 | O118: =SUMIF(Obec_Grid!$B:$B,$A118,Obec_Grid!K:K)/$C118 -> 0.2863510693 | P118: =SUMIF(Obec_Grid!$B:$B,$A118,Obec_Grid!L:L)/$C118 -> 0.3009009614 | Q118: =SUMIF(Obec_Grid!$B:$B,$A118,Obec_Grid!M:M)/$C118 -> 0.05750355997
A119: 508217 | B119: =SUMIF(Obec_Grid!B:B,A119,Obec_Grid!D:D) -> 19906 | C119: =SUMIF(Obec_Grid!B:B,A119,Obec_Grid!E:E) -> 60 | D119: =F119*Pomocný!$C$14+G119*Pomocný!$C$12+H119*Pomocný!$C$15+I119*Pomocný!$C$13 -> 0.3429596637 | E119: 0.535467108 | F119: 0.1380469529 | G119: 0.8837776045 | H119: 0.3249467552 | I119: 0.02506734218 | J119: =SUMIF(Obec_Grid!$B:$B,$A119,Obec_Grid!F:F)/$C119*1000 -> 15.98992864 | K119: =SUMIF(Obec_Grid!$B:$B,$A119,Obec_Grid!G:G)/$C119 -> 146.9215548 | L119: =SUMIF(Obec_Grid!$B:$B,$A119,Obec_Grid!H:H)/$C119 -> 182.8075358 | M119: =SUMIF(Obec_Grid!$B:$B,$A119,Obec_Grid!I:I)/$C119*1000 -> 3.94175699 | N119: =SUMIF(Obec_Grid!$B:$B,$A119,Obec_Grid!J:J)/$C119 -> 0.1095449398 | O119: =SUMIF(Obec_Grid!$B:$B,$A119,Obec_Grid!K:K)/$C119 -> 0.2622682509 | P119: =SUMIF(Obec_Grid!$B:$B,$A119,Obec_Grid!L:L)/$C119 -> 0.2375742828 | Q119: =SUMIF(Obec_Grid!$B:$B,$A119,Obec_Grid!M:M)/$C119 -> 0.02461023377
A120: 526509 | B120: =SUMIF(Obec_Grid!B:B,A120,Obec_Grid!D:D) -> 6033 | C120: =SUMIF(Obec_Grid!B:B,A120,Obec_Grid!E:E) -> 37 | D120: =F120*Pomocný!$C$14+G120*Pomocný!$C$12+H120*Pomocný!$C$15+I120*Pomocný!$C$13 -> 0.4363420765 | E120: 0.6812802018 | F120: 0.2079717346 | G120: 0.9782665462 | H120: 0.0194832647 | I120: 0.5396467607 | J120: =SUMIF(Obec_Grid!$B:$B,$A120,Obec_Grid!F:F)/$C120*1000 -> 24.04437138 | K120: =SUMIF(Obec_Grid!$B:$B,$A120,Obec_Grid!G:G)/$C120 -> 32.91923491 | L120: =SUMIF(Obec_Grid!$B:$B,$A120,Obec_Grid!H:H)/$C120 -> 10.96083451 | M120: =SUMIF(Obec_Grid!$B:$B,$A120,Obec_Grid!I:I)/$C120*1000 -> 83.71027607 | N120: =SUMIF(Obec_Grid!$B:$B,$A120,Obec_Grid!J:J)/$C120 -> 0.1543332762 | O120: =SUMIF(Obec_Grid!$B:$B,$A120,Obec_Grid!K:K)/$C120 -> 0.06156960976 | P120: =SUMIF(Obec_Grid!$B:$B,$A120,Obec_Grid!L:L)/$C120 -> 0.02449796709 | Q120: =SUMIF(Obec_Grid!$B:$B,$A120,Obec_Grid!M:M)/$C120 -> 0.395429782
A121: 525405 | B121: =SUMIF(Obec_Grid!B:B,A121,Obec_Grid!D:D) -> 6350 | C121: =SUMIF(Obec_Grid!B:B,A121,Obec_Grid!E:E) -> 41.07843137 | D121: =F121*Pomocný!$C$14+G121*Pomocný!$C$12+H121*Pomocný!$C$15+I121*Pomocný!$C$13 -> 0.3010762017 | E121: 0.4700676716 | F121: 0.08379356185 | G121: 0.9801150231 | H121: 0.02267269098 | I121: 0.117723531 | J121: =SUMIF(Obec_Grid!$B:$B,$A121,Obec_Grid!F:F)/$C121*1000 -> 9.740630183 | K121: =SUMIF(Obec_Grid!$B:$B,$A121,Obec_Grid!G:G)/$C121 -> 30.68901985 | L121: =SUMIF(Obec_Grid!$B:$B,$A121,Obec_Grid!H:H)/$C121 -> 12.75513204 | M121: =SUMIF(Obec_Grid!$B:$B,$A121,Obec_Grid!I:I)/$C121*1000 -> 18.30503445 | N121: =SUMIF(Obec_Grid!$B:$B,$A121,Obec_Grid!J:J)/$C121 -> 0.2448629925 | O121: =SUMIF(Obec_Grid!$B:$B,$A121,Obec_Grid!K:K)/$C121 -> 0.09121534373 | P121: =SUMIF(Obec_Grid!$B:$B,$A121,Obec_Grid!L:L)/$C121 -> 0.05502048172 | Q121: =SUMIF(Obec_Grid!$B:$B,$A121,Obec_Grid!M:M)/$C121 -> 0.2024150461
A122: 514829 | B122: =SUMIF(Obec_Grid!B:B,A122,Obec_Grid!D:D) -> 6864 | C122: =SUMIF(Obec_Grid!B:B,A122,Obec_Grid!E:E) -> 39 | D122: =F122*Pomocný!$C$14+G122*Pomocný!$C$12+H122*Pomocný!$C$15+I122*Pomocný!$C$13 -> 0.3679942067 | E122: 0.5745575968 | F122: 0.229162646 | G122: 0.966164797 | H122: 0.001783726358 | I122: 0.2748656573 | J122: =SUMIF(Obec_Grid!$B:$B,$A122,Obec_Grid!F:F)/$C122*1000 -> 26.48529401 | K122: =SUMIF(Obec_Grid!$B:$B,$A122,Obec_Grid!G:G)/$C122 -> 47.52017603 | L122: =SUMIF(Obec_Grid!$B:$B,$A122,Obec_Grid!H:H)/$C122 -> 1.003483232 | M122: =SUMIF(Obec_Grid!$B:$B,$A122,Obec_Grid!I:I)/$C122*1000 -> 42.66472365 | N122: =SUMIF(Obec_Grid!$B:$B,$A122,Obec_Grid!J:J)/$C122 -> 0.2219934757 | O122: =SUMIF(Obec_Grid!$B:$B,$A122,Obec_Grid!K:K)/$C122 -> 0.06903038561 | P122: =SUMIF(Obec_Grid!$B:$B,$A122,Obec_Grid!L:L)/$C122 -> 0.002751429464 | Q122: =SUMIF(Obec_Grid!$B:$B,$A122,Obec_Grid!M:M)/$C122 -> 0.3084506375
A123: 529320 | B123: =SUMIF(Obec_Grid!B:B,A123,Obec_Grid!D:D) -> 86821 | C123: =SUMIF(Obec_Grid!B:B,A123,Obec_Grid!E:E) -> 85.0211218 | D123: =F123*Pomocný!$C$14+G123*Pomocný!$C$12+H123*Pomocný!$C$15+I123*Pomocný!$C$13 -> 0.196039636 | E123: 0.3060570604 | F123: 0.07796607861 | G123: 0.5885968044 | H123: 0.08642817676 | I123: 0.03116748418 | J123: =SUMIF(Obec_Grid!$B:$B,$A123,Obec_Grid!F:F)/$C123*1000 -> 9.069378463 | K123: =SUMIF(Obec_Grid!$B:$B,$A123,Obec_Grid!G:G)/$C123 -> 503.0616005 | L123: =SUMIF(Obec_Grid!$B:$B,$A123,Obec_Grid!H:H)/$C123 -> 48.62249511 | M123: =SUMIF(Obec_Grid!$B:$B,$A123,Obec_Grid!I:I)/$C123*1000 -> 4.887382244 | N123: =SUMIF(Obec_Grid!$B:$B,$A123,Obec_Grid!J:J)/$C123 -> 0.05459043465 | O123: =SUMIF(Obec_Grid!$B:$B,$A123,Obec_Grid!K:K)/$C123 -> 0.4430758797 | P123: =SUMIF(Obec_Grid!$B:$B,$A123,Obec_Grid!L:L)/$C123 -> 0.1274824743 | Q123: =SUMIF(Obec_Grid!$B:$B,$A123,Obec_Grid!M:M)/$C123 -> 0.06491049434
A124: 507032 | B124: =SUMIF(Obec_Grid!B:B,A124,Obec_Grid!D:D) -> 21100 | C124: =SUMIF(Obec_Grid!B:B,A124,Obec_Grid!E:E) -> 56 | D124: =F124*Pomocný!$C$14+G124*Pomocný!$C$12+H124*Pomocný!$C$15+I124*Pomocný!$C$13 -> 0.2943338055 | E124: 0.4595396758 | F124: 0.1504252271 | G124: 0.8814153152 | H124: 0.07051673824 | I124: 0.07497794154 | J124: =SUMIF(Obec_Grid!$B:$B,$A124,Obec_Grid!F:F)/$C124*1000 -> 17.41574791 | K124: =SUMIF(Obec_Grid!$B:$B,$A124,Obec_Grid!G:G)/$C124 -> 149.7716922 | L124: =SUMIF(Obec_Grid!$B:$B,$A124,Obec_Grid!H:H)/$C124 -> 39.67108747 | M124: =SUMIF(Obec_Grid!$B:$B,$A124,Obec_Grid!I:I)/$C124*1000 -> 11.67874462 | N124: =SUMIF(Obec_Grid!$B:$B,$A124,Obec_Grid!J:J)/$C124 -> 0.18986816 | O124: =SUMIF(Obec_Grid!$B:$B,$A124,Obec_Grid!K:K)/$C124 -> 0.2148400703 | P124: =SUMIF(Obec_Grid!$B:$B,$A124,Obec_Grid!L:L)/$C124 -> 0.1390577954 | Q124: =SUMIF(Obec_Grid!$B:$B,$A124,Obec_Grid!M:M)/$C124 -> 0.09311817247
A125: 503011 | B125: =SUMIF(Obec_Grid!B:B,A125,Obec_Grid!D:D) -> 38442 | C125: =SUMIF(Obec_Grid!B:B,A125,Obec_Grid!E:E) -> 67 | D125: =F125*Pomocný!$C$14+G125*Pomocný!$C$12+H125*Pomocný!$C$15+I125*Pomocný!$C$13 -> 0.2510555925 | E125: 0.3919623887 | F125: 0.1124000236 | G125: 0.8075375771 | H125: 0.04262009528 | I125: 0.04166467419 | J125: =SUMIF(Obec_Grid!$B:$B,$A125,Obec_Grid!F:F)/$C125*1000 -> 13.0357296 | K125: =SUMIF(Obec_Grid!$B:$B,$A125,Obec_Grid!G:G)/$C125 -> 238.906287 | L125: =SUMIF(Obec_Grid!$B:$B,$A125,Obec_Grid!H:H)/$C125 -> 23.97708076 | M125: =SUMIF(Obec_Grid!$B:$B,$A125,Obec_Grid!I:I)/$C125*1000 -> 6.51462436 | N125: =SUMIF(Obec_Grid!$B:$B,$A125,Obec_Grid!J:J)/$C125 -> 0.1325801231 | O125: =SUMIF(Obec_Grid!$B:$B,$A125,Obec_Grid!K:K)/$C125 -> 0.2811584829 | P125: =SUMIF(Obec_Grid!$B:$B,$A125,Obec_Grid!L:L)/$C125 -> 0.09455315098 | Q125: =SUMIF(Obec_Grid!$B:$B,$A125,Obec_Grid!M:M)/$C125 -> 0.06217826978
A126: 529346 | B126: =SUMIF(Obec_Grid!B:B,A126,Obec_Grid!D:D) -> 47444 | C126: =SUMIF(Obec_Grid!B:B,A126,Obec_Grid!E:E) -> 68.40549996 | D126: =F126*Pomocný!$C$14+G126*Pomocný!$C$12+H126*Pomocný!$C$15+I126*Pomocný!$C$13 -> 0.2608829717 | E126: 0.4073074683 | F126: 0.02281913853 | G126: 0.7268302617 | H126: 0.01611902793 | I126: 0.2777634586 | J126: =SUMIF(Obec_Grid!$B:$B,$A126,Obec_Grid!F:F)/$C126*1000 -> 2.717154549 | K126: =SUMIF(Obec_Grid!$B:$B,$A126,Obec_Grid!G:G)/$C126 -> 336.280869 | L126: =SUMIF(Obec_Grid!$B:$B,$A126,Obec_Grid!H:H)/$C126 -> 9.068192646 | M126: =SUMIF(Obec_Grid!$B:$B,$A126,Obec_Grid!I:I)/$C126*1000 -> 43.11393189 | N126: =SUMIF(Obec_Grid!$B:$B,$A126,Obec_Grid!J:J)/$C126 -> 0.05648072881 | O126: =SUMIF(Obec_Grid!$B:$B,$A126,Obec_Grid!K:K)/$C126 -> 0.3569459747 | P126: =SUMIF(Obec_Grid!$B:$B,$A126,Obec_Grid!L:L)/$C126 -> 0.04189121761 | Q126: =SUMIF(Obec_Grid!$B:$B,$A126,Obec_Grid!M:M)/$C126 -> 0.2367047054
A127: 544051 | B127: =SUMIF(Obec_Grid!B:B,A127,Obec_Grid!D:D) -> 18566 | C127: =SUMIF(Obec_Grid!B:B,A127,Obec_Grid!E:E) -> 56 | D127: =F127*Pomocný!$C$14+G127*Pomocný!$C$12+H127*Pomocný!$C$15+I127*Pomocný!$C$13 -> 0.260719353 | E127: 0.4070519839 | F127: 0.05258501941 | G127: 0.9147915542 | H127: 0.0523187275 | I127: 0.02318211107 | J127: =SUMIF(Obec_Grid!$B:$B,$A127,Obec_Grid!F:F)/$C127*1000 -> 6.145804263 | K127: =SUMIF(Obec_Grid!$B:$B,$A127,Obec_Grid!G:G)/$C127 -> 109.5027612 | L127: =SUMIF(Obec_Grid!$B:$B,$A127,Obec_Grid!H:H)/$C127 -> 29.43330714 | M127: =SUMIF(Obec_Grid!$B:$B,$A127,Obec_Grid!I:I)/$C127*1000 -> 3.649514261 | N127: =SUMIF(Obec_Grid!$B:$B,$A127,Obec_Grid!J:J)/$C127 -> 0.1902164695 | O127: =SUMIF(Obec_Grid!$B:$B,$A127,Obec_Grid!K:K)/$C127 -> 0.18734186 | P127: =SUMIF(Obec_Grid!$B:$B,$A127,Obec_Grid!L:L)/$C127 -> 0.1240239297 | Q127: =SUMIF(Obec_Grid!$B:$B,$A127,Obec_Grid!M:M)/$C127 -> 0.1053611466
A128: 517381 | B128: =SUMIF(Obec_Grid!B:B,A128,Obec_Grid!D:D) -> 5742 | C128: =SUMIF(Obec_Grid!B:B,A128,Obec_Grid!E:E) -> 43 | D128: =F128*Pomocný!$C$14+G128*Pomocný!$C$12+H128*Pomocný!$C$15+I128*Pomocný!$C$13 -> 0.4474148446 | E128: 0.698569909 | F128: 0.3966574374 | G128: 0.9817877733 | H128: 0.02935828522 | I128: 0.3818558826 | J128: =SUMIF(Obec_Grid!$B:$B,$A128,Obec_Grid!F:F)/$C128*1000 -> 45.77855703 | K128: =SUMIF(Obec_Grid!$B:$B,$A128,Obec_Grid!G:G)/$C128 -> 28.67082179 | L128: =SUMIF(Obec_Grid!$B:$B,$A128,Obec_Grid!H:H)/$C128 -> 16.51629287 | M128: =SUMIF(Obec_Grid!$B:$B,$A128,Obec_Grid!I:I)/$C128*1000 -> 59.25001937 | N128: =SUMIF(Obec_Grid!$B:$B,$A128,Obec_Grid!J:J)/$C128 -> 0.3066539862 | O128: =SUMIF(Obec_Grid!$B:$B,$A128,Obec_Grid!K:K)/$C128 -> 0.09435631625 | P128: =SUMIF(Obec_Grid!$B:$B,$A128,Obec_Grid!L:L)/$C128 -> 0.06245570542 | Q128: =SUMIF(Obec_Grid!$B:$B,$A128,Obec_Grid!M:M)/$C128 -> 0.2606899572
A129: 523381 | B129: =SUMIF(Obec_Grid!B:B,A129,Obec_Grid!D:D) -> 49306 | C129: =SUMIF(Obec_Grid!B:B,A129,Obec_Grid!E:E) -> 70 | D129: =F129*Pomocný!$C$14+G129*Pomocný!$C$12+H129*Pomocný!$C$15+I129*Pomocný!$C$13 -> 0.24793968 | E129: 0.3870970094 | F129: 0.07496750156 | G129: 0.8176291205 | H129: 0.00644733392 | I129: 0.09271476384 | J129: =SUMIF(Obec_Grid!$B:$B,$A129,Obec_Grid!F:F)/$C129*1000 -> 8.723980644 | K129: =SUMIF(Obec_Grid!$B:$B,$A129,Obec_Grid!G:G)/$C129 -> 226.7306891 | L129: =SUMIF(Obec_Grid!$B:$B,$A129,Obec_Grid!H:H)/$C129 -> 3.627121082 | M129: =SUMIF(Obec_Grid!$B:$B,$A129,Obec_Grid!I:I)/$C129*1000 -> 14.42825227 | N129: =SUMIF(Obec_Grid!$B:$B,$A129,Obec_Grid!J:J)/$C129 -> 0.1339523875 | O129: =SUMIF(Obec_Grid!$B:$B,$A129,Obec_Grid!K:K)/$C129 -> 0.2558850716 | P129: =SUMIF(Obec_Grid!$B:$B,$A129,Obec_Grid!L:L)/$C129 -> 0.02817716096 | Q129: =SUMIF(Obec_Grid!$B:$B,$A129,Obec_Grid!M:M)/$C129 -> 0.06418369019
A130: 543292 | B130: =SUMIF(Obec_Grid!B:B,A130,Obec_Grid!D:D) -> 14124 | C130: =SUMIF(Obec_Grid!B:B,A130,Obec_Grid!E:E) -> 50 | D130: =F130*Pomocný!$C$14+G130*Pomocný!$C$12+H130*Pomocný!$C$15+I130*Pomocný!$C$13 -> 0.3945180582 | E130: 0.6159735843 | F130: 0.1802213395 | G130: 0.9367015816 | H130: 0.02431667596 | I130: 0.4368326356 | J130: =SUMIF(Obec_Grid!$B:$B,$A130,Obec_Grid!F:F)/$C130*1000 -> 20.84787991 | K130: =SUMIF(Obec_Grid!$B:$B,$A130,Obec_Grid!G:G)/$C130 -> 83.06798572 | L130: =SUMIF(Obec_Grid!$B:$B,$A130,Obec_Grid!H:H)/$C130 -> 13.68 | M130: =SUMIF(Obec_Grid!$B:$B,$A130,Obec_Grid!I:I)/$C130*1000 -> 67.77234655 | N130: =SUMIF(Obec_Grid!$B:$B,$A130,Obec_Grid!J:J)/$C130 -> 0.241029127 | O130: =SUMIF(Obec_Grid!$B:$B,$A130,Obec_Grid!K:K)/$C130 -> 0.1071902985 | P130: =SUMIF(Obec_Grid!$B:$B,$A130,Obec_Grid!L:L)/$C130 -> 0.005461077844 | Q130: =SUMIF(Obec_Grid!$B:$B,$A130,Obec_Grid!M:M)/$C130 -> 0.2347892693
A131: 501140 | B131: =SUMIF(Obec_Grid!B:B,A131,Obec_Grid!D:D) -> 7030 | C131: =SUMIF(Obec_Grid!B:B,A131,Obec_Grid!E:E) -> 61 | D131: =F131*Pomocný!$C$14+G131*Pomocný!$C$12+H131*Pomocný!$C$15+I131*Pomocný!$C$13 -> 0.319969915 | E131: =(D131-MIN($D$3:$D$174))/(MAX($D$3:$D$174)-MIN($D$3:$D$174)) -> 0.4995694879 | F131: =(J131-MIN(J$3:J$174))/(MAX(J$3:J$174)-MIN(J$3:J$174)) -> 0.1934364696 | G131: 0.9773535286 | H131: =(L131-MIN(L$3:L$174))/(MAX(L$3:L$174)-MIN(L$3:L$174)) -> 0.07072429753 | I131: =(M131-MIN(M$3:M$174))/(MAX(M$3:M$174)-MIN(M$3:M$174)) -> 0.03836536417 | J131: =SUMIF(Obec_Grid!$B:$B,$A131,Obec_Grid!F:F)/$C131*1000 -> 22.37009429 | K131: =SUMIF(Obec_Grid!$B:$B,$A131,Obec_Grid!G:G)/$C131 -> 34.02080418 | L131: =SUMIF(Obec_Grid!$B:$B,$A131,Obec_Grid!H:H)/$C131 -> 39.78785553 | M131: =SUMIF(Obec_Grid!$B:$B,$A131,Obec_Grid!I:I)/$C131*1000 -> 6.003175467 | N131: =SUMIF(Obec_Grid!$B:$B,$A131,Obec_Grid!J:J)/$C131 -> 0.168894138 | O131: =SUMIF(Obec_Grid!$B:$B,$A131,Obec_Grid!K:K)/$C131 -> 0.122241885 | P131: =SUMIF(Obec_Grid!$B:$B,$A131,Obec_Grid!L:L)/$C131 -> 0.1193736512 | Q131: =SUMIF(Obec_Grid!$B:$B,$A131,Obec_Grid!M:M)/$C131 -> 0.05732186939
A132: 522279 | B132: =SUMIF(Obec_Grid!B:B,A132,Obec_Grid!D:D) -> 37604 | C132: =SUMIF(Obec_Grid!B:B,A132,Obec_Grid!E:E) -> 69 | D132: =F132*Pomocný!$C$14+G132*Pomocný!$C$12+H132*Pomocný!$C$15+I132*Pomocný!$C$13 -> 0.2436289858 | E132: 0.380366024 | F132: 0.05719420855 | G132: =1-(K132-MIN(K$3:K$174))/(MAX(K$3:K$174)-MIN(K$3:K$174)) -> 0.8291718084 | H132: 0.06729836377 | I132: 0.02085156238 | J132: =SUMIF(Obec_Grid!$B:$B,$A132,Obec_Grid!F:F)/$C132*1000 -> 6.676724046 | K132: =SUMIF(Obec_Grid!$B:$B,$A132,Obec_Grid!G:G)/$C132 -> 212.8042637 | L132: =SUMIF(Obec_Grid!$B:$B,$A132,Obec_Grid!H:H)/$C132 -> 37.86050436 | M132: =SUMIF(Obec_Grid!$B:$B,$A132,Obec_Grid!I:I)/$C132*1000 -> 3.288239769 | N132: =SUMIF(Obec_Grid!$B:$B,$A132,Obec_Grid!J:J)/$C132 -> 0.1453263425 | O132: =SUMIF(Obec_Grid!$B:$B,$A132,Obec_Grid!K:K)/$C132 -> 0.2676931061 | P132: =SUMIF(Obec_Grid!$B:$B,$A132,Obec_Grid!L:L)/$C132 -> 0.1937394735 | Q132: =SUMIF(Obec_Grid!$B:$B,$A132,Obec_Grid!M:M)/$C132 -> 0.08617990904
A133: 513881 | B133: =SUMIF(Obec_Grid!B:B,A133,Obec_Grid!D:D) -> 44978 | C133: =SUMIF(Obec_Grid!B:B,A133,Obec_Grid!E:E) -> 63 | D133: =F133*Pomocný!$C$14+G133*Pomocný!$C$12+H133*Pomocný!$C$15+I133*Pomocný!$C$13 -> 0.2538691709 | E133: 0.3963556846 | F133: 0.1161418464 | G133: 0.8348637126 | H133: 0.01271134487 | I133: 0.05175977988 | J133: =SUMIF(Obec_Grid!$B:$B,$A133,Obec_Grid!F:F)/$C133*1000 -> 13.46673985 | K133: =SUMIF(Obec_Grid!$B:$B,$A133,Obec_Grid!G:G)/$C133 -> 205.9368962 | L133: =SUMIF(Obec_Grid!$B:$B,$A133,Obec_Grid!H:H)/$C133 -> 7.151108895 | M133: =SUMIF(Obec_Grid!$B:$B,$A133,Obec_Grid!I:I)/$C133*1000 -> 8.0795366 | N133: =SUMIF(Obec_Grid!$B:$B,$A133,Obec_Grid!J:J)/$C133 -> 0.2127556012 | O133: =SUMIF(Obec_Grid!$B:$B,$A133,Obec_Grid!K:K)/$C133 -> 0.2142364554 | P133: =SUMIF(Obec_Grid!$B:$B,$A133,Obec_Grid!L:L)/$C133 -> 0.02656865843 | Q133: =SUMIF(Obec_Grid!$B:$B,$A133,Obec_Grid!M:M)/$C133 -> 0.1163909759
A134: 506745 | B134: =SUMIF(Obec_Grid!B:B,A134,Obec_Grid!D:D) -> 64759 | C134: =SUMIF(Obec_Grid!B:B,A134,Obec_Grid!E:E) -> 92 | D134: =F134*Pomocný!$C$14+G134*Pomocný!$C$12+H134*Pomocný!$C$15+I134*Pomocný!$C$13 -> 0.2036240542 | E134: 0.3178998416 | F134: 0.05510929926 | G134: 0.7338969636 | H134: 0.01447113352 | I134: 0.01101882036 | J134: =SUMIF(Obec_Grid!$B:$B,$A134,Obec_Grid!F:F)/$C134*1000 -> 6.436569096 | K134: =SUMIF(Obec_Grid!$B:$B,$A134,Obec_Grid!G:G)/$C134 -> 327.7547875 | L134: =SUMIF(Obec_Grid!$B:$B,$A134,Obec_Grid!H:H)/$C134 -> 8.141125325 | M134: =SUMIF(Obec_Grid!$B:$B,$A134,Obec_Grid!I:I)/$C134*1000 -> 1.763998338 | N134: =SUMIF(Obec_Grid!$B:$B,$A134,Obec_Grid!J:J)/$C134 -> 0.0888193033 | O134: =SUMIF(Obec_Grid!$B:$B,$A134,Obec_Grid!K:K)/$C134 -> 0.3268792662 | P134: =SUMIF(Obec_Grid!$B:$B,$A134,Obec_Grid!L:L)/$C134 -> 0.03638631387 | Q134: =SUMIF(Obec_Grid!$B:$B,$A134,Obec_Grid!M:M)/$C134 -> 0.02214210367
A135: 529460 | B135: =SUMIF(Obec_Grid!B:B,A135,Obec_Grid!D:D) -> 117176 | C135: =SUMIF(Obec_Grid!B:B,A135,Obec_Grid!E:E) -> 68 | D135: =F135*Pomocný!$C$14+G135*Pomocný!$C$12+H135*Pomocný!$C$15+I135*Pomocný!$C$13 -> 0.2316626025 | E135: 0.3616809707 | F135: 0.06911444068 | G135: 0.495126054 | H135: 0.2036078754 | I135: 0.1588020401 | J135: =SUMIF(Obec_Grid!$B:$B,$A135,Obec_Grid!F:F)/$C135*1000 -> 8.049782706 | K135: =SUMIF(Obec_Grid!$B:$B,$A135,Obec_Grid!G:G)/$C135 -> 615.8354576 | L135: =SUMIF(Obec_Grid!$B:$B,$A135,Obec_Grid!H:H)/$C135 -> 114.5450858 | M135: =SUMIF(Obec_Grid!$B:$B,$A135,Obec_Grid!I:I)/$C135*1000 -> 24.67289861 | N135: =SUMIF(Obec_Grid!$B:$B,$A135,Obec_Grid!J:J)/$C135 -> 0.08622970158 | O135: =SUMIF(Obec_Grid!$B:$B,$A135,Obec_Grid!K:K)/$C135 -> 0.2684625038 | P135: =SUMIF(Obec_Grid!$B:$B,$A135,Obec_Grid!L:L)/$C135 -> 0.2006753977 | Q135: =SUMIF(Obec_Grid!$B:$B,$A135,Obec_Grid!M:M)/$C135 -> 0.1836151554
A136: 510203 | B136: =SUMIF(Obec_Grid!B:B,A136,Obec_Grid!D:D) -> 5002 | C136: =SUMIF(Obec_Grid!B:B,A136,Obec_Grid!E:E) -> 43 | D136: =F136*Pomocný!$C$14+G136*Pomocný!$C$12+H136*Pomocný!$C$15+I136*Pomocný!$C$13 -> 0.3458181211 | E136: 0.5399304809 | F136: 0.2923161151 | G136: 0.9955208115 | H136: 0.0001529506682 | I136: 0.0952826073 | J136: =SUMIF(Obec_Grid!$B:$B,$A136,Obec_Grid!F:F)/$C136*1000 -> 33.75976792 | K136: =SUMIF(Obec_Grid!$B:$B,$A136,Obec_Grid!G:G)/$C136 -> 12.10170591 | L136: =SUMIF(Obec_Grid!$B:$B,$A136,Obec_Grid!H:H)/$C136 -> 0.08604651163 | M136: =SUMIF(Obec_Grid!$B:$B,$A136,Obec_Grid!I:I)/$C136*1000 -> 14.82631147 | N136: =SUMIF(Obec_Grid!$B:$B,$A136,Obec_Grid!J:J)/$C136 -> 0.5966522682 | O136: =SUMIF(Obec_Grid!$B:$B,$A136,Obec_Grid!K:K)/$C136 -> 0.04986857914 | P136: =SUMIF(Obec_Grid!$B:$B,$A136,Obec_Grid!L:L)/$C136 -> 0.0003726445497 | Q136: =SUMIF(Obec_Grid!$B:$B,$A136,Obec_Grid!M:M)/$C136 -> 0.1258266076
A137: 509540 | B137: =SUMIF(Obec_Grid!B:B,A137,Obec_Grid!D:D) -> 17993 | C137: =SUMIF(Obec_Grid!B:B,A137,Obec_Grid!E:E) -> 52 | D137: =F137*Pomocný!$C$14+G137*Pomocný!$C$12+H137*Pomocný!$C$15+I137*Pomocný!$C$13 -> 0.3606748497 | E137: 0.5631286987 | F137: 0.3066098989 | G137: 0.9308945842 | H137: 0.02740360387 | I137: 0.1777913119 | J137: =SUMIF(Obec_Grid!$B:$B,$A137,Obec_Grid!F:F)/$C137*1000 -> 35.40622944 | K137: =SUMIF(Obec_Grid!$B:$B,$A137,Obec_Grid!G:G)/$C137 -> 90.07421476 | L137: =SUMIF(Obec_Grid!$B:$B,$A137,Obec_Grid!H:H)/$C137 -> 15.41663431 | M137: =SUMIF(Obec_Grid!$B:$B,$A137,Obec_Grid!I:I)/$C137*1000 -> 27.61655714 | N137: =SUMIF(Obec_Grid!$B:$B,$A137,Obec_Grid!J:J)/$C137 -> 0.3014433601 | O137: =SUMIF(Obec_Grid!$B:$B,$A137,Obec_Grid!K:K)/$C137 -> 0.1269411164 | P137: =SUMIF(Obec_Grid!$B:$B,$A137,Obec_Grid!L:L)/$C137 -> 0.095621258 | Q137: =SUMIF(Obec_Grid!$B:$B,$A137,Obec_Grid!M:M)/$C137 -> 0.1836077472
A138: 511218 | B138: =SUMIF(Obec_Grid!B:B,A138,Obec_Grid!D:D) -> 26175 | C138: =SUMIF(Obec_Grid!B:B,A138,Obec_Grid!E:E) -> 68 | D138: =F138*Pomocný!$C$14+G138*Pomocný!$C$12+H138*Pomocný!$C$15+I138*Pomocný!$C$13 -> 0.3344004878 | E138: 0.5221022797 | F138: 0.3571873097 | G138: 0.8811629177 | H138: 0.0270280108 | I138: 0.07222371305 | J138: =SUMIF(Obec_Grid!$B:$B,$A138,Obec_Grid!F:F)/$C138*1000 -> 41.23210189 | K138: =SUMIF(Obec_Grid!$B:$B,$A138,Obec_Grid!G:G)/$C138 -> 150.0762135 | L138: =SUMIF(Obec_Grid!$B:$B,$A138,Obec_Grid!H:H)/$C138 -> 15.20533433 | M138: =SUMIF(Obec_Grid!$B:$B,$A138,Obec_Grid!I:I)/$C138*1000 -> 11.25179259 | N138: =SUMIF(Obec_Grid!$B:$B,$A138,Obec_Grid!J:J)/$C138 -> 0.1920388362 | O138: =SUMIF(Obec_Grid!$B:$B,$A138,Obec_Grid!K:K)/$C138 -> 0.2088145315 | P138: =SUMIF(Obec_Grid!$B:$B,$A138,Obec_Grid!L:L)/$C138 -> 0.04170861955 | Q138: =SUMIF(Obec_Grid!$B:$B,$A138,Obec_Grid!M:M)/$C138 -> 0.08941818272
A139: 512851 | B139: =SUMIF(Obec_Grid!B:B,A139,Obec_Grid!D:D) -> 6028 | C139: =SUMIF(Obec_Grid!B:B,A139,Obec_Grid!E:E) -> 55 | D139: =F139*Pomocný!$C$14+G139*Pomocný!$C$12+H139*Pomocný!$C$15+I139*Pomocný!$C$13 -> 0.3840235447 | E139: 0.5995867998 | F139: 0.1666681345 | G139: 0.9892350669 | H139: 0.1903373364 | I139: 0.1898536408 | J139: =SUMIF(Obec_Grid!$B:$B,$A139,Obec_Grid!F:F)/$C139*1000 -> 19.28672361 | K139: =SUMIF(Obec_Grid!$B:$B,$A139,Obec_Grid!G:G)/$C139 -> 19.68555079 | L139: =SUMIF(Obec_Grid!$B:$B,$A139,Obec_Grid!H:H)/$C139 -> 107.0793873 | M139: =SUMIF(Obec_Grid!$B:$B,$A139,Obec_Grid!I:I)/$C139*1000 -> 29.48642227 | N139: =SUMIF(Obec_Grid!$B:$B,$A139,Obec_Grid!J:J)/$C139 -> 0.2054877931 | O139: =SUMIF(Obec_Grid!$B:$B,$A139,Obec_Grid!K:K)/$C139 -> 0.08720761591 | P139: =SUMIF(Obec_Grid!$B:$B,$A139,Obec_Grid!L:L)/$C139 -> 0.1940911704 | Q139: =SUMIF(Obec_Grid!$B:$B,$A139,Obec_Grid!M:M)/$C139 -> 0.1431380524
A140: 513997 | B140: =SUMIF(Obec_Grid!B:B,A140,Obec_Grid!D:D) -> 15594 | C140: =SUMIF(Obec_Grid!B:B,A140,Obec_Grid!E:E) -> 51 | D140: =F140*Pomocný!$C$14+G140*Pomocný!$C$12+H140*Pomocný!$C$15+I140*Pomocný!$C$13 -> 0.3675366197 | E140: 0.5738430922 | F140: 0.2308938119 | G140: 0.9488710001 | H140: 0.024277485 | I140: 0.2661041821 | J140: =SUMIF(Obec_Grid!$B:$B,$A140,Obec_Grid!F:F)/$C140*1000 -> 26.68470223 | K140: =SUMIF(Obec_Grid!$B:$B,$A140,Obec_Grid!G:G)/$C140 -> 68.38540047 | L140: =SUMIF(Obec_Grid!$B:$B,$A140,Obec_Grid!H:H)/$C140 -> 13.65795207 | M140: =SUMIF(Obec_Grid!$B:$B,$A140,Obec_Grid!I:I)/$C140*1000 -> 41.3065467 | N140: =SUMIF(Obec_Grid!$B:$B,$A140,Obec_Grid!J:J)/$C140 -> 0.267892856 | O140: =SUMIF(Obec_Grid!$B:$B,$A140,Obec_Grid!K:K)/$C140 -> 0.1028643552 | P140: =SUMIF(Obec_Grid!$B:$B,$A140,Obec_Grid!L:L)/$C140 -> 0.01121130215 | Q140: =SUMIF(Obec_Grid!$B:$B,$A140,Obec_Grid!M:M)/$C140 -> 0.2680288922
A141: 509248 | B141: =SUMIF(Obec_Grid!B:B,A141,Obec_Grid!D:D) -> 6063 | C141: =SUMIF(Obec_Grid!B:B,A141,Obec_Grid!E:E) -> 51 | D141: =F141*Pomocný!$C$14+G141*Pomocný!$C$12+H141*Pomocný!$C$15+I141*Pomocný!$C$13 -> 0.4360333553 | E141: 0.6807981453 | F141: 0.256757157 | G141: 0.987344551 | H141: 0.0007896214184 | I141: 0.4992420918 | J141: =SUMIF(Obec_Grid!$B:$B,$A141,Obec_Grid!F:F)/$C141*1000 -> 29.66382962 | K141: =SUMIF(Obec_Grid!$B:$B,$A141,Obec_Grid!G:G)/$C141 -> 21.96648645 | L141: =SUMIF(Obec_Grid!$B:$B,$A141,Obec_Grid!H:H)/$C141 -> 0.4442227638 | M141: =SUMIF(Obec_Grid!$B:$B,$A141,Obec_Grid!I:I)/$C141*1000 -> 77.44686854 | N141: =SUMIF(Obec_Grid!$B:$B,$A141,Obec_Grid!J:J)/$C141 -> 0.2322005671 | O141: =SUMIF(Obec_Grid!$B:$B,$A141,Obec_Grid!K:K)/$C141 -> 0.06615366262 | P141: =SUMIF(Obec_Grid!$B:$B,$A141,Obec_Grid!L:L)/$C141 -> 0.01290382916 | Q141: =SUMIF(Obec_Grid!$B:$B,$A141,Obec_Grid!M:M)/$C141 -> 0.346323649
A142: 513610 | B142: =SUMIF(Obec_Grid!B:B,A142,Obec_Grid!D:D) -> 17664 | C142: =SUMIF(Obec_Grid!B:B,A142,Obec_Grid!E:E) -> 60 | D142: =F142*Pomocný!$C$14+G142*Pomocný!$C$12+H142*Pomocný!$C$15+I142*Pomocný!$C$13 -> 0.3491182511 | E142: 0.5450835086 | F142: 0.1568589191 | G142: 0.9203892212 | H142: 0.01204592432 | I142: 0.30717894 | J142: =SUMIF(Obec_Grid!$B:$B,$A142,Obec_Grid!F:F)/$C142*1000 -> 18.15682715 | K142: =SUMIF(Obec_Grid!$B:$B,$A142,Obec_Grid!G:G)/$C142 -> 102.7490923 | L142: =SUMIF(Obec_Grid!$B:$B,$A142,Obec_Grid!H:H)/$C142 -> 6.77675867 | M142: =SUMIF(Obec_Grid!$B:$B,$A142,Obec_Grid!I:I)/$C142*1000 -> 47.67382937 | N142: =SUMIF(Obec_Grid!$B:$B,$A142,Obec_Grid!J:J)/$C142 -> 0.2003688562 | O142: =SUMIF(Obec_Grid!$B:$B,$A142,Obec_Grid!K:K)/$C142 -> 0.1453313266 | P142: =SUMIF(Obec_Grid!$B:$B,$A142,Obec_Grid!L:L)/$C142 -> 0.162079174 | Q142: =SUMIF(Obec_Grid!$B:$B,$A142,Obec_Grid!M:M)/$C142 -> 0.2155059826
A143: 514462 | B143: =SUMIF(Obec_Grid!B:B,A143,Obec_Grid!D:D) -> 21198 | C143: =SUMIF(Obec_Grid!B:B,A143,Obec_Grid!E:E) -> 70 | D143: =F143*Pomocný!$C$14+G143*Pomocný!$C$12+H143*Pomocný!$C$15+I143*Pomocný!$C$13 -> 0.300635607 | E143: 0.4693796997 | F143: 0.1667540265 | G143: 0.9154918435 | H143: 0.04283964395 | I143: 0.07745691405 | J143: =SUMIF(Obec_Grid!$B:$B,$A143,Obec_Grid!F:F)/$C143*1000 -> 19.29661728 | K143: =SUMIF(Obec_Grid!$B:$B,$A143,Obec_Grid!G:G)/$C143 -> 108.6578517 | L143: =SUMIF(Obec_Grid!$B:$B,$A143,Obec_Grid!H:H)/$C143 -> 24.10059377 | M143: =SUMIF(Obec_Grid!$B:$B,$A143,Obec_Grid!I:I)/$C143*1000 -> 12.06302732 | N143: =SUMIF(Obec_Grid!$B:$B,$A143,Obec_Grid!J:J)/$C143 -> 0.2177259587 | O143: =SUMIF(Obec_Grid!$B:$B,$A143,Obec_Grid!K:K)/$C143 -> 0.1627806817 | P143: =SUMIF(Obec_Grid!$B:$B,$A143,Obec_Grid!L:L)/$C143 -> 0.04772110746 | Q143: =SUMIF(Obec_Grid!$B:$B,$A143,Obec_Grid!M:M)/$C143 -> 0.09143272949
A144: 526355 | B144: =SUMIF(Obec_Grid!B:B,A144,Obec_Grid!D:D) -> 35507 | C144: =SUMIF(Obec_Grid!B:B,A144,Obec_Grid!E:E) -> 67.55697569 | D144: =F144*Pomocný!$C$14+G144*Pomocný!$C$12+H144*Pomocný!$C$15+I144*Pomocný!$C$13 -> 0.3167022338 | E144: 0.4944671277 | F144: 0.179486026 | G144: 0.8596308592 | H144: 0.000712625549 | I144: 0.2269794246 | J144: =SUMIF(Obec_Grid!$B:$B,$A144,Obec_Grid!F:F)/$C144*1000 -> 20.76318118 | K144: =SUMIF(Obec_Grid!$B:$B,$A144,Obec_Grid!G:G)/$C144 -> 176.0549639 | L144: =SUMIF(Obec_Grid!$B:$B,$A144,Obec_Grid!H:H)/$C144 -> 0.4009066669 | M144: =SUMIF(Obec_Grid!$B:$B,$A144,Obec_Grid!I:I)/$C144*1000 -> 35.2415471 | N144: =SUMIF(Obec_Grid!$B:$B,$A144,Obec_Grid!J:J)/$C144 -> 0.1887957907 | O144: =SUMIF(Obec_Grid!$B:$B,$A144,Obec_Grid!K:K)/$C144 -> 0.1891461647 | P144: =SUMIF(Obec_Grid!$B:$B,$A144,Obec_Grid!L:L)/$C144 -> 0.01158177516 | Q144: =SUMIF(Obec_Grid!$B:$B,$A144,Obec_Grid!M:M)/$C144 -> 0.2120732324
A145: 508527 | B145: =SUMIF(Obec_Grid!B:B,A145,Obec_Grid!D:D) -> 4972 | C145: =SUMIF(Obec_Grid!B:B,A145,Obec_Grid!E:E) -> 53.12100457 | D145: =F145*Pomocný!$C$14+G145*Pomocný!$C$12+H145*Pomocný!$C$15+I145*Pomocný!$C$13 -> 0.4091472061 | E145: 0.6388164437 | F145: 0.2697598131 | G145: 0.9974967364 | H145: 0.0001482939222 | I145: 0.3691839811 | J145: =SUMIF(Obec_Grid!$B:$B,$A145,Obec_Grid!F:F)/$C145*1000 -> 31.16156971 | K145: =SUMIF(Obec_Grid!$B:$B,$A145,Obec_Grid!G:G)/$C145 -> 9.717722998 | L145: =SUMIF(Obec_Grid!$B:$B,$A145,Obec_Grid!H:H)/$C145 -> 0.08342673393 | M145: =SUMIF(Obec_Grid!$B:$B,$A145,Obec_Grid!I:I)/$C145*1000 -> 57.28566016 | N145: =SUMIF(Obec_Grid!$B:$B,$A145,Obec_Grid!J:J)/$C145 -> 0.3442577129 | O145: =SUMIF(Obec_Grid!$B:$B,$A145,Obec_Grid!K:K)/$C145 -> 0.04307413 | P145: =SUMIF(Obec_Grid!$B:$B,$A145,Obec_Grid!L:L)/$C145 -> 0.002116263132 | Q145: =SUMIF(Obec_Grid!$B:$B,$A145,Obec_Grid!M:M)/$C145 -> 0.2685863236
A146: 501204 | B146: =SUMIF(Obec_Grid!B:B,A146,Obec_Grid!D:D) -> 9782 | C146: =SUMIF(Obec_Grid!B:B,A146,Obec_Grid!E:E) -> 75 | D146: =F146*Pomocný!$C$14+G146*Pomocný!$C$12+H146*Pomocný!$C$15+I146*Pomocný!$C$13 -> 0.3754631678 | E146: 0.5862200962 | F146: 0.1098719498 | G146: 0.9713862272 | H146: 0.3086625756 | I146: 0.1119319188 | J146: =SUMIF(Obec_Grid!$B:$B,$A146,Obec_Grid!F:F)/$C146*1000 -> 12.74452776 | K146: =SUMIF(Obec_Grid!$B:$B,$A146,Obec_Grid!G:G)/$C146 -> 41.22044253 | L146: =SUMIF(Obec_Grid!$B:$B,$A146,Obec_Grid!H:H)/$C146 -> 173.6464326 | M146: =SUMIF(Obec_Grid!$B:$B,$A146,Obec_Grid!I:I)/$C146*1000 -> 17.40723654 | N146: =SUMIF(Obec_Grid!$B:$B,$A146,Obec_Grid!J:J)/$C146 -> 0.08478034033 | O146: =SUMIF(Obec_Grid!$B:$B,$A146,Obec_Grid!K:K)/$C146 -> 0.108378718 | P146: =SUMIF(Obec_Grid!$B:$B,$A146,Obec_Grid!L:L)/$C146 -> 0.266039847 | Q146: =SUMIF(Obec_Grid!$B:$B,$A146,Obec_Grid!M:M)/$C146 -> 0.09210169754
A147: 510262 | B147: =SUMIF(Obec_Grid!B:B,A147,Obec_Grid!D:D) -> 23966 | C147: =SUMIF(Obec_Grid!B:B,A147,Obec_Grid!E:E) -> 80 | D147: =F147*Pomocný!$C$14+G147*Pomocný!$C$12+H147*Pomocný!$C$15+I147*Pomocný!$C$13 -> 0.2954674266 | E147: 0.4613097821 | F147: 0.1848263527 | G147: 0.9424668696 | H147: 0.008271188603 | I147: 0.04630529527 | J147: =SUMIF(Obec_Grid!$B:$B,$A147,Obec_Grid!F:F)/$C147*1000 -> 21.37831868 | K147: =SUMIF(Obec_Grid!$B:$B,$A147,Obec_Grid!G:G)/$C147 -> 76.11207953 | L147: =SUMIF(Obec_Grid!$B:$B,$A147,Obec_Grid!H:H)/$C147 -> 4.653179582 | M147: =SUMIF(Obec_Grid!$B:$B,$A147,Obec_Grid!I:I)/$C147*1000 -> 7.233999169 | N147: =SUMIF(Obec_Grid!$B:$B,$A147,Obec_Grid!J:J)/$C147 -> 0.2415196918 | O147: =SUMIF(Obec_Grid!$B:$B,$A147,Obec_Grid!K:K)/$C147 -> 0.1960630224 | P147: =SUMIF(Obec_Grid!$B:$B,$A147,Obec_Grid!L:L)/$C147 -> 0.03422930004 | Q147: =SUMIF(Obec_Grid!$B:$B,$A147,Obec_Grid!M:M)/$C147 -> 0.06799818405
A148: 502031 | B148: =SUMIF(Obec_Grid!B:B,A148,Obec_Grid!D:D) -> 32713 | C148: =SUMIF(Obec_Grid!B:B,A148,Obec_Grid!E:E) -> 84 | D148: =F148*Pomocný!$C$14+G148*Pomocný!$C$12+H148*Pomocný!$C$15+I148*Pomocný!$C$13 -> 0.2847268611 | E148: 0.4445387968 | F148: 0.1722473154 | G148: 0.8951823018 | H148: 0.02157521243 | I148: 0.04990261496 | J148: =SUMIF(Obec_Grid!$B:$B,$A148,Obec_Grid!F:F)/$C148*1000 -> 19.92937407 | K148: =SUMIF(Obec_Grid!$B:$B,$A148,Obec_Grid!G:G)/$C148 -> 133.1616171 | L148: =SUMIF(Obec_Grid!$B:$B,$A148,Obec_Grid!H:H)/$C148 -> 12.13771596 | M148: =SUMIF(Obec_Grid!$B:$B,$A148,Obec_Grid!I:I)/$C148*1000 -> 7.791644606 | N148: =SUMIF(Obec_Grid!$B:$B,$A148,Obec_Grid!J:J)/$C148 -> 0.16952396 | O148: =SUMIF(Obec_Grid!$B:$B,$A148,Obec_Grid!K:K)/$C148 -> 0.16458289 | P148: =SUMIF(Obec_Grid!$B:$B,$A148,Obec_Grid!L:L)/$C148 -> 0.03286633653 | Q148: =SUMIF(Obec_Grid!$B:$B,$A148,Obec_Grid!M:M)/$C148 -> 0.06630832225
A149: 509451 | B149: =SUMIF(Obec_Grid!B:B,A149,Obec_Grid!D:D) -> 4931 | C149: =SUMIF(Obec_Grid!B:B,A149,Obec_Grid!E:E) -> 56.24615385 | D149: =F149*Pomocný!$C$14+G149*Pomocný!$C$12+H149*Pomocný!$C$15+I149*Pomocný!$C$13 -> 0.3895689636 | E149: 0.608245761 | F149: 0.2513097579 | G149: 0.998401201 | H149: 0 | I149: 0.3085648954 | J149: =SUMIF(Obec_Grid!$B:$B,$A149,Obec_Grid!F:F)/$C149*1000 -> 29.03635874 | K149: =SUMIF(Obec_Grid!$B:$B,$A149,Obec_Grid!G:G)/$C149 -> 8.62647297 | L149: =SUMIF(Obec_Grid!$B:$B,$A149,Obec_Grid!H:H)/$C149 -> 0 | M149: =SUMIF(Obec_Grid!$B:$B,$A149,Obec_Grid!I:I)/$C149*1000 -> 47.88867591 | N149: =SUMIF(Obec_Grid!$B:$B,$A149,Obec_Grid!J:J)/$C149 -> 0.4549784269 | O149: =SUMIF(Obec_Grid!$B:$B,$A149,Obec_Grid!K:K)/$C149 -> 0.04730277495 | P149: =SUMIF(Obec_Grid!$B:$B,$A149,Obec_Grid!L:L)/$C149 -> 0 | Q149: =SUMIF(Obec_Grid!$B:$B,$A149,Obec_Grid!M:M)/$C149 -> 0.2553946271
A150: 512036 | B150: =SUMIF(Obec_Grid!B:B,A150,Obec_Grid!D:D) -> 52514 | C150: =SUMIF(Obec_Grid!B:B,A150,Obec_Grid!E:E) -> 91.96604571 | D150: =F150*Pomocný!$C$14+G150*Pomocný!$C$12+H150*Pomocný!$C$15+I150*Pomocný!$C$13 -> 0.2519544041 | E150: 0.3933658488 | F150: 0.05312215822 | G150: 0.8515321959 | H150: 0.01732589282 | I150: 0.08583736938 | J150: =SUMIF(Obec_Grid!$B:$B,$A150,Obec_Grid!F:F)/$C150*1000 -> 6.207675801 | K150: =SUMIF(Obec_Grid!$B:$B,$A150,Obec_Grid!G:G)/$C150 -> 185.826122 | L150: =SUMIF(Obec_Grid!$B:$B,$A150,Obec_Grid!H:H)/$C150 -> 9.747146944 | M150: =SUMIF(Obec_Grid!$B:$B,$A150,Obec_Grid!I:I)/$C150*1000 -> 13.36213973 | N150: =SUMIF(Obec_Grid!$B:$B,$A150,Obec_Grid!J:J)/$C150 -> 0.1674708992 | O150: =SUMIF(Obec_Grid!$B:$B,$A150,Obec_Grid!K:K)/$C150 -> 0.2342959801 | P150: =SUMIF(Obec_Grid!$B:$B,$A150,Obec_Grid!L:L)/$C150 -> 0.04517981426 | Q150: =SUMIF(Obec_Grid!$B:$B,$A150,Obec_Grid!M:M)/$C150 -> 0.1043199877
A151: 508179 | B151: =SUMIF(Obec_Grid!B:B,A151,Obec_Grid!D:D) -> 25014 | C151: =SUMIF(Obec_Grid!B:B,A151,Obec_Grid!E:E) -> 79 | D151: =F151*Pomocný!$C$14+G151*Pomocný!$C$12+H151*Pomocný!$C$15+I151*Pomocný!$C$13 -> 0.3512494453 | E151: 0.5484112875 | F151: 0.1225217137 | G151: 0.8923649191 | H151: 0.02004371466 | I151: 0.370067434 | J151: =SUMIF(Obec_Grid!$B:$B,$A151,Obec_Grid!F:F)/$C151*1000 -> 14.20161917 | K151: =SUMIF(Obec_Grid!$B:$B,$A151,Obec_Grid!G:G)/$C151 -> 136.5608315 | L151: =SUMIF(Obec_Grid!$B:$B,$A151,Obec_Grid!H:H)/$C151 -> 11.27613071 | M151: =SUMIF(Obec_Grid!$B:$B,$A151,Obec_Grid!I:I)/$C151*1000 -> 57.42261031 | N151: =SUMIF(Obec_Grid!$B:$B,$A151,Obec_Grid!J:J)/$C151 -> 0.2127380278 | O151: =SUMIF(Obec_Grid!$B:$B,$A151,Obec_Grid!K:K)/$C151 -> 0.1785564603 | P151: =SUMIF(Obec_Grid!$B:$B,$A151,Obec_Grid!L:L)/$C151 -> 0.03095511543 | Q151: =SUMIF(Obec_Grid!$B:$B,$A151,Obec_Grid!M:M)/$C151 -> 0.2124013398
A152: 509400 | B152: =SUMIF(Obec_Grid!B:B,A152,Obec_Grid!D:D) -> 5004 | C152: =SUMIF(Obec_Grid!B:B,A152,Obec_Grid!E:E) -> 59.46281179 | D152: =F152*Pomocný!$C$14+G152*Pomocný!$C$12+H152*Pomocný!$C$15+I152*Pomocný!$C$13 -> 0.4294104733 | E152: 0.6704567665 | F152: 0.3102209245 | G152: 0.9969470781 | H152: 4.838083229e-05 | I152: 0.4104255098 | J152: =SUMIF(Obec_Grid!$B:$B,$A152,Obec_Grid!F:F)/$C152*1000 -> 35.82217353 | K152: =SUMIF(Obec_Grid!$B:$B,$A152,Obec_Grid!G:G)/$C152 -> 10.38089402 | L152: =SUMIF(Obec_Grid!$B:$B,$A152,Obec_Grid!H:H)/$C152 -> 0.02721793829 | M152: =SUMIF(Obec_Grid!$B:$B,$A152,Obec_Grid!I:I)/$C152*1000 -> 63.67879513 | N152: =SUMIF(Obec_Grid!$B:$B,$A152,Obec_Grid!J:J)/$C152 -> 0.3972789437 | O152: =SUMIF(Obec_Grid!$B:$B,$A152,Obec_Grid!K:K)/$C152 -> 0.0427062704 | P152: =SUMIF(Obec_Grid!$B:$B,$A152,Obec_Grid!L:L)/$C152 -> 0.0008349775447 | Q152: =SUMIF(Obec_Grid!$B:$B,$A152,Obec_Grid!M:M)/$C152 -> 0.2934814475
A153: 517461 | B153: =SUMIF(Obec_Grid!B:B,A153,Obec_Grid!D:D) -> 11046 | C153: =SUMIF(Obec_Grid!B:B,A153,Obec_Grid!E:E) -> 68 | D153: =F153*Pomocný!$C$14+G153*Pomocný!$C$12+H153*Pomocný!$C$15+I153*Pomocný!$C$13 -> 0.3471113247 | E153: 0.5419497691 | F153: 0.1945956393 | G153: 0.967908707 | H153: 0.1008064712 | I153: 0.1251344813 | J153: =SUMIF(Obec_Grid!$B:$B,$A153,Obec_Grid!F:F)/$C153*1000 -> 22.50361586 | K153: =SUMIF(Obec_Grid!$B:$B,$A153,Obec_Grid!G:G)/$C153 -> 45.41612264 | L153: =SUMIF(Obec_Grid!$B:$B,$A153,Obec_Grid!H:H)/$C153 -> 56.71139129 | M153: =SUMIF(Obec_Grid!$B:$B,$A153,Obec_Grid!I:I)/$C153*1000 -> 19.45385719 | N153: =SUMIF(Obec_Grid!$B:$B,$A153,Obec_Grid!J:J)/$C153 -> 0.3218582339 | O153: =SUMIF(Obec_Grid!$B:$B,$A153,Obec_Grid!K:K)/$C153 -> 0.1061319708 | P153: =SUMIF(Obec_Grid!$B:$B,$A153,Obec_Grid!L:L)/$C153 -> 0.2368826813 | Q153: =SUMIF(Obec_Grid!$B:$B,$A153,Obec_Grid!M:M)/$C153 -> 0.1915407247
A154: 519006 | B154: =SUMIF(Obec_Grid!B:B,A154,Obec_Grid!D:D) -> 31811 | C154: =SUMIF(Obec_Grid!B:B,A154,Obec_Grid!E:E) -> 78 | D154: =F154*Pomocný!$C$14+G154*Pomocný!$C$12+H154*Pomocný!$C$15+I154*Pomocný!$C$13 -> 0.3141911447 | E154: 0.4905461573 | F154: 0.2233658932 | G154: 0.8984039121 | H154: 0.006025608657 | I154: 0.1289691647 | J154: =SUMIF(Obec_Grid!$B:$B,$A154,Obec_Grid!F:F)/$C154*1000 -> 25.81758205 | K154: =SUMIF(Obec_Grid!$B:$B,$A154,Obec_Grid!G:G)/$C154 -> 129.2746962 | L154: =SUMIF(Obec_Grid!$B:$B,$A154,Obec_Grid!H:H)/$C154 -> 3.389868194 | M154: =SUMIF(Obec_Grid!$B:$B,$A154,Obec_Grid!I:I)/$C154*1000 -> 20.04829801 | N154: =SUMIF(Obec_Grid!$B:$B,$A154,Obec_Grid!J:J)/$C154 -> 0.2665295668 | O154: =SUMIF(Obec_Grid!$B:$B,$A154,Obec_Grid!K:K)/$C154 -> 0.1539272798 | P154: =SUMIF(Obec_Grid!$B:$B,$A154,Obec_Grid!L:L)/$C154 -> 0.01729835965 | Q154: =SUMIF(Obec_Grid!$B:$B,$A154,Obec_Grid!M:M)/$C154 -> 0.2174526609
A155: 510998 | B155: =SUMIF(Obec_Grid!B:B,A155,Obec_Grid!D:D) -> 28068 | C155: =SUMIF(Obec_Grid!B:B,A155,Obec_Grid!E:E) -> 82 | D155: =F155*Pomocný!$C$14+G155*Pomocný!$C$12+H155*Pomocný!$C$15+I155*Pomocný!$C$13 -> 0.347701498 | E155: 0.5428713023 | F155: 0.2478923671 | G155: 0.9187699794 | H155: 0.002140011185 | I155: 0.2220036342 | J155: =SUMIF(Obec_Grid!$B:$B,$A155,Obec_Grid!F:F)/$C155*1000 -> 28.64271893 | K155: =SUMIF(Obec_Grid!$B:$B,$A155,Obec_Grid!G:G)/$C155 -> 104.7027316 | L155: =SUMIF(Obec_Grid!$B:$B,$A155,Obec_Grid!H:H)/$C155 -> 1.203920843 | M155: =SUMIF(Obec_Grid!$B:$B,$A155,Obec_Grid!I:I)/$C155*1000 -> 34.47021538 | N155: =SUMIF(Obec_Grid!$B:$B,$A155,Obec_Grid!J:J)/$C155 -> 0.2272534948 | O155: =SUMIF(Obec_Grid!$B:$B,$A155,Obec_Grid!K:K)/$C155 -> 0.1545693822 | P155: =SUMIF(Obec_Grid!$B:$B,$A155,Obec_Grid!L:L)/$C155 -> 0.0337007018 | Q155: =SUMIF(Obec_Grid!$B:$B,$A155,Obec_Grid!M:M)/$C155 -> 0.2299557425
A156: 516643 | B156: =SUMIF(Obec_Grid!B:B,A156,Obec_Grid!D:D) -> 9717 | C156: =SUMIF(Obec_Grid!B:B,A156,Obec_Grid!E:E) -> 80 | D156: =F156*Pomocný!$C$14+G156*Pomocný!$C$12+H156*Pomocný!$C$15+I156*Pomocný!$C$13 -> 0.5050719196 | E156: 0.7885992434 | F156: 0.5700437072 | G156: 0.987613558 | H156: 0.0286479052 | I156: 0.4339825078 | J156: =SUMIF(Obec_Grid!$B:$B,$A156,Obec_Grid!F:F)/$C156*1000 -> 65.75044319 | K156: =SUMIF(Obec_Grid!$B:$B,$A156,Obec_Grid!G:G)/$C156 -> 21.64192548 | L156: =SUMIF(Obec_Grid!$B:$B,$A156,Obec_Grid!H:H)/$C156 -> 16.11664948 | M156: =SUMIF(Obec_Grid!$B:$B,$A156,Obec_Grid!I:I)/$C156*1000 -> 67.33052852 | N156: =SUMIF(Obec_Grid!$B:$B,$A156,Obec_Grid!J:J)/$C156 -> 0.3546342729 | O156: =SUMIF(Obec_Grid!$B:$B,$A156,Obec_Grid!K:K)/$C156 -> 0.05989554216 | P156: =SUMIF(Obec_Grid!$B:$B,$A156,Obec_Grid!L:L)/$C156 -> 0.02087865169 | Q156: =SUMIF(Obec_Grid!$B:$B,$A156,Obec_Grid!M:M)/$C156 -> 0.2691737718
A157: 518158 | B157: =SUMIF(Obec_Grid!B:B,A157,Obec_Grid!D:D) -> 40318 | C157: =SUMIF(Obec_Grid!B:B,A157,Obec_Grid!E:E) -> 98 | D157: =F157*Pomocný!$C$14+G157*Pomocný!$C$12+H157*Pomocný!$C$15+I157*Pomocný!$C$13 -> 0.4176891147 | E157: 0.6521543098 | F157: 0.2471949376 | G157: 0.8935178769 | H157: 0.006468628916 | I157: 0.5235750155 | J157: =SUMIF(Obec_Grid!$B:$B,$A157,Obec_Grid!F:F)/$C157*1000 -> 28.56238394 | K157: =SUMIF(Obec_Grid!$B:$B,$A157,Obec_Grid!G:G)/$C157 -> 135.1697707 | L157: =SUMIF(Obec_Grid!$B:$B,$A157,Obec_Grid!H:H)/$C157 -> 3.639101154 | M157: =SUMIF(Obec_Grid!$B:$B,$A157,Obec_Grid!I:I)/$C157*1000 -> 81.21888355 | N157: =SUMIF(Obec_Grid!$B:$B,$A157,Obec_Grid!J:J)/$C157 -> 0.2173321817 | O157: =SUMIF(Obec_Grid!$B:$B,$A157,Obec_Grid!K:K)/$C157 -> 0.1767579014 | P157: =SUMIF(Obec_Grid!$B:$B,$A157,Obec_Grid!L:L)/$C157 -> 0.03104729846 | Q157: =SUMIF(Obec_Grid!$B:$B,$A157,Obec_Grid!M:M)/$C157 -> 0.2477486671
A158: 504581 | B158: =SUMIF(Obec_Grid!B:B,A158,Obec_Grid!D:D) -> 11194 | C158: =SUMIF(Obec_Grid!B:B,A158,Obec_Grid!E:E) -> 95 | D158: =F158*Pomocný!$C$14+G158*Pomocný!$C$12+H158*Pomocný!$C$15+I158*Pomocný!$C$13 -> 0.3772526483 | E158: 0.5890143021 | F158: 0.2872337063 | G158: 0.9734930528 | H158: 0.0008047670795 | I158: 0.2474790671 | J158: =SUMIF(Obec_Grid!$B:$B,$A158,Obec_Grid!F:F)/$C158*1000 -> 33.17433927 | K158: =SUMIF(Obec_Grid!$B:$B,$A158,Obec_Grid!G:G)/$C158 -> 38.678526 | L158: =SUMIF(Obec_Grid!$B:$B,$A158,Obec_Grid!H:H)/$C158 -> 0.4527433628 | M158: =SUMIF(Obec_Grid!$B:$B,$A158,Obec_Grid!I:I)/$C158*1000 -> 38.41933865 | N158: =SUMIF(Obec_Grid!$B:$B,$A158,Obec_Grid!J:J)/$C158 -> 0.2546353908 | O158: =SUMIF(Obec_Grid!$B:$B,$A158,Obec_Grid!K:K)/$C158 -> 0.07133625187 | P158: =SUMIF(Obec_Grid!$B:$B,$A158,Obec_Grid!L:L)/$C158 -> 0.0003157642692 | Q158: =SUMIF(Obec_Grid!$B:$B,$A158,Obec_Grid!M:M)/$C158 -> 0.1676039376
A159: 505820 | B159: =SUMIF(Obec_Grid!B:B,A159,Obec_Grid!D:D) -> 56672 | C159: =SUMIF(Obec_Grid!B:B,A159,Obec_Grid!E:E) -> 122 | D159: =F159*Pomocný!$C$14+G159*Pomocný!$C$12+H159*Pomocný!$C$15+I159*Pomocný!$C$13 -> 0.2514939776 | E159: 0.3926469103 | F159: 0.05693052431 | G159: 0.8751477368 | H159: 0.01423948762 | I159: 0.05965816166 | J159: =SUMIF(Obec_Grid!$B:$B,$A159,Obec_Grid!F:F)/$C159*1000 -> 6.646350986 | K159: =SUMIF(Obec_Grid!$B:$B,$A159,Obec_Grid!G:G)/$C159 -> 157.3336191 | L159: =SUMIF(Obec_Grid!$B:$B,$A159,Obec_Grid!H:H)/$C159 -> 8.010806695 | M159: =SUMIF(Obec_Grid!$B:$B,$A159,Obec_Grid!I:I)/$C159*1000 -> 9.303919456 | N159: =SUMIF(Obec_Grid!$B:$B,$A159,Obec_Grid!J:J)/$C159 -> 0.1291192624 | O159: =SUMIF(Obec_Grid!$B:$B,$A159,Obec_Grid!K:K)/$C159 -> 0.2159140479 | P159: =SUMIF(Obec_Grid!$B:$B,$A159,Obec_Grid!L:L)/$C159 -> 0.1302091624 | Q159: =SUMIF(Obec_Grid!$B:$B,$A159,Obec_Grid!M:M)/$C159 -> 0.1262581611
A160: 509507 | B160: =SUMIF(Obec_Grid!B:B,A160,Obec_Grid!D:D) -> 7241 | C160: =SUMIF(Obec_Grid!B:B,A160,Obec_Grid!E:E) -> 80 | D160: =F160*Pomocný!$C$14+G160*Pomocný!$C$12+H160*Pomocný!$C$15+I160*Pomocný!$C$13 -> 0.3528004776 | E160: 0.5508331655 | F160: 0.1442826363 | G160: 0.995270638 | H160: 0.0004534116026 | I160: 0.2711952245 | J160: =SUMIF(Obec_Grid!$B:$B,$A160,Obec_Grid!F:F)/$C160*1000 -> 16.70819982 | K160: =SUMIF(Obec_Grid!$B:$B,$A160,Obec_Grid!G:G)/$C160 -> 12.40354401 | L160: =SUMIF(Obec_Grid!$B:$B,$A160,Obec_Grid!H:H)/$C160 -> 0.2550788904 | M160: =SUMIF(Obec_Grid!$B:$B,$A160,Obec_Grid!I:I)/$C160*1000 -> 42.09574443 | N160: =SUMIF(Obec_Grid!$B:$B,$A160,Obec_Grid!J:J)/$C160 -> 0.2684851937 | O160: =SUMIF(Obec_Grid!$B:$B,$A160,Obec_Grid!K:K)/$C160 -> 0.04143440716 | P160: =SUMIF(Obec_Grid!$B:$B,$A160,Obec_Grid!L:L)/$C160 -> 0.004190287763 | Q160: =SUMIF(Obec_Grid!$B:$B,$A160,Obec_Grid!M:M)/$C160 -> 0.404142143
A161: 501026 | B161: =SUMIF(Obec_Grid!B:B,A161,Obec_Grid!D:D) -> 32814 | C161: =SUMIF(Obec_Grid!B:B,A161,Obec_Grid!E:E) -> 117 | D161: =F161*Pomocný!$C$14+G161*Pomocný!$C$12+H161*Pomocný!$C$15+I161*Pomocný!$C$13 -> 0.3290408851 | E161: 0.5137334635 | F161: 0.1208589541 | G161: 0.9170713244 | H161: 0.2246619087 | I161: 0.05357135334 | J161: =SUMIF(Obec_Grid!$B:$B,$A161,Obec_Grid!F:F)/$C161*1000 -> 14.01009048 | K161: =SUMIF(Obec_Grid!$B:$B,$A161,Obec_Grid!G:G)/$C161 -> 106.7521843 | L161: =SUMIF(Obec_Grid!$B:$B,$A161,Obec_Grid!H:H)/$C161 -> 126.3895985 | M161: =SUMIF(Obec_Grid!$B:$B,$A161,Obec_Grid!I:I)/$C161*1000 -> 8.360361147 | N161: =SUMIF(Obec_Grid!$B:$B,$A161,Obec_Grid!J:J)/$C161 -> 0.1264218787 | O161: =SUMIF(Obec_Grid!$B:$B,$A161,Obec_Grid!K:K)/$C161 -> 0.1513295746 | P161: =SUMIF(Obec_Grid!$B:$B,$A161,Obec_Grid!L:L)/$C161 -> 0.3398676532 | Q161: =SUMIF(Obec_Grid!$B:$B,$A161,Obec_Grid!M:M)/$C161 -> 0.07170424212
A162: 509345 | B162: =SUMIF(Obec_Grid!B:B,A162,Obec_Grid!D:D) -> 5884 | C162: =SUMIF(Obec_Grid!B:B,A162,Obec_Grid!E:E) -> 83.75384615 | D162: =F162*Pomocný!$C$14+G162*Pomocný!$C$12+H162*Pomocný!$C$15+I162*Pomocný!$C$13 -> 0.4475044671 | E162: 0.698709851 | F162: 0.3550842583 | G162: 0.9997458043 | H162: 0.0004183877346 | I162: 0.4347694179 | J162: =SUMIF(Obec_Grid!$B:$B,$A162,Obec_Grid!F:F)/$C162*1000 -> 40.98985719 | K162: =SUMIF(Obec_Grid!$B:$B,$A162,Obec_Grid!G:G)/$C162 -> 7.004188994 | L162: =SUMIF(Obec_Grid!$B:$B,$A162,Obec_Grid!H:H)/$C162 -> 0.2353752716 | M162: =SUMIF(Obec_Grid!$B:$B,$A162,Obec_Grid!I:I)/$C162*1000 -> 67.4525129 | N162: =SUMIF(Obec_Grid!$B:$B,$A162,Obec_Grid!J:J)/$C162 -> 0.2983475776 | O162: =SUMIF(Obec_Grid!$B:$B,$A162,Obec_Grid!K:K)/$C162 -> 0.03469311517 | P162: =SUMIF(Obec_Grid!$B:$B,$A162,Obec_Grid!L:L)/$C162 -> 0.0003052988844 | Q162: =SUMIF(Obec_Grid!$B:$B,$A162,Obec_Grid!M:M)/$C162 -> 0.3641215399
A163: 506524 | B163: =SUMIF(Obec_Grid!B:B,A163,Obec_Grid!D:D) -> 9024 | C163: =SUMIF(Obec_Grid!B:B,A163,Obec_Grid!E:E) -> 89 | D163: =F163*Pomocný!$C$14+G163*Pomocný!$C$12+H163*Pomocný!$C$15+I163*Pomocný!$C$13 -> 0.4703417652 | E163: =(D163-MIN($D$3:$D$174))/(MAX($D$3:$D$174)-MIN($D$3:$D$174)) -> 0.7343694254 | F163: =(J163-MIN(J$3:J$174))/(MAX(J$3:J$174)-MIN(J$3:J$174)) -> 0.5139598929 | G163: 0.9789568873 | H163: =(L163-MIN(L$3:L$174))/(MAX(L$3:L$174)-MIN(L$3:L$174)) -> 0.005804071727 | I163: =(M163-MIN(M$3:M$174))/(MAX(M$3:M$174)-MIN(M$3:M$174)) -> 0.382646209 | J163: =SUMIF(Obec_Grid!$B:$B,$A163,Obec_Grid!F:F)/$C163*1000 -> 59.29030332 | K163: =SUMIF(Obec_Grid!$B:$B,$A163,Obec_Grid!G:G)/$C163 -> 32.08632799 | L163: =SUMIF(Obec_Grid!$B:$B,$A163,Obec_Grid!H:H)/$C163 -> 3.265236636 | M163: =SUMIF(Obec_Grid!$B:$B,$A163,Obec_Grid!I:I)/$C163*1000 -> 59.37253333 | N163: =SUMIF(Obec_Grid!$B:$B,$A163,Obec_Grid!J:J)/$C163 -> 0.3815588565 | O163: =SUMIF(Obec_Grid!$B:$B,$A163,Obec_Grid!K:K)/$C163 -> 0.04637529697 | P163: =SUMIF(Obec_Grid!$B:$B,$A163,Obec_Grid!L:L)/$C163 -> 0.01578897093 | Q163: =SUMIF(Obec_Grid!$B:$B,$A163,Obec_Grid!M:M)/$C163 -> 0.2183485651
A164: 508497 | B164: =SUMIF(Obec_Grid!B:B,A164,Obec_Grid!D:D) -> 19985 | C164: =SUMIF(Obec_Grid!B:B,A164,Obec_Grid!E:E) -> 111.8789954 | D164: =F164*Pomocný!$C$14+G164*Pomocný!$C$12+H164*Pomocný!$C$15+I164*Pomocný!$C$13 -> 0.4960705734 | E164: 0.774543983 | F164: 0.8040703968 | G164: 0.9661910054 | H164: 0.006147241121 | I164: 0.2078736503 | J164: =SUMIF(Obec_Grid!$B:$B,$A164,Obec_Grid!F:F)/$C164*1000 -> 92.70733204 | K164: =SUMIF(Obec_Grid!$B:$B,$A164,Obec_Grid!G:G)/$C164 -> 47.48855531 | L164: =SUMIF(Obec_Grid!$B:$B,$A164,Obec_Grid!H:H)/$C164 -> 3.458295808 | M164: =SUMIF(Obec_Grid!$B:$B,$A164,Obec_Grid!I:I)/$C164*1000 -> 32.27982873 | N164: =SUMIF(Obec_Grid!$B:$B,$A164,Obec_Grid!J:J)/$C164 -> 0.4345390971 | O164: =SUMIF(Obec_Grid!$B:$B,$A164,Obec_Grid!K:K)/$C164 -> 0.0666005438 | P164: =SUMIF(Obec_Grid!$B:$B,$A164,Obec_Grid!L:L)/$C164 -> 0.006836084596 | Q164: =SUMIF(Obec_Grid!$B:$B,$A164,Obec_Grid!M:M)/$C164 -> 0.1311681734
A165: 500011 | B165: =SUMIF(Obec_Grid!B:B,A165,Obec_Grid!D:D) -> 79930 | C165: =SUMIF(Obec_Grid!B:B,A165,Obec_Grid!E:E) -> 174 | D165: =F165*Pomocný!$C$14+G165*Pomocný!$C$12+H165*Pomocný!$C$15+I165*Pomocný!$C$13 -> 0.2493360825 | E165: 0.389277439 | F165: 0.05778126469 | G165: 0.8759980525 | H165: 0.02977279188 | I165: 0.03379222094 | J165: =SUMIF(Obec_Grid!$B:$B,$A165,Obec_Grid!F:F)/$C165*1000 -> 6.744345423 | K165: =SUMIF(Obec_Grid!$B:$B,$A165,Obec_Grid!G:G)/$C165 -> 156.3077006 | L165: =SUMIF(Obec_Grid!$B:$B,$A165,Obec_Grid!H:H)/$C165 -> 16.74948474 | M165: =SUMIF(Obec_Grid!$B:$B,$A165,Obec_Grid!I:I)/$C165*1000 -> 5.294260865 | N165: =SUMIF(Obec_Grid!$B:$B,$A165,Obec_Grid!J:J)/$C165 -> 0.1368519615 | O165: =SUMIF(Obec_Grid!$B:$B,$A165,Obec_Grid!K:K)/$C165 -> 0.2438521829 | P165: =SUMIF(Obec_Grid!$B:$B,$A165,Obec_Grid!L:L)/$C165 -> 0.04779495874 | Q165: =SUMIF(Obec_Grid!$B:$B,$A165,Obec_Grid!M:M)/$C165 -> 0.08364980725
A166: 517097 | B166: =SUMIF(Obec_Grid!B:B,A166,Obec_Grid!D:D) -> 6750 | C166: =SUMIF(Obec_Grid!B:B,A166,Obec_Grid!E:E) -> 100 | D166: =F166*Pomocný!$C$14+G166*Pomocný!$C$12+H166*Pomocný!$C$15+I166*Pomocný!$C$13 -> 0.4541667435 | E166: 0.7091127428 | F166: 0.4529229307 | G166: 0.9955595503 | H166: 0.00998184538 | I166: 0.3582026475 | J166: =SUMIF(Obec_Grid!$B:$B,$A166,Obec_Grid!F:F)/$C166*1000 -> 52.259624 | K166: =SUMIF(Obec_Grid!$B:$B,$A166,Obec_Grid!G:G)/$C166 -> 12.054967 | L166: =SUMIF(Obec_Grid!$B:$B,$A166,Obec_Grid!H:H)/$C166 -> 5.615555556 | M166: =SUMIF(Obec_Grid!$B:$B,$A166,Obec_Grid!I:I)/$C166*1000 -> 55.5833676 | N166: =SUMIF(Obec_Grid!$B:$B,$A166,Obec_Grid!J:J)/$C166 -> 0.4121242819 | O166: =SUMIF(Obec_Grid!$B:$B,$A166,Obec_Grid!K:K)/$C166 -> 0.04165332225 | P166: =SUMIF(Obec_Grid!$B:$B,$A166,Obec_Grid!L:L)/$C166 -> 0.007517233022 | Q166: =SUMIF(Obec_Grid!$B:$B,$A166,Obec_Grid!M:M)/$C166 -> 0.3239303388
A167: 517402 | B167: =SUMIF(Obec_Grid!B:B,A167,Obec_Grid!D:D) -> 85057 | C167: =SUMIF(Obec_Grid!B:B,A167,Obec_Grid!E:E) -> 158.1460993 | D167: =F167*Pomocný!$C$14+G167*Pomocný!$C$12+H167*Pomocný!$C$15+I167*Pomocný!$C$13 -> 0.2636761837 | E167: 0.4116689628 | F167: 0.1171769491 | G167: 0.8431404076 | H167: 0.02511142539 | I167: 0.0692759527 | J167: =SUMIF(Obec_Grid!$B:$B,$A167,Obec_Grid!F:F)/$C167*1000 -> 13.58597048 | K167: =SUMIF(Obec_Grid!$B:$B,$A167,Obec_Grid!G:G)/$C167 -> 195.9509401 | L167: =SUMIF(Obec_Grid!$B:$B,$A167,Obec_Grid!H:H)/$C167 -> 14.12710767 | M167: =SUMIF(Obec_Grid!$B:$B,$A167,Obec_Grid!I:I)/$C167*1000 -> 10.79483985 | N167: =SUMIF(Obec_Grid!$B:$B,$A167,Obec_Grid!J:J)/$C167 -> 0.2263612545 | O167: =SUMIF(Obec_Grid!$B:$B,$A167,Obec_Grid!K:K)/$C167 -> 0.2466603295 | P167: =SUMIF(Obec_Grid!$B:$B,$A167,Obec_Grid!L:L)/$C167 -> 0.05480467773 | Q167: =SUMIF(Obec_Grid!$B:$B,$A167,Obec_Grid!M:M)/$C167 -> 0.1221311993
A168: 524140 | B168: =SUMIF(Obec_Grid!B:B,A168,Obec_Grid!D:D) -> 85634 | C168: =SUMIF(Obec_Grid!B:B,A168,Obec_Grid!E:E) -> 162.9215686 | D168: =F168*Pomocný!$C$14+G168*Pomocný!$C$12+H168*Pomocný!$C$15+I168*Pomocný!$C$13 -> 0.257449591 | E168: 0.4019463747 | F168: 0.07609360729 | G168: 0.841716419 | H168: 0.01875268308 | I168: 0.09323565477 | J168: =SUMIF(Obec_Grid!$B:$B,$A168,Obec_Grid!F:F)/$C168*1000 -> 8.853693656 | K168: =SUMIF(Obec_Grid!$B:$B,$A168,Obec_Grid!G:G)/$C168 -> 197.6690036 | L168: =SUMIF(Obec_Grid!$B:$B,$A168,Obec_Grid!H:H)/$C168 -> 10.54982617 | M168: =SUMIF(Obec_Grid!$B:$B,$A168,Obec_Grid!I:I)/$C168*1000 -> 14.50899918 | N168: =SUMIF(Obec_Grid!$B:$B,$A168,Obec_Grid!J:J)/$C168 -> 0.1764494682 | O168: =SUMIF(Obec_Grid!$B:$B,$A168,Obec_Grid!K:K)/$C168 -> 0.2298646245 | P168: =SUMIF(Obec_Grid!$B:$B,$A168,Obec_Grid!L:L)/$C168 -> 0.05266170444 | Q168: =SUMIF(Obec_Grid!$B:$B,$A168,Obec_Grid!M:M)/$C168 -> 0.1295491512
A169: 508438 | B169: =SUMIF(Obec_Grid!B:B,A169,Obec_Grid!D:D) -> 77531 | C169: =SUMIF(Obec_Grid!B:B,A169,Obec_Grid!E:E) -> 156 | D169: =F169*Pomocný!$C$14+G169*Pomocný!$C$12+H169*Pomocný!$C$15+I169*Pomocný!$C$13 -> 0.2938765393 | E169: 0.4588256719 | F169: 0.08318688956 | G169: 0.8926961693 | H169: 0.002851286995 | I169: 0.1967718112 | J169: =SUMIF(Obec_Grid!$B:$B,$A169,Obec_Grid!F:F)/$C169*1000 -> 9.670749275 | K169: =SUMIF(Obec_Grid!$B:$B,$A169,Obec_Grid!G:G)/$C169 -> 136.1611731 | L169: =SUMIF(Obec_Grid!$B:$B,$A169,Obec_Grid!H:H)/$C169 -> 1.604068177 | M169: =SUMIF(Obec_Grid!$B:$B,$A169,Obec_Grid!I:I)/$C169*1000 -> 30.55885577 | N169: =SUMIF(Obec_Grid!$B:$B,$A169,Obec_Grid!J:J)/$C169 -> 0.2018899354 | O169: =SUMIF(Obec_Grid!$B:$B,$A169,Obec_Grid!K:K)/$C169 -> 0.1787730691 | P169: =SUMIF(Obec_Grid!$B:$B,$A169,Obec_Grid!L:L)/$C169 -> 0.01662824109 | Q169: =SUMIF(Obec_Grid!$B:$B,$A169,Obec_Grid!M:M)/$C169 -> 0.2184745407
A170: 512842 | B170: =SUMIF(Obec_Grid!B:B,A170,Obec_Grid!D:D) -> 39051 | C170: =SUMIF(Obec_Grid!B:B,A170,Obec_Grid!E:E) -> 144 | D170: =F170*Pomocný!$C$14+G170*Pomocný!$C$12+H170*Pomocný!$C$15+I170*Pomocný!$C$13 -> 0.3756419848 | E170: 0.5864993122 | F170: 0.2585690497 | G170: 0.9504939058 | H170: 0.09452733027 | I170: 0.1989776536 | J170: =SUMIF(Obec_Grid!$B:$B,$A170,Obec_Grid!F:F)/$C170*1000 -> 29.87253654 | K170: =SUMIF(Obec_Grid!$B:$B,$A170,Obec_Grid!G:G)/$C170 -> 66.42734047 | L170: =SUMIF(Obec_Grid!$B:$B,$A170,Obec_Grid!H:H)/$C170 -> 53.17889172 | M170: =SUMIF(Obec_Grid!$B:$B,$A170,Obec_Grid!I:I)/$C170*1000 -> 30.90079868 | N170: =SUMIF(Obec_Grid!$B:$B,$A170,Obec_Grid!J:J)/$C170 -> 0.2706353667 | O170: =SUMIF(Obec_Grid!$B:$B,$A170,Obec_Grid!K:K)/$C170 -> 0.1171146286 | P170: =SUMIF(Obec_Grid!$B:$B,$A170,Obec_Grid!L:L)/$C170 -> 0.1727109592 | Q170: =SUMIF(Obec_Grid!$B:$B,$A170,Obec_Grid!M:M)/$C170 -> 0.1982120128
A171: 509132 | B171: =SUMIF(Obec_Grid!B:B,A171,Obec_Grid!D:D) -> 23853 | C171: =SUMIF(Obec_Grid!B:B,A171,Obec_Grid!E:E) -> 133.5371882 | D171: =F171*Pomocný!$C$14+G171*Pomocný!$C$12+H171*Pomocný!$C$15+I171*Pomocný!$C$13 -> 0.3817788196 | E171: 0.5960817468 | F171: 0.1833103084 | G171: 0.9753440799 | H171: 0.002053547087 | I171: 0.3664073431 | J171: =SUMIF(Obec_Grid!$B:$B,$A171,Obec_Grid!F:F)/$C171*1000 -> 21.20368972 | K171: =SUMIF(Obec_Grid!$B:$B,$A171,Obec_Grid!G:G)/$C171 -> 36.44523417 | L171: =SUMIF(Obec_Grid!$B:$B,$A171,Obec_Grid!H:H)/$C171 -> 1.155278139 | M171: =SUMIF(Obec_Grid!$B:$B,$A171,Obec_Grid!I:I)/$C171*1000 -> 56.85523429 | N171: =SUMIF(Obec_Grid!$B:$B,$A171,Obec_Grid!J:J)/$C171 -> 0.2570107947 | O171: =SUMIF(Obec_Grid!$B:$B,$A171,Obec_Grid!K:K)/$C171 -> 0.06650180417 | P171: =SUMIF(Obec_Grid!$B:$B,$A171,Obec_Grid!L:L)/$C171 -> 0.006481922499 | Q171: =SUMIF(Obec_Grid!$B:$B,$A171,Obec_Grid!M:M)/$C171 -> 0.3327703689
A172: 518557 | B172: =SUMIF(Obec_Grid!B:B,A172,Obec_Grid!D:D) -> 7455 | C172: =SUMIF(Obec_Grid!B:B,A172,Obec_Grid!E:E) -> 133 | D172: =F172*Pomocný!$C$14+G172*Pomocný!$C$12+H172*Pomocný!$C$15+I172*Pomocný!$C$13 -> 0.6404583393 | E172: 1 | F172: 1 | G172: 0.99120487 | H172: 0.01106050256 | I172: 0.5595679849 | J172: =SUMIF(Obec_Grid!$B:$B,$A172,Obec_Grid!F:F)/$C172*1000 -> 115.2759226 | K172: =SUMIF(Obec_Grid!$B:$B,$A172,Obec_Grid!G:G)/$C172 -> 17.30895391 | L172: =SUMIF(Obec_Grid!$B:$B,$A172,Obec_Grid!H:H)/$C172 -> 6.222383158 | M172: =SUMIF(Obec_Grid!$B:$B,$A172,Obec_Grid!I:I)/$C172*1000 -> 86.79840298 | N172: =SUMIF(Obec_Grid!$B:$B,$A172,Obec_Grid!J:J)/$C172 -> 0.4778182148 | O172: =SUMIF(Obec_Grid!$B:$B,$A172,Obec_Grid!K:K)/$C172 -> 0.03777124715 | P172: =SUMIF(Obec_Grid!$B:$B,$A172,Obec_Grid!L:L)/$C172 -> 0.01473709108 | Q172: =SUMIF(Obec_Grid!$B:$B,$A172,Obec_Grid!M:M)/$C172 -> 0.2367116501
A173: 518468 | B173: =SUMIF(Obec_Grid!B:B,A173,Obec_Grid!D:D) -> 7079 | C173: =SUMIF(Obec_Grid!B:B,A173,Obec_Grid!E:E) -> 134.2941176 | D173: =F173*Pomocný!$C$14+G173*Pomocný!$C$12+H173*Pomocný!$C$15+I173*Pomocný!$C$13 -> 0.5487253801 | E173: 0.8567624654 | F173: 0.7500438375 | G173: 1 | H173: 0.00124543989 | I173: 0.4436122429 | J173: =SUMIF(Obec_Grid!$B:$B,$A173,Obec_Grid!F:F)/$C173*1000 -> 86.4841617 | K173: =SUMIF(Obec_Grid!$B:$B,$A173,Obec_Grid!G:G)/$C173 -> 6.697498114 | L173: =SUMIF(Obec_Grid!$B:$B,$A173,Obec_Grid!H:H)/$C173 -> 0.7006557029 | M173: =SUMIF(Obec_Grid!$B:$B,$A173,Obec_Grid!I:I)/$C173*1000 -> 68.82330044 | N173: =SUMIF(Obec_Grid!$B:$B,$A173,Obec_Grid!J:J)/$C173 -> 0.4970495697 | O173: =SUMIF(Obec_Grid!$B:$B,$A173,Obec_Grid!K:K)/$C173 -> 0.02231470237 | P173: =SUMIF(Obec_Grid!$B:$B,$A173,Obec_Grid!L:L)/$C173 -> 0.002625822915 | Q173: =SUMIF(Obec_Grid!$B:$B,$A173,Obec_Grid!M:M)/$C173 -> 0.2235193882
A174: 518263 | B174: =SUMIF(Obec_Grid!B:B,A174,Obec_Grid!D:D) -> 13685 | C174: =SUMIF(Obec_Grid!B:B,A174,Obec_Grid!E:E) -> 156.7058824 | D174: =F174*Pomocný!$C$14+G174*Pomocný!$C$12+H174*Pomocný!$C$15+I174*Pomocný!$C$13 -> 0.4581821914 | E174: 0.7153827124 | F174: 0.5535724138 | G174: 0.9887536991 | H174: 0.0001240611108 | I174: 0.2902785917 | J174: =SUMIF(Obec_Grid!$B:$B,$A174,Obec_Grid!F:F)/$C174*1000 -> 63.85316034 | K174: =SUMIF(Obec_Grid!$B:$B,$A174,Obec_Grid!G:G)/$C174 -> 20.26632822 | L174: =SUMIF(Obec_Grid!$B:$B,$A174,Obec_Grid!H:H)/$C174 -> 0.06979391422 | M174: =SUMIF(Obec_Grid!$B:$B,$A174,Obec_Grid!I:I)/$C174*1000 -> 45.05398934 | N174: =SUMIF(Obec_Grid!$B:$B,$A174,Obec_Grid!J:J)/$C174 -> 0.4956849367 | O174: =SUMIF(Obec_Grid!$B:$B,$A174,Obec_Grid!K:K)/$C174 -> 0.03511096634 | P174: =SUMIF(Obec_Grid!$B:$B,$A174,Obec_Grid!L:L)/$C174 -> 0.0006228782691 | Q174: =SUMIF(Obec_Grid!$B:$B,$A174,Obec_Grid!M:M)/$C174 -> 0.1602813036

Sheet Obec_Grid
F1: Počet obyvateľov | J1: Rozloha
A2: Obec_grid | B2: IDN2 | C2: fid | D2: Pocet_obyv | E2: Pod_grid | F2: GRA | G2: IMD | H2: WAW | I2: TCD | J2: GRA | K2: IMD | L2: WAW | M2: TCD
A3: 509451_1 | B3: 509451 | C3: 1 | D3: 30 | E3: =D3/SUMIF($C$3:$C$7916,C3,$D$3:$D$7916) -> 1 | F3: =VLOOKUP($C3,Grid!$A:$T,5,0)*$E3 -> 0.01933760684 | G3: =VLOOKUP($C3,Grid!$A:$T,9,0)*$E3 -> 1.717548077 | H3: =VLOOKUP($C3,Grid!$A:$T,13,0)*$E3 -> 0 | I3: =VLOOKUP($C3,Grid!$A:$T,17,0)*$E3 -> 0.002672676282 | J3: =VLOOKUP($C3,Grid!$A:$T,8,0)*$E3 -> 0.5801282051 | K3: =VLOOKUP($C3,Grid!$A:$T,12,0)*$E3 -> 0.05725160256 | L3: =VLOOKUP($C3,Grid!$A:$T,16,0)*$E3 -> 0 | M3: =VLOOKUP($C3,Grid!$A:$T,20,0)*$E3 -> 0.08018028846
A4: 509451_2 | B4: 509451 | C4: 2 | D4: 3 | E4: =D4/SUMIF($C$3:$C$7916,C4,$D$3:$D$7916) -> 1 | F4: =VLOOKUP($C4,Grid!$A:$T,5,0)*$E4 -> 0.126984127 | G4: =VLOOKUP($C4,Grid!$A:$T,9,0)*$E4 -> 0 | H4: =VLOOKUP($C4,Grid!$A:$T,13,0)*$E4 -> 0 | I4: =VLOOKUP($C4,Grid!$A:$T,17,0)*$E4 -> 0.1345231426 | J4: =VLOOKUP($C4,Grid!$A:$T,8,0)*$E4 -> 0.380952381 | K4: =VLOOKUP($C4,Grid!$A:$T,12,0)*$E4 -> 0 | L4: =VLOOKUP($C4,Grid!$A:$T,16,0)*$E4 -> 0 | M4: =VLOOKUP($C4,Grid!$A:$T,20,0)*$E4 -> 0.4035694278
A5: 509451_3 | B5: 509451 | C5: 3 | D5: 1 | E5: 1 | F5: =VLOOKUP($C5,Grid!$A:$T,5,0)*$E5 -> 0.05637744902 | G5: =VLOOKUP($C5,Grid!$A:$T,9,0)*$E5 -> 0 | H5: =VLOOKUP($C5,Grid!$A:$T,13,0)*$E5 -> 0 | I5: =VLOOKUP($C5,Grid!$A:$T,17,0)*$E5 -> 0.6598640544 | J5: =VLOOKUP($C5,Grid!$A:$T,8,0)*$E5 -> 0.05637744902 | K5: =VLOOKUP($C5,Grid!$A:$T,12,0)*$E5 -> 0 | L5: =VLOOKUP($C5,Grid!$A:$T,16,0)*$E5 -> 0 | M5: =VLOOKUP($C5,Grid!$A:$T,20,0)*$E5 -> 0.6598640544
A6: 509132_4 | B6: 509132 | C6: 4 | D6: 54 | E6: 1 | F6: =VLOOKUP($C6,Grid!$A:$T,5,0)*$E6 -> 0.00202638741 | G6: =VLOOKUP($C6,Grid!$A:$T,9,0)*$E6 -> 0.7384025559 | H6: =VLOOKUP($C6,Grid!$A:$T,13,0)*$E6 -> 0 | I6: =VLOOKUP($C6,Grid!$A:$T,17,0)*$E6 -> 0.01143747781 | J6: =VLOOKUP($C6,Grid!$A:$T,8,0)*$E6 -> 0.1094249201 | K6: =VLOOKUP($C6,Grid!$A:$T,12,0)*$E6 -> 0.01367412141 | L6: =VLOOKUP($C6,Grid!$A:$T,16,0)*$E6 -> 0 | M6: =VLOOKUP($C6,Grid!$A:$T,20,0)*$E6 -> 0.6176238019
A7: 509451_5 | B7: 509451 | C7: 5 | D7: 136 | E7: 1 | F7: =VLOOKUP($C7,Grid!$A:$T,5,0)*$E7 -> 0.002783067664 | G7: =VLOOKUP($C7,Grid!$A:$T,9,0)*$E7 -> 7.647418066 | H7: =VLOOKUP($C7,Grid!$A:$T,13,0)*$E7 -> 0 | I7: =VLOOKUP($C7,Grid!$A:$T,17,0)*$E7 -> 0.001835325857 | J7: =VLOOKUP($C7,Grid!$A:$T,8,0)*$E7 -> 0.3784972022 | K7: =VLOOKUP($C7,Grid!$A:$T,12,0)*$E7 -> 0.05623101519 | L7: =VLOOKUP($C7,Grid!$A:$T,16,0)*$E7 -> 0 | M7: =VLOOKUP($C7,Grid!$A:$T,20,0)*$E7 -> 0.2496043165
A8: 509451_6 | B8: 509451 | C8: 6 | D8: 30 | E8: 1 | F8: =VLOOKUP($C8,Grid!$A:$T,5,0)*$E8 -> 0.01901905904 | G8: =VLOOKUP($C8,Grid!$A:$T,9,0)*$E8 -> 1.818592563 | H8: =VLOOKUP($C8,Grid!$A:$T,13,0)*$E8 -> 0 | I8: =VLOOKUP($C8,Grid!$A:$T,17,0)*$E8 -> 0.004263228042 | J8: =VLOOKUP($C8,Grid!$A:$T,8,0)*$E8 -> 0.5705717713 | K8: =VLOOKUP($C8,Grid!$A:$T,12,0)*$E8 -> 0.0606197521 | L8: =VLOOKUP($C8,Grid!$A:$T,16,0)*$E8 -> 0 | M8: =VLOOKUP($C8,Grid!$A:$T,20,0)*$E8 -> 0.1278968413
A9: 509451_7 | B9: 509451 | C9: 7 | D9: 2 | E9: 1 | F9: =VLOOKUP($C9,Grid!$A:$T,5,0)*$E9 -> 0.1009192646 | G9: =VLOOKUP($C9,Grid!$A:$T,9,0)*$E9 -> 0.07258992806 | H9: =VLOOKUP($C9,Grid!$A:$T,13,0)*$E9 -> 0 | I9: =VLOOKUP($C9,Grid!$A:$T,17,0)*$E9 -> 0.2587789768 | J9: =VLOOKUP($C9,Grid!$A:$T,8,0)*$E9 -> 0.2018385292 | K9: =VLOOKUP($C9,Grid!$A:$T,12,0)*$E9 -> 0.03629496403 | L9: =VLOOKUP($C9,Grid!$A:$T,16,0)*$E9 -> 0 | M9: =VLOOKUP($C9,Grid!$A:$T,20,0)*$E9 -> 0.5175579536
A10: 509451_8 | B10: 509451 | C10: 8 | D10: 6 | E10: 1 | F10: =VLOOKUP($C10,Grid!$A:$T,5,0)*$E10 -> 0.001736806947 | G10: =VLOOKUP($C10,Grid!$A:$T,9,0)*$E10 -> 0.07411623246 | H10: =VLOOKUP($C10,Grid!$A:$T,13,0)*$E10 -> 0 | I10: =VLOOKUP($C10,Grid!$A:$T,17,0)*$E10 -> 0.1302311289 | J10: =VLOOKUP($C10,Grid!$A:$T,8,0)*$E10 -> 0.01042084168 | K10: =VLOOKUP($C10,Grid!$A:$T,12,0)*$E10 -> 0.01235270541 | L10: =VLOOKUP($C10,Grid!$A:$T,16,0)*$E10 -> 0 | M10: =VLOOKUP($C10,Grid!$A:$T,20,0)*$E10 -> 0.7813867735
A11: 509451_9 | B11: 509451 | C11: 9 | D11: 3 | E11: 1 | F11: =VLOOKUP($C11,Grid!$A:$T,5,0)*$E11 -> 0.01437699681 | G11: =VLOOKUP($C11,Grid!$A:$T,9,0)*$E11 -> 0 | H11: =VLOOKUP($C11,Grid!$A:$T,13,0)*$E11 -> 0 | I11: =VLOOKUP($C11,Grid!$A:$T,17,0)*$E11 -> 0.2410556443 | J11: =VLOOKUP($C11,Grid!$A:$T,8,0)*$E11 -> 0.04313099042 | K11: =VLOOKUP($C11,Grid!$A:$T,12,0)*$E11 -> 0 | L11: =VLOOKUP($C11,Grid!$A:$T,16,0)*$E11 -> 0 | M11: =VLOOKUP($C11,Grid!$A:$T,20,0)*$E11 -> 0.7231669329
A12: 509400_10 | B12: 509400 | C12: 10 | D12: 6 | E12: 1 | F12: =VLOOKUP($C12,Grid!$A:$T,5,0)*$E12 -> 0.02479008397 | G12: =VLOOKUP($C12,Grid!$A:$T,9,0)*$E12 -> 0 | H12: =VLOOKUP($C12,Grid!$A:$T,13,0)*$E12 -> 0 | I12: =VLOOKUP($C12,Grid!$A:$T,17,0)*$E12 -> 0.1046348127 | J12: =VLOOKUP($C12,Grid!$A:$T,8,0)*$E12 -> 0.1487405038 | K12: =VLOOKUP($C12,Grid!$A:$T,12,0)*$E12 -> 0 | L12: =VLOOKUP($C12,Grid!$A:$T,16,0)*$E12 -> 0 | M12: =VLOOKUP($C12,Grid!$A:$T,20,0)*$E12 -> 0.6278088764
A13: 509132_11 | B13: 509132 | C13: 11 | D13: 86 | E13: 0.9555555556 | F13: =VLOOKUP($C13,Grid!$A:$T,5,0)*$E13 -> 0.004753185027 | G13: =VLOOKUP($C13,Grid!$A:$T,9,0)*$E13 -> 2.808394569 | H13: =VLOOKUP($C13,Grid!$A:$T,13,0)*$E13 -> 0 | I13: =VLOOKUP($C13,Grid!$A:$T,17,0)*$E13 -> 0.003160550034 | J13: =VLOOKUP($C13,Grid!$A:$T,8,0)*$E13 -> 0.4277866525 | K13: =VLOOKUP($C13,Grid!$A:$T,12,0)*$E13 -> 0.0312043841 | L13: =VLOOKUP($C13,Grid!$A:$T,16,0)*$E13 -> 0 | M13: =VLOOKUP($C13,Grid!$A:$T,20,0)*$E13 -> 0.284449503
A14: 509400_11 | B14: 509400 | C14: 11 | D14: 4 | E14: =D14/SUMIF($C$3:$C$7916,C14,$D$3:$D$7916) -> 0.04444444444 | F14: =VLOOKUP($C14,Grid!$A:$T,5,0)*$E14 -> 0.0002210783734 | G14: =VLOOKUP($C14,Grid!$A:$T,9,0)*$E14 -> 0.1306230032 | H14: =VLOOKUP($C14,Grid!$A:$T,13,0)*$E14 -> 0 | I14: =VLOOKUP($C14,Grid!$A:$T,17,0)*$E14 -> 0.0001470023271 | J14: =VLOOKUP($C14,Grid!$A:$T,8,0)*$E14 -> 0.0198970536 | K14: =VLOOKUP($C14,Grid!$A:$T,12,0)*$E14 -> 0.001451366702 | L14: =VLOOKUP($C14,Grid!$A:$T,16,0)*$E14 -> 0 | M14: =VLOOKUP($C14,Grid!$A:$T,20,0)*$E14 -> 0.01323020944
A15: 509132_12 | B15: 509132 | C15: 12 | D15: 17 | E15: 1 | F15: =VLOOKUP($C15,Grid!$A:$T,5,0)*$E15 -> 0.03789072606 | G15: =VLOOKUP($C15,Grid!$A:$T,9,0)*$E15 -> 0.1026389444 | H15: =VLOOKUP($C15,Grid!$A:$T,13,0)*$E15 -> 0 | I15: =VLOOKUP($C15,Grid!$A:$T,17,0)*$E15 -> 0.01108521297 | J15: =VLOOKUP($C15,Grid!$A:$T,8,0)*$E15 -> 0.6441423431 | K15: =VLOOKUP($C15,Grid!$A:$T,12,0)*$E15 -> 0.006037584966 | L15: =VLOOKUP($C15,Grid!$A:$T,16,0)*$E15 -> 0 | M15: =VLOOKUP($C15,Grid!$A:$T,20,0)*$E15 -> 0.1884486206
A16: 509451_13 | B16: 509451 | C16: 13 | D16: 90 | E16: 1 | F16: =VLOOKUP($C16,Grid!$A:$T,5,0)*$E16 -> 0.004697272122 | G16: =VLOOKUP($C16,Grid!$A:$T,9,0)*$E16 -> 2.894730539 | H16: =VLOOKUP($C16,Grid!$A:$T,13,0)*$E16 -> 0 | I16: =VLOOKUP($C16,Grid!$A:$T,17,0)*$E16 -> 0.003408516301 | J16: =VLOOKUP($C16,Grid!$A:$T,8,0)*$E16 -> 0.422754491 | K16: =VLOOKUP($C16,Grid!$A:$T,12,0)*$E16 -> 0.03216367265 | L16: =VLOOKUP($C16,Grid!$A:$T,16,0)*$E16 -> 0 | M16: =VLOOKUP($C16,Grid!$A:$T,20,0)*$E16 -> 0.3067664671
A17: 509451_14 | B17: 509451 | C17: 14 | D17: 142 | E17: 1 | F17: =VLOOKUP($C17,Grid!$A:$T,5,0)*$E17 -> 0.003179010086 | G17: =VLOOKUP($C17,Grid!$A:$T,9,0)*$E17 -> 12.72038385 | H17: =VLOOKUP($C17,Grid!$A:$T,13,0)*$E17 -> 0 | I17: =VLOOKUP($C17,Grid!$A:$T,17,0)*$E17 -> 0.0009474801629 | J17: =VLOOKUP($C17,Grid!$A:$T,8,0)*$E17 -> 0.4514194322 | K17: =VLOOKUP($C17,Grid!$A:$T,12,0)*$E17 -> 0.08958016793 | L17: =VLOOKUP($C17,Grid!$A:$T,16,0)*$E17 -> 0 | M17: =VLOOKUP($C17,Grid!$A:$T,20,0)*$E17 -> 0.1345421831
A18: 509451_15 | B18: 509451 | C18: 15 | D18: 52 | E18: 1 | F18: =VLOOKUP($C18,Grid!$A:$T,5,0)*$E18 -> 0.01124876726 | G18: =VLOOKUP($C18,Grid!$A:$T,9,0)*$E18 -> 2.207708333 | H18: =VLOOKUP($C18,Grid!$A:$T,13,0)*$E18 -> 0 | I18: =VLOOKUP($C18,Grid!$A:$T,17,0)*$E18 -> 0.002344289324 | J18: =VLOOKUP($C18,Grid!$A:$T,8,0)*$E18 -> 0.5849358974 | K18: =VLOOKUP($C18,Grid!$A:$T,12,0)*$E18 -> 0.04245592949 | L18: =VLOOKUP($C18,Grid!$A:$T,16,0)*$E18 -> 0 | M18: =VLOOKUP($C18,Grid!$A:$T,20,0)*$E18 -> 0.1219030449
A19: 509451_16 | B19: 509451 | C19: 16 | D19: 12 | E19: 1 | F19: =VLOOKUP($C19,Grid!$A:$T,5,0)*$E19 -> 0.04833333333 | G19: =VLOOKUP($C19,Grid!$A:$T,9,0)*$E19 -> 0.759312 | H19: =VLOOKUP($C19,Grid!$A:$T,13,0)*$E19 -> 0 | I19: =VLOOKUP($C19,Grid!$A:$T,17,0)*$E19 -> 0.01250066667 | J19: =VLOOKUP($C19,Grid!$A:$T,8,0)*$E19 -> 0.58 | K19: =VLOOKUP($C19,Grid!$A:$T,12,0)*$E19 -> 0.063276 | L19: =VLOOKUP($C19,Grid!$A:$T,16,0)*$E19 -> 0 | M19: =VLOOKUP($C19,Grid!$A:$T,20,0)*$E19 -> 0.150008
A20: 509451_17 | B20: 509451 | C20: 17 | D20: 65 | E20: 1 | F20: =VLOOKUP($C20,Grid!$A:$T,5,0)*$E20 -> 0.003973795097 | G20: =VLOOKUP($C20,Grid!$A:$T,9,0)*$E20 -> 5.557357057 | H20: =VLOOKUP($C20,Grid!$A:$T,13,0)*$E20 -> 0 | I20: =VLOOKUP($C20,Grid!$A:$T,17,0)*$E20 -> 0.003778857688 | J20: =VLOOKUP($C20,Grid!$A:$T,8,0)*$E20 -> 0.2582966813 | K20: =VLOOKUP($C20,Grid!$A:$T,12,0)*$E20 -> 0.08549780088 | L20: =VLOOKUP($C20,Grid!$A:$T,16,0)*$E20 -> 0 | M20: =VLOOKUP($C20,Grid!$A:$T,20,0)*$E20 -> 0.2456257497
A21: 509451_18 | B21: 509451 | C21: 18 | D21: 5 | E21: 1 | F21: =VLOOKUP($C21,Grid!$A:$T,5,0)*$E21 -> 0.1183526589 | G21: =VLOOKUP($C21,Grid!$A:$T,9,0)*$E21 -> 0.02926829268 | H21: =VLOOKUP($C21,Grid!$A:$T,13,0)*$E21 -> 0 | I21: =VLOOKUP($C21,Grid!$A:$T,17,0)*$E21 -> 0.04836385446 | J21: =VLOOKUP($C21,Grid!$A:$T,8,0)*$E21 -> 0.5917632947 | K21: =VLOOKUP($C21,Grid!$A:$T,12,0)*$E21 -> 0.005853658537 | L21: =VLOOKUP($C21,Grid!$A:$T,16,0)*$E21 -> 0 | M21: =VLOOKUP($C21,Grid!$A:$T,20,0)*$E21 -> 0.2418192723
A22: 509400_19 | B22: 509400 | C22: 19 | D22: 9 | E22: 1 | F22: =VLOOKUP($C22,Grid!$A:$T,5,0)*$E22 -> 0.0333555112 | G22: =VLOOKUP($C22,Grid!$A:$T,9,0)*$E22 -> 0.1007784431 | H22: =VLOOKUP($C22,Grid!$A:$T,13,0)*$E22 -> 0 | I22: =VLOOKUP($C22,Grid!$A:$T,17,0)*$E22 -> 0.04250432468 | J22: =VLOOKUP($C22,Grid!$A:$T,8,0)*$E22 -> 0.3001996008 | K22: =VLOOKUP($C22,Grid!$A:$T,12,0)*$E22 -> 0.01119760479 | L22: =VLOOKUP($C22,Grid!$A:$T,16,0)*$E22 -> 0 | M22: =VLOOKUP($C22,Grid!$A:$T,20,0)*$E22 -> 0.3825389222
A23: 509400_20 | B23: 509400 | C23: 20 | D23: 3 | E23: 1 | F23: =VLOOKUP($C23,Grid!$A:$T,5,0)*$E23 -> 0.1511503478 | G23: =VLOOKUP($C23,Grid!$A:$T,9,0)*$E23 -> 0.01254414125 | H23: =VLOOKUP($C23,Grid!$A:$T,13,0)*$E23 -> 0 | I23: =VLOOKUP($C23,Grid!$A:$T,17,0)*$E23 -> 0.1027193686 | J23: =VLOOKUP($C23,Grid!$A:$T,8,0)*$E23 -> 0.4534510433 | K23: =VLOOKUP($C23,Grid!$A:$T,12,0)*$E23 -> 0.004181380417 | L23: =VLOOKUP($C23,Grid!$A:$T,16,0)*$E23 -> 0 | M23: =VLOOKUP($C23,Grid!$A:$T,20,0)*$E23 -> 0.3081581059
A24: 509400_21 | B24: 509400 | C24: 21 | D24: 3 | E24: 1 | F24: =VLOOKUP($C24,Grid!$A:$T,5,0)*$E24 -> 0.1105788423 | G24: =VLOOKUP($C24,Grid!$A:$T,9,0)*$E24 -> 0.001904191617 | H24: =VLOOKUP($C24,Grid!$A:$T,13,0)*$E24 -> 0 | I24: =VLOOKUP($C24,Grid!$A:$T,17,0)*$E24 -> 0.135334664 | J24: =VLOOKUP($C24,Grid!$A:$T,8,0)*$E24 -> 0.3317365269 | K24: =VLOOKUP($C24,Grid!$A:$T,12,0)*$E24 -> 0.0006347305389 | L24: =VLOOKUP($C24,Grid!$A:$T,16,0)*$E24 -> 0 | M24: =VLOOKUP($C24,Grid!$A:$T,20,0)*$E24 -> 0.406003992
A25: 509400_22 | B25: 509400 | C25: 22 | D25: 10 | E25: 1 | F25: =VLOOKUP($C25,Grid!$A:$T,5,0)*$E25 -> 0.03466613355 | G25: =VLOOKUP($C25,Grid!$A:$T,9,0)*$E25 -> 0.03370651739 | H25: =VLOOKUP($C25,Grid!$A:$T,13,0)*$E25 -> 0 | I25: =VLOOKUP($C25,Grid!$A:$T,17,0)*$E25 -> 0.04040103958 | J25: =VLOOKUP($C25,Grid!$A:$T,8,0)*$E25 -> 0.3466613355 | K25: =VLOOKUP($C25,Grid!$A:$T,12,0)*$E25 -> 0.003370651739 | L25: =VLOOKUP($C25,Grid!$A:$T,16,0)*$E25 -> 0 | M25: =VLOOKUP($C25,Grid!$A:$T,20,0)*$E25 -> 0.4040103958
A26: 509132_23 | B26: 509132 | C26: 23 | D26: 18 | E26: 1 | F26: =VLOOKUP($C26,Grid!$A:$T,5,0)*$E26 -> 0.03029089939 | G26: =VLOOKUP($C26,Grid!$A:$T,9,0)*$E26 -> 0.02471577262 | H26: =VLOOKUP($C26,Grid!$A:$T,13,0)*$E26 -> 0 | I26: =VLOOKUP($C26,Grid!$A:$T,17,0)*$E26 -> 0.01628680722 | J26: =VLOOKUP($C26,Grid!$A:$T,8,0)*$E26 -> 0.545236189 | K26: =VLOOKUP($C26,Grid!$A:$T,12,0)*$E26 -> 0.001373098479 | L26: =VLOOKUP($C26,Grid!$A:$T,16,0)*$E26 -> 0 | M26: =VLOOKUP($C26,Grid!$A:$T,20,0)*$E26 -> 0.29316253
A27: 509132_24 | B27: 509132 | C27: 24 | D27: 30 | E27: 1 | F27: =VLOOKUP($C27,Grid!$A:$T,5,0)*$E27 -> 0.02026954897 | G27: =VLOOKUP($C27,Grid!$A:$T,9,0)*$E27 -> 0.1751000801 | H27: =VLOOKUP($C27,Grid!$A:$T,13,0)*$E27 -> 0 | I27: =VLOOKUP($C27,Grid!$A:$T,17,0)*$E27 -> 0.007002802242 | J27: =VLOOKUP($C27,Grid!$A:$T,8,0)*$E27 -> 0.6080864692 | K27: =VLOOKUP($C27,Grid!$A:$T,12,0)*$E27 -> 0.005836669335 | L27: =VLOOKUP($C27,Grid!$A:$T,16,0)*$E27 -> 0 | M27: =VLOOKUP($C27,Grid!$A:$T,20,0)*$E27 -> 0.2100840673
A28: 509132_25 | B28: 509132 | C28: 25 | D28: 11 | E28: 1 | F28: =VLOOKUP($C28,Grid!$A:$T,5,0)*$E28 -> 0.04801715677 | G28: =VLOOKUP($C28,Grid!$A:$T,9,0)*$E28 -> 0.07041583367 | H28: =VLOOKUP($C28,Grid!$A:$T,13,0)*$E28 -> 0 | I28: =VLOOKUP($C28,Grid!$A:$T,17,0)*$E28 -> 0.02439896769 | J28: =VLOOKUP($C28,Grid!$A:$T,8,0)*$E28 -> 0.5281887245 | K28: =VLOOKUP($C28,Grid!$A:$T,12,0)*$E28 -> 0.006401439424 | L28: =VLOOKUP($C28,Grid!$A:$T,16,0)*$E28 -> 0 | M28: =VLOOKUP($C28,Grid!$A:$T,20,0)*$E28 -> 0.2683886445
A29: 509132_26 | B29: 509132 | C29: 26 | D29: 5 | E29: 1 | F29: =VLOOKUP($C29,Grid!$A:$T,5,0)*$E29 -> 0.02891373802 | G29: =VLOOKUP($C29,Grid!$A:$T,9,0)*$E29 -> 0.001697284345 | H29: =VLOOKUP($C29,Grid!$A:$T,13,0)*$E29 -> 0 | I29: =VLOOKUP($C29,Grid!$A:$T,17,0)*$E29 -> 0.1111309904 | J29: =VLOOKUP($C29,Grid!$A:$T,8,0)*$E29 -> 0.1445686901 | K29: =VLOOKUP($C29,Grid!$A:$T,12,0)*$E29 -> 0.000339456869 | L29: =VLOOKUP($C29,Grid!$A:$T,16,0)*$E29 -> 0 | M29: =VLOOKUP($C29,Grid!$A:$T,20,0)*$E29 -> 0.5556549521
A30: 509451_27 | B30: 509451 | C30: 27 | D30: 41 | E30: 1 | F30: =VLOOKUP($C30,Grid!$A:$T,5,0)*$E30 -> 0.01182941458 | G30: =VLOOKUP($C30,Grid!$A:$T,9,0)*$E30 -> 0.2818032787 | H30: =VLOOKUP($C30,Grid!$A:$T,13,0)*$E30 -> 0 | I30: =VLOOKUP($C30,Grid!$A:$T,17,0)*$E30 -> 0.007799611863 | J30: =VLOOKUP($C30,Grid!$A:$T,8,0)*$E30 -> 0.4850059976 | K30: =VLOOKUP($C30,Grid!$A:$T,12,0)*$E30 -> 0.0068732507 | L30: =VLOOKUP($C30,Grid!$A:$T,16,0)*$E30 -> 0 | M30: =VLOOKUP($C30,Grid!$A:$T,20,0)*$E30 -> 0.3197840864
A31: 509451_28 | B31: 509451 | C31: 28 | D31: 176 | E31: 1 | F31: =VLOOKUP($C31,Grid!$A:$T,5,0)*$E31 -> 0.003572727273 | G31: =VLOOKUP($C31,Grid!$A:$T,9,0)*$E31 -> 8.486016 | H31: =VLOOKUP($C31,Grid!$A:$T,13,0)*$E31 -> 0 | I31: =VLOOKUP($C31,Grid!$A:$T,17,0)*$E31 -> 0.0006631818182 | J31: =VLOOKUP($C31,Grid!$A:$T,8,0)*$E31 -> 0.6288 | K31: =VLOOKUP($C31,Grid!$A:$T,12,0)*$E31 -> 0.048216 | L31: =VLOOKUP($C31,Grid!$A:$T,16,0)*$E31 -> 0 | M31: =VLOOKUP($C31,Grid!$A:$T,20,0)*$E31 -> 0.11672
A32: 509451_29 | B32: 509451 | C32: 29 | D32: 258 | E32: 1 | F32: =VLOOKUP($C32,Grid!$A:$T,5,0)*$E32 -> 0.001770274299 | G32: =VLOOKUP($C32,Grid!$A:$T,9,0)*$E32 -> 45.714375 | H32: =VLOOKUP($C32,Grid!$A:$T,13,0)*$E32 -> 0 | I32: =VLOOKUP($C32,Grid!$A:$T,17,0)*$E32 -> 0.0002316730024 | J32: =VLOOKUP($C32,Grid!$A:$T,8,0)*$E32 -> 0.4567307692 | K32: =VLOOKUP($C32,Grid!$A:$T,12,0)*$E32 -> 0.1771875 | L32: =VLOOKUP($C32,Grid!$A:$T,16,0)*$E32 -> 0 | M32: =VLOOKUP($C32,Grid!$A:$T,20,0)*$E32 -> 0.05977163462
A33: 509451_30 | B33: 509451 | C33: 30 | D33: 536 | E33: 1 | F33: =VLOOKUP($C33,Grid!$A:$T,5,0)*$E33 -> 0.0003203829097 | G33: =VLOOKUP($C33,Grid!$A:$T,9,0)*$E33 -> 147.4727796 | H33: =VLOOKUP($C33,Grid!$A:$T,13,0)*$E33 -> 0 | I33: =VLOOKUP($C33,Grid!$A:$T,17,0)*$E33 -> 0.000115799795 | J33: =VLOOKUP($C33,Grid!$A:$T,8,0)*$E33 -> 0.1717252396 | K33: =VLOOKUP($C33,Grid!$A:$T,12,0)*$E33 -> 0.2751357827 | L33: =VLOOKUP($C33,Grid!$A:$T,16,0)*$E33 -> 0 | M33: =VLOOKUP($C33,Grid!$A:$T,20,0)*$E33 -> 0.0620686901
A34: 509451_31 | B34: 509451 | C34: 31 | D34: 91 | E34: 1 | F34: =VLOOKUP($C34,Grid!$A:$T,5,0)*$E34 -> 0.003753846154 | G34: =VLOOKUP($C34,Grid!$A:$T,9,0)*$E34 -> 7.661836 | H34: =VLOOKUP($C34,Grid!$A:$T,13,0)*$E34 -> 0 | I34: =VLOOKUP($C34,Grid!$A:$T,17,0)*$E34 -> 0.002660527473 | J34: =VLOOKUP($C34,Grid!$A:$T,8,0)*$E34 -> 0.3416 | K34: =VLOOKUP($C34,Grid!$A:$T,12,0)*$E34 -> 0.084196 | L34: =VLOOKUP($C34,Grid!$A:$T,16,0)*$E34 -> 0 | M34: =VLOOKUP($C34,Grid!$A:$T,20,0)*$E34 -> 0.242108
A35: 509451_32 | B35: 509451 | C35: 32 | D35: 41 | E35: 1 | F35: =VLOOKUP($C35,Grid!$A:$T,5,0)*$E35 -> 0.01233170732 | G35: =VLOOKUP($C35,Grid!$A:$T,9,0)*$E35 -> 0.52562 | H35: =VLOOKUP($C35,Grid!$A:$T,13,0)*$E35 -> 0 | I35: =VLOOKUP($C35,Grid!$A:$T,17,0)*$E35 -> 0.006624 | J35: =VLOOKUP($C35,Grid!$A:$T,8,0)*$E35 -> 0.5056 | K35: =VLOOKUP($C35,Grid!$A:$T,12,0)*$E35 -> 0.01282 | L35: =VLOOKUP($C35,Grid!$A:$T,16,0)*$E35 -> 0 | M35: =VLOOKUP($C35,Grid!$A:$T,20,0)*$E35 -> 0.271584
A36: 509451_33 | B36: 509451 | C36: 33 | D36: 13 | E36: 1 | F36: =VLOOKUP($C36,Grid!$A:$T,5,0)*$E36 -> 0.0270586785 | G36: =VLOOKUP($C36,Grid!$A:$T,9,0)*$E36 -> 0.76796875 | H36: =VLOOKUP($C36,Grid!$A:$T,13,0)*$E36 -> 0 | I36: =VLOOKUP($C36,Grid!$A:$T,17,0)*$E36 -> 0.02036581607 | J36: =VLOOKUP($C36,Grid!$A:$T,8,0)*$E36 -> 0.3517628205 | K36: =VLOOKUP($C36,Grid!$A:$T,12,0)*$E36 -> 0.05907451923 | L36: =VLOOKUP($C36,Grid!$A:$T,16,0)*$E36 -> 0 | M36: =VLOOKUP($C36,Grid!$A:$T,20,0)*$E36 -> 0.264755609
A37: 509451_34 | B37: 509451 | C37: 34 | D37: 61 | E37: 1 | F37: =VLOOKUP($C37,Grid!$A:$T,5,0)*$E37 -> 0.005610870406 | G37: =VLOOKUP($C37,Grid!$A:$T,9,0)*$E37 -> 3.351463415 | H37: =VLOOKUP($C37,Grid!$A:$T,13,0)*$E37 -> 0 | I37: =VLOOKUP($C37,Grid!$A:$T,17,0)*$E37 -> 0.00357837193 | J37: =VLOOKUP($C37,Grid!$A:$T,8,0)*$E37 -> 0.3422630948 | K37: =VLOOKUP($C37,Grid!$A:$T,12,0)*$E37 -> 0.05494202319 | L37: =VLOOKUP($C37,Grid!$A:$T,16,0)*$E37 -> 0 | M37: =VLOOKUP($C37,Grid!$A:$T,20,0)*$E37 -> 0.2182806877
A38: 509451_35 | B38: 509451 | C38: 35 | D38: 41 | E38: 1 | F38: =VLOOKUP($C38,Grid!$A:$T,5,0)*$E38 -> 0.009003829551 | G38: =VLOOKUP($C38,Grid!$A:$T,9,0)*$E38 -> 1.788569716 | H38: =VLOOKUP($C38,Grid!$A:$T,13,0)*$E38 -> 0 | I38: =VLOOKUP($C38,Grid!$A:$T,17,0)*$E38 -> 0.007252954991 | J38: =VLOOKUP($C38,Grid!$A:$T,8,0)*$E38 -> 0.3691570116 | K38: =VLOOKUP($C38,Grid!$A:$T,12,0)*$E38 -> 0.04362365162 | L38: =VLOOKUP($C38,Grid!$A:$T,16,0)*$E38 -> 0 | M38: =VLOOKUP($C38,Grid!$A:$T,20,0)*$E38 -> 0.2973711546
A39: 509451_36 | B39: 509451 | C39: 36 | D39: 51 | E39: 1 | F39: =VLOOKUP($C39,Grid!$A:$T,5,0)*$E39 -> 0.008899124972 | G39: =VLOOKUP($C39,Grid!$A:$T,9,0)*$E39 -> 2.44689972 | H39: =VLOOKUP($C39,Grid!$A:$T,13,0)*$E39 -> 0 | I39: =VLOOKUP($C39,Grid!$A:$T,17,0)*$E39 -> 0.003395219854 | J39: =VLOOKUP($C39,Grid!$A:$T,8,0)*$E39 -> 0.4538553736 | K39: =VLOOKUP($C39,Grid!$A:$T,12,0)*$E39 -> 0.04797842589 | L39: =VLOOKUP($C39,Grid!$A:$T,16,0)*$E39 -> 0 | M39: =VLOOKUP($C39,Grid!$A:$T,20,0)*$E39 -> 0.1731562125
A40: 509451_37 | B40: 509451 | C40: 37 | D40: 116 | E40: 1 | F40: =VLOOKUP($C40,Grid!$A:$T,5,0)*$E40 -> 0.002626994442 | G40: =VLOOKUP($C40,Grid!$A:$T,9,0)*$E40 -> 11.07395349 | H40: =VLOOKUP($C40,Grid!$A:$T,13,0)*$E40 -> 0 | I40: =VLOOKUP($C40,Grid!$A:$T,17,0)*$E40 -> 0.001909963222 | J40: =VLOOKUP($C40,Grid!$A:$T,8,0)*$E40 -> 0.3047313553 | K40: =VLOOKUP($C40,Grid!$A:$T,12,0)*$E40 -> 0.09546511628 | L40: =VLOOKUP($C40,Grid!$A:$T,16,0)*$E40 -> 0 | M40: =VLOOKUP($C40,Grid!$A:$T,20,0)*$E40 -> 0.2215557338
A41: 509451_38 | B41: 509451 | C41: 38 | D41: 242 | E41: 1 | F41: =VLOOKUP($C41,Grid!$A:$T,5,0)*$E41 -> 0.002561587094 | G41: =VLOOKUP($C41,Grid!$A:$T,9,0)*$E41 -> 20.62609912 | H41: =VLOOKUP($C41,Grid!$A:$T,13,0)*$E41 -> 0 | I41: =VLOOKUP($C41,Grid!$A:$T,17,0)*$E41 -> 0.0003607362044 | J41: =VLOOKUP($C41,Grid!$A:$T,8,0)*$E41 -> 0.6199040767 | K41: =VLOOKUP($C41,Grid!$A:$T,12,0)*$E41 -> 0.08523181455 | L41: =VLOOKUP($C41,Grid!$A:$T,16,0)*$E41 -> 0 | M41: =VLOOKUP($C41,Grid!$A:$T,20,0)*$E41 -> 0.08729816147
A42: 509451_39 | B42: 509451 | C42: 39 | D42: 149 | E42: 1 | F42: =VLOOKUP($C42,Grid!$A:$T,5,0)*$E42 -> 0.003099431368 | G42: =VLOOKUP($C42,Grid!$A:$T,9,0)*$E42 -> 13.31884846 | H42: =VLOOKUP($C42,Grid!$A:$T,13,0)*$E42 -> 0 | I42: =VLOOKUP($C42,Grid!$A:$T,17,0)*$E42 -> 0.00127798545 | J42: =VLOOKUP($C42,Grid!$A:$T,8,0)*$E42 -> 0.4618152739 | K42: =VLOOKUP($C42,Grid!$A:$T,12,0)*$E42 -> 0.0893882447 | L42: =VLOOKUP($C42,Grid!$A:$T,16,0)*$E42 -> 0 | M42: =VLOOKUP($C42,Grid!$A:$T,20,0)*$E42 -> 0.1904198321
A43: 509451_40 | B43: 509451 | C43: 40 | D43: 54 | E43: 1 | F43: =VLOOKUP($C43,Grid!$A:$T,5,0)*$E43 -> 0.009499903742 | G43: =VLOOKUP($C43,Grid!$A:$T,9,0)*$E43 -> 1.827061176 | H43: =VLOOKUP($C43,Grid!$A:$T,13,0)*$E43 -> 0 | I43: =VLOOKUP($C43,Grid!$A:$T,17,0)*$E43 -> 0.003538954788 | J43: =VLOOKUP($C43,Grid!$A:$T,8,0)*$E43 -> 0.5129948021 | K43: =VLOOKUP($C43,Grid!$A:$T,12,0)*$E43 -> 0.03383446621 | L43: =VLOOKUP($C43,Grid!$A:$T,16,0)*$E43 -> 0 | M43: =VLOOKUP($C43,Grid!$A:$T,20,0)*$E43 -> 0.1911035586
A44: 509451_41 | B44: 509451 | C44: 41 | D44: 9 | E44: 1 | F44: =VLOOKUP($C44,Grid!$A:$T,5,0)*$E44 -> 0.03714069928 | G44: =VLOOKUP($C44,Grid!$A:$T,9,0)*$E44 -> 0.06617752899 | H44: =VLOOKUP($C44,Grid!$A:$T,13,0)*$E44 -> 0 | I44: =VLOOKUP($C44,Grid!$A:$T,17,0)*$E44 -> 0.04199742325 | J44: =VLOOKUP($C44,Grid!$A:$T,8,0)*$E44 -> 0.3342662935 | K44: =VLOOKUP($C44,Grid!$A:$T,12,0)*$E44 -> 0.007353058776 | L44: =VLOOKUP($C44,Grid!$A:$T,16,0)*$E44 -> 0 | M44: =VLOOKUP($C44,Grid!$A:$T,20,0)*$E44 -> 0.3779768093
A45: 509400_42 | B45: 509400 | C45: 42 | D45: 96 | E45: 1 | F45: =VLOOKUP($C45,Grid!$A:$T,5,0)*$E45 -> 0.004310344828 | G45: =VLOOKUP($C45,Grid!$A:$T,9,0)*$E45 -> 3.709510826 | H45: =VLOOKUP($C45,Grid!$A:$T,13,0)*$E45 -> 0 | I45: =VLOOKUP($C45,Grid!$A:$T,17,0)*$E45 -> 0.002747218324 | J45: =VLOOKUP($C45,Grid!$A:$T,8,0)*$E45 -> 0.4137931034 | K45: =VLOOKUP($C45,Grid!$A:$T,12,0)*$E45 -> 0.03864073777 | L45: =VLOOKUP($C45,Grid!$A:$T,16,0)*$E45 -> 0 | M45: =VLOOKUP($C45,Grid!$A:$T,20,0)*$E45 -> 0.2637329591
A46: 509400_43 | B46: 509400 | C46: 43 | D46: 18 | E46: 1 | F46: =VLOOKUP($C46,Grid!$A:$T,5,0)*$E46 -> 0.02066409198 | G46: =VLOOKUP($C46,Grid!$A:$T,9,0)*$E46 -> 0.1915781063 | H46: =VLOOKUP($C46,Grid!$A:$T,13,0)*$E46 -> 0 | I46: =VLOOKUP($C46,Grid!$A:$T,17,0)*$E46 -> 0.0204723221 | J46: =VLOOKUP($C46,Grid!$A:$T,8,0)*$E46 -> 0.3719536556 | K46: =VLOOKUP($C46,Grid!$A:$T,12,0)*$E46 -> 0.01064322813 | L46: =VLOOKUP($C46,Grid!$A:$T,16,0)*$E46 -> 0 | M46: =VLOOKUP($C46,Grid!$A:$T,20,0)*$E46 -> 0.3685017978
A47: 509400_44 | B47: 509400 | C47: 44 | D47: 6 | E47: 1 | F47: =VLOOKUP($C47,Grid!$A:$T,5,0)*$E47 -> 0.05591096895 | G47: =VLOOKUP($C47,Grid!$A:$T,9,0)*$E47 -> 0 | H47: =VLOOKUP($C47,Grid!$A:$T,13,0)*$E47 -> 0 | I47: =VLOOKUP($C47,Grid!$A:$T,17,0)*$E47 -> 0.0856557377 | J47: =VLOOKUP($C47,Grid!$A:$T,8,0)*$E47 -> 0.3354658137 | K47: =VLOOKUP($C47,Grid!$A:$T,12,0)*$E47 -> 0 | L47: =VLOOKUP($C47,Grid!$A:$T,16,0)*$E47 -> 0 | M47: =VLOOKUP($C47,Grid!$A:$T,20,0)*$E47 -> 0.5139344262
A48: 509400_45 | B48: 509400 | C48: 45 | D48: 2 | E48: 1 | F48: =VLOOKUP($C48,Grid!$A:$T,5,0)*$E48 -> 0.1820184221 | G48: =VLOOKUP($C48,Grid!$A:$T,9,0)*$E48 -> 0 | H48: =VLOOKUP($C48,Grid!$A:$T,13,0)*$E48 -> 0 | I48: =VLOOKUP($C48,Grid!$A:$T,17,0)*$E48 -> 0.231784141 | J48: =VLOOKUP($C48,Grid!$A:$T,8,0)*$E48 -> 0.3640368442 | K48: =VLOOKUP($C48,Grid!$A:$T,12,0)*$E48 -> 0 | L48: =VLOOKUP($C48,Grid!$A:$T,16,0)*$E48 -> 0 | M48: =VLOOKUP($C48,Grid!$A:$T,20,0)*$E48 -> 0.4635682819
A49: 509400_46 | B49: 509400 | C49: 46 | D49: 1 | E49: 1 | F49: =VLOOKUP($C49,Grid!$A:$T,5,0)*$E49 -> 0.2861723447 | G49: =VLOOKUP($C49,Grid!$A:$T,9,0)*$E49 -> 0 | H49: =VLOOKUP($C49,Grid!$A:$T,13,0)*$E49 -> 0 | I49: =VLOOKUP($C49,Grid!$A:$T,17,0)*$E49 -> 0.5112865731 | J49: =VLOOKUP($C49,Grid!$A:$T,8,0)*$E49 -> 0.2861723447 | K49: =VLOOKUP($C49,Grid!$A:$T,12,0)*$E49 -> 0 | L49: =VLOOKUP($C49,Grid!$A:$T,16,0)*$E49 -> 0 | M49: =VLOOKUP($C49,Grid!$A:$T,20,0)*$E49 -> 0.5112865731
A50: 509132_47 | B50: 509132 | C50: 47 | D50: 7 | E50: 1 | F50: =VLOOKUP($C50,Grid!$A:$T,5,0)*$E50 -> 0.07388178914 | G50: =VLOOKUP($C50,Grid!$A:$T,9,0)*$E50 -> 0.006625399361 | H50: =VLOOKUP($C50,Grid!$A:$T,13,0)*$E50 -> 100 | I50: =VLOOKUP($C50,Grid!$A:$T,17,0)*$E50 -> 0.03522250114 | J50: =VLOOKUP($C50,Grid!$A:$T,8,0)*$E50 -> 0.517172524 | K50: =VLOOKUP($C50,Grid!$A:$T,12,0)*$E50 -> 0.000946485623 | L50: =VLOOKUP($C50,Grid!$A:$T,16,0)*$E50 -> 0.2795527157 | M50: =VLOOKUP($C50,Grid!$A:$T,20,0)*$E50 -> 0.246557508
A51: 509132_48 | B51: 509132 | C51: 48 | D51: 128 | E51: 1 | F51: =VLOOKUP($C51,Grid!$A:$T,5,0)*$E51 -> 0.00393592563 | G51: =VLOOKUP($C51,Grid!$A:$T,9,0)*$E51 -> 5.997728908 | H51: =VLOOKUP($C51,Grid!$A:$T,13,0)*$E51 -> 0 | I51: =VLOOKUP($C51,Grid!$A:$T,17,0)*$E51 -> 0.001648496851 | J51: =VLOOKUP($C51,Grid!$A:$T,8,0)*$E51 -> 0.5037984806 | K51: =VLOOKUP($C51,Grid!$A:$T,12,0)*$E51 -> 0.0468572571 | L51: =VLOOKUP($C51,Grid!$A:$T,16,0)*$E51 -> 0 | M51: =VLOOKUP($C51,Grid!$A:$T,20,0)*$E51 -> 0.211007597
A52: 509132_49 | B52: 509132 | C52: 49 | D52: 3 | E52: 1 | F52: =VLOOKUP($C52,Grid!$A:$T,5,0)*$E52 -> 0.237771558 | G52: =VLOOKUP($C52,Grid!$A:$T,9,0)*$E52 -> 0 | H52: =VLOOKUP($C52,Grid!$A:$T,13,0)*$E52 -> 0 | I52: =VLOOKUP($C52,Grid!$A:$T,17,0)*$E52 -> 0.04950686392 | J52: =VLOOKUP($C52,Grid!$A:$T,8,0)*$E52 -> 0.7133146741 | K52: =VLOOKUP($C52,Grid!$A:$T,12,0)*$E52 -> 0 | L52: =VLOOKUP($C52,Grid!$A:$T,16,0)*$E52 -> 0 | M52: =VLOOKUP($C52,Grid!$A:$T,20,0)*$E52 -> 0.1485205918
A53: 509132_50 | B53: 509132 | C53: 50 | D53: 11 | E53: 1 | F53: =VLOOKUP($C53,Grid!$A:$T,5,0)*$E53 -> 0.03115219448 | G53: =VLOOKUP($C53,Grid!$A:$T,9,0)*$E53 -> 0 | H53: =VLOOKUP($C53,Grid!$A:$T,13,0)*$E53 -> 0 | I53: =VLOOKUP($C53,Grid!$A:$T,17,0)*$E53 -> 0.03990501492 | J53: =VLOOKUP($C53,Grid!$A:$T,8,0)*$E53 -> 0.3426741393 | K53: =VLOOKUP($C53,Grid!$A:$T,12,0)*$E53 -> 0 | L53: =VLOOKUP($C53,Grid!$A:$T,16,0)*$E53 -> 0 | M53: =VLOOKUP($C53,Grid!$A:$T,20,0)*$E53 -> 0.4389551641
A54: 509451_51 | B54: 509451 | C54: 51 | D54: 72 | E54: 1 | F54: =VLOOKUP($C54,Grid!$A:$T,5,0)*$E54 -> 0.005953174286 | G54: =VLOOKUP($C54,Grid!$A:$T,9,0)*$E54 -> 1.444030388 | H54: =VLOOKUP($C54,Grid!$A:$T,13,0)*$E54 -> 0 | I54: =VLOOKUP($C54,Grid!$A:$T,17,0)*$E54 -> 0.004284730552 | J54: =VLOOKUP($C54,Grid!$A:$T,8,0)*$E54 -> 0.4286285486 | K54: =VLOOKUP($C54,Grid!$A:$T,12,0)*$E54 -> 0.02005597761 | L54: =VLOOKUP($C54,Grid!$A:$T,16,0)*$E54 -> 0 | M54: =VLOOKUP($C54,Grid!$A:$T,20,0)*$E54 -> 0.3085005998
A55: 509451_52 | B55: 509451 | C55: 52 | D55: 197 | E55: 1 | F55: =VLOOKUP($C55,Grid!$A:$T,5,0)*$E55 -> 0.003127682937 | G55: =VLOOKUP($C55,Grid!$A:$T,9,0)*$E55 -> 15.68438225 | H55: =VLOOKUP($C55,Grid!$A:$T,13,0)*$E55 -> 0 | I55: =VLOOKUP($C55,Grid!$A:$T,17,0)*$E55 -> 0.0002820597649 | J55: =VLOOKUP($C55,Grid!$A:$T,8,0)*$E55 -> 0.6161535386 | K55: =VLOOKUP($C55,Grid!$A:$T,12,0)*$E55 -> 0.07961615354 | L55: =VLOOKUP($C55,Grid!$A:$T,16,0)*$E55 -> 0 | M55: =VLOOKUP($C55,Grid!$A:$T,20,0)*$E55 -> 0.05556577369
A56: 509451_53 | B56: 509451 | C56: 53 | D56: 306 | E56: 1 | F56: =VLOOKUP($C56,Grid!$A:$T,5,0)*$E56 -> 0.001161540228 | G56: =VLOOKUP($C56,Grid!$A:$T,9,0)*$E56 -> 43.40336262 | H56: =VLOOKUP($C56,Grid!$A:$T,13,0)*$E56 -> 0 | I56: =VLOOKUP($C56,Grid!$A:$T,17,0)*$E56 -> 0.0005568084529 | J56: =VLOOKUP($C56,Grid!$A:$T,8,0)*$E56 -> 0.3554313099 | K56: =VLOOKUP($C56,Grid!$A:$T,12,0)*$E56 -> 0.1418410543 | L56: =VLOOKUP($C56,Grid!$A:$T,16,0)*$E56 -> 0 | M56: =VLOOKUP($C56,Grid!$A:$T,20,0)*$E56 -> 0.1703833866
A57: 509451_54 | B57: 509451 | C57: 54 | D57: 83 | E57: 1 | F57: =VLOOKUP($C57,Grid!$A:$T,5,0)*$E57 -> 0.004162718289 | G57: =VLOOKUP($C57,Grid!$A:$T,9,0)*$E57 -> 3.627086677 | H57: =VLOOKUP($C57,Grid!$A:$T,13,0)*$E57 -> 0 | I57: =VLOOKUP($C57,Grid!$A:$T,17,0)*$E57 -> 0.003793585256 | J57: =VLOOKUP($C57,Grid!$A:$T,8,0)*$E57 -> 0.345505618 | K57: =VLOOKUP($C57,Grid!$A:$T,12,0)*$E57 -> 0.04369983949 | L57: =VLOOKUP($C57,Grid!$A:$T,16,0)*$E57 -> 0 | M57: =VLOOKUP($C57,Grid!$A:$T,20,0)*$E57 -> 0.3148675762
A58: 509451_55 | B58: 509451 | C58: 55 | D58: 155 | E58: 1 | F58: =VLOOKUP($C58,Grid!$A:$T,5,0)*$E58 -> 0.00356705943 | G58: =VLOOKUP($C58,Grid!$A:$T,9,0)*$E58 -> 13.92153693 | H58: =VLOOKUP($C58,Grid!$A:$T,13,0)*$E58 -> 0 | I58: =VLOOKUP($C58,Grid!$A:$T,17,0)*$E58 -> 0.0005317622819 | J58: =VLOOKUP($C58,Grid!$A:$T,8,0)*$E58 -> 0.5528942116 | K58: =VLOOKUP($C58,Grid!$A:$T,12,0)*$E58 -> 0.08981636727 | L58: =VLOOKUP($C58,Grid!$A:$T,16,0)*$E58 -> 0 | M58: =VLOOKUP($C58,Grid!$A:$T,20,0)*$E58 -> 0.08242315369
A59: 509451_56 | B59: 509451 | C59: 56 | D59: 213 | E59: 1 | F59: =VLOOKUP($C59,Grid!$A:$T,5,0)*$E59 -> 0.003082335141 | G59: =VLOOKUP($C59,Grid!$A:$T,9,0)*$E59 -> 14.81546581 | H59: =VLOOKUP($C59,Grid!$A:$T,13,0)*$E59 -> 0 | I59: =VLOOKUP($C59,Grid!$A:$T,17,0)*$E59 -> 0.0003839027769 | J59: =VLOOKUP($C59,Grid!$A:$T,8,0)*$E59 -> 0.656537385 | K59: =VLOOKUP($C59,Grid!$A:$T,12,0)*$E59 -> 0.06955617753 | L59: =VLOOKUP($C59,Grid!$A:$T,16,0)*$E59 -> 0 | M59: =VLOOKUP($C59,Grid!$A:$T,20,0)*$E59 -> 0.08177129148
A60: 509451_57 | B60: 509451 | C60: 57 | D60: 101 | E60: 1 | F60: =VLOOKUP($C60,Grid!$A:$T,5,0)*$E60 -> 0.004572428454 | G60: =VLOOKUP($C60,Grid!$A:$T,9,0)*$E60 -> 4.844446222 | H60: =VLOOKUP($C60,Grid!$A:$T,13,0)*$E60 -> 0 | I60: =VLOOKUP($C60,Grid!$A:$T,17,0)*$E60 -> 0.002293419266 | J60: =VLOOKUP($C60,Grid!$A:$T,8,0)*$E60 -> 0.4618152739 | K60: =VLOOKUP($C60,Grid!$A:$T,12,0)*$E60 -> 0.04796481407 | L60: =VLOOKUP($C60,Grid!$A:$T,16,0)*$E60 -> 0 | M60: =VLOOKUP($C60,Grid!$A:$T,20,0)*$E60 -> 0.2316353459
A61: 509451_58 | B61: 509451 | C61: 58 | D61: 286 | E61: 1 | F61: =VLOOKUP($C61,Grid!$A:$T,5,0)*$E61 -> 0.001996002396 | G61: =VLOOKUP($C61,Grid!$A:$T,9,0)*$E61 -> 31.00546837 | H61: =VLOOKUP($C61,Grid!$A:$T,13,0)*$E61 -> 0 | I61: =VLOOKUP($C61,Grid!$A:$T,17,0)*$E61 -> 0.0001677985745 | J61: =VLOOKUP($C61,Grid!$A:$T,8,0)*$E61 -> 0.5708566853 | K61: =VLOOKUP($C61,Grid!$A:$T,12,0)*$E61 -> 0.1084107286 | L61: =VLOOKUP($C61,Grid!$A:$T,16,0)*$E61 -> 0 | M61: =VLOOKUP($C61,Grid!$A:$T,20,0)*$E61 -> 0.04799039231
A62: 509451_59 | B62: 509451 | C62: 59 | D62: 249 | E62: 1 | F62: =VLOOKUP($C62,Grid!$A:$T,5,0)*$E62 -> 0.002599670098 | G62: =VLOOKUP($C62,Grid!$A:$T,9,0)*$E62 -> 22.7210008 | H62: =VLOOKUP($C62,Grid!$A:$T,13,0)*$E62 -> 0 | I62: =VLOOKUP($C62,Grid!$A:$T,17,0)*$E62 -> 0.0002777000717 | J62: =VLOOKUP($C62,Grid!$A:$T,8,0)*$E62 -> 0.6473178543 | K62: =VLOOKUP($C62,Grid!$A:$T,12,0)*$E62 -> 0.0912489992 | L62: =VLOOKUP($C62,Grid!$A:$T,16,0)*$E62 -> 0 | M62: =VLOOKUP($C62,Grid!$A:$T,20,0)*$E62 -> 0.06914731785
A63: 509451_60 | B63: 509451 | C63: 60 | D63: 82 | E63: 1 | F63: =VLOOKUP($C63,Grid!$A:$T,5,0)*$E63 -> 0.01004074789 | G63: =VLOOKUP($C63,Grid!$A:$T,9,0)*$E63 -> 1.730127898 | H63: =VLOOKUP($C63,Grid!$A:$T,13,0)*$E63 -> 0 | I63: =VLOOKUP($C63,Grid!$A:$T,17,0)*$E63 -> 0.0006426078649 | J63: =VLOOKUP($C63,Grid!$A:$T,8,0)*$E63 -> 0.8233413269 | K63: =VLOOKUP($C63,Grid!$A:$T,12,0)*$E63 -> 0.0210991207 | L63: =VLOOKUP($C63,Grid!$A:$T,16,0)*$E63 -> 0 | M63: =VLOOKUP($C63,Grid!$A:$T,20,0)*$E63 -> 0.05269384492
A64: 509451_61 | B64: 509451 | C64: 61 | D64: 126 | E64: 1 | F64: =VLOOKUP($C64,Grid!$A:$T,5,0)*$E64 -> 0.00606256619 | G64: =VLOOKUP($C64,Grid!$A:$T,9,0)*$E64 -> 5.169372753 | H64: =VLOOKUP($C64,Grid!$A:$T,13,0)*$E64 -> 0 | I64: =VLOOKUP($C64,Grid!$A:$T,17,0)*$E64 -> 0.0005288257266 | J64: =VLOOKUP($C64,Grid!$A:$T,8,0)*$E64 -> 0.76388334 | K64: =VLOOKUP($C64,Grid!$A:$T,12,0)*$E64 -> 0.04102676788 | L64: =VLOOKUP($C64,Grid!$A:$T,16,0)*$E64 -> 0 | M64: =VLOOKUP($C64,Grid!$A:$T,20,0)*$E64 -> 0.06663204155
A65: 509451_62 | B65: 509451 | C65: 62 | D65: 110 | E65: 1 | F65: =VLOOKUP($C65,Grid!$A:$T,5,0)*$E65 -> 0.006786325409 | G65: =VLOOKUP($C65,Grid!$A:$T,9,0)*$E65 -> 4.523348018 | H65: =VLOOKUP($C65,Grid!$A:$T,13,0)*$E65 -> 0 | I65: =VLOOKUP($C65,Grid!$A:$T,17,0)*$E65 -> 0.000719627189 | J65: =VLOOKUP($C65,Grid!$A:$T,8,0)*$E65 -> 0.746495795 | K65: =VLOOKUP($C65,Grid!$A:$T,12,0)*$E65 -> 0.04112134561 | L65: =VLOOKUP($C65,Grid!$A:$T,16,0)*$E65 -> 0 | M65: =VLOOKUP($C65,Grid!$A:$T,20,0)*$E65 -> 0.07915899079
A66: 509451_63 | B66: 509451 | C66: 63 | D66: 5 | E66: 1 | F66: =VLOOKUP($C66,Grid!$A:$T,5,0)*$E66 -> 0.137469976 | G66: =VLOOKUP($C66,Grid!$A:$T,9,0)*$E66 -> 0.00996797438 | H66: =VLOOKUP($C66,Grid!$A:$T,13,0)*$E66 -> 0 | I66: =VLOOKUP($C66,Grid!$A:$T,17,0)*$E66 -> 0.04406965572 | J66: =VLOOKUP($C66,Grid!$A:$T,8,0)*$E66 -> 0.6873498799 | K66: =VLOOKUP($C66,Grid!$A:$T,12,0)*$E66 -> 0.001993594876 | L66: =VLOOKUP($C66,Grid!$A:$T,16,0)*$E66 -> 0 | M66: =VLOOKUP($C66,Grid!$A:$T,20,0)*$E66 -> 0.2203482786
A67: 509400_64 | B67: 509400 | C67: 64 | D67: 11 | E67: 1 | F67: =VLOOKUP($C67,Grid!$A:$T,5,0)*$E67 -> 0.03275053615 | G67: =VLOOKUP($C67,Grid!$A:$T,9,0)*$E67 -> 0.2074210316 | H67: =VLOOKUP($C67,Grid!$A:$T,13,0)*$E67 -> 0 | I67: =VLOOKUP($C67,Grid!$A:$T,17,0)*$E67 -> 0.03843916979 | J67: =VLOOKUP($C67,Grid!$A:$T,8,0)*$E67 -> 0.3602558976 | K67: =VLOOKUP($C67,Grid!$A:$T,12,0)*$E67 -> 0.01885645742 | L67: =VLOOKUP($C67,Grid!$A:$T,16,0)*$E67 -> 0 | M67: =VLOOKUP($C67,Grid!$A:$T,20,0)*$E67 -> 0.4228308677
A68: 509400_65 | B68: 509400 | C68: 65 | D68: 107 | E68: =D68/SUMIF($C$3:$C$7916,C68,$D$3:$D$7916) -> 1 | F68: =VLOOKUP($C68,Grid!$A:$T,5,0)*$E68 -> 0.004074094801 | G68: =VLOOKUP($C68,Grid!$A:$T,9,0)*$E68 -> 5.264998004 | H68: =VLOOKUP($C68,Grid!$A:$T,13,0)*$E68 -> 0 | I68: =VLOOKUP($C68,Grid!$A:$T,17,0)*$E68 -> 0.002195907251 | J68: =VLOOKUP($C68,Grid!$A:$T,8,0)*$E68 -> 0.4359281437 | K68: =VLOOKUP($C68,Grid!$A:$T,12,0)*$E68 -> 0.04920558882 | L68: =VLOOKUP($C68,Grid!$A:$T,16,0)*$E68 -> 0 | M68: =VLOOKUP($C68,Grid!$A:$T,20,0)*$E68 -> 0.2349620758
A69: 509132_66 | B69: 509132 | C69: 66 | D69: 109 | E69: 1 | F69: =VLOOKUP($C69,Grid!$A:$T,5,0)*$E69 -> 0.00487854941 | G69: =VLOOKUP($C69,Grid!$A:$T,9,0)*$E69 -> 4.364790252 | H69: =VLOOKUP($C69,Grid!$A:$T,13,0)*$E69 -> 0 | I69: =VLOOKUP($C69,Grid!$A:$T,17,0)*$E69 -> 0.001441389599 | J69: =VLOOKUP($C69,Grid!$A:$T,8,0)*$E69 -> 0.5317618857 | K69: =VLOOKUP($C69,Grid!$A:$T,12,0)*$E69 -> 0.04004394726 | L69: =VLOOKUP($C69,Grid!$A:$T,16,0)*$E69 -> 0 | M69: =VLOOKUP($C69,Grid!$A:$T,20,0)*$E69 -> 0.1571114662
A70: 509132_67 | B70: 509132 | C70: 67 | D70: 10 | E70: 1 | F70: =VLOOKUP($C70,Grid!$A:$T,5,0)*$E70 -> 0.06153229041 | G70: =VLOOKUP($C70,Grid!$A:$T,9,0)*$E70 -> 0.01355796229 | H70: =VLOOKUP($C70,Grid!$A:$T,13,0)*$E70 -> 0 | I70: =VLOOKUP($C70,Grid!$A:$T,17,0)*$E70 -> 0.02318852788 | J70: =VLOOKUP($C70,Grid!$A:$T,8,0)*$E70 -> 0.6153229041 | K70: =VLOOKUP($C70,Grid!$A:$T,12,0)*$E70 -> 0.001355796229 | L70: =VLOOKUP($C70,Grid!$A:$T,16,0)*$E70 -> 0 | M70: =VLOOKUP($C70,Grid!$A:$T,20,0)*$E70 -> 0.2318852788
A71: 509132_68 | B71: 509132 | C71: 68 | D71: 5 | E71: 1 | F71: =VLOOKUP($C71,Grid!$A:$T,5,0)*$E71 -> 0.058330004 | G71: =VLOOKUP($C71,Grid!$A:$T,9,0)*$E71 -> 0 | H71: =VLOOKUP($C71,Grid!$A:$T,13,0)*$E71 -> 0 | I71: =VLOOKUP($C71,Grid!$A:$T,17,0)*$E71 -> 0.1019944067 | J71: =VLOOKUP($C71,Grid!$A:$T,8,0)*$E71 -> 0.29165002 | K71: =VLOOKUP($C71,Grid!$A:$T,12,0)*$E71 -> 0 | L71: =VLOOKUP($C71,Grid!$A:$T,16,0)*$E71 -> 0 | M71: =VLOOKUP($C71,Grid!$A:$T,20,0)*$E71 -> 0.5099720336
A72: 509451_69 | B72: 509451 | C72: 69 | D72: 34 | E72: 1 | F72: =VLOOKUP($C72,Grid!$A:$T,5,0)*$E72 -> 0.02021544323 | G72: =VLOOKUP($C72,Grid!$A:$T,9,0)*$E72 -> 0.3858136745 | H72: =VLOOKUP($C72,Grid!$A:$T,13,0)*$E72 -> 0 | I72: =VLOOKUP($C72,Grid!$A:$T,17,0)*$E72 -> 0.003907143025 | J72: =VLOOKUP($C72,Grid!$A:$T,8,0)*$E72 -> 0.68732507 | K72: =VLOOKUP($C72,Grid!$A:$T,12,0)*$E72 -> 0.01134746102 | L72: =VLOOKUP($C72,Grid!$A:$T,16,0)*$E72 -> 0 | M72: =VLOOKUP($C72,Grid!$A:$T,20,0)*$E72 -> 0.1328428629
A73: 509451_70 | B73: 509451 | C73: 70 | D73: 87 | E73: 1 | F73: =VLOOKUP($C73,Grid!$A:$T,5,0)*$E73 -> 0.008663269487 | G73: =VLOOKUP($C73,Grid!$A:$T,9,0)*$E73 -> 1.630945134 | H73: =VLOOKUP($C73,Grid!$A:$T,13,0)*$E73 -> 0 | I73: =VLOOKUP($C73,Grid!$A:$T,17,0)*$E73 -> 0.001229567435 | J73: =VLOOKUP($C73,Grid!$A:$T,8,0)*$E73 -> 0.7537044453 | K73: =VLOOKUP($C73,Grid!$A:$T,12,0)*$E73 -> 0.01874649579 | L73: =VLOOKUP($C73,Grid!$A:$T,16,0)*$E73 -> 0 | M73: =VLOOKUP($C73,Grid!$A:$T,20,0)*$E73 -> 0.1069723668
A74: 509451_71 | B74: 509451 | C74: 71 | D74: 206 | E74: 1 | F74: =VLOOKUP($C74,Grid!$A:$T,5,0)*$E74 -> 0.003210366339 | G74: =VLOOKUP($C74,Grid!$A:$T,9,0)*$E74 -> 17.28554978 | H74: =VLOOKUP($C74,Grid!$A:$T,13,0)*$E74 -> 0 | I74: =VLOOKUP($C74,Grid!$A:$T,17,0)*$E74 -> 0.0002151372461 | J74: =VLOOKUP($C74,Grid!$A:$T,8,0)*$E74 -> 0.6613354658 | K74: =VLOOKUP($C74,Grid!$A:$T,12,0)*$E74 -> 0.08391043583 | L74: =VLOOKUP($C74,Grid!$A:$T,16,0)*$E74 -> 0 | M74: =VLOOKUP($C74,Grid!$A:$T,20,0)*$E74 -> 0.04431827269
A75: 509451_72 | B75: 509451 | C75: 72 | D75: 3 | E75: 1 | F75: =VLOOKUP($C75,Grid!$A:$T,5,0)*$E75 -> 0.2228441957 | G75: =VLOOKUP($C75,Grid!$A:$T,9,0)*$E75 -> 0.008300679728 | H75: =VLOOKUP($C75,Grid!$A:$T,13,0)*$E75 -> 0 | I75: =VLOOKUP($C75,Grid!$A:$T,17,0)*$E75 -> 0.06586698654 | J75: =VLOOKUP($C75,Grid!$A:$T,8,0)*$E75 -> 0.668532587 | K75: =VLOOKUP($C75,Grid!$A:$T,12,0)*$E75 -> 0.002766893243 | L75: =VLOOKUP($C75,Grid!$A:$T,16,0)*$E75 -> 0 | M75: =VLOOKUP($C75,Grid!$A:$T,20,0)*$E75 -> 0.1976009596
A76: 509451_73 | B76: 509451 | C76: 73 | D76: 3 | E76: 1 | F76: =VLOOKUP($C76,Grid!$A:$T,5,0)*$E76 -> 0.2580558898 | G76: =VLOOKUP($C76,Grid!$A:$T,9,0)*$E76 -> 0 | H76: =VLOOKUP($C76,Grid!$A:$T,13,0)*$E76 -> 0 | I76: =VLOOKUP($C76,Grid!$A:$T,17,0)*$E76 -> 0.04865356331 | J76: =VLOOKUP($C76,Grid!$A:$T,8,0)*$E76 -> 0.7741676695 | K76: =VLOOKUP($C76,Grid!$A:$T,12,0)*$E76 -> 0 | L76: =VLOOKUP($C76,Grid!$A:$T,16,0)*$E76 -> 0 | M76: =VLOOKUP($C76,Grid!$A:$T,20,0)*$E76 -> 0.1459606899
A77: 509451_74 | B77: 509451 | C77: 74 | D77: 18 | E77: 1 | F77: =VLOOKUP($C77,Grid!$A:$T,5,0)*$E77 -> 0.03124167333 | G77: =VLOOKUP($C77,Grid!$A:$T,9,0)*$E77 -> 0.08517985612 | H77: =VLOOKUP($C77,Grid!$A:$T,13,0)*$E77 -> 0 | I77: =VLOOKUP($C77,Grid!$A:$T,17,0)*$E77 -> 0.01371369571 | J77: =VLOOKUP($C77,Grid!$A:$T,8,0)*$E77 -> 0.5623501199 | K77: =VLOOKUP($C77,Grid!$A:$T,12,0)*$E77 -> 0.004732214229 | L77: =VLOOKUP($C77,Grid!$A:$T,16,0)*$E77 -> 0 | M77: =VLOOKUP($C77,Grid!$A:$T,20,0)*$E77 -> 0.2468465228
A78: 509451_75 | B78: 509451 | C78: 75 | D78: 51 | E78: 1 | F78: =VLOOKUP($C78,Grid!$A:$T,5,0)*$E78 -> 0.01309280209 | G78: =VLOOKUP($C78,Grid!$A:$T,9,0)*$E78 -> 0.6388764494 | H78: =VLOOKUP($C78,Grid!$A:$T,13,0)*$E78 -> 0 | I78: =VLOOKUP($C78,Grid!$A:$T,17,0)*$E78 -> 0.003819021411 | J78: =VLOOKUP($C78,Grid!$A:$T,8,0)*$E78 -> 0.6677329068 | K78: =VLOOKUP($C78,Grid!$A:$T,12,0)*$E78 -> 0.0125269892 | L78: =VLOOKUP($C78,Grid!$A:$T,16,0)*$E78 -> 0 | M78: =VLOOKUP($C78,Grid!$A:$T,20,0)*$E78 -> 0.194770092
A79: 509451_76 | B79: 509451 | C79: 76 | D79: 8 | E79: 1 | F79: =VLOOKUP($C79,Grid!$A:$T,5,0)*$E79 -> 0.05952618952 | G79: =VLOOKUP($C79,Grid!$A:$T,9,0)*$E79 -> 0.0262614954 | H79: =VLOOKUP($C79,Grid!$A:$T,13,0)*$E79 -> 0 | I79: =VLOOKUP($C79,Grid!$A:$T,17,0)*$E79 -> 0.03976359456 | J79: =VLOOKUP($C79,Grid!$A:$T,8,0)*$E79 -> 0.4762095162 | K79: =VLOOKUP($C79,Grid!$A:$T,12,0)*$E79 -> 0.003282686925 | L79: =VLOOKUP($C79,Grid!$A:$T,16,0)*$E79 -> 0 | M79: =VLOOKUP($C79,Grid!$A:$T,20,0)*$E79 -> 0.3181087565
A80: 509400_77 | B80: 509400 | C80: 77 | D80: 19 | E80: 1 | F80: =VLOOKUP($C80,Grid!$A:$T,5,0)*$E80 -> 0.005930021525 | G80: =VLOOKUP($C80,Grid!$A:$T,9,0)*$E80 -> 0.01744587009 | H80: =VLOOKUP($C80,Grid!$A:$T,13,0)*$E80 -> 0 | I80: =VLOOKUP($C80,Grid!$A:$T,17,0)*$E80 -> 0.03493035918 | J80: =VLOOKUP($C80,Grid!$A:$T,8,0)*$E80 -> 0.112670409 | K80: =VLOOKUP($C80,Grid!$A:$T,12,0)*$E80 -> 0.0009182036889 | L80: =VLOOKUP($C80,Grid!$A:$T,16,0)*$E80 -> 0 | M80: =VLOOKUP($C80,Grid!$A:$T,20,0)*$E80 -> 0.6636768244
A81: 509400_78 | B81: 509400 | C81: 78 | D81: 1 | E81: 1 | F81: =VLOOKUP($C81,Grid!$A:$T,5,0)*$E81 -> 0.007205764612 | G81: =VLOOKUP($C81,Grid!$A:$T,9,0)*$E81 -> 0 | H81: =VLOOKUP($C81,Grid!$A:$T,13,0)*$E81 -> 0 | I81: =VLOOKUP($C81,Grid!$A:$T,17,0)*$E81 -> 0.7906685348 | J81: =VLOOKUP($C81,Grid!$A:$T,8,0)*$E81 -> 0.007205764612 | K81: =VLOOKUP($C81,Grid!$A:$T,12,0)*$E81 -> 0 | L81: =VLOOKUP($C81,Grid!$A:$T,16,0)*$E81 -> 0 | M81: =VLOOKUP($C81,Grid!$A:$T,20,0)*$E81 -> 0.7906685348
A82: 509400_79 | B82: 509400 | C82: 79 | D82: 2 | E82: 1 | F82: =VLOOKUP($C82,Grid!$A:$T,5,0)*$E82 -> 0.05591054313 | G82: =VLOOKUP($C82,Grid!$A:$T,9,0)*$E82 -> 0 | H82: =VLOOKUP($C82,Grid!$A:$T,13,0)*$E82 -> 0 | I82: =VLOOKUP($C82,Grid!$A:$T,17,0)*$E82 -> 0.2933526358 | J82: =VLOOKUP($C82,Grid!$A:$T,8,0)*$E82 -> 0.1118210863 | K82: =VLOOKUP($C82,Grid!$A:$T,12,0)*$E82 -> 0 | L82: =VLOOKUP($C82,Grid!$A:$T,16,0)*$E82 -> 0 | M82: =VLOOKUP($C82,Grid!$A:$T,20,0)*$E82 -> 0.5867052716
A83: 509132_80 | B83: 509132 | C83: 80 | D83: 51 | E83: 1 | F83: =VLOOKUP($C83,Grid!$A:$T,5,0)*$E83 -> 0.004022121669 | G83: =VLOOKUP($C83,Grid!$A:$T,9,0)*$E83 -> 0.9750480769 | H83: =VLOOKUP($C83,Grid!$A:$T,13,0)*$E83 -> 0 | I83: =VLOOKUP($C83,Grid!$A:$T,17,0)*$E83 -> 0.009722065108 | J83: =VLOOKUP($C83,Grid!$A:$T,8,0)*$E83 -> 0.2051282051 | K83: =VLOOKUP($C83,Grid!$A:$T,12,0)*$E83 -> 0.01911858974 | L83: =VLOOKUP($C83,Grid!$A:$T,16,0)*$E83 -> 0 | M83: =VLOOKUP($C83,Grid!$A:$T,20,0)*$E83 -> 0.4958253205
A84: 509132_81 | B84: 509132 | C84: 81 | D84: 108 | E84: 1 | F84: =VLOOKUP($C84,Grid!$A:$T,5,0)*$E84 -> 0.001092592593 | G84: =VLOOKUP($C84,Grid!$A:$T,9,0)*$E84 -> 5.09112 | H84: =VLOOKUP($C84,Grid!$A:$T,13,0)*$E84 -> 0 | I84: =VLOOKUP($C84,Grid!$A:$T,17,0)*$E84 -> 0.004696 | J84: =VLOOKUP($C84,Grid!$A:$T,8,0)*$E84 -> 0.118 | K84: =VLOOKUP($C84,Grid!$A:$T,12,0)*$E84 -> 0.04714 | L84: =VLOOKUP($C84,Grid!$A:$T,16,0)*$E84 -> 0 | M84: =VLOOKUP($C84,Grid!$A:$T,20,0)*$E84 -> 0.507168
A85: 509132_82 | B85: 509132 | C85: 82 | D85: 43 | E85: 1 | F85: =VLOOKUP($C85,Grid!$A:$T,5,0)*$E85 -> 0.006639204783 | G85: =VLOOKUP($C85,Grid!$A:$T,9,0)*$E85 -> 0.4992882847 | H85: =VLOOKUP($C85,Grid!$A:$T,13,0)*$E85 -> 0 | I85: =VLOOKUP($C85,Grid!$A:$T,17,0)*$E85 -> 0.009895855611 | J85: =VLOOKUP($C85,Grid!$A:$T,8,0)*$E85 -> 0.2854858057 | K85: =VLOOKUP($C85,Grid!$A:$T,12,0)*$E85 -> 0.01161135546 | L85: =VLOOKUP($C85,Grid!$A:$T,16,0)*$E85 -> 0 | M85: =VLOOKUP($C85,Grid!$A:$T,20,0)*$E85 -> 0.4255217913
A86: 509451_83 | B86: 509451 | C86: 83 | D86: 47 | E86: 1 | F86: =VLOOKUP($C86,Grid!$A:$T,5,0)*$E86 -> 0.009600829974 | G86: =VLOOKUP($C86,Grid!$A:$T,9,0)*$E86 -> 1.123717026 | H86: =VLOOKUP($C86,Grid!$A:$T,13,0)*$E86 -> 0 | I86: =VLOOKUP($C86,Grid!$A:$T,17,0)*$E86 -> 0.006306529245 | J86: =VLOOKUP($C86,Grid!$A:$T,8,0)*$E86 -> 0.4512390088 | K86: =VLOOKUP($C86,Grid!$A:$T,12,0)*$E86 -> 0.0239088729 | L86: =VLOOKUP($C86,Grid!$A:$T,16,0)*$E86 -> 0 | M86: =VLOOKUP($C86,Grid!$A:$T,20,0)*$E86 -> 0.2964068745
A87: 509451_84 | B87: 509451 | C87: 84 | D87: 11 | E87: 1 | F87: =VLOOKUP($C87,Grid!$A:$T,5,0)*$E87 -> 0.02300897823 | G87: =VLOOKUP($C87,Grid!$A:$T,9,0)*$E87 -> 0.01820871651 | H87: =VLOOKUP($C87,Grid!$A:$T,13,0)*$E87 -> 0 | I87: =VLOOKUP($C87,Grid!$A:$T,17,0)*$E87 -> 0.04821889426 | J87: =VLOOKUP($C87,Grid!$A:$T,8,0)*$E87 -> 0.2530987605 | K87: =VLOOKUP($C87,Grid!$A:$T,12,0)*$E87 -> 0.001655337865 | L87: =VLOOKUP($C87,Grid!$A:$T,16,0)*$E87 -> 0 | M87: =VLOOKUP($C87,Grid!$A:$T,20,0)*$E87 -> 0.5304078369
A88: 509400_85 | B88: 509400 | C88: 85 | D88: 152 | E88: 1 | F88: =VLOOKUP($C88,Grid!$A:$T,5,0)*$E88 -> 0.003340768956 | G88: =VLOOKUP($C88,Grid!$A:$T,9,0)*$E88 -> 6.853066773 | H88: =VLOOKUP($C88,Grid!$A:$T,13,0)*$E88 -> 0 | I88: =VLOOKUP($C88,Grid!$A:$T,17,0)*$E88 -> 0.001090221806 | J88: =VLOOKUP($C88,Grid!$A:$T,8,0)*$E88 -> 0.5077968812 | K88: =VLOOKUP($C88,Grid!$A:$T,12,0)*$E88 -> 0.04508596561 | L88: =VLOOKUP($C88,Grid!$A:$T,16,0)*$E88 -> 0 | M88: =VLOOKUP($C88,Grid!$A:$T,20,0)*$E88 -> 0.1657137145
A89: 509400_86 | B89: 509400 | C89: 86 | D89: 24 | E89: 1 | F89: =VLOOKUP($C89,Grid!$A:$T,5,0)*$E89 -> 0.01176451012 | G89: =VLOOKUP($C89,Grid!$A:$T,9,0)*$E89 -> 0.06833865815 | H89: =VLOOKUP($C89,Grid!$A:$T,13,0)*$E89 -> 0 | I89: =VLOOKUP($C89,Grid!$A:$T,17,0)*$E89 -> 0.01893004526 | J89: =VLOOKUP($C89,Grid!$A:$T,8,0)*$E89 -> 0.2823482428 | K89: =VLOOKUP($C89,Grid!$A:$T,12,0)*$E89 -> 0.002847444089 | L89: =VLOOKUP($C89,Grid!$A:$T,16,0)*$E89 -> 0 | M89: =VLOOKUP($C89,Grid!$A:$T,20,0)*$E89 -> 0.4543210863
A90: 509132_87 | B90: 509132 | C90: 87 | D90: 22 | E90: 1 | F90: =VLOOKUP($C90,Grid!$A:$T,5,0)*$E90 -> 0.005888553669 | G90: =VLOOKUP($C90,Grid!$A:$T,9,0)*$E90 -> 0.109780088 | H90: =VLOOKUP($C90,Grid!$A:$T,13,0)*$E90 -> 0 | I90: =VLOOKUP($C90,Grid!$A:$T,17,0)*$E90 -> 0.02680255171 | J90: =VLOOKUP($C90,Grid!$A:$T,8,0)*$E90 -> 0.1295481807 | K90: =VLOOKUP($C90,Grid!$A:$T,12,0)*$E90 -> 0.004990003998 | L90: =VLOOKUP($C90,Grid!$A:$T,16,0)*$E90 -> 0 | M90: =VLOOKUP($C90,Grid!$A:$T,20,0)*$E90 -> 0.5896561375
A91: 509132_88 | B91: 509132 | C91: 88 | D91: 42 | E91: 1 | F91: =VLOOKUP($C91,Grid!$A:$T,5,0)*$E91 -> 0.007123809524 | G91: =VLOOKUP($C91,Grid!$A:$T,9,0)*$E91 -> 1.689576 | H91: =VLOOKUP($C91,Grid!$A:$T,13,0)*$E91 -> 0 | I91: =VLOOKUP($C91,Grid!$A:$T,17,0)*$E91 -> 0.008729142857 | J91: =VLOOKUP($C91,Grid!$A:$T,8,0)*$E91 -> 0.2992 | K91: =VLOOKUP($C91,Grid!$A:$T,12,0)*$E91 -> 0.040228 | L91: =VLOOKUP($C91,Grid!$A:$T,16,0)*$E91 -> 0 | M91: =VLOOKUP($C91,Grid!$A:$T,20,0)*$E91 -> 0.366624
A92: 509132_89 | B92: 509132 | C92: 89 | D92: 12 | E92: 1 | F92: =VLOOKUP($C92,Grid!$A:$T,5,0)*$E92 -> 0.01368856838 | G92: =VLOOKUP($C92,Grid!$A:$T,9,0)*$E92 -> 0.08480769231 | H92: =VLOOKUP($C92,Grid!$A:$T,13,0)*$E92 -> 0 | I92: =VLOOKUP($C92,Grid!$A:$T,17,0)*$E92 -> 0.05344417735 | J92: =VLOOKUP($C92,Grid!$A:$T,8,0)*$E92 -> 0.1642628205 | K92: =VLOOKUP($C92,Grid!$A:$T,12,0)*$E92 -> 0.007067307692 | L92: =VLOOKUP($C92,Grid!$A:$T,16,0)*$E92 -> 0 | M92: =VLOOKUP($C92,Grid!$A:$T,20,0)*$E92 -> 0.6413301282
A93: 509451_90 | B93: 509451 | C93: 90 | D93: 5 | E93: 1 | F93: =VLOOKUP($C93,Grid!$A:$T,5,0)*$E93 -> 0.03313373253 | G93: =VLOOKUP($C93,Grid!$A:$T,9,0)*$E93 -> 0.0196007984 | H93: =VLOOKUP($C93,Grid!$A:$T,13,0)*$E93 -> 0 | I93: =VLOOKUP($C93,Grid!$A:$T,17,0)*$E93 -> 0.115001996 | J93: =VLOOKUP($C93,Grid!$A:$T,8,0)*$E93 -> 0.1656686627 | K93: =VLOOKUP($C93,Grid!$A:$T,12,0)*$E93 -> 0.003920159681 | L93: =VLOOKUP($C93,Grid!$A:$T,16,0)*$E93 -> 0 | M93: =VLOOKUP($C93,Grid!$A:$T,20,0)*$E93 -> 0.57500998
A94: 509451_91 | B94: 509451 | C94: 91 | D94: 3 | E94: 1 | F94: =VLOOKUP($C94,Grid!$A:$T,5,0)*$E94 -> 0.03048535901 | G94: =VLOOKUP($C94,Grid!$A:$T,9,0)*$E94 -> 0.07517448857 | H94: =VLOOKUP($C94,Grid!$A:$T,13,0)*$E94 -> 0 | I94: =VLOOKUP($C94,Grid!$A:$T,17,0)*$E94 -> 0.2070744752 | J94: =VLOOKUP($C94,Grid!$A:$T,8,0)*$E94 -> 0.09145607702 | K94: =VLOOKUP($C94,Grid!$A:$T,12,0)*$E94 -> 0.02505816286 | L94: =VLOOKUP($C94,Grid!$A:$T,16,0)*$E94 -> 0 | M94: =VLOOKUP($C94,Grid!$A:$T,20,0)*$E94 -> 0.6212234256
A95: 509400_92 | B95: 509400 | C95: 92 | D95: 166 | E95: 1 | F95: =VLOOKUP($C95,Grid!$A:$T,5,0)*$E95 -> 0.001804097638 | G95: =VLOOKUP($C95,Grid!$A:$T,9,0)*$E95 -> 6.030691723 | H95: =VLOOKUP($C95,Grid!$A:$T,13,0)*$E95 -> 0 | I95: =VLOOKUP($C95,Grid!$A:$T,17,0)*$E95 -> 0.002273572499 | J95: =VLOOKUP($C95,Grid!$A:$T,8,0)*$E95 -> 0.2994802079 | K95: =VLOOKUP($C95,Grid!$A:$T,12,0)*$E95 -> 0.03632946821 | L95: =VLOOKUP($C95,Grid!$A:$T,16,0)*$E95 -> 0 | M95: =VLOOKUP($C95,Grid!$A:$T,20,0)*$E95 -> 0.3774130348
A96: 509400_93 | B96: 509400 | C96: 93 | D96: 14 | E96: 1 | F96: =VLOOKUP($C96,Grid!$A:$T,5,0)*$E96 -> 0.005780677656 | G96: =VLOOKUP($C96,Grid!$A:$T,9,0)*$E96 -> 0.09260416667 | H96: =VLOOKUP($C96,Grid!$A:$T,13,0)*$E96 -> 0 | I96: =VLOOKUP($C96,Grid!$A:$T,17,0)*$E96 -> 0.04364182692 | J96: =VLOOKUP($C96,Grid!$A:$T,8,0)*$E96 -> 0.08092948718 | K96: =VLOOKUP($C96,Grid!$A:$T,12,0)*$E96 -> 0.006614583333 | L96: =VLOOKUP($C96,Grid!$A:$T,16,0)*$E96 -> 0 | M96: =VLOOKUP($C96,Grid!$A:$T,20,0)*$E96 -> 0.6109855769
A97: 509400_94 | B97: 509400 | C97: 94 | D97: 4 | E97: 1 | F97: =VLOOKUP($C97,Grid!$A:$T,5,0)*$E97 -> 0.03183632735 | G97: =VLOOKUP($C97,Grid!$A:$T,9,0)*$E97 -> 0.01095409182 | H97: =VLOOKUP($C97,Grid!$A:$T,13,0)*$E97 -> 0 | I97: =VLOOKUP($C97,Grid!$A:$T,17,0)*$E97 -> 0.1588722555 | J97: =VLOOKUP($C97,Grid!$A:$T,8,0)*$E97 -> 0.1273453094 | K97: =VLOOKUP($C97,Grid!$A:$T,12,0)*$E97 -> 0.002738522954 | L97: =VLOOKUP($C97,Grid!$A:$T,16,0)*$E97 -> 0 | M97: =VLOOKUP($C97,Grid!$A:$T,20,0)*$E97 -> 0.635489022
A98: 509132_95 | B98: 509132 | C98: 95 | D98: 80 | E98: 1 | F98: =VLOOKUP($C98,Grid!$A:$T,5,0)*$E98 -> 0.00233 | G98: =VLOOKUP($C98,Grid!$A:$T,9,0)*$E98 -> 3.63552 | H98: =VLOOKUP($C98,Grid!$A:$T,13,0)*$E98 -> 0 | I98: =VLOOKUP($C98,Grid!$A:$T,17,0)*$E98 -> 0.00502225 | J98: =VLOOKUP($C98,Grid!$A:$T,8,0)*$E98 -> 0.1864 | K98: =VLOOKUP($C98,Grid!$A:$T,12,0)*$E98 -> 0.045444 | L98: =VLOOKUP($C98,Grid!$A:$T,16,0)*$E98 -> 0 | M98: =VLOOKUP($C98,Grid!$A:$T,20,0)*$E98 -> 0.40178
A99: 509132_96 | B99: 509132 | C99: 96 | D99: 108 | E99: 1 | F99: =VLOOKUP($C99,Grid!$A:$T,5,0)*$E99 -> 0.004392782071 | G99: =VLOOKUP($C99,Grid!$A:$T,9,0)*$E99 -> 2.722446043 | H99: =VLOOKUP($C99,Grid!$A:$T,13,0)*$E99 -> 0 | I99: =VLOOKUP($C99,Grid!$A:$T,17,0)*$E99 -> 0.002522796578 | J99: =VLOOKUP($C99,Grid!$A:$T,8,0)*$E99 -> 0.4744204636 | K99: =VLOOKUP($C99,Grid!$A:$T,12,0)*$E99 -> 0.02520783373 | L99: =VLOOKUP($C99,Grid!$A:$T,16,0)*$E99 -> 0 | M99: =VLOOKUP($C99,Grid!$A:$T,20,0)*$E99 -> 0.2724620304
A100: 509132_97 | B100: 509132 | C100: 97 | D100: 37 | E100: 1 | F100: =VLOOKUP($C100,Grid!$A:$T,5,0)*$E100 -> 0.009434064212 | G100: =VLOOKUP($C100,Grid!$A:$T,9,0)*$E100 -> 0.1298920432 | H100: =VLOOKUP($C100,Grid!$A:$T,13,0)*$E100 -> 0 | I100: =VLOOKUP($C100,Grid!$A:$T,17,0)*$E100 -> 0.0113281174 | J100: =VLOOKUP($C100,Grid!$A:$T,8,0)*$E100 -> 0.3490603758 | K100: =VLOOKUP($C100,Grid!$A:$T,12,0)*$E100 -> 0.003510595762 | L100: =VLOOKUP($C100,Grid!$A:$T,16,0)*$E100 -> 0 | M100: =VLOOKUP($C100,Grid!$A:$T,20,0)*$E100 -> 0.4191403439
A101: 509132_98 | B101: 509132 | C101: 98 | D101: 7 | E101: 1 | F101: =VLOOKUP($C101,Grid!$A:$T,5,0)*$E101 -> 0.03758496601 | G101: =VLOOKUP($C101,Grid!$A:$T,9,0)*$E101 -> 0 | H101: =VLOOKUP($C101,Grid!$A:$T,13,0)*$E101 -> 0 | I101: =VLOOKUP($C101,Grid!$A:$T,17,0)*$E101 -> 0.06008967841 | J101: =VLOOKUP($C101,Grid!$A:$T,8,0)*$E101 -> 0.2630947621 | K101: =VLOOKUP($C101,Grid!$A:$T,12,0)*$E101 -> 0 | L101: =VLOOKUP($C101,Grid!$A:$T,16,0)*$E101 -> 0 | M101: =VLOOKUP($C101,Grid!$A:$T,20,0)*$E101 -> 0.4206277489
A102: 509451_99 | B102: 509451 | C102: 99 | D102: 2 | E102: 1 | F102: =VLOOKUP($C102,Grid!$A:$T,5,0)*$E102 -> 0.02119152339 | G102: =VLOOKUP($C102,Grid!$A:$T,9,0)*$E102 -> 0.005333866453 | H102: =VLOOKUP($C102,Grid!$A:$T,13,0)*$E102 -> 0 | I102: =VLOOKUP($C102,Grid!$A:$T,17,0)*$E102 -> 0.3243122751 | J102: =VLOOKUP($C102,Grid!$A:$T,8,0)*$E102 -> 0.04238304678 | K102: =VLOOKUP($C102,Grid!$A:$T,12,0)*$E102 -> 0.002666933227 | L102: =VLOOKUP($C102,Grid!$A:$T,16,0)*$E102 -> 0 | M102: =VLOOKUP($C102,Grid!$A:$T,20,0)*$E102 -> 0.6486245502
A103: 509451_100 | B103: 509451 | C103: 100 | D103: 4 | E103: 1 | F103: =VLOOKUP($C103,Grid!$A:$T,5,0)*$E103 -> 0.0349 | G103: =VLOOKUP($C103,Grid!$A:$T,9,0)*$E103 -> 0.017264 | H103: =VLOOKUP($C103,Grid!$A:$T,13,0)*$E103 -> 0 | I103: =VLOOKUP($C103,Grid!$A:$T,17,0)*$E103 -> 0.146888 | J103: =VLOOKUP($C103,Grid!$A:$T,8,0)*$E103 -> 0.1396 | K103: =VLOOKUP($C103,Grid!$A:$T,12,0)*$E103 -> 0.004316 | L103: =VLOOKUP($C103,Grid!$A:$T,16,0)*$E103 -> 0 | M103: =VLOOKUP($C103,Grid!$A:$T,20,0)*$E103 -> 0.587552
A104: 510025_101 | B104: 510025 | C104: 101 | D104: 11 | E104: 1 | F104: =VLOOKUP($C104,Grid!$A:$T,5,0)*$E104 -> 0.04898464226 | G104: =VLOOKUP($C104,Grid!$A:$T,9,0)*$E104 -> 1.443210568 | H104: =VLOOKUP($C104,Grid!$A:$T,13,0)*$E104 -> 0 | I104: =VLOOKUP($C104,Grid!$A:$T,17,0)*$E104 -> 0.0003635635781 | J104: =VLOOKUP($C104,Grid!$A:$T,8,0)*$E104 -> 0.5388310649 | K104: =VLOOKUP($C104,Grid!$A:$T,12,0)*$E104 -> 0.1312009608 | L104: =VLOOKUP($C104,Grid!$A:$T,16,0)*$E104 -> 0 | M104: =VLOOKUP($C104,Grid!$A:$T,20,0)*$E104 -> 0.003999199359
A105: 509400_102 | B105: 509400 | C105: 102 | D105: 40 | E105: 1 | F105: =VLOOKUP($C105,Grid!$A:$T,5,0)*$E105 -> 0.0160942492 | G105: =VLOOKUP($C105,Grid!$A:$T,9,0)*$E105 -> 0.5637380192 | H105: =VLOOKUP($C105,Grid!$A:$T,13,0)*$E105 -> 0 | I105: =VLOOKUP($C105,Grid!$A:$T,17,0)*$E105 -> 0.005225039936 | J105: =VLOOKUP($C105,Grid!$A:$T,8,0)*$E105 -> 0.6437699681 | K105: =VLOOKUP($C105,Grid!$A:$T,12,0)*$E105 -> 0.01409345048 | L105: =VLOOKUP($C105,Grid!$A:$T,16,0)*$E105 -> 0 | M105: =VLOOKUP($C105,Grid!$A:$T,20,0)*$E105 -> 0.2090015974
A106: 509400_103 | B106: 509400 | C106: 103 | D106: 61 | E106: 1 | F106: =VLOOKUP($C106,Grid!$A:$T,5,0)*$E106 -> 0.009284142055 | G106: =VLOOKUP($C106,Grid!$A:$T,9,0)*$E106 -> 0.9126773547 | H106: =VLOOKUP($C106,Grid!$A:$T,13,0)*$E106 -> 0 | I106: =VLOOKUP($C106,Grid!$A:$T,17,0)*$E106 -> 0.003696310654 | J106: =VLOOKUP($C106,Grid!$A:$T,8,0)*$E106 -> 0.5663326653 | K106: =VLOOKUP($C106,Grid!$A:$T,12,0)*$E106 -> 0.01496192385 | L106: =VLOOKUP($C106,Grid!$A:$T,16,0)*$E106 -> 0 | M106: =VLOOKUP($C106,Grid!$A:$T,20,0)*$E106 -> 0.2254749499
A107: 509400_104 | B107: 509400 | C107: 104 | D107: 58 | E107: 1 | F107: =VLOOKUP($C107,Grid!$A:$T,5,0)*$E107 -> 0.007726513195 | G107: =VLOOKUP($C107,Grid!$A:$T,9,0)*$E107 -> 2.188297958 | H107: =VLOOKUP($C107,Grid!$A:$T,13,0)*$E107 -> 0 | I107: =VLOOKUP($C107,Grid!$A:$T,17,0)*$E107 -> 0.003871335257 | J107: =VLOOKUP($C107,Grid!$A:$T,8,0)*$E107 -> 0.4481377653 | K107: =VLOOKUP($C107,Grid!$A:$T,12,0)*$E107 -> 0.03772927513 | L107: =VLOOKUP($C107,Grid!$A:$T,16,0)*$E107 -> 0 | M107: =VLOOKUP($C107,Grid!$A:$T,20,0)*$E107 -> 0.2245374449
A108: 509132_105 | B108: 509132 | C108: 105 | D108: 2 | E108: 1 | F108: =VLOOKUP($C108,Grid!$A:$T,5,0)*$E108 -> 0.084 | G108: =VLOOKUP($C108,Grid!$A:$T,9,0)*$E108 -> 0.004232 | H108: =VLOOKUP($C108,Grid!$A:$T,13,0)*$E108 -> 0 | I108: =VLOOKUP($C108,Grid!$A:$T,17,0)*$E108 -> 0.278576 | J108: =VLOOKUP($C108,Grid!$A:$T,8,0)*$E108 -> 0.168 | K108: =VLOOKUP($C108,Grid!$A:$T,12,0)*$E108 -> 0.002116 | L108: =VLOOKUP($C108,Grid!$A:$T,16,0)*$E108 -> 0 | M108: =VLOOKUP($C108,Grid!$A:$T,20,0)*$E108 -> 0.557152
A109: 509132_106 | B109: 509132 | C109: 106 | D109: 122 | E109: 1 | F109: =VLOOKUP($C109,Grid!$A:$T,5,0)*$E109 -> 0.004290087244 | G109: =VLOOKUP($C109,Grid!$A:$T,9,0)*$E109 -> 4.177560976 | H109: =VLOOKUP($C109,Grid!$A:$T,13,0)*$E109 -> 0 | I109: =VLOOKUP($C109,Grid!$A:$T,17,0)*$E109 -> 0.001401898257 | J109: =VLOOKUP($C109,Grid!$A:$T,8,0)*$E109 -> 0.5233906437 | K109: =VLOOKUP($C109,Grid!$A:$T,12,0)*$E109 -> 0.03424230308 | L109: =VLOOKUP($C109,Grid!$A:$T,16,0)*$E109 -> 0 | M109: =VLOOKUP($C109,Grid!$A:$T,20,0)*$E109 -> 0.1710315874
A110: 509132_107 | B110: 509132 | C110: 107 | D110: 175 | E110: 1 | F110: =VLOOKUP($C110,Grid!$A:$T,5,0)*$E110 -> 0.003054462504 | G110: =VLOOKUP($C110,Grid!$A:$T,9,0)*$E110 -> 13.02684631 | H110: =VLOOKUP($C110,Grid!$A:$T,13,0)*$E110 -> 0 | I110: =VLOOKUP($C110,Grid!$A:$T,17,0)*$E110 -> 0.0005510350727 | J110: =VLOOKUP($C110,Grid!$A:$T,8,0)*$E110 -> 0.5345309381 | K110: =VLOOKUP($C110,Grid!$A:$T,12,0)*$E110 -> 0.07443912176 | L110: =VLOOKUP($C110,Grid!$A:$T,16,0)*$E110 -> 0 | M110: =VLOOKUP($C110,Grid!$A:$T,20,0)*$E110 -> 0.09643113772
A111: 509132_108 | B111: 509132 | C111: 108 | D111: 46 | E111: 1 | F111: =VLOOKUP($C111,Grid!$A:$T,5,0)*$E111 -> 0.009459741706 | G111: =VLOOKUP($C111,Grid!$A:$T,9,0)*$E111 -> 0.4379023219 | H111: =VLOOKUP($C111,Grid!$A:$T,13,0)*$E111 -> 0 | I111: =VLOOKUP($C111,Grid!$A:$T,17,0)*$E111 -> 0.007383907126 | J111: =VLOOKUP($C111,Grid!$A:$T,8,0)*$E111 -> 0.4351481185 | K111: =VLOOKUP($C111,Grid!$A:$T,12,0)*$E111 -> 0.009519615693 | L111: =VLOOKUP($C111,Grid!$A:$T,16,0)*$E111 -> 0 | M111: =VLOOKUP($C111,Grid!$A:$T,20,0)*$E111 -> 0.3396597278
A112: 509132_109 | B112: 509132 | C112: 109 | D112: 24 | E112: 1 | F112: =VLOOKUP($C112,Grid!$A:$T,5,0)*$E112 -> 0.003211528222 | G112: =VLOOKUP($C112,Grid!$A:$T,9,0)*$E112 -> 4.403865815 | H112: =VLOOKUP($C112,Grid!$A:$T,13,0)*$E112 -> 21.33333333 | I112: =VLOOKUP($C112,Grid!$A:$T,17,0)*$E112 -> 0.004678347977 | J112: =VLOOKUP($C112,Grid!$A:$T,8,0)*$E112 -> 0.07707667732 | K112: =VLOOKUP($C112,Grid!$A:$T,12,0)*$E112 -> 0.1834944089 | L112: =VLOOKUP($C112,Grid!$A:$T,16,0)*$E112 -> 0.2044728435 | M112: =VLOOKUP($C112,Grid!$A:$T,20,0)*$E112 -> 0.1122803514
A113: 509132_110 | B113: 509132 | C113: 110 | D113: 8 | E113: 1 | F113: =VLOOKUP($C113,Grid!$A:$T,5,0)*$E113 -> 0.01591910292 | G113: =VLOOKUP($C113,Grid!$A:$T,9,0)*$E113 -> 0.08390869043 | H113: =VLOOKUP($C113,Grid!$A:$T,13,0)*$E113 -> 0 | I113: =VLOOKUP($C113,Grid!$A:$T,17,0)*$E113 -> 0.06320684822 | J113: =VLOOKUP($C113,Grid!$A:$T,8,0)*$E113 -> 0.1273528234 | K113: =VLOOKUP($C113,Grid!$A:$T,12,0)*$E113 -> 0.0104885863 | L113: =VLOOKUP($C113,Grid!$A:$T,16,0)*$E113 -> 0 | M113: =VLOOKUP($C113,Grid!$A:$T,20,0)*$E113 -> 0.5056547857
A114: 509132_111 | B114: 509132 | C114: 111 | D114: 4 | E114: 1 | F114: =VLOOKUP($C114,Grid!$A:$T,5,0)*$E114 -> 0.00390625 | G114: =VLOOKUP($C114,Grid!$A:$T,9,0)*$E114 -> 0.006217948718 | H114: =VLOOKUP($C114,Grid!$A:$T,13,0)*$E114 -> 0 | I114: =VLOOKUP($C114,Grid!$A:$T,17,0)*$E114 -> 0.1097415865 | J114: =VLOOKUP($C114,Grid!$A:$T,8,0)*$E114 -> 0.015625 | K114: =VLOOKUP($C114,Grid!$A:$T,12,0)*$E114 -> 0.001554487179 | L114: =VLOOKUP($C114,Grid!$A:$T,16,0)*$E114 -> 0 | M114: =VLOOKUP($C114,Grid!$A:$T,20,0)*$E114 -> 0.4389663462
A115: 509132_112 | B115: 509132 | C115: 112 | D115: 41 | E115: 1 | F115: =VLOOKUP($C115,Grid!$A:$T,5,0)*$E115 -> 0.003456501631 | G115: =VLOOKUP($C115,Grid!$A:$T,9,0)*$E115 -> 0.4885628743 | H115: =VLOOKUP($C115,Grid!$A:$T,13,0)*$E115 -> 0 | I115: =VLOOKUP($C115,Grid!$A:$T,17,0)*$E115 -> 0.01132427827 | J115: =VLOOKUP($C115,Grid!$A:$T,8,0)*$E115 -> 0.1417165669 | K115: =VLOOKUP($C115,Grid!$A:$T,12,0)*$E115 -> 0.01191616766 | L115: =VLOOKUP($C115,Grid!$A:$T,16,0)*$E115 -> 0 | M115: =VLOOKUP($C115,Grid!$A:$T,20,0)*$E115 -> 0.4642954092
A116: 509132_113 | B116: 509132 | C116: 113 | D116: 79 | E116: 1 | F116: =VLOOKUP($C116,Grid!$A:$T,5,0)*$E116 -> 0.00204475172 | G116: =VLOOKUP($C116,Grid!$A:$T,9,0)*$E116 -> 2.995745702 | H116: =VLOOKUP($C116,Grid!$A:$T,13,0)*$E116 -> 0 | I116: =VLOOKUP($C116,Grid!$A:$T,17,0)*$E116 -> 0.005300411481 | J116: =VLOOKUP($C116,Grid!$A:$T,8,0)*$E116 -> 0.1615353858 | K116: =VLOOKUP($C116,Grid!$A:$T,12,0)*$E116 -> 0.03792083167 | L116: =VLOOKUP($C116,Grid!$A:$T,16,0)*$E116 -> 0 | M116: =VLOOKUP($C116,Grid!$A:$T,20,0)*$E116 -> 0.418732507
A117: 509132_114 | B117: 509132 | C117: 114 | D117: 30 | E117: 1 | F117: =VLOOKUP($C117,Grid!$A:$T,5,0)*$E117 -> 0.003385312542 | G117: =VLOOKUP($C117,Grid!$A:$T,9,0)*$E117 -> 0.4007596961 | H117: =VLOOKUP($C117,Grid!$A:$T,13,0)*$E117 -> 0 | I117: =VLOOKUP($C117,Grid!$A:$T,17,0)*$E117 -> 0.01699706784 | J117: =VLOOKUP($C117,Grid!$A:$T,8,0)*$E117 -> 0.1015593762 | K117: =VLOOKUP($C117,Grid!$A:$T,12,0)*$E117 -> 0.01335865654 | L117: =VLOOKUP($C117,Grid!$A:$T,16,0)*$E117 -> 0 | M117: =VLOOKUP($C117,Grid!$A:$T,20,0)*$E117 -> 0.5099120352
A118: 509132_115 | B118: 509132 | C118: 115 | D118: 15 | E118: 1 | F118: =VLOOKUP($C118,Grid!$A:$T,5,0)*$E118 -> 0.01686038744 | G118: =VLOOKUP($C118,Grid!$A:$T,9,0)*$E118 -> 0.006973947896 | H118: =VLOOKUP($C118,Grid!$A:$T,13,0)*$E118 -> 0 | I118: =VLOOKUP($C118,Grid!$A:$T,17,0)*$E118 -> 0.02727855711 | J118: =VLOOKUP($C118,Grid!$A:$T,8,0)*$E118 -> 0.2529058116 | K118: =VLOOKUP($C118,Grid!$A:$T,12,0)*$E118 -> 0.0004649298597 | L118: =VLOOKUP($C118,Grid!$A:$T,16,0)*$E118 -> 0 | M118: =VLOOKUP($C118,Grid!$A:$T,20,0)*$E118 -> 0.4091783567
A119: 509132_116 | B119: 509132 | C119: 116 | D119: 19 | E119: 1 | F119: =VLOOKUP($C119,Grid!$A:$T,5,0)*$E119 -> 0.01021052632 | G119: =VLOOKUP($C119,Grid!$A:$T,9,0)*$E119 -> 0.062396 | H119: =VLOOKUP($C119,Grid!$A:$T,13,0)*$E119 -> 0 | I119: =VLOOKUP($C119,Grid!$A:$T,17,0)*$E119 -> 0.02321389474 | J119: =VLOOKUP($C119,Grid!$A:$T,8,0)*$E119 -> 0.194 | K119: =VLOOKUP($C119,Grid!$A:$T,12,0)*$E119 -> 0.003284 | L119: =VLOOKUP($C119,Grid!$A:$T,16,0)*$E119 -> 0 | M119: =VLOOKUP($C119,Grid!$A:$T,20,0)*$E119 -> 0.441064
A120: 509132_117 | B120: 509132 | C120: 117 | D120: 47 | E120: 1 | F120: =VLOOKUP($C120,Grid!$A:$T,5,0)*$E120 -> 0.003571610796 | G120: =VLOOKUP($C120,Grid!$A:$T,9,0)*$E120 -> 0.6719384492 | H120: =VLOOKUP($C120,Grid!$A:$T,13,0)*$E120 -> 0 | I120: =VLOOKUP($C120,Grid!$A:$T,17,0)*$E120 -> 0.01072724799 | J120: =VLOOKUP($C120,Grid!$A:$T,8,0)*$E120 -> 0.1678657074 | K120: =VLOOKUP($C120,Grid!$A:$T,12,0)*$E120 -> 0.01429656275 | L120: =VLOOKUP($C120,Grid!$A:$T,16,0)*$E120 -> 0 | M120: =VLOOKUP($C120,Grid!$A:$T,20,0)*$E120 -> 0.5041806555
A121: 509132_118 | B121: 509132 | C121: 118 | D121: 149 | E121: 1 | F121: =VLOOKUP($C121,Grid!$A:$T,5,0)*$E121 -> 0.002928029988 | G121: =VLOOKUP($C121,Grid!$A:$T,9,0)*$E121 -> 6.814234918 | H121: =VLOOKUP($C121,Grid!$A:$T,13,0)*$E121 -> 0 | I121: =VLOOKUP($C121,Grid!$A:$T,17,0)*$E121 -> 0.001315736552 | J121: =VLOOKUP($C121,Grid!$A:$T,8,0)*$E121 -> 0.4362764682 | K121: =VLOOKUP($C121,Grid!$A:$T,12,0)*$E121 -> 0.04573312026 | L121: =VLOOKUP($C121,Grid!$A:$T,16,0)*$E121 -> 0 | M121: =VLOOKUP($C121,Grid!$A:$T,20,0)*$E121 -> 0.1960447463
A122: 509345_119 | B122: 509345 | C122: 119 | D122: 20 | E122: 1 | F122: =VLOOKUP($C122,Grid!$A:$T,5,0)*$E122 -> 0.01422293248 | G122: =VLOOKUP($C122,Grid!$A:$T,9,0)*$E122 -> 0.009428685577 | H122: =VLOOKUP($C122,Grid!$A:$T,13,0)*$E122 -> 0 | I122: =VLOOKUP($C122,Grid!$A:$T,17,0)*$E122 -> 0.02155273672 | J122: =VLOOKUP($C122,Grid!$A:$T,8,0)*$E122 -> 0.2844586496 | K122: =VLOOKUP($C122,Grid!$A:$T,12,0)*$E122 -> 0.0004714342789 | L122: =VLOOKUP($C122,Grid!$A:$T,16,0)*$E122 -> 0 | M122: =VLOOKUP($C122,Grid!$A:$T,20,0)*$E122 -> 0.4310547343
A123: 509345_120 | B123: 509345 | C123: 120 | D123: 20 | E123: 0.8 | F123: =VLOOKUP($C123,Grid!$A:$T,5,0)*$E123 -> 0.01086285486 | G123: =VLOOKUP($C123,Grid!$A:$T,9,0)*$E123 -> 0.03550579768 | H123: =VLOOKUP($C123,Grid!$A:$T,13,0)*$E123 -> 0 | I123: =VLOOKUP($C123,Grid!$A:$T,17,0)*$E123 -> 0.01418197521 | J123: =VLOOKUP($C123,Grid!$A:$T,8,0)*$E123 -> 0.2715713715 | K123: =VLOOKUP($C123,Grid!$A:$T,12,0)*$E123 -> 0.001420231907 | L123: =VLOOKUP($C123,Grid!$A:$T,16,0)*$E123 -> 0 | M123: =VLOOKUP($C123,Grid!$A:$T,20,0)*$E123 -> 0.3545493802
A124: 509451_120 | B124: 509451 | C124: 120 | D124: 5 | E124: 0.2 | F124: =VLOOKUP($C124,Grid!$A:$T,5,0)*$E124 -> 0.002715713715 | G124: =VLOOKUP($C124,Grid!$A:$T,9,0)*$E124 -> 0.00887644942 | H124: =VLOOKUP($C124,Grid!$A:$T,13,0)*$E124 -> 0 | I124: =VLOOKUP($C124,Grid!$A:$T,17,0)*$E124 -> 0.003545493802 | J124: =VLOOKUP($C124,Grid!$A:$T,8,0)*$E124 -> 0.06789284286 | K124: =VLOOKUP($C124,Grid!$A:$T,12,0)*$E124 -> 0.0003550579768 | L124: =VLOOKUP($C124,Grid!$A:$T,16,0)*$E124 -> 0 | M124: =VLOOKUP($C124,Grid!$A:$T,20,0)*$E124 -> 0.08863734506
A125: 509345_121 | B125: 509345 | C125: 121 | D125: 1 | E125: 1 | F125: =VLOOKUP($C125,Grid!$A:$T,5,0)*$E125 -> 0.2991589908 | G125: =VLOOKUP($C125,Grid!$A:$T,9,0)*$E125 -> 0.0006207448939 | H125: =VLOOKUP($C125,Grid!$A:$T,13,0)*$E125 -> 0 | I125: =VLOOKUP($C125,Grid!$A:$T,17,0)*$E125 -> 0.3878654385 | J125: =VLOOKUP($C125,Grid!$A:$T,8,0)*$E125 -> 0.2991589908 | K125: =VLOOKUP($C125,Grid!$A:$T,12,0)*$E125 -> 0.0006207448939 | L125: =VLOOKUP($C125,Grid!$A:$T,16,0)*$E125 -> 0 | M125: =VLOOKUP($C125,Grid!$A:$T,20,0)*$E125 -> 0.3878654385
A126: 509345_122 | B126: 509345 | C126: 122 | D126: 38 | E126: 1 | F126: =VLOOKUP($C126,Grid!$A:$T,5,0)*$E126 -> 0.0127212273 | G126: =VLOOKUP($C126,Grid!$A:$T,9,0)*$E126 -> 0.1645501799 | H126: =VLOOKUP($C126,Grid!$A:$T,13,0)*$E126 -> 0 | I126: =VLOOKUP($C126,Grid!$A:$T,17,0)*$E126 -> 0.007974494413 | J126: =VLOOKUP($C126,Grid!$A:$T,8,0)*$E126 -> 0.4834066373 | K126: =VLOOKUP($C126,Grid!$A:$T,12,0)*$E126 -> 0.004330267893 | L126: =VLOOKUP($C126,Grid!$A:$T,16,0)*$E126 -> 0 | M126: =VLOOKUP($C126,Grid!$A:$T,20,0)*$E126 -> 0.3030307877
A127: 509345_123 | B127: 509345 | C127: 123 | D127: 62 | E127: 0.9538461538 | F127: =VLOOKUP($C127,Grid!$A:$T,5,0)*$E127 -> 0.006543504707 | G127: =VLOOKUP($C127,Grid!$A:$T,9,0)*$E127 -> 1.420431138 | H127: =VLOOKUP($C127,Grid!$A:$T,13,0)*$E127 -> 0 | I127: =VLOOKUP($C127,Grid!$A:$T,17,0)*$E127 -> 0.003408246229 | J127: =VLOOKUP($C127,Grid!$A:$T,8,0)*$E127 -> 0.4253278059 | K127: =VLOOKUP($C127,Grid!$A:$T,12,0)*$E127 -> 0.02185278673 | L127: =VLOOKUP($C127,Grid!$A:$T,16,0)*$E127 -> 0 | M127: =VLOOKUP($C127,Grid!$A:$T,20,0)*$E127 -> 0.2215360049
A128: 509451_123 | B128: 509451 | C128: 123 | D128: 3 | E128: 0.04615384615 | F128: =VLOOKUP($C128,Grid!$A:$T,5,0)*$E128 -> 0.0003166211955 | G128: =VLOOKUP($C128,Grid!$A:$T,9,0)*$E128 -> 0.06873053892 | H128: =VLOOKUP($C128,Grid!$A:$T,13,0)*$E128 -> 0 | I128: =VLOOKUP($C128,Grid!$A:$T,17,0)*$E128 -> 0.0001649151401 | J128: =VLOOKUP($C128,Grid!$A:$T,8,0)*$E128 -> 0.02058037771 | K128: =VLOOKUP($C128,Grid!$A:$T,12,0)*$E128 -> 0.001057392906 | L128: =VLOOKUP($C128,Grid!$A:$T,16,0)*$E128 -> 0 | M128: =VLOOKUP($C128,Grid!$A:$T,20,0)*$E128 -> 0.01071948411
A129: 509345_124 | B129: 509345 | C129: 124 | D129: 8 | E129: 1 | F129: =VLOOKUP($C129,Grid!$A:$T,5,0)*$E129 -> 0.03906562625 | G129: =VLOOKUP($C129,Grid!$A:$T,9,0)*$E129 -> 0.04164865946 | H129: =VLOOKUP($C129,Grid!$A:$T,13,0)*$E129 -> 0 | I129: =VLOOKUP($C129,Grid!$A:$T,17,0)*$E129 -> 0.05477340936 | J129: =VLOOKUP($C129,Grid!$A:$T,8,0)*$E129 -> 0.31252501 | K129: =VLOOKUP($C129,Grid!$A:$T,12,0)*$E129 -> 0.005206082433 | L129: =VLOOKUP($C129,Grid!$A:$T,16,0)*$E129 -> 0 | M129: =VLOOKUP($C129,Grid!$A:$T,20,0)*$E129 -> 0.4381872749
A130: 510025_125 | B130: 510025 | C130: 125 | D130: 42 | E130: 1 | F130: =VLOOKUP($C130,Grid!$A:$T,5,0)*$E130 -> 0.01795222881 | G130: =VLOOKUP($C130,Grid!$A:$T,9,0)*$E130 -> 0.5312060703 | H130: =VLOOKUP($C130,Grid!$A:$T,13,0)*$E130 -> 0 | I130: =VLOOKUP($C130,Grid!$A:$T,17,0)*$E130 -> 0.0002351475734 | J130: =VLOOKUP($C130,Grid!$A:$T,8,0)*$E130 -> 0.7539936102 | K130: =VLOOKUP($C130,Grid!$A:$T,12,0)*$E130 -> 0.01264776358 | L130: =VLOOKUP($C130,Grid!$A:$T,16,0)*$E130 -> 0 | M130: =VLOOKUP($C130,Grid!$A:$T,20,0)*$E130 -> 0.009876198083
A131: 510025_126 | B131: 510025 | C131: 126 | D131: 39 | E131: 1 | F131: =VLOOKUP($C131,Grid!$A:$T,5,0)*$E131 -> 0.007081905115 | G131: =VLOOKUP($C131,Grid!$A:$T,9,0)*$E131 -> 1.430678442 | H131: =VLOOKUP($C131,Grid!$A:$T,13,0)*$E131 -> 0 | I131: =VLOOKUP($C131,Grid!$A:$T,17,0)*$E131 -> 0.001713244604 | J131: =VLOOKUP($C131,Grid!$A:$T,8,0)*$E131 -> 0.2761942995 | K131: =VLOOKUP($C131,Grid!$A:$T,12,0)*$E131 -> 0.03668406263 | L131: =VLOOKUP($C131,Grid!$A:$T,16,0)*$E131 -> 0 | M131: =VLOOKUP($C131,Grid!$A:$T,20,0)*$E131 -> 0.06681653954
A132: 510025_127 | B132: 510025 | C132: 127 | D132: 201 | E132: =D132/SUMIF($C$3:$C$7916,C132,$D$3:$D$7916) -> 1 | F132: =VLOOKUP($C132,Grid!$A:$T,5,0)*$E132 -> 0.00222242083 | G132: =VLOOKUP($C132,Grid!$A:$T,9,0)*$E132 -> 33.30582036 | H132: =VLOOKUP($C132,Grid!$A:$T,13,0)*$E132 -> 0 | I132: =VLOOKUP($C132,Grid!$A:$T,17,0)*$E132 -> 6.800329689e-05 | J132: =VLOOKUP($C132,Grid!$A:$T,8,0)*$E132 -> 0.4467065868 | K132: =VLOOKUP($C132,Grid!$A:$T,12,0)*$E132 -> 0.1657005988 | L132: =VLOOKUP($C132,Grid!$A:$T,16,0)*$E132 -> 0 | M132: =VLOOKUP($C132,Grid!$A:$T,20,0)*$E132 -> 0.01366866267
A133: 509507_128 | B133: 509507 | C133: 128 | D133: 53 | E133: 1 | F133: =VLOOKUP($C133,Grid!$A:$T,5,0)*$E133 -> 0.0002263245645 | G133: =VLOOKUP($C133,Grid!$A:$T,9,0)*$E133 -> 0 | H133: =VLOOKUP($C133,Grid!$A:$T,13,0)*$E133 -> 0 | I133: =VLOOKUP($C133,Grid!$A:$T,17,0)*$E133 -> 0.01485707604 | J133: =VLOOKUP($C133,Grid!$A:$T,8,0)*$E133 -> 0.01199520192 | K133: =VLOOKUP($C133,Grid!$A:$T,12,0)*$E133 -> 0 | L133: =VLOOKUP($C133,Grid!$A:$T,16,0)*$E133 -> 0 | M133: =VLOOKUP($C133,Grid!$A:$T,20,0)*$E133 -> 0.78742503
A134: 509507_129 | B134: 509507 | C134: 129 | D134: 10 | E134: 1 | F134: =VLOOKUP($C134,Grid!$A:$T,5,0)*$E134 -> 0.0001596806387 | G134: =VLOOKUP($C134,Grid!$A:$T,9,0)*$E134 -> 0 | H134: =VLOOKUP($C134,Grid!$A:$T,13,0)*$E134 -> 0 | I134: =VLOOKUP($C134,Grid!$A:$T,17,0)*$E134 -> 0.08365868263 | J134: =VLOOKUP($C134,Grid!$A:$T,8,0)*$E134 -> 0.001596806387 | K134: =VLOOKUP($C134,Grid!$A:$T,12,0)*$E134 -> 0 | L134: =VLOOKUP($C134,Grid!$A:$T,16,0)*$E134 -> 0 | M134: =VLOOKUP($C134,Grid!$A:$T,20,0)*$E134 -> 0.8365868263
A135: 509400_130 | B135: 509400 | C135: 130 | D135: 9 | E135: 1 | F135: =VLOOKUP($C135,Grid!$A:$T,5,0)*$E135 -> 0.04921015264 | G135: =VLOOKUP($C135,Grid!$A:$T,9,0)*$E135 -> 0.01153753994 | H135: =VLOOKUP($C135,Grid!$A:$T,13,0)*$E135 -> 0 | I135: =VLOOKUP($C135,Grid!$A:$T,17,0)*$E135 -> 0.04344826056 | J135: =VLOOKUP($C135,Grid!$A:$T,8,0)*$E135 -> 0.4428913738 | K135: =VLOOKUP($C135,Grid!$A:$T,12,0)*$E135 -> 0.001281948882 | L135: =VLOOKUP($C135,Grid!$A:$T,16,0)*$E135 -> 0 | M135: =VLOOKUP($C135,Grid!$A:$T,20,0)*$E135 -> 0.391034345
A136: 509400_131 | B136: 509400 | C136: 131 | D136: 8 | E136: 1 | F136: =VLOOKUP($C136,Grid!$A:$T,5,0)*$E136 -> 0.03743502599 | G136: =VLOOKUP($C136,Grid!$A:$T,9,0)*$E136 -> 0.03445021991 | H136: =VLOOKUP($C136,Grid!$A:$T,13,0)*$E136 -> 0 | I136: =VLOOKUP($C136,Grid!$A:$T,17,0)*$E136 -> 0.05360805678 | J136: =VLOOKUP($C136,Grid!$A:$T,8,0)*$E136 -> 0.2994802079 | K136: =VLOOKUP($C136,Grid!$A:$T,12,0)*$E136 -> 0.004306277489 | L136: =VLOOKUP($C136,Grid!$A:$T,16,0)*$E136 -> 0 | M136: =VLOOKUP($C136,Grid!$A:$T,20,0)*$E136 -> 0.4288644542
A137: 509400_132 | B137: 509400 | C137: 132 | D137: 9 | E137: 1 | F137: =VLOOKUP($C137,Grid!$A:$T,5,0)*$E137 -> 0.06981081801 | G137: =VLOOKUP($C137,Grid!$A:$T,9,0)*$E137 -> 0.005035971223 | H137: =VLOOKUP($C137,Grid!$A:$T,13,0)*$E137 -> 0 | I137: =VLOOKUP($C137,Grid!$A:$T,17,0)*$E137 -> 0.02198863132 | J137: =VLOOKUP($C137,Grid!$A:$T,8,0)*$E137 -> 0.6282973621 | K137: =VLOOKUP($C137,Grid!$A:$T,12,0)*$E137 -> 0.0005595523581 | L137: =VLOOKUP($C137,Grid!$A:$T,16,0)*$E137 -> 0 | M137: =VLOOKUP($C137,Grid!$A:$T,20,0)*$E137 -> 0.1978976819
A138: 509400_133 | B138: 509400 | C138: 133 | D138: 2 | E138: 1 | F138: =VLOOKUP($C138,Grid!$A:$T,5,0)*$E138 -> 0.2998395507 | G138: =VLOOKUP($C138,Grid!$A:$T,9,0)*$E138 -> 0.01022864019 | H138: =VLOOKUP($C138,Grid!$A:$T,13,0)*$E138 -> 0 | I138: =VLOOKUP($C138,Grid!$A:$T,17,0)*$E138 -> 0.09643200963 | J138: =VLOOKUP($C138,Grid!$A:$T,8,0)*$E138 -> 0.5996791015 | K138: =VLOOKUP($C138,Grid!$A:$T,12,0)*$E138 -> 0.005114320096 | L138: =VLOOKUP($C138,Grid!$A:$T,16,0)*$E138 -> 0 | M138: =VLOOKUP($C138,Grid!$A:$T,20,0)*$E138 -> 0.1928640193
A139: 509132_134 | B139: 509132 | C139: 134 | D139: 186 | E139: 1 | F139: =VLOOKUP($C139,Grid!$A:$T,5,0)*$E139 -> 0.0032481631 | G139: =VLOOKUP($C139,Grid!$A:$T,9,0)*$E139 -> 7.849780088 | H139: =VLOOKUP($C139,Grid!$A:$T,13,0)*$E139 -> 0 | I139: =VLOOKUP($C139,Grid!$A:$T,17,0)*$E139 -> 0.0005215763157 | J139: =VLOOKUP($C139,Grid!$A:$T,8,0)*$E139 -> 0.6041583367 | K139: =VLOOKUP($C139,Grid!$A:$T,12,0)*$E139 -> 0.04220311875 | L139: =VLOOKUP($C139,Grid!$A:$T,16,0)*$E139 -> 0 | M139: =VLOOKUP($C139,Grid!$A:$T,20,0)*$E139 -> 0.09701319472
A140: 509132_135 | B140: 509132 | C140: 135 | D140: 163 | E140: 1 | F140: =VLOOKUP($C140,Grid!$A:$T,5,0)*$E140 -> 0.002939877301 | G140: =VLOOKUP($C140,Grid!$A:$T,9,0)*$E140 -> 7.987 | H140: =VLOOKUP($C140,Grid!$A:$T,13,0)*$E140 -> 0 | I140: =VLOOKUP($C140,Grid!$A:$T,17,0)*$E140 -> 0.001110993865 | J140: =VLOOKUP($C140,Grid!$A:$T,8,0)*$E140 -> 0.4792 | K140: =VLOOKUP($C140,Grid!$A:$T,12,0)*$E140 -> 0.049 | L140: =VLOOKUP($C140,Grid!$A:$T,16,0)*$E140 -> 0 | M140: =VLOOKUP($C140,Grid!$A:$T,20,0)*$E140 -> 0.181092
A141: 509132_136 | B141: 509132 | C141: 136 | D141: 209 | E141: 1 | F141: =VLOOKUP($C141,Grid!$A:$T,5,0)*$E141 -> 0.002448916973 | G141: =VLOOKUP($C141,Grid!$A:$T,9,0)*$E141 -> 15.45175952 | H141: =VLOOKUP($C141,Grid!$A:$T,13,0)*$E141 -> 0 | I141: =VLOOKUP($C141,Grid!$A:$T,17,0)*$E141 -> 0.0005955068031 | J141: =VLOOKUP($C141,Grid!$A:$T,8,0)*$E141 -> 0.5118236473 | K141: =VLOOKUP($C141,Grid!$A:$T,12,0)*$E141 -> 0.07393186373 | L141: =VLOOKUP($C141,Grid!$A:$T,16,0)*$E141 -> 0 | M141: =VLOOKUP($C141,Grid!$A:$T,20,0)*$E141 -> 0.1244609218
A142: 509132_137 | B142: 509132 | C142: 137 | D142: 46 | E142: 1 | F142: =VLOOKUP($C142,Grid!$A:$T,5,0)*$E142 -> 0.01029245856 | G142: =VLOOKUP($C142,Grid!$A:$T,9,0)*$E142 -> 5.693349301 | H142: =VLOOKUP($C142,Grid!$A:$T,13,0)*$E142 -> 0 | I142: =VLOOKUP($C142,Grid!$A:$T,17,0)*$E142 -> 0.000946888831 | J142: =VLOOKUP($C142,Grid!$A:$T,8,0)*$E142 -> 0.4734530938 | K142: =VLOOKUP($C142,Grid!$A:$T,12,0)*$E142 -> 0.1237684631 | L142: =VLOOKUP($C142,Grid!$A:$T,16,0)*$E142 -> 0 | M142: =VLOOKUP($C142,Grid!$A:$T,20,0)*$E142 -> 0.04355688623
A143: 509132_138 | B143: 509132 | C143: 138 | D143: 59 | E143: 1 | F143: =VLOOKUP($C143,Grid!$A:$T,5,0)*$E143 -> 0.001012599731 | G143: =VLOOKUP($C143,Grid!$A:$T,9,0)*$E143 -> 1.396932638 | H143: =VLOOKUP($C143,Grid!$A:$T,13,0)*$E143 -> 0 | I143: =VLOOKUP($C143,Grid!$A:$T,17,0)*$E143 -> 0.01029052778 | J143: =VLOOKUP($C143,Grid!$A:$T,8,0)*$E143 -> 0.05974338412 | K143: =VLOOKUP($C143,Grid!$A:$T,12,0)*$E143 -> 0.02367682438 | L143: =VLOOKUP($C143,Grid!$A:$T,16,0)*$E143 -> 0 | M143: =VLOOKUP($C143,Grid!$A:$T,20,0)*$E143 -> 0.6071411387
A144: 509132_139 | B144: 509132 | C144: 139 | D144: 106 | E144: 1 | F144: =VLOOKUP($C144,Grid!$A:$T,5,0)*$E144 -> 0.0006337087806 | G144: =VLOOKUP($C144,Grid!$A:$T,9,0)*$E144 -> 5.539888045 | H144: =VLOOKUP($C144,Grid!$A:$T,13,0)*$E144 -> 0 | I144: =VLOOKUP($C144,Grid!$A:$T,17,0)*$E144 -> 0.004415252767 | J144: =VLOOKUP($C144,Grid!$A:$T,8,0)*$E144 -> 0.06717313075 | K144: =VLOOKUP($C144,Grid!$A:$T,12,0)*$E144 -> 0.05226309476 | L144: =VLOOKUP($C144,Grid!$A:$T,16,0)*$E144 -> 0 | M144: =VLOOKUP($C144,Grid!$A:$T,20,0)*$E144 -> 0.4680167933
A145: 509132_140 | B145: 509132 | C145: 140 | D145: 68 | E145: 1 | F145: =VLOOKUP($C145,Grid!$A:$T,5,0)*$E145 -> 0.001364160218 | G145: =VLOOKUP($C145,Grid!$A:$T,9,0)*$E145 -> 1.429060376 | H145: =VLOOKUP($C145,Grid!$A:$T,13,0)*$E145 -> 0 | I145: =VLOOKUP($C145,Grid!$A:$T,17,0)*$E145 -> 0.005965378554 | J145: =VLOOKUP($C145,Grid!$A:$T,8,0)*$E145 -> 0.09276289484 | K145: =VLOOKUP($C145,Grid!$A:$T,12,0)*$E145 -> 0.02101559376 | L145: =VLOOKUP($C145,Grid!$A:$T,16,0)*$E145 -> 0 | M145: =VLOOKUP($C145,Grid!$A:$T,20,0)*$E145 -> 0.4056457417
A146: 509132_141 | B146: 509132 | C146: 141 | D146: 20 | E146: 1 | F146: =VLOOKUP($C146,Grid!$A:$T,5,0)*$E146 -> 0.00981215028 | G146: =VLOOKUP($C146,Grid!$A:$T,9,0)*$E146 -> 0.002877697842 | H146: =VLOOKUP($C146,Grid!$A:$T,13,0)*$E146 -> 0 | I146: =VLOOKUP($C146,Grid!$A:$T,17,0)*$E146 -> 0.02353916867 | J146: =VLOOKUP($C146,Grid!$A:$T,8,0)*$E146 -> 0.1962430056 | K146: =VLOOKUP($C146,Grid!$A:$T,12,0)*$E146 -> 0.0001438848921 | L146: =VLOOKUP($C146,Grid!$A:$T,16,0)*$E146 -> 0 | M146: =VLOOKUP($C146,Grid!$A:$T,20,0)*$E146 -> 0.4707833733
A147: 509132_142 | B147: 509132 | C147: 142 | D147: 2 | E147: 1 | F147: =VLOOKUP($C147,Grid!$A:$T,5,0)*$E147 -> 0.06999598877 | G147: =VLOOKUP($C147,Grid!$A:$T,9,0)*$E147 -> 0.003128760529 | H147: =VLOOKUP($C147,Grid!$A:$T,13,0)*$E147 -> 0 | I147: =VLOOKUP($C147,Grid!$A:$T,17,0)*$E147 -> 0.190641797 | J147: =VLOOKUP($C147,Grid!$A:$T,8,0)*$E147 -> 0.1399919775 | K147: =VLOOKUP($C147,Grid!$A:$T,12,0)*$E147 -> 0.001564380265 | L147: =VLOOKUP($C147,Grid!$A:$T,16,0)*$E147 -> 0 | M147: =VLOOKUP($C147,Grid!$A:$T,20,0)*$E147 -> 0.3812835941
A148: 509132_143 | B148: 509132 | C148: 143 | D148: 64 | E148: 1 | F148: =VLOOKUP($C148,Grid!$A:$T,5,0)*$E148 -> 0.001765219561 | G148: =VLOOKUP($C148,Grid!$A:$T,9,0)*$E148 -> 1.329309381 | H148: =VLOOKUP($C148,Grid!$A:$T,13,0)*$E148 -> 0 | I148: =VLOOKUP($C148,Grid!$A:$T,17,0)*$E148 -> 0.008655938124 | J148: =VLOOKUP($C148,Grid!$A:$T,8,0)*$E148 -> 0.1129740519 | K148: =VLOOKUP($C148,Grid!$A:$T,12,0)*$E148 -> 0.02077045908 | L148: =VLOOKUP($C148,Grid!$A:$T,16,0)*$E148 -> 0 | M148: =VLOOKUP($C148,Grid!$A:$T,20,0)*$E148 -> 0.5539800399
A149: 509132_144 | B149: 509132 | C149: 144 | D149: 29 | E149: 1 | F149: =VLOOKUP($C149,Grid!$A:$T,5,0)*$E149 -> 0.001875112024 | G149: =VLOOKUP($C149,Grid!$A:$T,9,0)*$E149 -> 0.4482766893 | H149: =VLOOKUP($C149,Grid!$A:$T,13,0)*$E149 -> 0 | I149: =VLOOKUP($C149,Grid!$A:$T,17,0)*$E149 -> 0.02486439907 | J149: =VLOOKUP($C149,Grid!$A:$T,8,0)*$E149 -> 0.0543782487 | K149: =VLOOKUP($C149,Grid!$A:$T,12,0)*$E149 -> 0.01545781687 | L149: =VLOOKUP($C149,Grid!$A:$T,16,0)*$E149 -> 0 | M149: =VLOOKUP($C149,Grid!$A:$T,20,0)*$E149 -> 0.721067573
A150: 509132_145 | B150: 509132 | C150: 145 | D150: 9 | E150: 1 | F150: =VLOOKUP($C150,Grid!$A:$T,5,0)*$E150 -> 0.02365390601 | G150: =VLOOKUP($C150,Grid!$A:$T,9,0)*$E150 -> 0.009903961585 | H150: =VLOOKUP($C150,Grid!$A:$T,13,0)*$E150 -> 0 | I150: =VLOOKUP($C150,Grid!$A:$T,17,0)*$E150 -> 0.0645013561 | J150: =VLOOKUP($C150,Grid!$A:$T,8,0)*$E150 -> 0.2128851541 | K150: =VLOOKUP($C150,Grid!$A:$T,12,0)*$E150 -> 0.001100440176 | L150: =VLOOKUP($C150,Grid!$A:$T,16,0)*$E150 -> 0 | M150: =VLOOKUP($C150,Grid!$A:$T,20,0)*$E150 -> 0.5805122049
A151: 509345_146 | B151: 509345 | C151: 146 | D151: 4 | E151: 1 | F151: =VLOOKUP($C151,Grid!$A:$T,5,0)*$E151 -> 0.05720846645 | G151: =VLOOKUP($C151,Grid!$A:$T,9,0)*$E151 -> 0.01426517572 | H151: =VLOOKUP($C151,Grid!$A:$T,13,0)*$E151 -> 0 | I151: =VLOOKUP($C151,Grid!$A:$T,17,0)*$E151 -> 0.1247214457 | J151: =VLOOKUP($C151,Grid!$A:$T,8,0)*$E151 -> 0.2288338658 | K151: =VLOOKUP($C151,Grid!$A:$T,12,0)*$E151 -> 0.00356629393 | L151: =VLOOKUP($C151,Grid!$A:$T,16,0)*$E151 -> 0 | M151: =VLOOKUP($C151,Grid!$A:$T,20,0)*$E151 -> 0.4988857827
A152: 509345_147 | B152: 509345 | C152: 147 | D152: 6 | E152: 1 | F152: =VLOOKUP($C152,Grid!$A:$T,5,0)*$E152 -> 0.04711448754 | G152: =VLOOKUP($C152,Grid!$A:$T,9,0)*$E152 -> 0 | H152: =VLOOKUP($C152,Grid!$A:$T,13,0)*$E152 -> 0 | I152: =VLOOKUP($C152,Grid!$A:$T,17,0)*$E152 -> 0.07700519792 | J152: =VLOOKUP($C152,Grid!$A:$T,8,0)*$E152 -> 0.2826869252 | K152: =VLOOKUP($C152,Grid!$A:$T,12,0)*$E152 -> 0 | L152: =VLOOKUP($C152,Grid!$A:$T,16,0)*$E152 -> 0 | M152: =VLOOKUP($C152,Grid!$A:$T,20,0)*$E152 -> 0.4620311875
A153: 509345_148 | B153: 509345 | C153: 148 | D153: 10 | E153: 1 | F153: =VLOOKUP($C153,Grid!$A:$T,5,0)*$E153 -> 0.06593362655 | G153: =VLOOKUP($C153,Grid!$A:$T,9,0)*$E153 -> 0.07213114754 | H153: =VLOOKUP($C153,Grid!$A:$T,13,0)*$E153 -> 0 | I153: =VLOOKUP($C153,Grid!$A:$T,17,0)*$E153 -> 0.0129880048 | J153: =VLOOKUP($C153,Grid!$A:$T,8,0)*$E153 -> 0.6593362655 | K153: =VLOOKUP($C153,Grid!$A:$T,12,0)*$E153 -> 0.007213114754 | L153: =VLOOKUP($C153,Grid!$A:$T,16,0)*$E153 -> 0 | M153: =VLOOKUP($C153,Grid!$A:$T,20,0)*$E153 -> 0.129880048
A154: 509345_149 | B154: 509345 | C154: 149 | D154: 54 | E154: 1 | F154: =VLOOKUP($C154,Grid!$A:$T,5,0)*$E154 -> 0.009388630147 | G154: =VLOOKUP($C154,Grid!$A:$T,9,0)*$E154 -> 1.279832335 | H154: =VLOOKUP($C154,Grid!$A:$T,13,0)*$E154 -> 0 | I154: =VLOOKUP($C154,Grid!$A:$T,17,0)*$E154 -> 0.004564204923 | J154: =VLOOKUP($C154,Grid!$A:$T,8,0)*$E154 -> 0.5069860279 | K154: =VLOOKUP($C154,Grid!$A:$T,12,0)*$E154 -> 0.0237005988 | L154: =VLOOKUP($C154,Grid!$A:$T,16,0)*$E154 -> 0 | M154: =VLOOKUP($C154,Grid!$A:$T,20,0)*$E154 -> 0.2464670659
A155: 509345_150 | B155: 509345 | C155: 150 | D155: 36 | E155: 1 | F155: =VLOOKUP($C155,Grid!$A:$T,5,0)*$E155 -> 0.007161632362 | G155: =VLOOKUP($C155,Grid!$A:$T,9,0)*$E155 -> 0.3328628709 | H155: =VLOOKUP($C155,Grid!$A:$T,13,0)*$E155 -> 0 | I155: =VLOOKUP($C155,Grid!$A:$T,17,0)*$E155 -> 0.01201238528 | J155: =VLOOKUP($C155,Grid!$A:$T,8,0)*$E155 -> 0.257818765 | K155: =VLOOKUP($C155,Grid!$A:$T,12,0)*$E155 -> 0.009246190858 | L155: =VLOOKUP($C155,Grid!$A:$T,16,0)*$E155 -> 0 | M155: =VLOOKUP($C155,Grid!$A:$T,20,0)*$E155 -> 0.4324458701
A156: 509345_151 | B156: 509345 | C156: 151 | D156: 6 | E156: 1 | F156: =VLOOKUP($C156,Grid!$A:$T,5,0)*$E156 -> 0.001398322014 | G156: =VLOOKUP($C156,Grid!$A:$T,9,0)*$E156 -> 0.009900119856 | H156: =VLOOKUP($C156,Grid!$A:$T,13,0)*$E156 -> 0 | I156: =VLOOKUP($C156,Grid!$A:$T,17,0)*$E156 -> 0.1378618991 | J156: =VLOOKUP($C156,Grid!$A:$T,8,0)*$E156 -> 0.008389932082 | K156: =VLOOKUP($C156,Grid!$A:$T,12,0)*$E156 -> 0.001650019976 | L156: =VLOOKUP($C156,Grid!$A:$T,16,0)*$E156 -> 0 | M156: =VLOOKUP($C156,Grid!$A:$T,20,0)*$E156 -> 0.8271713943
A157: 510025_152 | B157: 510025 | C157: 152 | D157: 267 | E157: 1 | F157: =VLOOKUP($C157,Grid!$A:$T,5,0)*$E157 -> 0.000885666464 | G157: =VLOOKUP($C157,Grid!$A:$T,9,0)*$E157 -> 29.56262525 | H157: =VLOOKUP($C157,Grid!$A:$T,13,0)*$E157 -> 0 | I157: =VLOOKUP($C157,Grid!$A:$T,17,0)*$E157 -> 0.0002236532991 | J157: =VLOOKUP($C157,Grid!$A:$T,8,0)*$E157 -> 0.2364729459 | K157: =VLOOKUP($C157,Grid!$A:$T,12,0)*$E157 -> 0.1107214429 | L157: =VLOOKUP($C157,Grid!$A:$T,16,0)*$E157 -> 0 | M157: =VLOOKUP($C157,Grid!$A:$T,20,0)*$E157 -> 0.05971543086
A158: 510025_153 | B158: 510025 | C158: 153 | D158: 105 | E158: 1 | F158: =VLOOKUP($C158,Grid!$A:$T,5,0)*$E158 -> 0.002661792426 | G158: =VLOOKUP($C158,Grid!$A:$T,9,0)*$E158 -> 5.143362655 | H158: =VLOOKUP($C158,Grid!$A:$T,13,0)*$E158 -> 0 | I158: =VLOOKUP($C158,Grid!$A:$T,17,0)*$E158 -> 0.0002822109252 | J158: =VLOOKUP($C158,Grid!$A:$T,8,0)*$E158 -> 0.2794882047 | K158: =VLOOKUP($C158,Grid!$A:$T,12,0)*$E158 -> 0.04898440624 | L158: =VLOOKUP($C158,Grid!$A:$T,16,0)*$E158 -> 0 | M158: =VLOOKUP($C158,Grid!$A:$T,20,0)*$E158 -> 0.02963214714
A159: 510025_154 | B159: 510025 | C159: 154 | D159: 457 | E159: 1 | F159: =VLOOKUP($C159,Grid!$A:$T,5,0)*$E159 -> 0.0007119031252 | G159: =VLOOKUP($C159,Grid!$A:$T,9,0)*$E159 -> 83.1221263 | H159: =VLOOKUP($C159,Grid!$A:$T,13,0)*$E159 -> 0 | I159: =VLOOKUP($C159,Grid!$A:$T,17,0)*$E159 -> 2.986669745e-05 | J159: =VLOOKUP($C159,Grid!$A:$T,8,0)*$E159 -> 0.3253397282 | K159: =VLOOKUP($C159,Grid!$A:$T,12,0)*$E159 -> 0.1818864908 | L159: =VLOOKUP($C159,Grid!$A:$T,16,0)*$E159 -> 0 | M159: =VLOOKUP($C159,Grid!$A:$T,20,0)*$E159 -> 0.01364908074
A160: 510025_155 | B160: 510025 | C160: 155 | D160: 2 | E160: 1 | F160: =VLOOKUP($C160,Grid!$A:$T,5,0)*$E160 -> 0.2718737515 | G160: =VLOOKUP($C160,Grid!$A:$T,9,0)*$E160 -> 0.007590890931 | H160: =VLOOKUP($C160,Grid!$A:$T,13,0)*$E160 -> 0 | I160: =VLOOKUP($C160,Grid!$A:$T,17,0)*$E160 -> 0 | J160: =VLOOKUP($C160,Grid!$A:$T,8,0)*$E160 -> 0.543747503 | K160: =VLOOKUP($C160,Grid!$A:$T,12,0)*$E160 -> 0.003795445465 | L160: =VLOOKUP($C160,Grid!$A:$T,16,0)*$E160 -> 0 | M160: =VLOOKUP($C160,Grid!$A:$T,20,0)*$E160 -> 0
A161: 509507_156 | B161: 509507 | C161: 156 | D161: 16 | E161: 1 | F161: =VLOOKUP($C161,Grid!$A:$T,5,0)*$E161 -> 0.01162035186 | G161: =VLOOKUP($C161,Grid!$A:$T,9,0)*$E161 -> 0.005245901639 | H161: =VLOOKUP($C161,Grid!$A:$T,13,0)*$E161 -> 0 | I161: =VLOOKUP($C161,Grid!$A:$T,17,0)*$E161 -> 0.03279913035 | J161: =VLOOKUP($C161,Grid!$A:$T,8,0)*$E161 -> 0.1859256297 | K161: =VLOOKUP($C161,Grid!$A:$T,12,0)*$E161 -> 0.0003278688525 | L161: =VLOOKUP($C161,Grid!$A:$T,16,0)*$E161 -> 0 | M161: =VLOOKUP($C161,Grid!$A:$T,20,0)*$E161 -> 0.5247860856
A162: 509400_157 | B162: 509400 | C162: 157 | D162: 16 | E162: 1 | F162: =VLOOKUP($C162,Grid!$A:$T,5,0)*$E162 -> 0.0345834998 | G162: =VLOOKUP($C162,Grid!$A:$T,9,0)*$E162 -> 0.1975868957 | H162: =VLOOKUP($C162,Grid!$A:$T,13,0)*$E162 -> 0 | I162: =VLOOKUP($C162,Grid!$A:$T,17,0)*$E162 -> 0.01549490611 | J162: =VLOOKUP($C162,Grid!$A:$T,8,0)*$E162 -> 0.5533359968 | K162: =VLOOKUP($C162,Grid!$A:$T,12,0)*$E162 -> 0.01234918098 | L162: =VLOOKUP($C162,Grid!$A:$T,16,0)*$E162 -> 0 | M162: =VLOOKUP($C162,Grid!$A:$T,20,0)*$E162 -> 0.2479184978
A163: 509400_158 | B163: 509400 | C163: 158 | D163: 88 | E163: 1 | F163: =VLOOKUP($C163,Grid!$A:$T,5,0)*$E163 -> 0.004009356683 | G163: =VLOOKUP($C163,Grid!$A:$T,9,0)*$E163 -> 2.519471366 | H163: =VLOOKUP($C163,Grid!$A:$T,13,0)*$E163 -> 0 | I163: =VLOOKUP($C163,Grid!$A:$T,17,0)*$E163 -> 0.003547438745 | J163: =VLOOKUP($C163,Grid!$A:$T,8,0)*$E163 -> 0.3528233881 | K163: =VLOOKUP($C163,Grid!$A:$T,12,0)*$E163 -> 0.02863035643 | L163: =VLOOKUP($C163,Grid!$A:$T,16,0)*$E163 -> 0 | M163: =VLOOKUP($C163,Grid!$A:$T,20,0)*$E163 -> 0.3121746095
A164: 509400_159 | B164: 509400 | C164: 159 | D164: 65 | E164: 1 | F164: =VLOOKUP($C164,Grid!$A:$T,5,0)*$E164 -> 0.008086469175 | G164: =VLOOKUP($C164,Grid!$A:$T,9,0)*$E164 -> 2.256785428 | H164: =VLOOKUP($C164,Grid!$A:$T,13,0)*$E164 -> 0 | I164: =VLOOKUP($C164,Grid!$A:$T,17,0)*$E164 -> 0.002708074152 | J164: =VLOOKUP($C164,Grid!$A:$T,8,0)*$E164 -> 0.5256204964 | K164: =VLOOKUP($C164,Grid!$A:$T,12,0)*$E164 -> 0.03471977582 | L164: =VLOOKUP($C164,Grid!$A:$T,16,0)*$E164 -> 0 | M164: =VLOOKUP($C164,Grid!$A:$T,20,0)*$E164 -> 0.1760248199
A165: 509132_160 | B165: 509132 | C165: 160 | D165: 113 | E165: 1 | F165: =VLOOKUP($C165,Grid!$A:$T,5,0)*$E165 -> 0.001434872346 | G165: =VLOOKUP($C165,Grid!$A:$T,9,0)*$E165 -> 4.314217252 | H165: =VLOOKUP($C165,Grid!$A:$T,13,0)*$E165 -> 0 | I165: =VLOOKUP($C165,Grid!$A:$T,17,0)*$E165 -> 0.00361184936 | J165: =VLOOKUP($C165,Grid!$A:$T,8,0)*$E165 -> 0.1621405751 | K165: =VLOOKUP($C165,Grid!$A:$T,12,0)*$E165 -> 0.03817891374 | L165: =VLOOKUP($C165,Grid!$A:$T,16,0)*$E165 -> 0 | M165: =VLOOKUP($C165,Grid!$A:$T,20,0)*$E165 -> 0.4081389776
A166: 509132_161 | B166: 509132 | C166: 161 | D166: 234 | E166: 1 | F166: =VLOOKUP($C166,Grid!$A:$T,5,0)*$E166 -> 0.000353704672 | G166: =VLOOKUP($C166,Grid!$A:$T,9,0)*$E166 -> 57.98353459 | H166: =VLOOKUP($C166,Grid!$A:$T,13,0)*$E166 -> 0 | I166: =VLOOKUP($C166,Grid!$A:$T,17,0)*$E166 -> 0.0002727456026 | J166: =VLOOKUP($C166,Grid!$A:$T,8,0)*$E166 -> 0.08276689324 | K166: =VLOOKUP($C166,Grid!$A:$T,12,0)*$E166 -> 0.2477928828 | L166: =VLOOKUP($C166,Grid!$A:$T,16,0)*$E166 -> 0 | M166: =VLOOKUP($C166,Grid!$A:$T,20,0)*$E166 -> 0.06382247101
A167: 509132_162 | B167: 509132 | C167: 162 | D167: 168 | E167: 1 | F167: =VLOOKUP($C167,Grid!$A:$T,5,0)*$E167 -> 0.003071276434 | G167: =VLOOKUP($C167,Grid!$A:$T,9,0)*$E167 -> 9.399009585 | H167: =VLOOKUP($C167,Grid!$A:$T,13,0)*$E167 -> 0 | I167: =VLOOKUP($C167,Grid!$A:$T,17,0)*$E167 -> 0.0008228501065 | J167: =VLOOKUP($C167,Grid!$A:$T,8,0)*$E167 -> 0.5159744409 | K167: =VLOOKUP($C167,Grid!$A:$T,12,0)*$E167 -> 0.05594648562 | L167: =VLOOKUP($C167,Grid!$A:$T,16,0)*$E167 -> 0 | M167: =VLOOKUP($C167,Grid!$A:$T,20,0)*$E167 -> 0.1382388179
A168: 509132_163 | B168: 509132 | C168: 163 | D168: 168 | E168: 1 | F168: =VLOOKUP($C168,Grid!$A:$T,5,0)*$E168 -> 0.001843256356 | G168: =VLOOKUP($C168,Grid!$A:$T,9,0)*$E168 -> 11.72495788 | H168: =VLOOKUP($C168,Grid!$A:$T,13,0)*$E168 -> 0 | I168: =VLOOKUP($C168,Grid!$A:$T,17,0)*$E168 -> 0.00131413195 | J168: =VLOOKUP($C168,Grid!$A:$T,8,0)*$E168 -> 0.3096670678 | K168: =VLOOKUP($C168,Grid!$A:$T,12,0)*$E168 -> 0.06979141596 | L168: =VLOOKUP($C168,Grid!$A:$T,16,0)*$E168 -> 0 | M168: =VLOOKUP($C168,Grid!$A:$T,20,0)*$E168 -> 0.2207741677
A169: 509132_164 | B169: 509132 | C169: 164 | D169: 30 | E169: 1 | F169: =VLOOKUP($C169,Grid!$A:$T,5,0)*$E169 -> 0.001573333333 | G169: =VLOOKUP($C169,Grid!$A:$T,9,0)*$E169 -> 0.66216 | H169: =VLOOKUP($C169,Grid!$A:$T,13,0)*$E169 -> 0 | I169: =VLOOKUP($C169,Grid!$A:$T,17,0)*$E169 -> 0.01782746667 | J169: =VLOOKUP($C169,Grid!$A:$T,8,0)*$E169 -> 0.0472 | K169: =VLOOKUP($C169,Grid!$A:$T,12,0)*$E169 -> 0.022072 | L169: =VLOOKUP($C169,Grid!$A:$T,16,0)*$E169 -> 0 | M169: =VLOOKUP($C169,Grid!$A:$T,20,0)*$E169 -> 0.534824
A170: 509132_165 | B170: 509132 | C170: 165 | D170: 71 | E170: 1 | F170: =VLOOKUP($C170,Grid!$A:$T,5,0)*$E170 -> 0.003525350423 | G170: =VLOOKUP($C170,Grid!$A:$T,9,0)*$E170 -> 2.323326669 | H170: =VLOOKUP($C170,Grid!$A:$T,13,0)*$E170 -> 0 | I170: =VLOOKUP($C170,Grid!$A:$T,17,0)*$E170 -> 0.004099149073 | J170: =VLOOKUP($C170,Grid!$A:$T,8,0)*$E170 -> 0.25029988 | K170: =VLOOKUP($C170,Grid!$A:$T,12,0)*$E170 -> 0.03272291084 | L170: =VLOOKUP($C170,Grid!$A:$T,16,0)*$E170 -> 0 | M170: =VLOOKUP($C170,Grid!$A:$T,20,0)*$E170 -> 0.2910395842
